Workbook

Sheet Dashboard
C7: =StateName -> United States
C20: =StateName2 -> Oregon

Sheet Data
F1: *State of Residence Last Year
A2: Year | B2: State of Residence | C2: Population | D2: Same Residence Last Yr | E2: Changed Residence Last Yr | F2: TOTAL | G2: Alabama | H2: Alaska | I2: Arizona | J2: Arkansas | K2: California | L2: Colorado | M2: Connecticut | N2: Delaware | O2: District of Columbia | P2: Florida | Q2: Georgia | R2: Hawaii | S2: Idaho | T2: Illinois | U2: Indiana | V2: Iowa | W2: Kansas | X2: Kentucky | Y2: Louisiana | Z2: Maine | AA2: Maryland | AB2: Massachusetts | AC2: Michigan | AD2: Minnesota | AE2: Mississippi | AF2: Missouri | AG2: Montana | AH2: Nebraska | AI2: Nevada | AJ2: New Hampshire | AK2: New Jersey | AL2: New Mexico | AM2: New York | AN2: North Carolina | AO2: North Dakota | AP2: Ohio | AQ2: Oklahoma | AR2: Oregon | AS2: Pennsylvania | AT2: Rhode Island | AU2: South Carolina | AV2: South Dakota | AW2: Tennessee | AX2: Texas | AY2: Utah | AZ2: Vermont | BA2: Virginia | BB2: Washington | BC2: West Virginia | BD2: Wisconsin | BE2: Wyoming | BF2: Puerto Rico
A3: 2012-01-01 | B3: United States | C3: 310212755 | D3: 263612596 | E3: 37696597 | F3: 7070345 | G3: 109210 | H3: 84068 | I3: 206842 | J3: 64967 | K3: 566986 | L3: 161530 | M3: 87023 | N3: 25149 | O3: 59513 | P3: 428325 | Q3: 252262 | R3: 61509 | S3: 55191 | T3: 277953 | U3: 144597 | V3: 73325 | W3: 93134 | X3: 103004 | Y3: 95956 | Z3: 38574 | AA3: 157664 | AB3: 158156 | AC3: 175733 | AD3: 115946 | AE3: 66947 | AF3: 142754 | AG3: 33832 | AH3: 48816 | AI3: 98882 | AJ3: 38696 | AK3: 219202 | AL3: 63921 | AM3: 405864 | AN3: 238663 | AO3: 23959 | AP3: 199202 | AQ3: 102572 | AR3: 108182 | AS3: 237156 | AT3: 30498 | AU3: 127418 | AV3: 22534 | AW3: 163843 | AX3: 402187 | AY3: 82165 | AZ3: 20056 | BA3: 238540 | BB3: 180462 | BC3: 47425 | BD3: 97724 | BE3: 32228 | BF3: 74500
A4: 2012-01-01 | B4: Alabama | C4: 4764428 | D4: 4054260 | E4: 590326 | F4: 104600 | G4: 0 | H4: 1004 | I4: 962 | J4: 660 | K4: 3077 | L4: 1386 | M4: 284 | N4: 42 | O4: 162 | P4: 11244 | Q4: 19920 | R4: 627 | S4: 493 | T4: 2722 | U4: 1347 | V4: 345 | W4: 865 | X4: 2495 | Y4: 3104 | Z4: 67 | AA4: 1513 | AB4: 334 | AC4: 2298 | AD4: 752 | AE4: 4952 | AF4: 1555 | AG4: 101 | AH4: 151 | AI4: 1009 | AJ4: 161 | AK4: 1702 | AL4: 459 | AM4: 2709 | AN4: 5133 | AO4: 228 | AP4: 1411 | AQ4: 194 | AR4: 200 | AS4: 1837 | AT4: 0 | AU4: 2811 | AV4: 518 | AW4: 10539 | AX4: 7468 | AY4: 579 | AZ4: 0 | BA4: 3170 | BB4: 1034 | BC4: 128 | BD4: 760 | BE4: 88 | BF4: 619
A5: 2012-01-01 | B5: Alaska | C5: 721186 | D5: 592551 | E5: 90613 | F5: 33415 | G5: 1097 | H5: 0 | I5: 1520 | J5: 196 | K5: 3494 | L5: 556 | M5: 0 | N5: 0 | O5: 356 | P5: 1991 | Q5: 928 | R5: 1376 | S5: 538 | T5: 58 | U5: 260 | V5: 13 | W5: 221 | X5: 161 | Y5: 120 | Z5: 66 | AA5: 508 | AB5: 297 | AC5: 563 | AD5: 192 | AE5: 56 | AF5: 819 | AG5: 371 | AH5: 1195 | AI5: 803 | AJ5: 118 | AK5: 116 | AL5: 263 | AM5: 736 | AN5: 920 | AO5: 264 | AP5: 1316 | AQ5: 335 | AR5: 3174 | AS5: 255 | AT5: 0 | AU5: 384 | AV5: 99 | AW5: 451 | AX5: 1488 | AY5: 330 | AZ5: 79 | BA5: 1265 | BB5: 3725 | BC5: 0 | BD5: 206 | BE5: 136 | BF5: 25
A6: 2012-01-01 | B6: Arizona | C6: 6468907 | D6: 5242674 | E6: 953789 | F6: 232457 | G6: 1331 | H6: 3717 | I6: 0 | J6: 1214 | K6: 44889 | L6: 13790 | M6: 417 | N6: 246 | O6: 36 | P6: 5553 | Q6: 2263 | R6: 2491 | S6: 2934 | T6: 10744 | U6: 2930 | V6: 2702 | W6: 2498 | X6: 1328 | Y6: 724 | Z6: 616 | AA6: 3007 | AB6: 1961 | AC6: 9598 | AD6: 8570 | AE6: 293 | AF6: 2595 | AG6: 1118 | AH6: 2293 | AI6: 6712 | AJ6: 510 | AK6: 2564 | AL6: 6946 | AM6: 7402 | AN6: 2721 | AO6: 877 | AP6: 7906 | AQ6: 1626 | AR6: 8587 | AS6: 4280 | AT6: 614 | AU6: 1070 | AV6: 1472 | AW6: 5075 | AX6: 14788 | AY6: 5916 | AZ6: 207 | BA6: 2763 | BB6: 13247 | BC6: 765 | BD6: 3765 | BE6: 2786 | BF6: 1791
A7: 2012-01-01 | B7: Arkansas | C7: 2912680 | D7: 2453347 | E7: 373046 | F7: 76948 | G7: 374 | H7: 855 | I7: 1677 | J7: 0 | K7: 3525 | L7: 603 | M7: 185 | N7: 0 | O7: 205 | P7: 2682 | Q7: 1525 | R7: 0 | S7: 0 | T7: 3576 | U7: 1172 | V7: 409 | W7: 1033 | X7: 1310 | Y7: 3953 | Z7: 17 | AA7: 169 | AB7: 254 | AC7: 1283 | AD7: 295 | AE7: 3689 | AF7: 9105 | AG7: 258 | AH7: 166 | AI7: 121 | AJ7: 0 | AK7: 157 | AL7: 547 | AM7: 2262 | AN7: 3057 | AO7: 0 | AP7: 1135 | AQ7: 9938 | AR7: 193 | AS7: 516 | AT7: 59 | AU7: 52 | AV7: 673 | AW7: 4195 | AX7: 11767 | AY7: 269 | AZ7: 0 | BA7: 1159 | BB7: 251 | BC7: 84 | BD7: 695 | BE7: 1498 | BF7: 0
A8: 2012-01-01 | B8: California | C8: 37572738 | D8: 31777868 | E8: 5046618 | F8: 493641 | G8: 2509 | H8: 6995 | I8: 38916 | J8: 3472 | K8: 0 | L8: 15150 | M8: 6764 | N8: 474 | O8: 3199 | P8: 21004 | Q8: 10790 | R8: 11906 | S8: 5331 | T8: 21251 | U8: 5891 | V8: 2284 | W8: 2790 | X8: 3763 | Y8: 5180 | Z8: 1256 | AA8: 7902 | AB8: 14356 | AC8: 8921 | AD8: 8539 | AE8: 2556 | AF8: 6729 | AG8: 3060 | AH8: 3302 | AI8: 27968 | AJ8: 1327 | AK8: 12057 | AL8: 5921 | AM8: 31261 | AN8: 11195 | AO8: 1827 | AP8: 10653 | AQ8: 6671 | AR8: 22724 | AS8: 10466 | AT8: 1648 | AU8: 4110 | AV8: 826 | AW8: 5802 | AX8: 43005 | AY8: 12172 | AZ8: 544 | BA8: 15625 | BB8: 34569 | BC8: 1413 | BD8: 5681 | BE8: 1886 | BF8: 2323
A9: 2012-01-01 | B9: Colorado | C9: 5123944 | D9: 4131357 | E9: 751921 | F9: 205060 | G9: 3108 | H9: 3457 | I9: 10589 | J9: 1043 | K9: 22152 | L9: 0 | M9: 1317 | N9: 70 | O9: 488 | P9: 8615 | Q9: 5834 | R9: 2536 | S9: 2660 | T9: 6374 | U9: 4336 | V9: 2776 | W9: 5283 | X9: 2500 | Y9: 5048 | Z9: 20 | AA9: 2844 | AB9: 5939 | AC9: 3343 | AD9: 2992 | AE9: 835 | AF9: 3771 | AG9: 2021 | AH9: 4472 | AI9: 3789 | AJ9: 679 | AK9: 2464 | AL9: 6520 | AM9: 7250 | AN9: 4378 | AO9: 1918 | AP9: 4533 | AQ9: 4582 | AR9: 2419 | AS9: 3950 | AT9: 137 | AU9: 2383 | AV9: 756 | AW9: 2535 | AX9: 17355 | AY9: 6398 | AZ9: 503 | BA9: 3796 | BB9: 4853 | BC9: 837 | BD9: 3000 | BE9: 5602 | BF9: 1144
A10: 2012-01-01 | B10: Connecticut | C10: 3555319 | D10: 3114940 | E10: 334918 | F10: 80311 | G10: 46 | H10: 439 | I10: 3167 | J10: 200 | K10: 3161 | L10: 367 | M10: 0 | N10: 22 | O10: 288 | P10: 6578 | Q10: 1702 | R10: 408 | S10: 97 | T10: 912 | U10: 53 | V10: 0 | W10: 0 | X10: 124 | Y10: 909 | Z10: 1224 | AA10: 1752 | AB10: 8743 | AC10: 753 | AD10: 605 | AE10: 276 | AF10: 358 | AG10: 50 | AH10: 45 | AI10: 172 | AJ10: 1009 | AK10: 5665 | AL10: 444 | AM10: 23310 | AN10: 3379 | AO10: 0 | AP10: 287 | AQ10: 415 | AR10: 35 | AS10: 2214 | AT10: 1558 | AU10: 940 | AV10: 0 | AW10: 260 | AX10: 3279 | AY10: 45 | AZ10: 709 | BA10: 1729 | BB10: 1593 | BC10: 174 | BD10: 711 | BE10: 104 | BF10: 3228
A11: 2012-01-01 | B11: Delaware | C11: 906576 | D11: 782216 | E11: 86003 | F11: 34757 | G11: 119 | H11: 692 | I11: 188 | J11: 0 | K11: 2221 | L11: 0 | M11: 1489 | N11: 0 | O11: 11 | P11: 715 | Q11: 179 | R11: 0 | S11: 32 | T11: 567 | U11: 62 | V11: 30 | W11: 113 | X11: 0 | Y11: 178 | Z11: 0 | AA11: 5649 | AB11: 157 | AC11: 227 | AD11: 351 | AE11: 58 | AF11: 80 | AG11: 0 | AH11: 91 | AI11: 572 | AJ11: 99 | AK11: 5846 | AL11: 85 | AM11: 3566 | AN11: 1349 | AO11: 0 | AP11: 191 | AQ11: 0 | AR11: 0 | AS11: 6828 | AT11: 135 | AU11: 298 | AV11: 0 | AW11: 344 | AX11: 133 | AY11: 166 | AZ11: 0 | BA11: 1746 | BB11: 29 | BC11: 161 | BD11: 0 | BE11: 0 | BF11: 56
A12: 2012-01-01 | B12: District of Columbia | C12: 624847 | D12: 500267 | E12: 61992 | F12: 53830 | G12: 79 | H12: 1247 | I12: 902 | J12: 35 | K12: 4999 | L12: 677 | M12: 618 | N12: 78 | O12: 0 | P12: 1705 | Q12: 1079 | R12: 38 | S12: 46 | T12: 795 | U12: 469 | V12: 133 | W12: 164 | X12: 112 | Y12: 283 | Z12: 194 | AA12: 14120 | AB12: 1524 | AC12: 944 | AD12: 393 | AE12: 44 | AF12: 337 | AG12: 0 | AH12: 172 | AI12: 42 | AJ12: 197 | AK12: 1451 | AL12: 116 | AM12: 3085 | AN12: 985 | AO12: 0 | AP12: 651 | AQ12: 0 | AR12: 157 | AS12: 1494 | AT12: 635 | AU12: 150 | AV12: 0 | AW12: 577 | AX12: 1473 | AY12: 116 | AZ12: 267 | BA12: 9537 | BB12: 481 | BC12: 293 | BD12: 721 | BE12: 215 | BF12: 0
A13: 2012-01-01 | B13: Florida | C13: 19114620 | D13: 16032617 | E13: 2380288 | F13: 537148 | G13: 18599 | H13: 10704 | I13: 6473 | J13: 3321 | K13: 20386 | L13: 8766 | M13: 8975 | N13: 1099 | O13: 780 | P13: 0 | Q13: 42754 | R13: 3177 | S13: 1268 | T13: 22565 | U13: 13803 | V13: 3864 | W13: 5661 | X13: 6912 | Y13: 5550 | Z13: 7348 | AA13: 10442 | AB13: 15159 | AC13: 23400 | AD13: 5460 | AE13: 5490 | AF13: 10666 | AG13: 1758 | AH13: 945 | AI13: 1241 | AJ13: 2362 | AK13: 27606 | AL13: 2853 | AM13: 53009 | AN13: 23133 | AO13: 239 | AP13: 22927 | AQ13: 3142 | AR13: 2919 | AS13: 25659 | AT13: 3050 | AU13: 11366 | AV13: 1070 | AW13: 16275 | AX13: 28564 | AY13: 2499 | AZ13: 2747 | BA13: 25697 | BB13: 4943 | BC13: 3533 | BD13: 6216 | BE13: 773 | BF13: 21638
A14: 2012-01-01 | B14: Georgia | C14: 9796547 | D14: 8231384 | E14: 1236302 | F14: 277466 | G14: 13864 | H14: 2654 | I14: 6657 | J14: 1041 | K14: 14174 | L14: 4710 | M14: 1829 | N14: 226 | O14: 1352 | P14: 42870 | Q14: 0 | R14: 1409 | S14: 936 | T14: 7143 | U14: 5972 | V14: 1687 | W14: 1497 | X14: 6172 | Y14: 4100 | Z14: 222 | AA14: 3619 | AB14: 4153 | AC14: 9949 | AD14: 2237 | AE14: 3280 | AF14: 3377 | AG14: 251 | AH14: 1283 | AI14: 3783 | AJ14: 15 | AK14: 4920 | AL14: 915 | AM14: 13957 | AN14: 16009 | AO14: 207 | AP14: 7501 | AQ14: 3299 | AR14: 453 | AS14: 9076 | AT14: 440 | AU14: 18611 | AV14: 257 | AW14: 17606 | AX14: 16198 | AY14: 20 | AZ14: 84 | BA14: 10702 | BB14: 1965 | BC14: 1237 | BD14: 3441 | BE14: 106 | BF14: 1730
A15: 2012-01-01 | B15: Hawaii | C15: 1374852 | D15: 1164145 | E15: 134827 | F15: 55145 | G15: 608 | H15: 1417 | I15: 1865 | J15: 24 | K15: 9756 | L15: 1216 | M15: 191 | N15: 278 | O15: 230 | P15: 2780 | Q15: 1448 | R15: 0 | S15: 404 | T15: 318 | U15: 292 | V15: 84 | W15: 1135 | X15: 485 | Y15: 207 | Z15: 91 | AA15: 2491 | AB15: 1266 | AC15: 321 | AD15: 192 | AE15: 44 | AF15: 944 | AG15: 131 | AH15: 75 | AI15: 760 | AJ15: 85 | AK15: 410 | AL15: 284 | AM15: 2382 | AN15: 2241 | AO15: 0 | AP15: 884 | AQ15: 1095 | AR15: 1763 | AS15: 1087 | AT15: 106 | AU15: 644 | AV15: 459 | AW15: 1314 | AX15: 3300 | AY15: 2183 | AZ15: 0 | BA15: 1393 | BB15: 5920 | BC15: 197 | BD15: 295 | BE15: 50 | BF15: 336
A16: 2012-01-01 | B16: Idaho | C16: 1573036 | D16: 1296975 | E16: 210151 | F16: 59283 | G16: 575 | H16: 1198 | I16: 2424 | J16: 291 | K16: 10280 | L16: 1186 | M16: 44 | N16: 120 | O16: 116 | P16: 2014 | Q16: 583 | R16: 206 | S16: 0 | T16: 532 | U16: 283 | V16: 90 | W16: 63 | X16: 83 | Y16: 54 | Z16: 0 | AA16: 107 | AB16: 338 | AC16: 683 | AD16: 637 | AE16: 87 | AF16: 214 | AG16: 3800 | AH16: 35 | AI16: 2535 | AJ16: 0 | AK16: 214 | AL16: 675 | AM16: 938 | AN16: 817 | AO16: 0 | AP16: 1018 | AQ16: 93 | AR16: 4963 | AS16: 169 | AT16: 0 | AU16: 205 | AV16: 118 | AW16: 1957 | AX16: 1352 | AY16: 6617 | AZ16: 0 | BA16: 269 | BB16: 10398 | BC16: 0 | BD16: 225 | BE16: 677 | BF16: 136
A17: 2012-01-01 | B17: Illinois | C17: 12725119 | D17: 11009321 | E17: 1441191 | F17: 208755 | G17: 883 | H17: 2250 | I17: 7139 | J17: 1587 | K17: 14940 | L17: 3036 | M17: 955 | N17: 234 | O17: 1066 | P17: 12687 | Q17: 8745 | R17: 869 | S17: 1384 | T17: 0 | U17: 16907 | V17: 8529 | W17: 2009 | X17: 2923 | Y17: 1229 | Z17: 526 | AA17: 1865 | AB17: 3296 | AC17: 12583 | AD17: 6537 | AE17: 2744 | AF17: 13264 | AG17: 228 | AH17: 1302 | AI17: 1478 | AJ17: 283 | AK17: 2366 | AL17: 1359 | AM17: 7561 | AN17: 3761 | AO17: 196 | AP17: 6872 | AQ17: 1491 | AR17: 954 | AS17: 4588 | AT17: 462 | AU17: 1583 | AV17: 394 | AW17: 4648 | AX17: 16780 | AY17: 1154 | AZ17: 156 | BA17: 4311 | BB17: 2704 | BC17: 1221 | BD17: 14414 | BE17: 302 | BF17: 2049
A18: 2012-01-01 | B18: Indiana | C18: 6457067 | D18: 5493090 | E18: 805228 | F18: 134137 | G18: 1625 | H18: 479 | I18: 2763 | J18: 564 | K18: 6033 | L18: 1225 | M18: 823 | N18: 639 | O18: 1045 | P18: 11472 | Q18: 2258 | R18: 856 | S18: 186 | T18: 28436 | U18: 0 | V18: 1678 | W18: 1624 | X18: 11177 | Y18: 736 | Z18: 0 | AA18: 1050 | AB18: 837 | AC18: 11017 | AD18: 1543 | AE18: 1948 | AF18: 4526 | AG18: 134 | AH18: 591 | AI18: 1011 | AJ18: 0 | AK18: 1537 | AL18: 219 | AM18: 2316 | AN18: 2665 | AO18: 113 | AP18: 11235 | AQ18: 1198 | AR18: 387 | AS18: 2419 | AT18: 0 | AU18: 1414 | AV18: 111 | AW18: 3547 | AX18: 4490 | AY18: 105 | AZ18: 0 | BA18: 1932 | BB18: 258 | BC18: 507 | BD18: 1727 | BE18: 1681 | BF18: 136
A19: 2012-01-01 | B19: Iowa | C19: 3035469 | D19: 2585979 | E19: 362938 | F19: 75760 | G19: 503 | H19: 951 | I19: 1590 | J19: 451 | K19: 3268 | L19: 3252 | M19: 112 | N19: 0 | O19: 151 | P19: 4335 | Q19: 596 | R19: 521 | S19: 290 | T19: 11969 | U19: 1716 | V19: 0 | W19: 918 | X19: 819 | Y19: 763 | Z19: 78 | AA19: 419 | AB19: 585 | AC19: 946 | AD19: 7505 | AE19: 751 | AF19: 4168 | AG19: 452 | AH19: 7698 | AI19: 681 | AJ19: 56 | AK19: 1018 | AL19: 114 | AM19: 1230 | AN19: 734 | AO19: 833 | AP19: 1127 | AQ19: 1465 | AR19: 348 | AS19: 451 | AT19: 0 | AU19: 943 | AV19: 1158 | AW19: 1148 | AX19: 3553 | AY19: 886 | AZ19: 0 | BA19: 268 | BB19: 919 | BC19: 22 | BD19: 3607 | BE19: 392 | BF19: 786
A20: 2012-01-01 | B20: Kansas | C20: 2848708 | D20: 2361899 | E20: 381695 | F20: 88284 | G20: 853 | H20: 333 | I20: 3094 | J20: 2158 | K20: 5411 | L20: 3746 | M20: 210 | N20: 0 | O20: 456 | P20: 3118 | Q20: 1896 | R20: 149 | S20: 456 | T20: 1702 | U20: 1679 | V20: 1527 | W20: 0 | X20: 617 | Y20: 438 | Z20: 211 | AA20: 282 | AB20: 187 | AC20: 1125 | AD20: 682 | AE20: 452 | AF20: 21022 | AG20: 300 | AH20: 4126 | AI20: 851 | AJ20: 0 | AK20: 267 | AL20: 1029 | AM20: 571 | AN20: 813 | AO20: 261 | AP20: 1310 | AQ20: 8408 | AR20: 848 | AS20: 918 | AT20: 18 | AU20: 556 | AV20: 154 | AW20: 1542 | AX20: 8468 | AY20: 97 | AZ20: 70 | BA20: 1705 | BB20: 3265 | BC20: 139 | BD20: 486 | BE20: 278 | BF20: 82
A21: 2012-01-01 | B21: Kentucky | C21: 4328626 | D21: 3676472 | E21: 521511 | F21: 112787 | G21: 4137 | H21: 304 | I21: 1103 | J21: 518 | K21: 3415 | L21: 712 | M21: 246 | N21: 706 | O21: 254 | P21: 9232 | Q21: 4173 | R21: 647 | S21: 50 | T21: 4445 | U21: 12203 | V21: 238 | W21: 602 | X21: 0 | Y21: 666 | Z21: 46 | AA21: 1120 | AB21: 419 | AC21: 7302 | AD21: 605 | AE21: 646 | AF21: 2381 | AG21: 0 | AH21: 723 | AI21: 301 | AJ21: 84 | AK21: 496 | AL21: 554 | AM21: 5239 | AN21: 3643 | AO21: 122 | AP21: 17041 | AQ21: 577 | AR21: 298 | AS21: 2226 | AT21: 0 | AU21: 1347 | AV21: 0 | AW21: 10064 | AX21: 3345 | AY21: 464 | AZ21: 45 | BA21: 3319 | BB21: 1988 | BC21: 3346 | BD21: 1395 | BE21: 0 | BF21: 170
A22: 2012-01-01 | B22: Louisiana | C22: 4545914 | D22: 3912023 | E22: 528406 | F22: 91215 | G22: 2329 | H22: 403 | I22: 2021 | J22: 3645 | K22: 5139 | L22: 1433 | M22: 164 | N22: 0 | O22: 596 | P22: 6534 | Q22: 4478 | R22: 378 | S22: 265 | T22: 1229 | U22: 1359 | V22: 544 | W22: 420 | X22: 1649 | Y22: 0 | Z22: 251 | AA22: 642 | AB22: 549 | AC22: 1080 | AD22: 330 | AE22: 6791 | AF22: 1591 | AG22: 428 | AH22: 745 | AI22: 931 | AJ22: 11 | AK22: 975 | AL22: 150 | AM22: 2786 | AN22: 2284 | AO22: 64 | AP22: 1115 | AQ22: 2159 | AR22: 195 | AS22: 1239 | AT22: 737 | AU22: 1914 | AV22: 0 | AW22: 2348 | AX22: 24488 | AY22: 277 | AZ22: 45 | BA22: 1857 | BB22: 1581 | BC22: 238 | BD22: 682 | BE22: 146 | BF22: 655
A23: 2012-01-01 | B23: Maine | C23: 1315586 | D23: 1132344 | E23: 151438 | F23: 27523 | G23: 129 | H23: 38 | I23: 230 | J23: 0 | K23: 1610 | L23: 314 | M23: 1468 | N23: 234 | O23: 32 | P23: 2926 | Q23: 511 | R23: 0 | S23: 143 | T23: 195 | U23: 0 | V23: 7 | W23: 277 | X23: 482 | Y23: 15 | Z23: 0 | AA23: 325 | AB23: 3887 | AC23: 116 | AD23: 430 | AE23: 79 | AF23: 69 | AG23: 0 | AH23: 82 | AI23: 35 | AJ23: 3655 | AK23: 405 | AL23: 272 | AM23: 2519 | AN23: 1112 | AO23: 0 | AP23: 628 | AQ23: 79 | AR23: 215 | AS23: 976 | AT23: 1024 | AU23: 173 | AV23: 0 | AW23: 985 | AX23: 496 | AY23: 200 | AZ23: 349 | BA23: 573 | BB23: 118 | BC23: 51 | BD23: 0 | BE23: 59 | BF23: 38
A24: 2012-01-01 | B24: Maryland | C24: 5816472 | D24: 5068457 | E24: 549973 | F24: 154983 | G24: 1261 | H24: 1947 | I24: 760 | J24: 136 | K24: 8614 | L24: 1071 | M24: 881 | N24: 4100 | O24: 21213 | P24: 9610 | Q24: 4610 | R24: 610 | S24: 429 | T24: 3621 | U24: 1210 | V24: 569 | W24: 1726 | X24: 715 | Y24: 606 | Z24: 332 | AA24: 0 | AB24: 3977 | AC24: 2167 | AD24: 1422 | AE24: 581 | AF24: 256 | AG24: 0 | AH24: 132 | AI24: 330 | AJ24: 1124 | AK24: 6260 | AL24: 638 | AM24: 11736 | AN24: 7507 | AO24: 116 | AP24: 2522 | AQ24: 463 | AR24: 378 | AS24: 15485 | AT24: 82 | AU24: 2297 | AV24: 0 | AW24: 1800 | AX24: 5612 | AY24: 1061 | AZ24: 589 | BA24: 20579 | BB24: 1431 | BC24: 1957 | BD24: 460 | BE24: 0 | BF24: 294
A25: 2012-01-01 | B25: Massachusetts | C25: 6580641 | D25: 5752166 | E25: 626380 | F25: 142577 | G25: 636 | H25: 890 | I25: 1972 | J25: 394 | K25: 12770 | L25: 980 | M25: 10525 | N25: 506 | O25: 379 | P25: 12890 | Q25: 2789 | R25: 1108 | S25: 188 | T25: 2886 | U25: 677 | V25: 151 | W25: 565 | X25: 52 | Y25: 1556 | Z25: 3907 | AA25: 2381 | AB25: 0 | AC25: 1337 | AD25: 966 | AE25: 155 | AF25: 453 | AG25: 49 | AH25: 182 | AI25: 787 | AJ25: 13331 | AK25: 8046 | AL25: 521 | AM25: 19467 | AN25: 2514 | AO25: 81 | AP25: 1829 | AQ25: 297 | AR25: 1528 | AS25: 8236 | AT25: 6863 | AU25: 2477 | AV25: 194 | AW25: 823 | AX25: 3694 | AY25: 1027 | AZ25: 2534 | BA25: 4098 | BB25: 1653 | BC25: 385 | BD25: 584 | BE25: 264 | BF25: 4056
A26: 2012-01-01 | B26: Michigan | C26: 9778980 | D26: 8330990 | E26: 1268105 | F26: 133981 | G26: 2341 | H26: 1152 | I26: 7168 | J26: 906 | K26: 8085 | L26: 2363 | M26: 798 | N26: 114 | O26: 274 | P26: 13146 | Q26: 4270 | R26: 291 | S26: 242 | T26: 10047 | U26: 10976 | V26: 993 | W26: 805 | X26: 3409 | Y26: 1284 | Z26: 261 | AA26: 2201 | AB26: 1720 | AC26: 0 | AD26: 1127 | AE26: 922 | AF26: 2206 | AG26: 218 | AH26: 113 | AI26: 1354 | AJ26: 446 | AK26: 1617 | AL26: 1318 | AM26: 5731 | AN26: 3912 | AO26: 265 | AP26: 11318 | AQ26: 705 | AR26: 811 | AS26: 2739 | AT26: 68 | AU26: 1822 | AV26: 66 | AW26: 3259 | AX26: 8638 | AY26: 819 | AZ26: 60 | BA26: 3057 | BB26: 2146 | BC26: 353 | BD26: 4768 | BE26: 1277 | BF26: 782
A27: 2012-01-01 | B27: Minnesota | C27: 5315228 | D27: 4536303 | E27: 653012 | F27: 101042 | G27: 1299 | H27: 523 | I27: 3065 | J27: 375 | K27: 8086 | L27: 3565 | M27: 696 | N27: 0 | O27: 310 | P27: 2372 | Q27: 2235 | R27: 1277 | S27: 575 | T27: 5896 | U27: 2026 | V27: 7220 | W27: 924 | X27: 57 | Y27: 791 | Z27: 187 | AA27: 1841 | AB27: 814 | AC27: 2212 | AD27: 0 | AE27: 202 | AF27: 1709 | AG27: 1257 | AH27: 992 | AI27: 932 | AJ27: 0 | AK27: 1038 | AL27: 322 | AM27: 1849 | AN27: 1745 | AO27: 6672 | AP27: 2635 | AQ27: 1212 | AR27: 781 | AS27: 1106 | AT27: 299 | AU27: 1705 | AV27: 3442 | AW27: 1738 | AX27: 4001 | AY27: 429 | AZ27: 77 | BA27: 1037 | BB27: 1685 | BC27: 0 | BD27: 17618 | BE27: 213 | BF27: 134
A28: 2012-01-01 | B28: Mississippi | C28: 2947696 | D28: 2529377 | E28: 339807 | F28: 73500 | G28: 5141 | H28: 0 | I28: 710 | J28: 2680 | K28: 4371 | L28: 799 | M28: 106 | N28: 0 | O28: 97 | P28: 4676 | Q28: 2669 | R28: 184 | S28: 586 | T28: 2703 | U28: 1200 | V28: 160 | W28: 400 | X28: 446 | Y28: 8588 | Z28: 163 | AA28: 379 | AB28: 67 | AC28: 1768 | AD28: 568 | AE28: 0 | AF28: 2634 | AG28: 166 | AH28: 138 | AI28: 526 | AJ28: 60 | AK28: 2127 | AL28: 86 | AM28: 1492 | AN28: 1709 | AO28: 98 | AP28: 896 | AQ28: 562 | AR28: 465 | AS28: 613 | AT28: 185 | AU28: 596 | AV28: 79 | AW28: 11643 | AX28: 7230 | AY28: 454 | AZ28: 0 | BA28: 1929 | BB28: 433 | BC28: 0 | BD28: 611 | BE28: 307 | BF28: 81
A29: 2012-01-01 | B29: Missouri | C29: 5951913 | D29: 4965459 | E29: 801093 | F29: 162930 | G29: 1333 | H29: 2186 | I29: 2297 | J29: 9434 | K29: 10717 | L29: 3798 | M29: 410 | N29: 234 | O29: 144 | P29: 8374 | Q29: 3451 | R29: 2114 | S29: 596 | T29: 22001 | U29: 4184 | V29: 5956 | W29: 20218 | X29: 2291 | Y29: 1178 | Z29: 996 | AA29: 1246 | AB29: 810 | AC29: 2964 | AD29: 2798 | AE29: 1110 | AF29: 0 | AG29: 511 | AH29: 1999 | AI29: 836 | AJ29: 35 | AK29: 960 | AL29: 451 | AM29: 2834 | AN29: 3988 | AO29: 636 | AP29: 3557 | AQ29: 5298 | AR29: 1186 | AS29: 1535 | AT29: 361 | AU29: 2856 | AV29: 527 | AW29: 3122 | AX29: 9278 | AY29: 3287 | AZ29: 318 | BA29: 2609 | BB29: 2312 | BC29: 148 | BD29: 2636 | BE29: 810 | BF29: 826
A30: 2012-01-01 | B30: Montana | C30: 995544 | D30: 829489 | E30: 126463 | F30: 37690 | G30: 31 | H30: 726 | I30: 1548 | J30: 63 | K30: 5428 | L30: 2135 | M30: 0 | N30: 0 | O30: 0 | P30: 1875 | Q30: 292 | R30: 556 | S30: 3385 | T30: 542 | U30: 163 | V30: 415 | W30: 224 | X30: 367 | Y30: 0 | Z30: 225 | AA30: 33 | AB30: 97 | AC30: 822 | AD30: 481 | AE30: 32 | AF30: 447 | AG30: 0 | AH30: 108 | AI30: 968 | AJ30: 115 | AK30: 156 | AL30: 259 | AM30: 482 | AN30: 1082 | AO30: 977 | AP30: 402 | AQ30: 1018 | AR30: 2950 | AS30: 457 | AT30: 0 | AU30: 230 | AV30: 191 | AW30: 45 | AX30: 1393 | AY30: 260 | AZ30: 87 | BA30: 156 | BB30: 4783 | BC30: 0 | BD30: 750 | BE30: 934 | BF30: 0
A31: 2012-01-01 | B31: Nebraska | C31: 1829420 | D31: 1540361 | E31: 237937 | F31: 43266 | G31: 245 | H31: 626 | I31: 2406 | J31: 363 | K31: 3438 | L31: 2023 | M31: 0 | N31: 0 | O31: 0 | P31: 1368 | Q31: 786 | R31: 165 | S31: 315 | T31: 1193 | U31: 290 | V31: 6815 | W31: 3103 | X31: 131 | Y31: 411 | Z31: 68 | AA31: 129 | AB31: 195 | AC31: 258 | AD31: 1489 | AE31: 176 | AF31: 2223 | AG31: 108 | AH31: 0 | AI31: 233 | AJ31: 0 | AK31: 524 | AL31: 158 | AM31: 318 | AN31: 874 | AO31: 497 | AP31: 563 | AQ31: 587 | AR31: 106 | AS31: 702 | AT31: 0 | AU31: 456 | AV31: 2507 | AW31: 232 | AX31: 3130 | AY31: 229 | AZ31: 79 | BA31: 1076 | BB31: 1327 | BC31: 111 | BD31: 316 | BE31: 917 | BF31: 0
A32: 2012-01-01 | B32: Nevada | C32: 2725280 | D32: 2105070 | E32: 481496 | F32: 124285 | G32: 761 | H32: 2161 | I32: 8748 | J32: 353 | K32: 49978 | L32: 6402 | M32: 143 | N32: 373 | O32: 468 | P32: 3381 | Q32: 745 | R32: 2053 | S32: 1503 | T32: 2822 | U32: 362 | V32: 714 | W32: 1202 | X32: 952 | Y32: 421 | Z32: 209 | AA32: 934 | AB32: 318 | AC32: 1235 | AD32: 1157 | AE32: 783 | AF32: 694 | AG32: 1086 | AH32: 714 | AI32: 0 | AJ32: 175 | AK32: 912 | AL32: 1138 | AM32: 3521 | AN32: 767 | AO32: 702 | AP32: 1407 | AQ32: 1520 | AR32: 3101 | AS32: 1601 | AT32: 336 | AU32: 480 | AV32: 0 | AW32: 1699 | AX32: 5484 | AY32: 4605 | AZ32: 121 | BA32: 1135 | BB32: 2997 | BC32: 100 | BD32: 1046 | BE32: 766 | BF32: 237
A33: 2012-01-01 | B33: New Hampshire | C33: 1309203 | D33: 1127376 | E33: 125118 | F33: 50484 | G33: 0 | H33: 437 | I33: 440 | J33: 0 | K33: 1514 | L33: 572 | M33: 1345 | N33: 0 | O33: 101 | P33: 2746 | Q33: 470 | R33: 43 | S33: 20 | T33: 673 | U33: 297 | V33: 53 | W33: 102 | X33: 284 | Y33: 7 | Z33: 6118 | AA33: 33 | AB33: 18990 | AC33: 426 | AD33: 0 | AE33: 0 | AF33: 289 | AG33: 0 | AH33: 110 | AI33: 0 | AJ33: 0 | AK33: 591 | AL33: 223 | AM33: 2905 | AN33: 1609 | AO33: 0 | AP33: 324 | AQ33: 186 | AR33: 208 | AS33: 890 | AT33: 1248 | AU33: 323 | AV33: 0 | AW33: 77 | AX33: 2150 | AY33: 557 | AZ33: 2960 | BA33: 660 | BB33: 113 | BC33: 80 | BD33: 239 | BE33: 71 | BF33: 75
A34: 2012-01-01 | B34: New Jersey | C34: 8772744 | D34: 7929570 | E34: 655465 | F34: 130223 | G34: 779 | H34: 359 | I34: 1328 | J34: 57 | K34: 4330 | L34: 380 | M34: 3466 | N34: 1921 | O34: 840 | P34: 10649 | Q34: 3002 | R34: 22 | S34: 113 | T34: 2052 | U34: 1039 | V34: 357 | W34: 426 | X34: 631 | Y34: 339 | Z34: 430 | AA34: 3474 | AB34: 4907 | AC34: 324 | AD34: 570 | AE34: 106 | AF34: 384 | AG34: 67 | AH34: 35 | AI34: 908 | AJ34: 126 | AK34: 0 | AL34: 45 | AM34: 40495 | AN34: 3236 | AO34: 55 | AP34: 1452 | AQ34: 1540 | AR34: 760 | AS34: 23597 | AT34: 429 | AU34: 2372 | AV34: 581 | AW34: 1400 | AX34: 2509 | AY34: 425 | AZ34: 35 | BA34: 5024 | BB34: 1847 | BC34: 297 | BD34: 680 | BE34: 23 | BF34: 2574
A35: 2012-01-01 | B35: New Mexico | C35: 2060595 | D35: 1769341 | E35: 226243 | F35: 54693 | G35: 787 | H35: 320 | I35: 6391 | J35: 410 | K35: 4536 | L35: 4780 | M35: 280 | N35: 100 | O35: 25 | P35: 4707 | Q35: 192 | R35: 168 | S35: 355 | T35: 790 | U35: 660 | V35: 384 | W35: 672 | X35: 159 | Y35: 790 | Z35: 57 | AA35: 505 | AB35: 303 | AC35: 602 | AD35: 284 | AE35: 451 | AF35: 1216 | AG35: 139 | AH35: 194 | AI35: 604 | AJ35: 268 | AK35: 252 | AL35: 0 | AM35: 1111 | AN35: 335 | AO35: 41 | AP35: 1178 | AQ35: 1076 | AR35: 932 | AS35: 822 | AT35: 0 | AU35: 325 | AV35: 509 | AW35: 338 | AX35: 11955 | AY35: 1382 | AZ35: 81 | BA35: 1560 | BB35: 1251 | BC35: 0 | BD35: 321 | BE35: 95 | BF35: 429
A36: 2012-01-01 | B36: New York | C36: 19352153 | D36: 17202134 | E36: 1723117 | F36: 270053 | G36: 1364 | H36: 4002 | I36: 4146 | J36: 247 | K36: 24623 | L36: 3596 | M36: 14595 | N36: 477 | O36: 3936 | P36: 27392 | Q36: 7592 | R36: 1598 | S36: 607 | T36: 8017 | U36: 3040 | V36: 955 | W36: 1437 | X36: 1753 | Y36: 1083 | Z36: 1345 | AA36: 7321 | AB36: 15073 | AC36: 5191 | AD36: 1059 | AE36: 773 | AF36: 3310 | AG36: 421 | AH36: 78 | AI36: 600 | AJ36: 2760 | AK36: 42574 | AL36: 646 | AM36: 0 | AN36: 10544 | AO36: 77 | AP36: 4625 | AQ36: 1327 | AR36: 1055 | AS36: 22895 | AT36: 3222 | AU36: 5952 | AV36: 0 | AW36: 1279 | AX36: 11231 | AY36: 622 | AZ36: 2764 | BA36: 7939 | BB36: 2614 | BC36: 921 | BD36: 979 | BE36: 396 | BF36: 7321
A37: 2012-01-01 | B37: North Carolina | C37: 9640490 | D37: 8167830 | E37: 1149080 | F37: 273149 | G37: 4329 | H37: 1458 | I37: 3493 | J37: 861 | K37: 13883 | L37: 4790 | M37: 4914 | N37: 2180 | O37: 1801 | P37: 26365 | Q37: 16823 | R37: 1566 | S37: 334 | T37: 6378 | U37: 4532 | V37: 775 | W37: 1595 | X37: 1531 | Y37: 919 | Z37: 1259 | AA37: 9005 | AB37: 3710 | AC37: 6161 | AD37: 1523 | AE37: 2377 | AF37: 2623 | AG37: 244 | AH37: 628 | AI37: 1627 | AJ37: 754 | AK37: 11468 | AL37: 1138 | AM37: 19891 | AN37: 0 | AO37: 206 | AP37: 9337 | AQ37: 1263 | AR37: 1333 | AS37: 12179 | AT37: 290 | AU37: 25532 | AV37: 351 | AW37: 9230 | AX37: 12638 | AY37: 1189 | AZ37: 445 | BA37: 26759 | BB37: 5915 | BC37: 2677 | BD37: 2266 | BE37: 604 | BF37: 2025
A38: 2012-01-01 | B38: North Dakota | C38: 689838 | D38: 563978 | E38: 84294 | F38: 38213 | G38: 83 | H38: 70 | I38: 1571 | J38: 0 | K38: 999 | L38: 546 | M38: 65 | N38: 0 | O38: 70 | P38: 950 | Q38: 98 | R38: 160 | S38: 540 | T38: 799 | U38: 55 | V38: 458 | W38: 161 | X38: 22 | Y38: 18 | Z38: 98 | AA38: 232 | AB38: 187 | AC38: 757 | AD38: 15257 | AE38: 72 | AF38: 1490 | AG38: 1776 | AH38: 950 | AI38: 854 | AJ38: 0 | AK38: 140 | AL38: 161 | AM38: 331 | AN38: 231 | AO38: 0 | AP38: 6 | AQ38: 280 | AR38: 724 | AS38: 114 | AT38: 244 | AU38: 14 | AV38: 1754 | AW38: 746 | AX38: 1414 | AY38: 43 | AZ38: 758 | BA38: 403 | BB38: 1604 | BC38: 0 | BD38: 543 | BE38: 365 | BF38: 0
A39: 2012-01-01 | B39: Ohio | C39: 11414635 | D39: 9735390 | E39: 1440815 | F39: 196391 | G39: 3705 | H39: 2207 | I39: 4929 | J39: 884 | K39: 8995 | L39: 3180 | M39: 1355 | N39: 1079 | O39: 985 | P39: 16366 | Q39: 8052 | R39: 1198 | S39: 412 | T39: 9510 | U39: 13534 | V39: 1039 | W39: 1166 | X39: 13227 | Y39: 2214 | Z39: 1189 | AA39: 5026 | AB39: 2189 | AC39: 16336 | AD39: 1122 | AE39: 1017 | AF39: 3026 | AG39: 276 | AH39: 1052 | AI39: 907 | AJ39: 189 | AK39: 4703 | AL39: 1361 | AM39: 8732 | AN39: 5498 | AO39: 453 | AP39: 0 | AQ39: 858 | AR39: 432 | AS39: 14147 | AT39: 435 | AU39: 2445 | AV39: 47 | AW39: 3542 | AX39: 11760 | AY39: 197 | AZ39: 364 | BA39: 3193 | BB39: 2862 | BC39: 7820 | BD39: 974 | BE39: 202 | BF39: 1403
A40: 2012-01-01 | B40: Oklahoma | C40: 3762311 | D40: 3107367 | E40: 531347 | F40: 108972 | G40: 1030 | H40: 1279 | I40: 2974 | J40: 5777 | K40: 8950 | L40: 4717 | M40: 0 | N40: 380 | O40: 151 | P40: 5011 | Q40: 2581 | R40: 189 | S40: 905 | T40: 1100 | U40: 1490 | V40: 1088 | W40: 7065 | X40: 1354 | Y40: 2562 | Z40: 167 | AA40: 750 | AB40: 1233 | AC40: 1347 | AD40: 906 | AE40: 1850 | AF40: 5210 | AG40: 798 | AH40: 300 | AI40: 1101 | AJ40: 549 | AK40: 1523 | AL40: 1244 | AM40: 1981 | AN40: 1961 | AO40: 308 | AP40: 1148 | AQ40: 0 | AR40: 1261 | AS40: 494 | AT40: 0 | AU40: 569 | AV40: 108 | AW40: 2471 | AX40: 25508 | AY40: 2588 | AZ40: 197 | BA40: 1749 | BB40: 1574 | BC40: 368 | BD40: 1061 | BE40: 45 | BF40: 0
A41: 2012-01-01 | B41: Oregon | C41: 3857465 | D41: 3158450 | E41: 560673 | F41: 118925 | G41: 373 | H41: 2513 | I41: 7954 | J41: 165 | K41: 31862 | L41: 4472 | M41: 381 | N41: 0 | O41: 696 | P41: 1660 | Q41: 1032 | R41: 2501 | S41: 5093 | T41: 1676 | U41: 1380 | V41: 834 | W41: 556 | X41: 202 | Y41: 227 | Z41: 446 | AA41: 457 | AB41: 760 | AC41: 570 | AD41: 1792 | AE41: 186 | AF41: 403 | AG41: 2192 | AH41: 570 | AI41: 5935 | AJ41: 39 | AK41: 385 | AL41: 920 | AM41: 2379 | AN41: 1482 | AO41: 42 | AP41: 1411 | AQ41: 725 | AR41: 0 | AS41: 904 | AT41: 177 | AU41: 461 | AV41: 119 | AW41: 802 | AX41: 3347 | AY41: 4793 | AZ41: 367 | BA41: 676 | BB41: 21224 | BC41: 593 | BD41: 426 | BE41: 765 | BF41: 152
A42: 2012-01-01 | B42: Pennsylvania | C42: 12630082 | D42: 11107110 | E42: 1252378 | F42: 215500 | G42: 1926 | H42: 1658 | I42: 3529 | J42: 573 | K42: 7772 | L42: 2574 | M42: 3311 | N42: 4814 | O42: 2921 | P42: 14631 | Q42: 4337 | R42: 245 | S42: 359 | T42: 3749 | U42: 1599 | V42: 125 | W42: 967 | X42: 1233 | Y42: 694 | Z42: 988 | AA42: 17529 | AB42: 5900 | AC42: 2642 | AD42: 1169 | AE42: 55 | AF42: 1171 | AG42: 135 | AH42: 214 | AI42: 1600 | AJ42: 1138 | AK42: 33791 | AL42: 1001 | AM42: 32898 | AN42: 6380 | AO42: 166 | AP42: 14319 | AQ42: 378 | AR42: 234 | AS42: 0 | AT42: 771 | AU42: 3023 | AV42: 159 | AW42: 1273 | AX42: 6768 | AY42: 1276 | AZ42: 1012 | BA42: 11960 | BB42: 1787 | BC42: 6762 | BD42: 1550 | BE42: 434 | BF42: 7847
A43: 2012-01-01 | B43: Rhode Island | C43: 1040527 | D43: 899551 | E43: 101165 | F43: 33446 | G43: 20 | H43: 0 | I43: 93 | J43: 0 | K43: 2146 | L43: 332 | M43: 4170 | N43: 0 | O43: 313 | P43: 2752 | Q43: 168 | R43: 120 | S43: 0 | T43: 385 | U43: 0 | V43: 0 | W43: 27 | X43: 286 | Y43: 24 | Z43: 279 | AA43: 482 | AB43: 11253 | AC43: 230 | AD43: 131 | AE43: 0 | AF43: 210 | AG43: 0 | AH43: 188 | AI43: 25 | AJ43: 611 | AK43: 1219 | AL43: 36 | AM43: 3603 | AN43: 478 | AO43: 0 | AP43: 63 | AQ43: 0 | AR43: 139 | AS43: 735 | AT43: 0 | AU43: 481 | AV43: 0 | AW43: 120 | AX43: 823 | AY43: 0 | AZ43: 53 | BA43: 1008 | BB43: 287 | BC43: 0 | BD43: 135 | BE43: 21 | BF43: 116
A44: 2012-01-01 | B44: South Carolina | C44: 4668886 | D44: 3929626 | E44: 564350 | F44: 156705 | G44: 1665 | H44: 1244 | I44: 2222 | J44: 839 | K44: 5979 | L44: 1915 | M44: 1590 | N44: 697 | O44: 435 | P44: 11552 | Q44: 18570 | R44: 638 | S44: 198 | T44: 2125 | U44: 3802 | V44: 643 | W44: 1064 | X44: 1924 | Y44: 2709 | Z44: 2077 | AA44: 3565 | AB44: 2313 | AC44: 2966 | AD44: 757 | AE44: 1407 | AF44: 1884 | AG44: 93 | AH44: 158 | AI44: 1025 | AJ44: 917 | AK44: 6517 | AL44: 1052 | AM44: 10746 | AN44: 24764 | AO44: 656 | AP44: 4388 | AQ44: 555 | AR44: 255 | AS44: 6497 | AT44: 538 | AU44: 0 | AV44: 816 | AW44: 3550 | AX44: 5351 | AY44: 566 | AZ44: 298 | BA44: 9377 | BB44: 1629 | BC44: 1345 | BD44: 832 | BE44: 0 | BF44: 1070
A45: 2012-01-01 | B45: South Dakota | C45: 821669 | D45: 676014 | E45: 115606 | F45: 26051 | G45: 0 | H45: 855 | I45: 435 | J45: 227 | K45: 1494 | L45: 1744 | M45: 2 | N45: 0 | O45: 0 | P45: 970 | Q45: 122 | R45: 8 | S45: 78 | T45: 74 | U45: 210 | V45: 2441 | W45: 403 | X45: 0 | Y45: 0 | Z45: 0 | AA45: 60 | AB45: 61 | AC45: 892 | AD45: 3568 | AE45: 34 | AF45: 474 | AG45: 248 | AH45: 2175 | AI45: 135 | AJ45: 0 | AK45: 0 | AL45: 175 | AM45: 371 | AN45: 240 | AO45: 1725 | AP45: 64 | AQ45: 21 | AR45: 667 | AS45: 515 | AT45: 0 | AU45: 158 | AV45: 0 | AW45: 507 | AX45: 1715 | AY45: 388 | AZ45: 5 | BA45: 340 | BB45: 1026 | BC45: 131 | BD45: 314 | BE45: 979 | BF45: 134
A46: 2012-01-01 | B46: Tennessee | C46: 6378278 | D46: 5396833 | E46: 783077 | F46: 177098 | G46: 12116 | H46: 1281 | I46: 2250 | J46: 3306 | K46: 8396 | L46: 2473 | M46: 936 | N46: 176 | O46: 180 | P46: 15641 | Q46: 16012 | R46: 1058 | S46: 787 | T46: 7094 | U46: 5591 | V46: 617 | W46: 2630 | X46: 13202 | Y46: 2452 | Z46: 1040 | AA46: 1743 | AB46: 1525 | AC46: 4507 | AD46: 1178 | AE46: 10568 | AF46: 2694 | AG46: 308 | AH46: 432 | AI46: 735 | AJ46: 271 | AK46: 783 | AL46: 751 | AM46: 6279 | AN46: 5904 | AO46: 7 | AP46: 6200 | AQ46: 2495 | AR46: 1080 | AS46: 3329 | AT46: 26 | AU46: 4300 | AV46: 0 | AW46: 0 | AX46: 8716 | AY46: 784 | AZ46: 133 | BA46: 8008 | BB46: 1876 | BC46: 3248 | BD46: 1622 | BE46: 358 | BF46: 717
A47: 2012-01-01 | B47: Texas | C47: 25711791 | D47: 21354247 | E47: 3656070 | F47: 507752 | G47: 9993 | H47: 6759 | I47: 18908 | J47: 13781 | K47: 62702 | L47: 16616 | M47: 2769 | N47: 181 | O47: 1189 | P47: 31259 | Q47: 20362 | R47: 5040 | S47: 2387 | T47: 19672 | U47: 8264 | V47: 4934 | W47: 12699 | X47: 6040 | Y47: 29348 | Z47: 1293 | AA47: 4969 | AB47: 4813 | AC47: 9501 | AD47: 2803 | AE47: 6402 | AF47: 12319 | AG47: 1813 | AH47: 4794 | AI47: 8266 | AJ47: 761 | AK47: 6797 | AL47: 16762 | AM47: 20274 | AN47: 22660 | AO47: 989 | AP47: 8728 | AQ47: 26284 | AR47: 3827 | AS47: 10449 | AT47: 1763 | AU47: 4470 | AV47: 1264 | AW47: 10368 | AX47: 0 | AY47: 4610 | AZ47: 113 | BA47: 17734 | BB47: 11630 | BC47: 1729 | BD47: 4192 | BE47: 2472 | BF47: 4435
A48: 2012-01-01 | B48: Utah | C48: 2805440 | D48: 2324019 | E48: 373980 | F48: 87870 | G48: 126 | H48: 2819 | I48: 7966 | J48: 361 | K48: 15286 | L48: 5350 | M48: 142 | N48: 0 | O48: 0 | P48: 2428 | Q48: 1142 | R48: 1436 | S48: 5129 | T48: 1588 | U48: 475 | V48: 2791 | W48: 398 | X48: 217 | Y48: 345 | Z48: 380 | AA48: 613 | AB48: 1503 | AC48: 1670 | AD48: 385 | AE48: 284 | AF48: 1553 | AG48: 1057 | AH48: 489 | AI48: 5391 | AJ48: 507 | AK48: 437 | AL48: 686 | AM48: 2129 | AN48: 842 | AO48: 175 | AP48: 1875 | AQ48: 1338 | AR48: 4089 | AS48: 944 | AT48: 351 | AU48: 60 | AV48: 47 | AW48: 863 | AX48: 3605 | AY48: 0 | AZ48: 39 | BA48: 1369 | BB48: 3529 | BC48: 0 | BD48: 1445 | BE48: 2216 | BF48: 239
A49: 2012-01-01 | B49: Vermont | C49: 620224 | D49: 532237 | E49: 61242 | F49: 24431 | G49: 16 | H49: 93 | I49: 127 | J49: 0 | K49: 1112 | L49: 382 | M49: 1626 | N49: 0 | O49: 116 | P49: 966 | Q49: 56 | R49: 6 | S49: 0 | T49: 230 | U49: 68 | V49: 30 | W49: 0 | X49: 1243 | Y49: 73 | Z49: 883 | AA49: 862 | AB49: 3318 | AC49: 284 | AD49: 315 | AE49: 0 | AF49: 23 | AG49: 147 | AH49: 0 | AI49: 17 | AJ49: 2893 | AK49: 833 | AL49: 74 | AM49: 4780 | AN49: 328 | AO49: 0 | AP49: 214 | AQ49: 11 | AR49: 26 | AS49: 935 | AT49: 341 | AU49: 124 | AV49: 39 | AW49: 193 | AX49: 493 | AY49: 81 | AZ49: 0 | BA49: 728 | BB49: 98 | BC49: 0 | BD49: 151 | BE49: 96 | BF49: 0
A50: 2012-01-01 | B50: Virginia | C50: 8085389 | D50: 6857430 | E50: 915242 | F50: 250653 | G50: 2515 | H50: 1906 | I50: 2420 | J50: 445 | K50: 14780 | L50: 5352 | M50: 2725 | N50: 2279 | O50: 10964 | P50: 19574 | Q50: 9535 | R50: 3823 | S50: 652 | T50: 7089 | U50: 2663 | V50: 221 | W50: 1144 | X50: 3908 | Y50: 1638 | Z50: 1144 | AA50: 23925 | AB50: 3767 | AC50: 2982 | AD50: 2294 | AE50: 1344 | AF50: 1914 | AG50: 658 | AH50: 357 | AI50: 973 | AJ50: 535 | AK50: 9073 | AL50: 947 | AM50: 15893 | AN50: 25575 | AO50: 852 | AP50: 5622 | AQ50: 2810 | AR50: 1541 | AS50: 14190 | AT50: 1605 | AU50: 7936 | AV50: 35 | AW50: 6189 | AX50: 12944 | AY50: 2092 | AZ50: 423 | BA50: 0 | BB50: 4160 | BC50: 3839 | BD50: 1258 | BE50: 143 | BF50: 516
A51: 2012-01-01 | B51: Washington | C51: 6815763 | D51: 5648199 | E51: 904695 | F51: 215494 | G51: 1507 | H51: 4328 | I51: 8362 | J51: 1413 | K51: 45597 | L51: 5195 | M51: 2901 | N51: 100 | O51: 773 | P51: 9370 | Q51: 6363 | R51: 5239 | S51: 10604 | T51: 4298 | U51: 1089 | V51: 1159 | W51: 2544 | X51: 1368 | Y51: 1646 | Z51: 532 | AA51: 1191 | AB51: 2911 | AC51: 3470 | AD51: 2703 | AE51: 615 | AF51: 2802 | AG51: 2919 | AH51: 682 | AI51: 5671 | AJ51: 309 | AK51: 2300 | AL51: 872 | AM51: 5562 | AN51: 4088 | AO51: 217 | AP51: 3192 | AQ51: 1223 | AR51: 25525 | AS51: 3397 | AT51: 97 | AU51: 2727 | AV51: 94 | AW51: 3206 | AX51: 14196 | AY51: 5298 | AZ51: 223 | BA51: 3839 | BB51: 0 | BC51: 215 | BD51: 1168 | BE51: 394 | BF51: 1025
A52: 2012-01-01 | B52: West Virginia | C52: 1837518 | D52: 1613322 | E52: 174112 | F52: 47125 | G52: 477 | H52: 306 | I52: 79 | J52: 0 | K52: 1231 | L52: 104 | M52: 143 | N52: 674 | O52: 294 | P52: 1919 | Q52: 1108 | R52: 166 | S52: 181 | T52: 220 | U52: 328 | V52: 68 | W52: 39 | X52: 2249 | Y52: 90 | Z52: 35 | AA52: 5352 | AB52: 164 | AC52: 778 | AD52: 20 | AE52: 0 | AF52: 59 | AG52: 0 | AH52: 0 | AI52: 229 | AJ52: 129 | AK52: 1213 | AL52: 81 | AM52: 1721 | AN52: 4683 | AO52: 175 | AP52: 6757 | AQ52: 520 | AR52: 118 | AS52: 5208 | AT52: 0 | AU52: 1098 | AV52: 36 | AW52: 1061 | AX52: 622 | AY52: 0 | AZ52: 54 | BA52: 6317 | BB52: 297 | BC52: 0 | BD52: 470 | BE52: 252 | BF52: 79
A53: 2012-01-01 | B53: Wisconsin | C53: 5660677 | D53: 4849945 | E53: 693737 | F53: 99192 | G53: 323 | H53: 236 | I53: 3257 | J53: 253 | K53: 5347 | L53: 1600 | M53: 657 | N53: 296 | O53: 15 | P53: 4937 | Q53: 970 | R53: 333 | S53: 360 | T53: 22285 | U53: 2480 | V53: 4161 | W53: 1160 | X53: 635 | Y53: 598 | Z53: 233 | AA53: 1306 | AB53: 489 | AC53: 3917 | AD53: 18965 | AE53: 238 | AF53: 1263 | AG53: 784 | AH53: 324 | AI53: 1163 | AJ53: 3 | AK53: 606 | AL53: 526 | AM53: 2033 | AN53: 2939 | AO53: 284 | AP53: 2610 | AQ53: 289 | AR53: 945 | AS53: 1563 | AT53: 144 | AU53: 1053 | AV53: 329 | AW53: 1051 | AX53: 2765 | AY53: 900 | AZ53: 62 | BA53: 1267 | BB53: 1208 | BC53: 0 | BD53: 0 | BE53: 30 | BF53: 975
A54: 2012-01-01 | B54: Wyoming | C54: 569734 | D54: 459226 | E54: 77324 | F54: 31149 | G54: 260 | H54: 590 | I54: 2014 | J54: 244 | K54: 2035 | L54: 5599 | M54: 0 | N54: 0 | O54: 0 | P54: 733 | Q54: 166 | R54: 0 | S54: 745 | T54: 905 | U54: 179 | V54: 259 | W54: 539 | X54: 4 | Y54: 88 | Z54: 0 | AA54: 294 | AB54: 548 | AC54: 965 | AD54: 290 | AE54: 136 | AF54: 244 | AG54: 1901 | AH54: 1216 | AI54: 355 | AJ54: 0 | AK54: 121 | AL54: 604 | AM54: 231 | AN54: 459 | AO54: 338 | AP54: 819 | AQ54: 964 | AR54: 893 | AS54: 230 | AT54: 0 | AU54: 122 | AV54: 1175 | AW54: 4 | AX54: 1427 | AY54: 1710 | AZ54: 0 | BA54: 138 | BB54: 1323 | BC54: 0 | BD54: 282 | BE54: 0 | BF54: 16
A55: 2012-01-01 | B55: Puerto Rico | C55: 3628402 | D55: 3366593 | E55: 238042 | F55: 20044 | G55: 8 | H55: 57 | I55: 54 | J55: 93 | K55: 519 | L55: 0 | M55: 370 | N55: 0 | O55: 0 | P55: 4192 | Q55: 232 | R55: 110 | S55: 0 | T55: 1021 | U55: 121 | V55: 0 | W55: 143 | X55: 37 | Y55: 59 | Z55: 0 | AA55: 108 | AB55: 2258 | AC55: 435 | AD55: 0 | AE55: 0 | AF55: 0 | AG55: 0 | AH55: 0 | AI55: 0 | AJ55: 0 | AK55: 1922 | AL55: 28 | AM55: 2314 | AN55: 638 | AO55: 0 | AP55: 328 | AQ55: 0 | AR55: 0 | AS55: 2313 | AT55: 624 | AU55: 4 | AV55: 0 | AW55: 15 | AX55: 360 | AY55: 0 | AZ55: 0 | BA55: 684 | BB55: 0 | BC55: 8 | BD55: 989 | BE55: 0 | BF55: 0
A56: 2011-01-01 | B56: United States | C56: 307900319 | D56: 261087925 | E56: 37998701 | F56: 6987416 | G56: 106806 | H56: 88850 | I56: 211816 | J56: 77226 | K56: 562343 | L56: 160623 | M56: 91295 | N56: 26631 | O56: 49732 | P56: 437202 | Q56: 248892 | R56: 61940 | S56: 57831 | T56: 269008 | U56: 143228 | V56: 74516 | W56: 94180 | X56: 99256 | Y56: 86593 | Z56: 33729 | AA56: 165041 | AB56: 145869 | AC56: 186505 | AD56: 103253 | AE56: 68597 | AF56: 138404 | AG56: 31204 | AH56: 52809 | AI56: 115943 | AJ56: 43277 | AK56: 216369 | AL56: 61431 | AM56: 377800 | AN56: 225147 | AO56: 26563 | AP56: 206049 | AQ56: 81009 | AR56: 109795 | AS56: 215127 | AT56: 31065 | AU56: 121426 | AV56: 29383 | AW56: 154243 | AX56: 404839 | AY56: 73211 | AZ56: 18172 | BA56: 229227 | BB56: 190644 | BC56: 45956 | BD56: 105370 | BE56: 31991 | BF56: 76218
A57: 2011-01-01 | B57: Alabama | C57: 4745278 | D57: 4024442 | E57: 588293 | F57: 117726 | G57: 0 | H57: 1771 | I57: 1677 | J57: 1642 | K57: 3389 | L57: 348 | M57: 2921 | N57: 232 | O57: 399 | P57: 20063 | Q57: 19346 | R57: 1259 | S57: 137 | T57: 6991 | U57: 1434 | V57: 30 | W57: 842 | X57: 2686 | Y57: 2413 | Z57: 626 | AA57: 1606 | AB57: 112 | AC57: 2797 | AD57: 327 | AE57: 3945 | AF57: 1086 | AG57: 317 | AH57: 770 | AI57: 257 | AJ57: 64 | AK57: 1996 | AL57: 119 | AM57: 1108 | AN57: 2697 | AO57: 284 | AP57: 2596 | AQ57: 973 | AR57: 169 | AS57: 1075 | AT57: 0 | AU57: 2036 | AV57: 90 | AW57: 8710 | AX57: 7973 | AY57: 300 | AZ57: 66 | BA57: 4935 | BB57: 2621 | BC57: 65 | BD57: 417 | BE57: 9 | BF57: 569
A58: 2011-01-01 | B58: Alaska | C58: 711962 | D58: 571857 | E58: 100280 | F58: 35084 | G58: 93 | H58: 0 | I58: 2467 | J58: 190 | K58: 3098 | L58: 1583 | M58: 138 | N58: 11 | O58: 140 | P58: 1188 | Q58: 556 | R58: 1366 | S58: 475 | T58: 985 | U58: 181 | V58: 319 | W58: 750 | X58: 237 | Y58: 1077 | Z58: 0 | AA58: 216 | AB58: 141 | AC58: 771 | AD58: 593 | AE58: 554 | AF58: 921 | AG58: 248 | AH58: 5 | AI58: 532 | AJ58: 520 | AK58: 128 | AL58: 226 | AM58: 940 | AN58: 470 | AO58: 0 | AP58: 319 | AQ58: 616 | AR58: 2161 | AS58: 378 | AT58: 0 | AU58: 186 | AV58: 301 | AW58: 388 | AX58: 2492 | AY58: 662 | AZ58: 68 | BA58: 1488 | BB58: 4548 | BC58: 89 | BD58: 23 | BE58: 246 | BF58: 1044
A59: 2011-01-01 | B59: Arizona | C59: 6402301 | D59: 5107496 | E59: 1028366 | F59: 222877 | G59: 833 | H59: 5001 | I59: 0 | J59: 1066 | K59: 49635 | L59: 10189 | M59: 1875 | N59: 0 | O59: 389 | P59: 3732 | Q59: 2206 | R59: 2199 | S59: 2190 | T59: 10035 | U59: 5855 | V59: 4526 | W59: 1708 | X59: 2134 | Y59: 844 | Z59: 0 | AA59: 1918 | AB59: 743 | AC59: 9396 | AD59: 3297 | AE59: 1226 | AF59: 3872 | AG59: 2431 | AH59: 1393 | AI59: 8756 | AJ59: 228 | AK59: 3379 | AL59: 4610 | AM59: 3880 | AN59: 2548 | AO59: 1159 | AP59: 4682 | AQ59: 3219 | AR59: 4613 | AS59: 3436 | AT59: 72 | AU59: 1774 | AV59: 1657 | AW59: 1680 | AX59: 12688 | AY59: 10577 | AZ59: 0 | BA59: 2233 | BB59: 13940 | BC59: 70 | BD59: 6473 | BE59: 2510 | BF59: 871
A60: 2011-01-01 | B60: Arkansas | C60: 2906632 | D60: 2421746 | E60: 405831 | F60: 69845 | G60: 691 | H60: 560 | I60: 439 | J60: 0 | K60: 4077 | L60: 746 | M60: 519 | N60: 79 | O60: 0 | P60: 3067 | Q60: 1446 | R60: 13 | S60: 179 | T60: 3684 | U60: 1362 | V60: 851 | W60: 2008 | X60: 213 | Y60: 2120 | Z60: 30 | AA60: 133 | AB60: 781 | AC60: 1881 | AD60: 232 | AE60: 1731 | AF60: 7314 | AG60: 713 | AH60: 332 | AI60: 641 | AJ60: 52 | AK60: 341 | AL60: 775 | AM60: 674 | AN60: 1664 | AO60: 214 | AP60: 174 | AQ60: 3761 | AR60: 632 | AS60: 567 | AT60: 0 | AU60: 235 | AV60: 0 | AW60: 6462 | AX60: 14767 | AY60: 0 | AZ60: 0 | BA60: 1245 | BB60: 1477 | BC60: 24 | BD60: 687 | BE60: 252 | BF60: 529
A61: 2011-01-01 | B61: California | C61: 37222678 | D61: 31213310 | E61: 5271168 | F61: 468428 | G61: 2087 | H61: 7358 | I61: 35650 | J61: 2648 | K61: 0 | L61: 21245 | M61: 3073 | N61: 1302 | O61: 3240 | P61: 22094 | Q61: 13303 | R61: 9864 | S61: 4796 | T61: 20834 | U61: 4673 | V61: 3324 | W61: 2810 | X61: 1201 | Y61: 3600 | Z61: 1658 | AA61: 7793 | AB61: 10244 | AC61: 12069 | AD61: 5687 | AE61: 2092 | AF61: 7677 | AG61: 2599 | AH61: 1955 | AI61: 36159 | AJ61: 1222 | AK61: 8053 | AL61: 5904 | AM61: 25629 | AN61: 8708 | AO61: 1392 | AP61: 10474 | AQ61: 5113 | AR61: 18165 | AS61: 8550 | AT61: 1103 | AU61: 5758 | AV61: 1004 | AW61: 8761 | AX61: 37087 | AY61: 8944 | AZ61: 745 | BA61: 15753 | BB61: 36481 | BC61: 832 | BD61: 5668 | BE61: 2047 | BF61: 1344
A62: 2011-01-01 | B62: Colorado | C62: 5048443 | D62: 4048042 | E62: 763233 | F62: 202124 | G62: 2340 | H62: 3191 | I62: 12338 | J62: 1615 | K62: 23234 | L62: 0 | M62: 1567 | N62: 501 | O62: 298 | P62: 8075 | Q62: 3250 | R62: 1852 | S62: 1578 | T62: 6027 | U62: 2116 | V62: 3510 | W62: 3718 | X62: 1361 | Y62: 908 | Z62: 1358 | AA62: 3303 | AB62: 2157 | AC62: 3225 | AD62: 3055 | AE62: 879 | AF62: 4552 | AG62: 4079 | AH62: 4582 | AI62: 4061 | AJ62: 489 | AK62: 2863 | AL62: 8797 | AM62: 3998 | AN62: 4756 | AO62: 2249 | AP62: 5527 | AQ62: 3824 | AR62: 5543 | AS62: 3348 | AT62: 435 | AU62: 718 | AV62: 1340 | AW62: 3193 | AX62: 22390 | AY62: 3856 | AZ62: 914 | BA62: 6281 | BB62: 5524 | BC62: 412 | BD62: 3995 | BE62: 2942 | BF62: 476
A63: 2011-01-01 | B63: Connecticut | C63: 3548667 | D63: 3139496 | E63: 316883 | F63: 71502 | G63: 101 | H63: 180 | I63: 1387 | J63: 84 | K63: 3699 | L63: 1502 | M63: 0 | N63: 62 | O63: 607 | P63: 4771 | Q63: 2000 | R63: 587 | S63: 133 | T63: 1843 | U63: 168 | V63: 67 | W63: 16 | X63: 0 | Y63: 315 | Z63: 259 | AA63: 1267 | AB63: 8691 | AC63: 692 | AD63: 76 | AE63: 69 | AF63: 365 | AG63: 206 | AH63: 62 | AI63: 160 | AJ63: 1221 | AK63: 3809 | AL63: 265 | AM63: 20015 | AN63: 1029 | AO63: 0 | AP63: 1383 | AQ63: 217 | AR63: 117 | AS63: 3668 | AT63: 1488 | AU63: 997 | AV63: 0 | AW63: 123 | AX63: 1214 | AY63: 398 | AZ63: 608 | BA63: 2555 | BB63: 2255 | BC63: 46 | BD63: 660 | BE63: 65 | BF63: 2105
A64: 2011-01-01 | B64: Delaware | C64: 897187 | D64: 775414 | E64: 83156 | F64: 33912 | G64: 81 | H64: 329 | I64: 541 | J64: 0 | K64: 699 | L64: 169 | M64: 66 | N64: 0 | O64: 154 | P64: 810 | Q64: 639 | R64: 201 | S64: 441 | T64: 34 | U64: 210 | V64: 0 | W64: 7 | X64: 305 | Y64: 0 | Z64: 0 | AA64: 4238 | AB64: 806 | AC64: 43 | AD64: 201 | AE64: 0 | AF64: 713 | AG64: 0 | AH64: 12 | AI64: 0 | AJ64: 0 | AK64: 6297 | AL64: 0 | AM64: 3141 | AN64: 388 | AO64: 0 | AP64: 664 | AQ64: 27 | AR64: 0 | AS64: 8571 | AT64: 131 | AU64: 153 | AV64: 0 | AW64: 221 | AX64: 883 | AY64: 475 | AZ64: 0 | BA64: 1064 | BB64: 482 | BC64: 198 | BD64: 55 | BE64: 463 | BF64: 1008
A65: 2011-01-01 | B65: District of Columbia | C65: 611608 | D65: 489659 | E65: 66519 | F65: 48066 | G65: 13 | H65: 135 | I65: 43 | J65: 81 | K65: 3797 | L65: 452 | M65: 981 | N65: 128 | O65: 0 | P65: 1254 | Q65: 937 | R65: 372 | S65: 68 | T65: 1397 | U65: 128 | V65: 241 | W65: 6 | X65: 297 | Y65: 0 | Z65: 0 | AA65: 14129 | AB65: 2048 | AC65: 1108 | AD65: 409 | AE65: 83 | AF65: 112 | AG65: 38 | AH65: 79 | AI65: 238 | AJ65: 145 | AK65: 1035 | AL65: 0 | AM65: 2313 | AN65: 1716 | AO65: 285 | AP65: 306 | AQ65: 0 | AR65: 51 | AS65: 1589 | AT65: 50 | AU65: 357 | AV65: 104 | AW65: 421 | AX65: 1083 | AY65: 75 | AZ65: 445 | BA65: 7975 | BB65: 476 | BC65: 120 | BD65: 946 | BE65: 0 | BF65: 0
A66: 2011-01-01 | B66: Florida | C66: 18863948 | D66: 15742168 | E66: 2454255 | F66: 498597 | G66: 12635 | H66: 7405 | I66: 8451 | J66: 3025 | K66: 22420 | L66: 9383 | M66: 11704 | N66: 1264 | O66: 891 | P66: 0 | Q66: 38658 | R66: 3639 | S66: 312 | T66: 19152 | U66: 11472 | V66: 1846 | W66: 2661 | X66: 5441 | Y66: 6094 | Z66: 4689 | AA66: 15410 | AB66: 13701 | AC66: 19640 | AD66: 4663 | AE66: 5175 | AF66: 7114 | AG66: 559 | AH66: 3857 | AI66: 3527 | AJ66: 4324 | AK66: 25206 | AL66: 1376 | AM66: 59288 | AN66: 23983 | AO66: 514 | AP66: 18191 | AQ66: 2600 | AR66: 3315 | AS66: 20821 | AT66: 5002 | AU66: 11953 | AV66: 716 | AW66: 10451 | AX66: 25532 | AY66: 2343 | AZ66: 2019 | BA66: 16614 | BB66: 6339 | BC66: 4964 | BD66: 7412 | BE66: 846 | BF66: 21611
A67: 2011-01-01 | B67: Georgia | C67: 9699859 | D67: 8095407 | E67: 1289450 | F67: 271077 | G67: 18799 | H67: 1079 | I67: 4292 | J67: 2112 | K67: 14949 | L67: 2325 | M67: 709 | N67: 619 | O67: 364 | P67: 42666 | Q67: 0 | R67: 1006 | S67: 126 | T67: 6080 | U67: 2442 | V67: 950 | W67: 4513 | X67: 3686 | Y67: 6541 | Z67: 408 | AA67: 3708 | AB67: 4436 | AC67: 6992 | AD67: 1808 | AE67: 5380 | AF67: 2514 | AG67: 246 | AH67: 4144 | AI67: 774 | AJ67: 132 | AK67: 8371 | AL67: 791 | AM67: 14454 | AN67: 19138 | AO67: 201 | AP67: 6863 | AQ67: 1632 | AR67: 727 | AS67: 5791 | AT67: 337 | AU67: 16914 | AV67: 536 | AW67: 16898 | AX67: 15760 | AY67: 793 | AZ67: 361 | BA67: 9438 | BB67: 3701 | BC67: 1340 | BD67: 2727 | BE67: 504 | BF67: 1635
A68: 2011-01-01 | B68: Hawaii | C68: 1357806 | D68: 1160948 | E68: 122727 | F68: 57542 | G68: 1268 | H68: 844 | I68: 2900 | J68: 242 | K68: 10173 | L68: 950 | M68: 731 | N68: 784 | O68: 222 | P68: 3160 | Q68: 2519 | R68: 0 | S68: 112 | T68: 1884 | U68: 402 | V68: 478 | W68: 125 | X68: 18 | Y68: 179 | Z68: 106 | AA68: 341 | AB68: 92 | AC68: 1303 | AD68: 933 | AE68: 371 | AF68: 308 | AG68: 85 | AH68: 91 | AI68: 1548 | AJ68: 107 | AK68: 564 | AL68: 354 | AM68: 4246 | AN68: 2307 | AO68: 32 | AP68: 970 | AQ68: 685 | AR68: 2030 | AS68: 870 | AT68: 58 | AU68: 1681 | AV68: 0 | AW68: 636 | AX68: 3007 | AY68: 1040 | AZ68: 0 | BA68: 2523 | BB68: 3790 | BC68: 312 | BD68: 147 | BE68: 14 | BF68: 238
A69: 2011-01-01 | B69: Idaho | C69: 1559637 | D69: 1284530 | E69: 208434 | F69: 60336 | G69: 263 | H69: 4510 | I69: 3543 | J69: 224 | K69: 9021 | L69: 1813 | M69: 0 | N69: 0 | O69: 0 | P69: 1733 | Q69: 275 | R69: 254 | S69: 0 | T69: 390 | U69: 296 | V69: 318 | W69: 479 | X69: 120 | Y69: 51 | Z69: 0 | AA69: 0 | AB69: 396 | AC69: 615 | AD69: 566 | AE69: 62 | AF69: 384 | AG69: 1602 | AH69: 439 | AI69: 3581 | AJ69: 129 | AK69: 84 | AL69: 141 | AM69: 419 | AN69: 263 | AO69: 1201 | AP69: 260 | AQ69: 288 | AR69: 7170 | AS69: 343 | AT69: 0 | AU69: 55 | AV69: 842 | AW69: 296 | AX69: 1303 | AY69: 6059 | AZ69: 0 | BA69: 905 | BB69: 8991 | BC69: 0 | BD69: 165 | BE69: 487 | BF69: 249
A70: 2011-01-01 | B70: Illinois | C70: 12718402 | D70: 11076528 | E70: 1353853 | F70: 216204 | G70: 2823 | H70: 4119 | I70: 7657 | J70: 3185 | K70: 13930 | L70: 3271 | M70: 1819 | N70: 277 | O70: 1440 | P70: 17548 | Q70: 6042 | R70: 1269 | S70: 393 | T70: 0 | U70: 23491 | V70: 8420 | W70: 2533 | X70: 5569 | Y70: 1315 | Z70: 693 | AA70: 2565 | AB70: 3507 | AC70: 10274 | AD70: 4496 | AE70: 1521 | AF70: 13889 | AG70: 304 | AH70: 827 | AI70: 2454 | AJ70: 590 | AK70: 3009 | AL70: 1573 | AM70: 6412 | AN70: 4057 | AO70: 105 | AP70: 8384 | AQ70: 1002 | AR70: 792 | AS70: 3012 | AT70: 278 | AU70: 1582 | AV70: 1318 | AW70: 3223 | AX70: 11011 | AY70: 951 | AZ70: 49 | BA70: 5233 | BB70: 3075 | BC70: 352 | BD70: 14507 | BE70: 58 | BF70: 2387
A71: 2011-01-01 | B71: Indiana | C71: 6437155 | D71: 5478683 | E71: 809158 | F71: 127874 | G71: 1562 | H71: 371 | I71: 3975 | J71: 2016 | K71: 7649 | L71: 1930 | M71: 1227 | N71: 79 | O71: 0 | P71: 8595 | Q71: 2543 | R71: 1057 | S71: 1368 | T71: 23071 | U71: 0 | V71: 916 | W71: 1321 | X71: 10177 | Y71: 2241 | Z71: 275 | AA71: 480 | AB71: 952 | AC71: 7896 | AD71: 1168 | AE71: 469 | AF71: 1824 | AG71: 34 | AH71: 622 | AI71: 511 | AJ71: 90 | AK71: 651 | AL71: 504 | AM71: 2518 | AN71: 3038 | AO71: 70 | AP71: 11109 | AQ71: 844 | AR71: 505 | AS71: 3998 | AT71: 49 | AU71: 3306 | AV71: 235 | AW71: 3879 | AX71: 6326 | AY71: 123 | AZ71: 530 | BA71: 1486 | BB71: 1028 | BC71: 216 | BD71: 2923 | BE71: 117 | BF71: 132
A72: 2011-01-01 | B72: Iowa | C72: 3027718 | D72: 2573313 | E72: 370554 | F72: 70405 | G72: 207 | H72: 967 | I72: 1411 | J72: 433 | K72: 3297 | L72: 2891 | M72: 424 | N72: 0 | O72: 0 | P72: 707 | Q72: 1938 | R72: 299 | S72: 161 | T72: 13725 | U72: 349 | V72: 0 | W72: 1776 | X72: 387 | Y72: 228 | Z72: 26 | AA72: 487 | AB72: 466 | AC72: 1687 | AD72: 5634 | AE72: 408 | AF72: 3649 | AG72: 370 | AH72: 6490 | AI72: 2009 | AJ72: 0 | AK72: 185 | AL72: 421 | AM72: 2361 | AN72: 1760 | AO72: 604 | AP72: 993 | AQ72: 532 | AR72: 811 | AS72: 388 | AT72: 65 | AU72: 172 | AV72: 2842 | AW72: 623 | AX72: 2334 | AY72: 1482 | AZ72: 38 | BA72: 720 | BB72: 856 | BC72: 115 | BD72: 2537 | BE72: 140 | BF72: 57
A73: 2011-01-01 | B73: Kansas | C73: 2833584 | D73: 2372033 | E73: 362782 | F73: 83640 | G73: 434 | H73: 108 | I73: 2028 | J73: 998 | K73: 4743 | L73: 5030 | M73: 412 | N73: 74 | O73: 128 | P73: 1581 | Q73: 1146 | R73: 287 | S73: 264 | T73: 2760 | U73: 863 | V73: 1715 | W73: 0 | X73: 1167 | Y73: 519 | Z73: 481 | AA73: 3180 | AB73: 28 | AC73: 1947 | AD73: 679 | AE73: 1517 | AF73: 22033 | AG73: 270 | AH73: 1648 | AI73: 657 | AJ73: 27 | AK73: 1189 | AL73: 769 | AM73: 780 | AN73: 1223 | AO73: 379 | AP73: 1616 | AQ73: 5022 | AR73: 285 | AS73: 1494 | AT73: 180 | AU73: 1102 | AV73: 104 | AW73: 1066 | AX73: 6575 | AY73: 196 | AZ73: 0 | BA73: 1986 | BB73: 772 | BC73: 0 | BD73: 893 | BE73: 1285 | BF73: 775
A74: 2011-01-01 | B74: Kentucky | C74: 4316297 | D74: 3686232 | E74: 505741 | F74: 110031 | G74: 925 | H74: 0 | I74: 1818 | J74: 1058 | K74: 2130 | L74: 221 | M74: 176 | N74: 0 | O74: 201 | P74: 7400 | Q74: 2725 | R74: 63 | S74: 36 | T74: 4273 | U74: 11071 | V74: 536 | W74: 253 | X74: 0 | Y74: 1399 | Z74: 71 | AA74: 2076 | AB74: 1019 | AC74: 3178 | AD74: 475 | AE74: 1248 | AF74: 2793 | AG74: 216 | AH74: 471 | AI74: 1358 | AJ74: 52 | AK74: 1289 | AL74: 553 | AM74: 2174 | AN74: 3916 | AO74: 117 | AP74: 19617 | AQ74: 1256 | AR74: 459 | AS74: 1490 | AT74: 640 | AU74: 1387 | AV74: 0 | AW74: 16852 | AX74: 4661 | AY74: 140 | AZ74: 151 | BA74: 5154 | BB74: 1121 | BC74: 1174 | BD74: 581 | BE74: 57 | BF74: 192
A75: 2011-01-01 | B75: Louisiana | C75: 4518629 | D75: 3865118 | E75: 538691 | F75: 99138 | G75: 3065 | H75: 288 | I75: 2010 | J75: 2774 | K75: 3957 | L75: 1202 | M75: 358 | N75: 0 | O75: 195 | P75: 5193 | Q75: 4425 | R75: 688 | S75: 230 | T75: 1189 | U75: 1549 | V75: 468 | W75: 312 | X75: 1520 | Y75: 0 | Z75: 120 | AA75: 1221 | AB75: 439 | AC75: 1163 | AD75: 698 | AE75: 10255 | AF75: 1375 | AG75: 278 | AH75: 176 | AI75: 994 | AJ75: 15 | AK75: 453 | AL75: 1028 | AM75: 1360 | AN75: 2134 | AO75: 277 | AP75: 2641 | AQ75: 4235 | AR75: 1531 | AS75: 455 | AT75: 268 | AU75: 1573 | AV75: 37 | AW75: 2495 | AX75: 30292 | AY75: 179 | AZ75: 87 | BA75: 2055 | BB75: 1075 | BC75: 110 | BD75: 339 | BE75: 357 | BF75: 393
A76: 2011-01-01 | B76: Maine | C76: 1315833 | D76: 1120364 | E76: 157102 | F76: 33818 | G76: 634 | H76: 37 | I76: 325 | J76: 38 | K76: 829 | L76: 290 | M76: 2481 | N76: 238 | O76: 239 | P76: 4304 | Q76: 507 | R76: 177 | S76: 0 | T76: 675 | U76: 164 | V76: 275 | W76: 523 | X76: 158 | Y76: 138 | Z76: 0 | AA76: 52 | AB76: 4439 | AC76: 702 | AD76: 296 | AE76: 0 | AF76: 325 | AG76: 10 | AH76: 0 | AI76: 150 | AJ76: 4302 | AK76: 694 | AL76: 144 | AM76: 2589 | AN76: 1439 | AO76: 19 | AP76: 483 | AQ76: 25 | AR76: 471 | AS76: 915 | AT76: 234 | AU76: 587 | AV76: 42 | AW76: 394 | AX76: 1637 | AY76: 182 | AZ76: 612 | BA76: 570 | BB76: 88 | BC76: 43 | BD76: 321 | BE76: 21 | BF76: 65
A77: 2011-01-01 | B77: Maryland | C77: 5759087 | D77: 5008452 | E77: 553895 | F77: 153979 | G77: 228 | H77: 671 | I77: 945 | J77: 423 | K77: 8595 | L77: 1796 | M77: 1608 | N77: 6652 | O77: 18492 | P77: 7825 | Q77: 7113 | R77: 1170 | S77: 389 | T77: 2392 | U77: 1318 | V77: 110 | W77: 689 | X77: 848 | Y77: 860 | Z77: 1526 | AA77: 0 | AB77: 3470 | AC77: 2077 | AD77: 810 | AE77: 1109 | AF77: 1469 | AG77: 73 | AH77: 0 | AI77: 1105 | AJ77: 232 | AK77: 9627 | AL77: 797 | AM77: 9222 | AN77: 6686 | AO77: 0 | AP77: 3396 | AQ77: 845 | AR77: 276 | AS77: 14158 | AT77: 197 | AU77: 2882 | AV77: 0 | AW77: 1942 | AX77: 3619 | AY77: 223 | AZ77: 40 | BA77: 22089 | BB77: 1525 | BC77: 2027 | BD77: 353 | BE77: 80 | BF77: 779
A78: 2011-01-01 | B78: Massachusetts | C78: 6515057 | D78: 5658768 | E78: 656441 | F78: 139830 | G78: 1201 | H78: 225 | I78: 1017 | J78: 167 | K78: 11556 | L78: 1388 | M78: 9445 | N78: 399 | O78: 676 | P78: 11396 | Q78: 3264 | R78: 733 | S78: 412 | T78: 2991 | U78: 640 | V78: 138 | W78: 969 | X78: 180 | Y78: 977 | Z78: 4006 | AA78: 2762 | AB78: 0 | AC78: 2629 | AD78: 862 | AE78: 356 | AF78: 1261 | AG78: 596 | AH78: 637 | AI78: 163 | AJ78: 12010 | AK78: 8332 | AL78: 199 | AM78: 19431 | AN78: 3964 | AO78: 61 | AP78: 1757 | AQ78: 90 | AR78: 178 | AS78: 6538 | AT78: 10182 | AU78: 1621 | AV78: 44 | AW78: 371 | AX78: 5203 | AY78: 548 | AZ78: 2246 | BA78: 2984 | BB78: 1673 | BC78: 911 | BD78: 441 | BE78: 0 | BF78: 4413
A79: 2011-01-01 | B79: Michigan | C79: 9766574 | D79: 8340767 | E79: 1242917 | F79: 139158 | G79: 3527 | H79: 3456 | I79: 3840 | J79: 2054 | K79: 7793 | L79: 3425 | M79: 1656 | N79: 0 | O79: 256 | P79: 17712 | Q79: 4254 | R79: 630 | S79: 882 | T79: 9897 | U79: 7668 | V79: 1709 | W79: 1148 | X79: 2578 | Y79: 955 | Z79: 599 | AA79: 1035 | AB79: 2861 | AC79: 0 | AD79: 2671 | AE79: 715 | AF79: 2509 | AG79: 84 | AH79: 439 | AI79: 1215 | AJ79: 73 | AK79: 1849 | AL79: 508 | AM79: 6087 | AN79: 3405 | AO79: 159 | AP79: 11224 | AQ79: 917 | AR79: 647 | AS79: 2864 | AT79: 385 | AU79: 2185 | AV79: 571 | AW79: 3106 | AX79: 9935 | AY79: 642 | AZ79: 0 | BA79: 2327 | BB79: 1430 | BC79: 417 | BD79: 4018 | BE79: 841 | BF79: 908
A80: 2011-01-01 | B80: Minnesota | C80: 5277329 | D80: 4505462 | E80: 646176 | F80: 101029 | G80: 123 | H80: 893 | I80: 2314 | J80: 951 | K80: 6638 | L80: 2662 | M80: 74 | N80: 86 | O80: 367 | P80: 2820 | Q80: 840 | R80: 901 | S80: 402 | T80: 8209 | U80: 786 | V80: 6175 | W80: 606 | X80: 755 | Y80: 573 | Z80: 321 | AA80: 424 | AB80: 970 | AC80: 5164 | AD80: 0 | AE80: 549 | AF80: 1345 | AG80: 1457 | AH80: 1936 | AI80: 2682 | AJ80: 21 | AK80: 631 | AL80: 540 | AM80: 2416 | AN80: 845 | AO80: 7574 | AP80: 1961 | AQ80: 546 | AR80: 1800 | AS80: 870 | AT80: 0 | AU80: 447 | AV80: 5305 | AW80: 874 | AX80: 3062 | AY80: 919 | AZ80: 177 | BA80: 1034 | BB80: 1413 | BC80: 92 | BD80: 19255 | BE80: 224 | BF80: 54
A81: 2011-01-01 | B81: Mississippi | C81: 2943021 | D81: 2534036 | E81: 332934 | F81: 68511 | G81: 8922 | H81: 117 | I81: 556 | J81: 2315 | K81: 4723 | L81: 484 | M81: 54 | N81: 0 | O81: 415 | P81: 6152 | Q81: 3136 | R81: 369 | S81: 55 | T81: 2068 | U81: 611 | V81: 650 | W81: 66 | X81: 1626 | Y81: 7139 | Z81: 0 | AA81: 265 | AB81: 1445 | AC81: 1610 | AD81: 614 | AE81: 0 | AF81: 1581 | AG81: 0 | AH81: 118 | AI81: 84 | AJ81: 65 | AK81: 269 | AL81: 1075 | AM81: 364 | AN81: 483 | AO81: 0 | AP81: 991 | AQ81: 566 | AR81: 74 | AS81: 2568 | AT81: 41 | AU81: 398 | AV81: 6 | AW81: 7683 | AX81: 5243 | AY81: 332 | AZ81: 0 | BA81: 1453 | BB81: 286 | BC81: 303 | BD81: 1136 | BE81: 0 | BF81: 318
A82: 2011-01-01 | B82: Missouri | C82: 5937896 | D82: 4963040 | E82: 801046 | F82: 149439 | G82: 1395 | H82: 2043 | I82: 2356 | J82: 6168 | K82: 8386 | L82: 3144 | M82: 1516 | N82: 0 | O82: 215 | P82: 4513 | Q82: 2964 | R82: 871 | S82: 560 | T82: 20161 | U82: 4404 | V82: 4811 | W82: 20884 | X82: 1993 | Y82: 1728 | Z82: 291 | AA82: 716 | AB82: 463 | AC82: 2830 | AD82: 2026 | AE82: 1641 | AF82: 0 | AG82: 845 | AH82: 4860 | AI82: 1544 | AJ82: 769 | AK82: 1114 | AL82: 1016 | AM82: 2904 | AN82: 3669 | AO82: 977 | AP82: 3240 | AQ82: 6073 | AR82: 777 | AS82: 1810 | AT82: 359 | AU82: 267 | AV82: 361 | AW82: 2676 | AX82: 10293 | AY82: 1697 | AZ82: 88 | BA82: 2684 | BB82: 2518 | BC82: 196 | BD82: 1503 | BE82: 1120 | BF82: 709
A83: 2011-01-01 | B83: Montana | C83: 987076 | D83: 828254 | E83: 122210 | F83: 33553 | G83: 449 | H83: 1118 | I83: 1971 | J83: 49 | K83: 3033 | L83: 2856 | M83: 58 | N83: 365 | O83: 0 | P83: 291 | Q83: 231 | R83: 32 | S83: 1543 | T83: 765 | U83: 646 | V83: 417 | W83: 845 | X83: 0 | Y83: 0 | Z83: 71 | AA83: 57 | AB83: 10 | AC83: 353 | AD83: 969 | AE83: 0 | AF83: 158 | AG83: 0 | AH83: 384 | AI83: 688 | AJ83: 0 | AK83: 889 | AL83: 264 | AM83: 422 | AN83: 1173 | AO83: 360 | AP83: 321 | AQ83: 96 | AR83: 1959 | AS83: 840 | AT83: 0 | AU83: 77 | AV83: 227 | AW83: 266 | AX83: 1329 | AY83: 1232 | AZ83: 53 | BA83: 278 | BB83: 3835 | BC83: 14 | BD83: 146 | BE83: 2413 | BF83: 353
A84: 2011-01-01 | B84: Nebraska | C84: 1817126 | D84: 1505191 | E84: 253269 | F84: 52070 | G84: 169 | H84: 721 | I84: 1646 | J84: 161 | K84: 5124 | L84: 3245 | M84: 381 | N84: 0 | O84: 29 | P84: 1105 | Q84: 434 | R84: 275 | S84: 506 | T84: 1415 | U84: 615 | V84: 9575 | W84: 3040 | X84: 352 | Y84: 222 | Z84: 122 | AA84: 318 | AB84: 0 | AC84: 683 | AD84: 1455 | AE84: 424 | AF84: 1848 | AG84: 64 | AH84: 0 | AI84: 240 | AJ84: 0 | AK84: 119 | AL84: 242 | AM84: 544 | AN84: 829 | AO84: 292 | AP84: 268 | AQ84: 1255 | AR84: 1556 | AS84: 252 | AT84: 0 | AU84: 243 | AV84: 2999 | AW84: 226 | AX84: 5343 | AY84: 734 | AZ84: 0 | BA84: 615 | BB84: 835 | BC84: 24 | BD84: 560 | BE84: 965 | BF84: 0
A85: 2011-01-01 | B85: Nevada | C85: 2688336 | D85: 2084668 | E85: 480317 | F85: 110345 | G85: 280 | H85: 597 | I85: 10142 | J85: 310 | K85: 40114 | L85: 2714 | M85: 189 | N85: 184 | O85: 983 | P85: 2923 | Q85: 1731 | R85: 4093 | S85: 3929 | T85: 1668 | U85: 855 | V85: 114 | W85: 602 | X85: 628 | Y85: 78 | Z85: 49 | AA85: 931 | AB85: 256 | AC85: 1663 | AD85: 1055 | AE85: 203 | AF85: 335 | AG85: 1137 | AH85: 32 | AI85: 0 | AJ85: 0 | AK85: 2118 | AL85: 2136 | AM85: 1516 | AN85: 1333 | AO85: 0 | AP85: 1354 | AQ85: 258 | AR85: 1691 | AS85: 570 | AT85: 86 | AU85: 165 | AV85: 588 | AW85: 96 | AX85: 7249 | AY85: 3365 | AZ85: 0 | BA85: 1740 | BB85: 4680 | BC85: 0 | BD85: 2672 | BE85: 933 | BF85: 153
A86: 2011-01-01 | B86: New Hampshire | C86: 1305678 | D86: 1141236 | E86: 122129 | F86: 37000 | G86: 193 | H86: 0 | I86: 246 | J86: 22 | K86: 547 | L86: 403 | M86: 1617 | N86: 20 | O86: 68 | P86: 1970 | Q86: 535 | R86: 0 | S86: 0 | T86: 478 | U86: 470 | V86: 47 | W86: 0 | X86: 0 | Y86: 0 | Z86: 3080 | AA86: 222 | AB86: 15526 | AC86: 155 | AD86: 104 | AE86: 160 | AF86: 153 | AG86: 230 | AH86: 33 | AI86: 186 | AJ86: 0 | AK86: 294 | AL86: 186 | AM86: 1471 | AN86: 1297 | AO86: 47 | AP86: 248 | AQ86: 0 | AR86: 198 | AS86: 1015 | AT86: 608 | AU86: 588 | AV86: 86 | AW86: 126 | AX86: 605 | AY86: 158 | AZ86: 2138 | BA86: 880 | BB86: 428 | BC86: 0 | BD86: 0 | BE86: 162 | BF86: 0
A87: 2011-01-01 | B87: New Jersey | C87: 8719952 | D87: 7825661 | E87: 693380 | F87: 140194 | G87: 189 | H87: 1198 | I87: 3784 | J87: 57 | K87: 5986 | L87: 2203 | M87: 1924 | N87: 2100 | O87: 781 | P87: 12907 | Q87: 4268 | R87: 264 | S87: 256 | T87: 3690 | U87: 718 | V87: 332 | W87: 317 | X87: 102 | Y87: 871 | Z87: 624 | AA87: 5335 | AB87: 4675 | AC87: 1889 | AD87: 1261 | AE87: 510 | AF87: 583 | AG87: 49 | AH87: 312 | AI87: 899 | AJ87: 499 | AK87: 0 | AL87: 355 | AM87: 40815 | AN87: 2482 | AO87: 61 | AP87: 1121 | AQ87: 773 | AR87: 360 | AS87: 19733 | AT87: 463 | AU87: 1586 | AV87: 0 | AW87: 1412 | AX87: 3801 | AY87: 256 | AZ87: 0 | BA87: 4458 | BB87: 2454 | BC87: 1252 | BD87: 214 | BE87: 15 | BF87: 4312
A88: 2011-01-01 | B88: New Mexico | C88: 2055293 | D88: 1753413 | E88: 228218 | F88: 62130 | G88: 410 | H88: 416 | I88: 7444 | J88: 682 | K88: 7066 | L88: 5525 | M88: 0 | N88: 0 | O88: 212 | P88: 2806 | Q88: 676 | R88: 81 | S88: 355 | T88: 466 | U88: 2030 | V88: 0 | W88: 1333 | X88: 87 | Y88: 184 | Z88: 510 | AA88: 2277 | AB88: 252 | AC88: 908 | AD88: 438 | AE88: 556 | AF88: 1183 | AG88: 544 | AH88: 353 | AI88: 2099 | AJ88: 114 | AK88: 245 | AL88: 0 | AM88: 1445 | AN88: 522 | AO88: 264 | AP88: 1742 | AQ88: 234 | AR88: 916 | AS88: 492 | AT88: 0 | AU88: 145 | AV88: 240 | AW88: 899 | AX88: 13633 | AY88: 303 | AZ88: 71 | BA88: 425 | BB88: 924 | BC88: 0 | BD88: 340 | BE88: 283 | BF88: 99
A89: 2011-01-01 | B89: New York | C89: 19248685 | D89: 17055260 | E89: 1756105 | F89: 282209 | G89: 1812 | H89: 6124 | I89: 2821 | J89: 1041 | K89: 25761 | L89: 3724 | M89: 15123 | N89: 1124 | O89: 3702 | P89: 29344 | Q89: 10584 | R89: 1002 | S89: 434 | T89: 6914 | U89: 2198 | V89: 928 | W89: 838 | X89: 2414 | Y89: 1495 | Z89: 2915 | AA89: 5037 | AB89: 14646 | AC89: 3936 | AD89: 1824 | AE89: 401 | AF89: 1417 | AG89: 391 | AH89: 579 | AI89: 1785 | AJ89: 2972 | AK89: 41450 | AL89: 461 | AM89: 0 | AN89: 9336 | AO89: 374 | AP89: 5191 | AQ89: 1425 | AR89: 2189 | AS89: 26596 | AT89: 1393 | AU89: 6947 | AV89: 112 | AW89: 2660 | AX89: 9151 | AY89: 773 | AZ89: 3882 | BA89: 10800 | BB89: 2986 | BC89: 631 | BD89: 1878 | BE89: 688 | BF89: 10582
A90: 2011-01-01 | B90: North Carolina | C90: 9539412 | D90: 8070238 | E90: 1160510 | F90: 265291 | G90: 5420 | H90: 3991 | I90: 4286 | J90: 327 | K90: 15373 | L90: 3919 | M90: 1975 | N90: 954 | O90: 1135 | P90: 28044 | Q90: 16192 | R90: 1806 | S90: 675 | T90: 5971 | U90: 3228 | V90: 654 | W90: 4995 | X90: 1637 | Y90: 2936 | Z90: 824 | AA90: 10485 | AB90: 9053 | AC90: 7530 | AD90: 1294 | AE90: 1273 | AF90: 2638 | AG90: 563 | AH90: 1056 | AI90: 1048 | AJ90: 2078 | AK90: 10374 | AL90: 1737 | AM90: 18321 | AN90: 0 | AO90: 189 | AP90: 10187 | AQ90: 1390 | AR90: 1175 | AS90: 9450 | AT90: 444 | AU90: 20427 | AV90: 565 | AW90: 6057 | AX90: 6621 | AY90: 961 | AZ90: 212 | BA90: 27302 | BB90: 3295 | BC90: 2780 | BD90: 2291 | BE90: 153 | BF90: 844
A91: 2011-01-01 | B91: North Dakota | C91: 675161 | D91: 559906 | E91: 79837 | F91: 32510 | G91: 97 | H91: 393 | I91: 1313 | J91: 249 | K91: 1356 | L91: 1229 | M91: 0 | N91: 84 | O91: 0 | P91: 459 | Q91: 364 | R91: 138 | S91: 1209 | T91: 571 | U91: 130 | V91: 208 | W91: 75 | X91: 0 | Y91: 422 | Z91: 50 | AA91: 10 | AB91: 369 | AC91: 328 | AD91: 12244 | AE91: 80 | AF91: 330 | AG91: 1227 | AH91: 218 | AI91: 845 | AJ91: 0 | AK91: 183 | AL91: 99 | AM91: 264 | AN91: 900 | AO91: 0 | AP91: 286 | AQ91: 59 | AR91: 264 | AS91: 652 | AT91: 0 | AU91: 1 | AV91: 1293 | AW91: 113 | AX91: 1862 | AY91: 429 | AZ91: 0 | BA91: 166 | BB91: 404 | BC91: 0 | BD91: 1398 | BE91: 139 | BF91: 76
A92: 2011-01-01 | B92: Ohio | C92: 11418944 | D92: 9764366 | E92: 1425709 | F92: 191778 | G92: 1567 | H92: 1637 | I92: 6763 | J92: 1952 | K92: 9032 | L92: 2690 | M92: 1189 | N92: 263 | O92: 587 | P92: 16492 | Q92: 4290 | R92: 1044 | S92: 312 | T92: 7027 | U92: 11588 | V92: 1146 | W92: 657 | X92: 12744 | Y92: 1872 | Z92: 0 | AA92: 4982 | AB92: 2101 | AC92: 14330 | AD92: 1788 | AE92: 691 | AF92: 2003 | AG92: 101 | AH92: 1176 | AI92: 1851 | AJ92: 1992 | AK92: 3936 | AL92: 255 | AM92: 8784 | AN92: 4572 | AO92: 204 | AP92: 0 | AQ92: 2333 | AR92: 1326 | AS92: 14292 | AT92: 369 | AU92: 3826 | AV92: 34 | AW92: 6468 | AX92: 11987 | AY92: 691 | AZ92: 68 | BA92: 5425 | BB92: 1979 | BC92: 7548 | BD92: 2534 | BE92: 1280 | BF92: 1607
A93: 2011-01-01 | B93: Oklahoma | C93: 3742698 | D93: 3089041 | E93: 528498 | F93: 108878 | G93: 591 | H93: 1137 | I93: 3770 | J93: 6894 | K93: 8233 | L93: 3273 | M93: 97 | N93: 66 | O93: 191 | P93: 6056 | Q93: 3514 | R93: 140 | S93: 21 | T93: 2179 | U93: 2113 | V93: 580 | W93: 4626 | X93: 1398 | Y93: 1934 | Z93: 271 | AA93: 432 | AB93: 160 | AC93: 1038 | AD93: 497 | AE93: 199 | AF93: 5781 | AG93: 803 | AH93: 1979 | AI93: 705 | AJ93: 0 | AK93: 391 | AL93: 403 | AM93: 1858 | AN93: 1322 | AO93: 928 | AP93: 1608 | AQ93: 0 | AR93: 917 | AS93: 1116 | AT93: 152 | AU93: 2015 | AV93: 600 | AW93: 1700 | AX93: 31595 | AY93: 587 | AZ93: 0 | BA93: 1013 | BB93: 1246 | BC93: 44 | BD93: 942 | BE93: 1763 | BF93: 105
A94: 2011-01-01 | B94: Oregon | C94: 3828714 | D94: 3128121 | E94: 549332 | F94: 127906 | G94: 758 | H94: 1935 | I94: 7911 | J94: 988 | K94: 34214 | L94: 2110 | M94: 949 | N94: 251 | O94: 349 | P94: 3384 | Q94: 1946 | R94: 2491 | S94: 6236 | T94: 1350 | U94: 1371 | V94: 659 | W94: 1263 | X94: 71 | Y94: 0 | Z94: 269 | AA94: 453 | AB94: 1423 | AC94: 1652 | AD94: 1413 | AE94: 7 | AF94: 1172 | AG94: 1079 | AH94: 324 | AI94: 7222 | AJ94: 427 | AK94: 1322 | AL94: 537 | AM94: 2056 | AN94: 1099 | AO94: 313 | AP94: 949 | AQ94: 2034 | AR94: 0 | AS94: 1407 | AT94: 0 | AU94: 370 | AV94: 417 | AW94: 673 | AX94: 4498 | AY94: 3443 | AZ94: 176 | BA94: 1179 | BB94: 21862 | BC94: 66 | BD94: 914 | BE94: 914 | BF94: 4
A95: 2011-01-01 | B95: Pennsylvania | C95: 12610486 | D95: 11099077 | E95: 1224564 | F95: 234291 | G95: 1332 | H95: 759 | I95: 2278 | J95: 582 | K95: 10672 | L95: 2491 | M95: 4150 | N95: 5177 | O95: 1401 | P95: 19299 | Q95: 4627 | R95: 495 | S95: 236 | T95: 3902 | U95: 4086 | V95: 1176 | W95: 2323 | X95: 4013 | Y95: 615 | Z95: 608 | AA95: 17751 | AB95: 6284 | AC95: 4406 | AD95: 853 | AE95: 1238 | AF95: 1761 | AG95: 338 | AH95: 582 | AI95: 1057 | AJ95: 1326 | AK95: 36133 | AL95: 325 | AM95: 29436 | AN95: 11254 | AO95: 195 | AP95: 13075 | AQ95: 283 | AR95: 1594 | AS95: 0 | AT95: 799 | AU95: 3438 | AV95: 142 | AW95: 3742 | AX95: 7006 | AY95: 1246 | AZ95: 446 | BA95: 8419 | BB95: 3688 | BC95: 4631 | BD95: 2426 | BE95: 195 | BF95: 2723
A96: 2011-01-01 | B96: Rhode Island | C96: 1040022 | D96: 903786 | E96: 101689 | F96: 26769 | G96: 0 | H96: 0 | I96: 214 | J96: 0 | K96: 1949 | L96: 301 | M96: 2613 | N96: 0 | O96: 0 | P96: 2230 | Q96: 476 | R96: 0 | S96: 107 | T96: 373 | U96: 41 | V96: 82 | W96: 374 | X96: 211 | Y96: 121 | Z96: 228 | AA96: 472 | AB96: 7715 | AC96: 178 | AD96: 27 | AE96: 0 | AF96: 109 | AG96: 0 | AH96: 0 | AI96: 0 | AJ96: 941 | AK96: 1224 | AL96: 93 | AM96: 2776 | AN96: 259 | AO96: 0 | AP96: 60 | AQ96: 0 | AR96: 57 | AS96: 1125 | AT96: 0 | AU96: 223 | AV96: 0 | AW96: 210 | AX96: 207 | AY96: 181 | AZ96: 621 | BA96: 485 | BB96: 262 | BC96: 199 | BD96: 2 | BE96: 23 | BF96: 293
A97: 2011-01-01 | B97: South Carolina | C97: 4624180 | D97: 3899705 | E97: 546666 | F97: 157644 | G97: 2999 | H97: 2421 | I97: 1971 | J97: 1333 | K97: 6592 | L97: 1000 | M97: 1752 | N97: 841 | O97: 589 | P97: 15476 | Q97: 16355 | R97: 712 | S97: 55 | T97: 2371 | U97: 3249 | V97: 1379 | W97: 1885 | X97: 2454 | Y97: 878 | Z97: 652 | AA97: 3807 | AB97: 730 | AC97: 4483 | AD97: 471 | AE97: 2163 | AF97: 1522 | AG97: 915 | AH97: 204 | AI97: 1017 | AJ97: 372 | AK97: 4241 | AL97: 598 | AM97: 11317 | AN97: 23102 | AO97: 271 | AP97: 6327 | AQ97: 1008 | AR97: 833 | AS97: 3523 | AT97: 453 | AU97: 0 | AV97: 62 | AW97: 3324 | AX97: 8623 | AY97: 181 | AZ97: 91 | BA97: 7879 | BB97: 2510 | BC97: 1680 | BD97: 341 | BE97: 632 | BF97: 2166
A98: 2011-01-01 | B98: South Dakota | C98: 814175 | D98: 688436 | E98: 94655 | F98: 27506 | G98: 0 | H98: 554 | I98: 1422 | J98: 659 | K98: 1286 | L98: 1021 | M98: 0 | N98: 0 | O98: 0 | P98: 101 | Q98: 69 | R98: 0 | S98: 186 | T98: 267 | U98: 285 | V98: 4772 | W98: 144 | X98: 211 | Y98: 0 | Z98: 0 | AA98: 254 | AB98: 113 | AC98: 239 | AD98: 5342 | AE98: 129 | AF98: 354 | AG98: 232 | AH98: 1695 | AI98: 110 | AJ98: 0 | AK98: 441 | AL98: 513 | AM98: 6 | AN98: 166 | AO98: 2060 | AP98: 84 | AQ98: 40 | AR98: 15 | AS98: 57 | AT98: 7 | AU98: 529 | AV98: 0 | AW98: 0 | AX98: 1156 | AY98: 560 | AZ98: 0 | BA98: 79 | BB98: 557 | BC98: 0 | BD98: 481 | BE98: 1310 | BF98: 0
A99: 2011-01-01 | B99: Tennessee | C99: 6333466 | D99: 5342978 | E99: 794556 | F99: 170969 | G99: 9326 | H99: 531 | I99: 1346 | J99: 7393 | K99: 7130 | L99: 1372 | M99: 150 | N99: 155 | O99: 307 | P99: 15491 | Q99: 17507 | R99: 179 | S99: 0 | T99: 8593 | U99: 5645 | V99: 387 | W99: 1805 | X99: 13884 | Y99: 1901 | Z99: 9 | AA99: 1135 | AB99: 1690 | AC99: 5983 | AD99: 445 | AE99: 9172 | AF99: 3795 | AG99: 43 | AH99: 631 | AI99: 883 | AJ99: 132 | AK99: 1396 | AL99: 381 | AM99: 4921 | AN99: 9353 | AO99: 50 | AP99: 5944 | AQ99: 3166 | AR99: 726 | AS99: 3360 | AT99: 14 | AU99: 5531 | AV99: 181 | AW99: 0 | AX99: 7009 | AY99: 200 | AZ99: 38 | BA99: 6098 | BB99: 2852 | BC99: 1385 | BD99: 1213 | BE99: 131 | BF99: 1083
A100: 2011-01-01 | B100: Texas | C100: 25327104 | D100: 20984855 | E100: 3648260 | F100: 514726 | G100: 8747 | H100: 6670 | I100: 20073 | J100: 16461 | K100: 58992 | L100: 19126 | M100: 2927 | N100: 884 | O100: 2276 | P100: 35777 | Q100: 17401 | R100: 6106 | S100: 4379 | T100: 15064 | U100: 10265 | V100: 3236 | W100: 12766 | X100: 6616 | Y100: 25513 | Z100: 1357 | AA100: 9443 | AB100: 5035 | AC100: 15654 | AD100: 7691 | AE100: 6048 | AF100: 13473 | AG100: 537 | AH100: 3837 | AI100: 7793 | AJ100: 459 | AK100: 7578 | AL100: 15225 | AM100: 26155 | AN100: 14956 | AO100: 809 | AP100: 12315 | AQ100: 19302 | AR100: 3743 | AS100: 9107 | AT100: 1297 | AU100: 4075 | AV100: 1486 | AW100: 10788 | AX100: 0 | AY100: 5234 | AZ100: 349 | BA100: 13231 | BB100: 15325 | BC100: 663 | BD100: 5982 | BE100: 2500 | BF100: 5225
A101: 2011-01-01 | B101: Utah | C101: 2769627 | D101: 2295961 | E101: 373984 | F101: 85217 | G101: 486 | H101: 2151 | I101: 6585 | J101: 422 | K101: 18237 | L101: 3986 | M101: 562 | N101: 0 | O101: 132 | P101: 1643 | Q101: 1052 | R101: 1701 | S101: 7538 | T101: 1447 | U101: 545 | V101: 290 | W101: 1146 | X101: 611 | Y101: 494 | Z101: 0 | AA101: 342 | AB101: 959 | AC101: 1099 | AD101: 939 | AE101: 143 | AF101: 511 | AG101: 1241 | AH101: 195 | AI101: 4315 | AJ101: 34 | AK101: 506 | AL101: 1707 | AM101: 1937 | AN101: 1653 | AO101: 2 | AP101: 2584 | AQ101: 150 | AR101: 2037 | AS101: 1496 | AT101: 0 | AU101: 309 | AV101: 128 | AW101: 549 | AX101: 4507 | AY101: 0 | AZ101: 122 | BA101: 2413 | BB101: 4825 | BC101: 270 | BD101: 158 | BE101: 1058 | BF101: 0
A102: 2011-01-01 | B102: Vermont | C102: 621354 | D102: 537304 | E102: 60719 | F102: 20463 | G102: 0 | H102: 580 | I102: 310 | J102: 0 | K102: 819 | L102: 529 | M102: 2105 | N102: 107 | O102: 27 | P102: 366 | Q102: 101 | R102: 143 | S102: 0 | T102: 386 | U102: 258 | V102: 0 | W102: 7 | X102: 627 | Y102: 41 | Z102: 322 | AA102: 361 | AB102: 2378 | AC102: 335 | AD102: 206 | AE102: 0 | AF102: 69 | AG102: 0 | AH102: 0 | AI102: 15 | AJ102: 2244 | AK102: 962 | AL102: 56 | AM102: 3723 | AN102: 250 | AO102: 0 | AP102: 383 | AQ102: 0 | AR102: 124 | AS102: 389 | AT102: 401 | AU102: 21 | AV102: 0 | AW102: 327 | AX102: 185 | AY102: 182 | AZ102: 0 | BA102: 740 | BB102: 156 | BC102: 53 | BD102: 137 | BE102: 38 | BF102: 19
A103: 2011-01-01 | B103: Virginia | C103: 7996552 | D103: 6789620 | E103: 889751 | F103: 257130 | G103: 4930 | H103: 3202 | I103: 4679 | J103: 645 | K103: 19371 | L103: 4908 | M103: 5376 | N103: 961 | O103: 6854 | P103: 17773 | Q103: 8715 | R103: 2917 | S103: 434 | T103: 4000 | U103: 2703 | V103: 1503 | W103: 892 | X103: 3630 | Y103: 2496 | Z103: 2855 | AA103: 22051 | AB103: 5386 | AC103: 7323 | AD103: 834 | AE103: 1682 | AF103: 2277 | AG103: 617 | AH103: 256 | AI103: 1717 | AJ103: 1344 | AK103: 7327 | AL103: 1014 | AM103: 12455 | AN103: 22753 | AO103: 462 | AP103: 9570 | AQ103: 853 | AR103: 3499 | AS103: 12009 | AT103: 1897 | AU103: 6612 | AV103: 908 | AW103: 7482 | AX103: 11655 | AY103: 1426 | AZ103: 173 | BA103: 0 | BB103: 4615 | BC103: 9041 | BD103: 858 | BE103: 190 | BF103: 1222
A104: 2011-01-01 | B104: Washington | C104: 6748474 | D104: 5565069 | E104: 919925 | F104: 208507 | G104: 1821 | H104: 5266 | I104: 12397 | J104: 756 | K104: 38421 | L104: 3938 | M104: 1026 | N104: 0 | O104: 358 | P104: 6094 | Q104: 8705 | R104: 5940 | S104: 10895 | T104: 2062 | U104: 2303 | V104: 1000 | W104: 2820 | X104: 1271 | Y104: 1016 | Z104: 1313 | AA104: 1899 | AB104: 1580 | AC104: 3720 | AD104: 1543 | AE104: 1110 | AF104: 3307 | AG104: 2125 | AH104: 673 | AI104: 4925 | AJ104: 824 | AK104: 2006 | AL104: 1569 | AM104: 4512 | AN104: 3870 | AO104: 189 | AP104: 2686 | AQ104: 765 | AR104: 29168 | AS104: 2296 | AT104: 463 | AU104: 1519 | AV104: 227 | AW104: 2342 | AX104: 15491 | AY104: 4789 | AZ104: 119 | BA104: 4233 | BB104: 0 | BC104: 157 | BD104: 1491 | BE104: 1507 | BF104: 1083
A105: 2011-01-01 | B105: West Virginia | C105: 1836614 | D105: 1609110 | E105: 172262 | F105: 50068 | G105: 221 | H105: 598 | I105: 50 | J105: 225 | K105: 1442 | L105: 124 | M105: 594 | N105: 89 | O105: 300 | P105: 2949 | Q105: 1296 | R105: 147 | S105: 120 | T105: 1331 | U105: 210 | V105: 0 | W105: 0 | X105: 515 | Y105: 326 | Z105: 45 | AA105: 7515 | AB105: 236 | AC105: 459 | AD105: 0 | AE105: 0 | AF105: 309 | AG105: 60 | AH105: 78 | AI105: 293 | AJ105: 160 | AK105: 1431 | AL105: 0 | AM105: 2017 | AN105: 3865 | AO105: 0 | AP105: 8545 | AQ105: 97 | AR105: 132 | AS105: 4205 | AT105: 284 | AU105: 1857 | AV105: 0 | AW105: 546 | AX105: 1574 | AY105: 114 | AZ105: 23 | BA105: 5561 | BB105: 83 | BC105: 0 | BD105: 42 | BE105: 0 | BF105: 680
A106: 2011-01-01 | B106: Wisconsin | C106: 5647213 | D106: 4846550 | E106: 675623 | F106: 109439 | G106: 708 | H106: 432 | I106: 4045 | J106: 335 | K106: 6637 | L106: 2592 | M106: 993 | N106: 219 | O106: 123 | P106: 4338 | Q106: 1745 | R106: 1108 | S106: 566 | T106: 25521 | U106: 4017 | V106: 3306 | W106: 418 | X106: 1040 | Y106: 850 | Z106: 12 | AA106: 147 | AB106: 733 | AC106: 5623 | AD106: 17927 | AE106: 983 | AF106: 2090 | AG106: 143 | AH106: 483 | AI106: 663 | AJ106: 480 | AK106: 378 | AL106: 714 | AM106: 2213 | AN106: 2120 | AO106: 1383 | AP106: 1358 | AQ106: 118 | AR106: 1057 | AS106: 1294 | AT106: 368 | AU106: 377 | AV106: 590 | AW106: 744 | AX106: 1984 | AY106: 890 | AZ106: 342 | BA106: 2573 | BB106: 1555 | BC106: 1090 | BD106: 0 | BE106: 14 | BF106: 728
A107: 2011-01-01 | B107: Wyoming | C107: 561389 | D107: 462808 | E107: 66648 | F107: 30651 | G107: 51 | H107: 761 | I107: 369 | J107: 174 | K107: 2539 | L107: 6905 | M107: 11 | N107: 0 | O107: 0 | P107: 1525 | Q107: 46 | R107: 0 | S107: 2140 | T107: 450 | U107: 6 | V107: 342 | W107: 286 | X107: 83 | Y107: 114 | Z107: 0 | AA107: 0 | AB107: 152 | AC107: 849 | AD107: 357 | AE107: 70 | AF107: 241 | AG107: 1105 | AH107: 1784 | AI107: 427 | AJ107: 0 | AK107: 7 | AL107: 76 | AM107: 113 | AN107: 395 | AO107: 237 | AP107: 22 | AQ107: 462 | AR107: 960 | AS107: 284 | AT107: 13 | AU107: 219 | AV107: 1043 | AW107: 69 | AX107: 1398 | AY107: 2140 | AZ107: 4 | BA107: 451 | BB107: 1803 | BC107: 0 | BD107: 168 | BE107: 0 | BF107: 0
A108: 2011-01-01 | B108: Puerto Rico | C108: 3669195 | D108: 3403602 | E108: 238263 | F108: 22649 | G108: 35 | H108: 378 | I108: 229 | J108: 0 | K108: 207 | L108: 0 | M108: 1849 | N108: 13 | O108: 212 | P108: 6614 | Q108: 247 | R108: 0 | S108: 13 | T108: 624 | U108: 784 | V108: 0 | W108: 38 | X108: 0 | Y108: 0 | Z108: 0 | AA108: 70 | AB108: 1412 | AC108: 88 | AD108: 0 | AE108: 27 | AF108: 101 | AG108: 0 | AH108: 0 | AI108: 0 | AJ108: 0 | AK108: 2150 | AL108: 51 | AM108: 2615 | AN108: 200 | AO108: 0 | AP108: 0 | AQ108: 79 | AR108: 0 | AS108: 1978 | AT108: 490 | AU108: 3 | AV108: 113 | AW108: 224 | AX108: 444 | AY108: 0 | AZ108: 0 | BA108: 1077 | BB108: 41 | BC108: 14 | BD108: 229 | BE108: 0 | BF108: 0
A109: 2010-01-01 | B109: United States | C109: 305628607 | D109: 258552348 | E109: 38582885 | F109: 6743229 | G109: 99221 | H109: 94692 | I109: 176768 | J109: 64264 | K109: 573988 | L109: 140620 | M109: 89360 | N109: 30055 | O109: 56052 | P109: 427853 | Q109: 244992 | R109: 49218 | S109: 53122 | T109: 277579 | U109: 130170 | V109: 66922 | W109: 90681 | X109: 92999 | Y109: 88131 | Z109: 32209 | AA109: 159866 | AB109: 144152 | AC109: 178207 | AD109: 104765 | AE109: 68363 | AF109: 148055 | AG109: 35870 | AH109: 43531 | AI109: 109409 | AJ109: 38399 | AK109: 193972 | AL109: 50438 | AM109: 363139 | AN109: 207025 | AO109: 24450 | AP109: 188013 | AQ109: 90616 | AR109: 100185 | AS109: 209810 | AT109: 24948 | AU109: 117569 | AV109: 27915 | AW109: 143135 | AX109: 411641 | AY109: 75541 | AZ109: 18380 | BA109: 232002 | BB109: 166162 | BC109: 49349 | BD109: 111240 | BE109: 28186 | BF109: 59885
A110: 2010-01-01 | B110: Alabama | C110: 4729509 | D110: 3987155 | E110: 620465 | F110: 108723 | G110: 0 | H110: 3013 | I110: 676 | J110: 1481 | K110: 3827 | L110: 1278 | M110: 454 | N110: 811 | O110: 211 | P110: 15062 | Q110: 21644 | R110: 267 | S110: 304 | T110: 2503 | U110: 3945 | V110: 669 | W110: 649 | X110: 1967 | Y110: 1901 | Z110: 97 | AA110: 716 | AB110: 435 | AC110: 2334 | AD110: 386 | AE110: 7233 | AF110: 1373 | AG110: 229 | AH110: 169 | AI110: 265 | AJ110: 0 | AK110: 356 | AL110: 650 | AM110: 3686 | AN110: 2371 | AO110: 169 | AP110: 2222 | AQ110: 880 | AR110: 485 | AS110: 1477 | AT110: 0 | AU110: 2368 | AV110: 31 | AW110: 7409 | AX110: 6500 | AY110: 1336 | AZ110: 0 | BA110: 2490 | BB110: 1171 | BC110: 41 | BD110: 1155 | BE110: 27 | BF110: 228
A111: 2010-01-01 | B111: Alaska | C111: 702974 | D111: 565031 | E111: 95878 | F111: 36326 | G111: 477 | H111: 0 | I111: 1354 | J111: 47 | K111: 3906 | L111: 1930 | M111: 0 | N111: 0 | O111: 14 | P111: 2315 | Q111: 1251 | R111: 1705 | S111: 895 | T111: 388 | U111: 9 | V111: 262 | W111: 106 | X111: 1440 | Y111: 100 | Z111: 574 | AA111: 704 | AB111: 107 | AC111: 923 | AD111: 530 | AE111: 263 | AF111: 0 | AG111: 616 | AH111: 215 | AI111: 240 | AJ111: 316 | AK111: 413 | AL111: 421 | AM111: 255 | AN111: 698 | AO111: 69 | AP111: 156 | AQ111: 1455 | AR111: 1793 | AS111: 126 | AT111: 0 | AU111: 121 | AV111: 531 | AW111: 477 | AX111: 4123 | AY111: 1274 | AZ111: 353 | BA111: 714 | BB111: 2421 | BC111: 0 | BD111: 158 | BE111: 81 | BF111: 19
A112: 2010-01-01 | B112: Arizona | C112: 6332786 | D112: 5069002 | E112: 1001991 | F112: 222725 | G112: 416 | H112: 3109 | I112: 0 | J112: 689 | K112: 47164 | L112: 7687 | M112: 479 | N112: 738 | O112: 0 | P112: 7712 | Q112: 4261 | R112: 1966 | S112: 2147 | T112: 12250 | U112: 2690 | V112: 3008 | W112: 1935 | X112: 1705 | Y112: 2014 | Z112: 241 | AA112: 1284 | AB112: 1449 | AC112: 6354 | AD112: 5421 | AE112: 272 | AF112: 4567 | AG112: 1343 | AH112: 1750 | AI112: 10342 | AJ112: 64 | AK112: 1782 | AL112: 4419 | AM112: 6618 | AN112: 4463 | AO112: 826 | AP112: 5225 | AQ112: 2910 | AR112: 5430 | AS112: 5535 | AT112: 403 | AU112: 2310 | AV112: 1351 | AW112: 3061 | AX112: 14705 | AY112: 7164 | AZ112: 664 | BA112: 3413 | BB112: 12645 | BC112: 595 | BD112: 5556 | BE112: 593 | BF112: 599
A113: 2010-01-01 | B113: Arkansas | C113: 2888304 | D113: 2387806 | E113: 412997 | F113: 79127 | G113: 1405 | H113: 934 | I113: 777 | J113: 0 | K113: 4457 | L113: 2535 | M113: 451 | N113: 0 | O113: 154 | P113: 3578 | Q113: 3921 | R113: 129 | S113: 618 | T113: 3221 | U113: 722 | V113: 85 | W113: 3611 | X113: 2540 | Y113: 4012 | Z113: 0 | AA113: 306 | AB113: 190 | AC113: 1506 | AD113: 222 | AE113: 2764 | AF113: 7320 | AG113: 85 | AH113: 394 | AI113: 67 | AJ113: 0 | AK113: 77 | AL113: 0 | AM113: 289 | AN113: 1561 | AO113: 0 | AP113: 1137 | AQ113: 8607 | AR113: 239 | AS113: 731 | AT113: 0 | AU113: 1496 | AV113: 243 | AW113: 2653 | AX113: 13707 | AY113: 361 | AZ113: 0 | BA113: 494 | BB113: 264 | BC113: 0 | BD113: 821 | BE113: 443 | BF113: 87
A114: 2010-01-01 | B114: California | C114: 36907897 | D114: 30790221 | E114: 5413287 | F114: 444749 | G114: 3364 | H114: 9579 | I114: 33854 | J114: 4172 | K114: 0 | L114: 15662 | M114: 4631 | N114: 643 | O114: 3683 | P114: 20362 | Q114: 8820 | R114: 9528 | S114: 5719 | T114: 16482 | U114: 6550 | V114: 3163 | W114: 3857 | X114: 3394 | Y114: 2989 | Z114: 1796 | AA114: 10626 | AB114: 11969 | AC114: 10435 | AD114: 5095 | AE114: 2757 | AF114: 6921 | AG114: 3009 | AH114: 3062 | AI114: 27724 | AJ114: 1614 | AK114: 10108 | AL114: 4632 | AM114: 20981 | AN114: 9593 | AO114: 392 | AP114: 8170 | AQ114: 5708 | AR114: 20913 | AS114: 9948 | AT114: 526 | AU114: 5016 | AV114: 1604 | AW114: 4349 | AX114: 36582 | AY114: 10653 | AZ114: 525 | BA114: 14232 | BB114: 30544 | BC114: 1446 | BD114: 6031 | BE114: 1336 | BF114: 1223
A115: 2010-01-01 | B115: Colorado | C115: 4988190 | D115: 4042039 | E115: 725413 | F115: 186366 | G115: 954 | H115: 2225 | I115: 12287 | J115: 1034 | K115: 26089 | L115: 0 | M115: 459 | N115: 486 | O115: 479 | P115: 8849 | Q115: 6445 | R115: 2355 | S115: 839 | T115: 6950 | U115: 3296 | V115: 2140 | W115: 4308 | X115: 1961 | Y115: 968 | Z115: 532 | AA115: 1532 | AB115: 2242 | AC115: 4587 | AD115: 2878 | AE115: 1277 | AF115: 1978 | AG115: 2042 | AH115: 4065 | AI115: 4131 | AJ115: 791 | AK115: 1259 | AL115: 3921 | AM115: 4594 | AN115: 2940 | AO115: 802 | AP115: 2838 | AQ115: 3464 | AR115: 4330 | AS115: 3928 | AT115: 192 | AU115: 1231 | AV115: 1847 | AW115: 1628 | AX115: 22253 | AY115: 4748 | AZ115: 350 | BA115: 2739 | BB115: 7583 | BC115: 623 | BD115: 2499 | BE115: 4418 | BF115: 874
A116: 2010-01-01 | B116: Connecticut | C116: 3541146 | D116: 3100742 | E116: 342904 | F116: 77333 | G116: 896 | H116: 0 | I116: 664 | J116: 334 | K116: 4479 | L116: 547 | M116: 0 | N116: 149 | O116: 331 | P116: 9207 | Q116: 748 | R116: 182 | S116: 147 | T116: 3391 | U116: 1074 | V116: 108 | W116: 0 | X116: 400 | Y116: 0 | Z116: 528 | AA116: 1531 | AB116: 8510 | AC116: 770 | AD116: 934 | AE116: 67 | AF116: 42 | AG116: 0 | AH116: 0 | AI116: 507 | AJ116: 1049 | AK116: 3475 | AL116: 112 | AM116: 20727 | AN116: 1345 | AO116: 0 | AP116: 1296 | AQ116: 145 | AR116: 640 | AS116: 1955 | AT116: 1728 | AU116: 1140 | AV116: 0 | AW116: 430 | AX116: 1887 | AY116: 0 | AZ116: 458 | BA116: 1735 | BB116: 2084 | BC116: 442 | BD116: 1092 | BE116: 47 | BF116: 2027
A117: 2010-01-01 | B117: Delaware | C117: 889812 | D117: 764640 | E117: 90001 | F117: 30759 | G117: 128 | H117: 68 | I117: 60 | J117: 0 | K117: 353 | L117: 178 | M117: 714 | N117: 0 | O117: 432 | P117: 2362 | Q117: 585 | R117: 0 | S117: 0 | T117: 612 | U117: 0 | V117: 0 | W117: 28 | X117: 163 | Y117: 0 | Z117: 294 | AA117: 4969 | AB117: 689 | AC117: 61 | AD117: 55 | AE117: 0 | AF117: 539 | AG117: 73 | AH117: 0 | AI117: 106 | AJ117: 139 | AK117: 3678 | AL117: 59 | AM117: 4251 | AN117: 424 | AO117: 0 | AP117: 325 | AQ117: 0 | AR117: 0 | AS117: 7318 | AT117: 149 | AU117: 195 | AV117: 0 | AW117: 146 | AX117: 178 | AY117: 0 | AZ117: 0 | BA117: 1051 | BB117: 377 | BC117: 0 | BD117: 0 | BE117: 0 | BF117: 954
A118: 2010-01-01 | B118: District of Columbia | C118: 596747 | D118: 474676 | E118: 63766 | F118: 51244 | G118: 360 | H118: 591 | I118: 662 | J118: 155 | K118: 4205 | L118: 656 | M118: 926 | N118: 0 | O118: 0 | P118: 1100 | Q118: 1597 | R118: 0 | S118: 0 | T118: 615 | U118: 711 | V118: 392 | W118: 83 | X118: 94 | Y118: 0 | Z118: 76 | AA118: 13503 | AB118: 1376 | AC118: 126 | AD118: 87 | AE118: 0 | AF118: 272 | AG118: 0 | AH118: 62 | AI118: 0 | AJ118: 137 | AK118: 1924 | AL118: 61 | AM118: 3852 | AN118: 1897 | AO118: 98 | AP118: 598 | AQ118: 0 | AR118: 601 | AS118: 2378 | AT118: 249 | AU118: 380 | AV118: 0 | AW118: 591 | AX118: 1180 | AY118: 0 | AZ118: 199 | BA118: 7915 | BB118: 284 | BC118: 860 | BD118: 391 | BE118: 0 | BF118: 0
A119: 2010-01-01 | B119: Florida | C119: 18647600 | D119: 15554008 | E119: 2459530 | F119: 482889 | G119: 15830 | H119: 5887 | I119: 3907 | J119: 3611 | K119: 22130 | L119: 6428 | M119: 11183 | N119: 3099 | O119: 1110 | P119: 0 | Q119: 35615 | R119: 2021 | S119: 884 | T119: 17432 | U119: 9030 | V119: 2921 | W119: 4136 | X119: 6321 | Y119: 7232 | Z119: 5497 | AA119: 13241 | AB119: 13900 | AC119: 21359 | AD119: 5439 | AE119: 7929 | AF119: 7984 | AG119: 338 | AH119: 1544 | AI119: 7050 | AJ119: 3645 | AK119: 22344 | AL119: 900 | AM119: 55011 | AN119: 19108 | AO119: 794 | AP119: 21047 | AQ119: 3466 | AR119: 1655 | AS119: 19935 | AT119: 1982 | AU119: 10759 | AV119: 430 | AW119: 12882 | AX119: 24039 | AY119: 2833 | AZ119: 1442 | BA119: 20080 | BB119: 3573 | BC119: 5634 | BD119: 8081 | BE119: 191 | BF119: 12968
A120: 2010-01-01 | B120: Georgia | C120: 9587237 | D120: 8015409 | E120: 1278548 | F120: 249459 | G120: 13840 | H120: 3645 | I120: 2554 | J120: 599 | K120: 8909 | L120: 3224 | M120: 2619 | N120: 837 | O120: 1708 | P120: 49901 | Q120: 0 | R120: 1040 | S120: 414 | T120: 9736 | U120: 2649 | V120: 1096 | W120: 1355 | X120: 6525 | Y120: 3645 | Z120: 0 | AA120: 5382 | AB120: 3910 | AC120: 6857 | AD120: 1169 | AE120: 2380 | AF120: 3072 | AG120: 52 | AH120: 148 | AI120: 1155 | AJ120: 162 | AK120: 4151 | AL120: 826 | AM120: 12472 | AN120: 15361 | AO120: 0 | AP120: 9323 | AQ120: 2070 | AR120: 843 | AS120: 6294 | AT120: 43 | AU120: 15562 | AV120: 557 | AW120: 14445 | AX120: 11424 | AY120: 380 | AZ120: 361 | BA120: 8393 | BB120: 4495 | BC120: 358 | BD120: 3416 | BE120: 102 | BF120: 1010
A121: 2010-01-01 | B121: Hawaii | C121: 1346274 | D121: 1140572 | E121: 134315 | F121: 53581 | G121: 749 | H121: 743 | I121: 1398 | J121: 0 | K121: 12677 | L121: 1073 | M121: 307 | N121: 0 | O121: 0 | P121: 4599 | Q121: 2013 | R121: 0 | S121: 42 | T121: 715 | U121: 192 | V121: 68 | W121: 387 | X121: 95 | Y121: 88 | Z121: 89 | AA121: 990 | AB121: 1283 | AC121: 627 | AD121: 476 | AE121: 234 | AF121: 170 | AG121: 150 | AH121: 0 | AI121: 1925 | AJ121: 496 | AK121: 443 | AL121: 11 | AM121: 1339 | AN121: 1510 | AO121: 69 | AP121: 625 | AQ121: 57 | AR121: 1834 | AS121: 553 | AT121: 644 | AU121: 322 | AV121: 267 | AW121: 142 | AX121: 6694 | AY121: 467 | AZ121: 0 | BA121: 2644 | BB121: 2705 | BC121: 483 | BD121: 1168 | BE121: 18 | BF121: 0
A122: 2010-01-01 | B122: Idaho | C122: 1550967 | D122: 1279856 | E122: 209272 | F122: 55638 | G122: 376 | H122: 3264 | I122: 3086 | J122: 45 | K122: 8932 | L122: 1372 | M122: 0 | N122: 0 | O122: 144 | P122: 612 | Q122: 313 | R122: 123 | S122: 0 | T122: 169 | U122: 132 | V122: 773 | W122: 422 | X122: 315 | Y122: 59 | Z122: 202 | AA122: 44 | AB122: 115 | AC122: 427 | AD122: 465 | AE122: 37 | AF122: 425 | AG122: 1509 | AH122: 0 | AI122: 2110 | AJ122: 109 | AK122: 97 | AL122: 694 | AM122: 155 | AN122: 134 | AO122: 96 | AP122: 325 | AQ122: 711 | AR122: 3202 | AS122: 172 | AT122: 0 | AU122: 0 | AV122: 296 | AW122: 1153 | AX122: 1746 | AY122: 8014 | AZ122: 0 | BA122: 611 | BB122: 10876 | BC122: 133 | BD122: 233 | BE122: 1410 | BF122: 233
A123: 2010-01-01 | B123: Illinois | C123: 12680126 | D123: 11009852 | E123: 1404525 | F123: 203959 | G123: 1397 | H123: 1764 | I123: 5921 | J123: 1194 | K123: 16205 | L123: 3850 | M123: 2264 | N123: 56 | O123: 1047 | P123: 8051 | Q123: 6781 | R123: 1224 | S123: 313 | T123: 0 | U123: 21918 | V123: 9141 | W123: 1970 | X123: 2921 | Y123: 1419 | Z123: 55 | AA123: 1985 | AB123: 2811 | AC123: 11865 | AD123: 4300 | AE123: 1093 | AF123: 16703 | AG123: 928 | AH123: 546 | AI123: 2541 | AJ123: 206 | AK123: 2331 | AL123: 996 | AM123: 8479 | AN123: 5504 | AO123: 1112 | AP123: 5103 | AQ123: 1459 | AR123: 1224 | AS123: 5190 | AT123: 838 | AU123: 1565 | AV123: 292 | AW123: 3999 | AX123: 12245 | AY123: 658 | AZ123: 260 | BA123: 3831 | BB123: 1642 | BC123: 812 | BD123: 15364 | BE123: 586 | BF123: 2055
A124: 2010-01-01 | B124: Indiana | C124: 6414862 | D124: 5431015 | E124: 833086 | F124: 127353 | G124: 1502 | H124: 177 | I124: 2210 | J124: 1548 | K124: 8959 | L124: 1362 | M124: 544 | N124: 0 | O124: 181 | P124: 5496 | Q124: 1623 | R124: 267 | S124: 772 | T124: 27950 | U124: 0 | V124: 1885 | W124: 1582 | X124: 10643 | Y124: 749 | Z124: 30 | AA124: 1641 | AB124: 103 | AC124: 9361 | AD124: 916 | AE124: 270 | AF124: 3893 | AG124: 164 | AH124: 705 | AI124: 227 | AJ124: 114 | AK124: 1876 | AL124: 188 | AM124: 2564 | AN124: 2828 | AO124: 0 | AP124: 13272 | AQ124: 681 | AR124: 423 | AS124: 2668 | AT124: 174 | AU124: 584 | AV124: 216 | AW124: 3093 | AX124: 6335 | AY124: 444 | AZ124: 45 | BA124: 3673 | BB124: 571 | BC124: 669 | BD124: 1762 | BE124: 413 | BF124: 572
A125: 2010-01-01 | B125: Iowa | C125: 3013053 | D125: 2553210 | E125: 375650 | F125: 72557 | G125: 330 | H125: 519 | I125: 1483 | J125: 247 | K125: 2847 | L125: 2554 | M125: 114 | N125: 0 | O125: 53 | P125: 1364 | Q125: 973 | R125: 866 | S125: 315 | T125: 17016 | U125: 1710 | V125: 0 | W125: 1520 | X125: 334 | Y125: 315 | Z125: 0 | AA125: 134 | AB125: 189 | AC125: 1439 | AD125: 7564 | AE125: 117 | AF125: 6031 | AG125: 836 | AH125: 4783 | AI125: 623 | AJ125: 381 | AK125: 472 | AL125: 492 | AM125: 273 | AN125: 1123 | AO125: 601 | AP125: 632 | AQ125: 679 | AR125: 1071 | AS125: 378 | AT125: 0 | AU125: 591 | AV125: 1992 | AW125: 1617 | AX125: 4131 | AY125: 146 | AZ125: 45 | BA125: 303 | BB125: 538 | BC125: 0 | BD125: 2705 | BE125: 111 | BF125: 149
A126: 2010-01-01 | B126: Kansas | C126: 2820894 | D126: 2341401 | E126: 372161 | F126: 95059 | G126: 44 | H126: 1050 | I126: 2238 | J126: 1596 | K126: 6125 | L126: 6022 | M126: 85 | N126: 238 | O126: 0 | P126: 2863 | Q126: 1916 | R126: 128 | S126: 398 | T126: 2943 | U126: 1544 | V126: 1875 | W126: 0 | X126: 1048 | Y126: 890 | Z126: 0 | AA126: 1369 | AB126: 100 | AC126: 806 | AD126: 1562 | AE126: 167 | AF126: 23384 | AG126: 289 | AH126: 2678 | AI126: 1318 | AJ126: 76 | AK126: 1743 | AL126: 873 | AM126: 2390 | AN126: 1083 | AO126: 225 | AP126: 1509 | AQ126: 7568 | AR126: 514 | AS126: 563 | AT126: 39 | AU126: 137 | AV126: 352 | AW126: 1152 | AX126: 9217 | AY126: 238 | AZ126: 75 | BA126: 1648 | BB126: 1175 | BC126: 0 | BD126: 1233 | BE126: 573 | BF126: 68
A127: 2010-01-01 | B127: Kentucky | C127: 4296639 | D127: 3638259 | E127: 519887 | F127: 118443 | G127: 2161 | H127: 3017 | I127: 2598 | J127: 558 | K127: 3779 | L127: 329 | M127: 698 | N127: 38 | O127: 147 | P127: 10119 | Q127: 6397 | R127: 520 | S127: 71 | T127: 4659 | U127: 11906 | V127: 656 | W127: 1109 | X127: 0 | Y127: 437 | Z127: 0 | AA127: 1395 | AB127: 1036 | AC127: 4672 | AD127: 930 | AE127: 1442 | AF127: 3153 | AG127: 0 | AH127: 858 | AI127: 76 | AJ127: 0 | AK127: 1147 | AL127: 122 | AM127: 2057 | AN127: 3758 | AO127: 0 | AP127: 15598 | AQ127: 1153 | AR127: 181 | AS127: 2618 | AT127: 289 | AU127: 1286 | AV127: 163 | AW127: 11153 | AX127: 5758 | AY127: 905 | AZ127: 525 | BA127: 3671 | BB127: 716 | BC127: 2297 | BD127: 1993 | BE127: 292 | BF127: 179
A128: 2010-01-01 | B128: Louisiana | C128: 4483529 | D128: 3826390 | E128: 547291 | F128: 97889 | G128: 5740 | H128: 1504 | I128: 1960 | J128: 2382 | K128: 5751 | L128: 1215 | M128: 89 | N128: 0 | O128: 264 | P128: 9394 | Q128: 5766 | R128: 342 | S128: 202 | T128: 2131 | U128: 948 | V128: 625 | W128: 706 | X128: 1656 | Y128: 0 | Z128: 162 | AA128: 963 | AB128: 995 | AC128: 1301 | AD128: 569 | AE128: 7032 | AF128: 2852 | AG128: 40 | AH128: 119 | AI128: 1552 | AJ128: 462 | AK128: 171 | AL128: 294 | AM128: 2161 | AN128: 1443 | AO128: 438 | AP128: 1100 | AQ128: 1074 | AR128: 281 | AS128: 1350 | AT128: 0 | AU128: 1130 | AV128: 0 | AW128: 1853 | AX128: 26134 | AY128: 473 | AZ128: 0 | BA128: 1278 | BB128: 1509 | BC128: 210 | BD128: 237 | BE128: 31 | BF128: 402
A129: 2010-01-01 | B129: Maine | C129: 1313902 | D129: 1136780 | E129: 146735 | F129: 27758 | G129: 402 | H129: 424 | I129: 254 | J129: 67 | K129: 1066 | L129: 478 | M129: 1361 | N129: 174 | O129: 55 | P129: 3025 | Q129: 844 | R129: 62 | S129: 0 | T129: 311 | U129: 259 | V129: 337 | W129: 56 | X129: 484 | Y129: 115 | Z129: 0 | AA129: 243 | AB129: 3521 | AC129: 122 | AD129: 91 | AE129: 0 | AF129: 201 | AG129: 275 | AH129: 204 | AI129: 345 | AJ129: 4058 | AK129: 902 | AL129: 234 | AM129: 2339 | AN129: 1001 | AO129: 55 | AP129: 315 | AQ129: 124 | AR129: 0 | AS129: 375 | AT129: 379 | AU129: 148 | AV129: 0 | AW129: 249 | AX129: 458 | AY129: 390 | AZ129: 420 | BA129: 654 | BB129: 381 | BC129: 0 | BD129: 0 | BE129: 500 | BF129: 204
A130: 2010-01-01 | B130: Maryland | C130: 5716785 | D130: 4917637 | E130: 588879 | F130: 164484 | G130: 1641 | H130: 2672 | I130: 1124 | J130: 273 | K130: 8206 | L130: 2501 | M130: 1603 | N130: 8340 | O130: 23202 | P130: 6564 | Q130: 3454 | R130: 422 | S130: 357 | T130: 3300 | U130: 431 | V130: 160 | W130: 781 | X130: 396 | Y130: 1376 | Z130: 53 | AA130: 0 | AB130: 1983 | AC130: 3572 | AD130: 820 | AE130: 403 | AF130: 1147 | AG130: 86 | AH130: 54 | AI130: 979 | AJ130: 1369 | AK130: 9058 | AL130: 238 | AM130: 10736 | AN130: 5787 | AO130: 0 | AP130: 3277 | AQ130: 607 | AR130: 723 | AS130: 13467 | AT130: 782 | AU130: 1710 | AV130: 49 | AW130: 2669 | AX130: 5883 | AY130: 655 | AZ130: 350 | BA130: 24765 | BB130: 1542 | BC130: 4363 | BD130: 324 | BE130: 230 | BF130: 612
A131: 2010-01-01 | B131: Massachusetts | C131: 6489250 | D131: 5583650 | E131: 706624 | F131: 140162 | G131: 583 | H131: 1891 | I131: 1572 | J131: 206 | K131: 14971 | L131: 1051 | M131: 13270 | N131: 131 | O131: 1539 | P131: 11118 | Q131: 1409 | R131: 682 | S131: 79 | T131: 2842 | U131: 1891 | V131: 307 | W131: 0 | X131: 340 | Y131: 0 | Z131: 4666 | AA131: 3660 | AB131: 0 | AC131: 1624 | AD131: 2185 | AE131: 453 | AF131: 1957 | AG131: 388 | AH131: 46 | AI131: 792 | AJ131: 9911 | AK131: 4709 | AL131: 161 | AM131: 20002 | AN131: 2798 | AO131: 0 | AP131: 2163 | AQ131: 158 | AR131: 228 | AS131: 5316 | AT131: 6965 | AU131: 1659 | AV131: 0 | AW131: 918 | AX131: 7073 | AY131: 207 | AZ131: 1526 | BA131: 4542 | BB131: 1627 | BC131: 0 | BD131: 546 | BE131: 0 | BF131: 3085
A132: 2010-01-01 | B132: Michigan | C132: 9762127 | D132: 8310098 | E132: 1291901 | F132: 116149 | G132: 2403 | H132: 1040 | I132: 3197 | J132: 636 | K132: 6726 | L132: 2031 | M132: 277 | N132: 167 | O132: 471 | P132: 11646 | Q132: 3913 | R132: 313 | S132: 66 | T132: 10651 | U132: 7816 | V132: 758 | W132: 640 | X132: 2353 | Y132: 1342 | Z132: 645 | AA132: 620 | AB132: 1206 | AC132: 0 | AD132: 1275 | AE132: 656 | AF132: 2921 | AG132: 312 | AH132: 213 | AI132: 1874 | AJ132: 437 | AK132: 1676 | AL132: 669 | AM132: 3135 | AN132: 2444 | AO132: 53 | AP132: 9783 | AQ132: 2276 | AR132: 537 | AS132: 3134 | AT132: 653 | AU132: 1446 | AV132: 706 | AW132: 4453 | AX132: 7184 | AY132: 545 | AZ132: 45 | BA132: 2073 | BB132: 1427 | BC132: 446 | BD132: 6291 | BE132: 568 | BF132: 1432
A133: 2010-01-01 | B133: Minnesota | C133: 5244256 | D133: 4480630 | E133: 647946 | F133: 89872 | G133: 266 | H133: 1169 | I133: 4165 | J133: 279 | K133: 6233 | L133: 2521 | M133: 211 | N133: 176 | O133: 306 | P133: 2575 | Q133: 1776 | R133: 227 | S133: 231 | T133: 6641 | U133: 1120 | V133: 4948 | W133: 1067 | X133: 402 | Y133: 519 | Z133: 172 | AA133: 1259 | AB133: 1092 | AC133: 2631 | AD133: 0 | AE133: 196 | AF133: 1549 | AG133: 1020 | AH133: 734 | AI133: 540 | AJ133: 183 | AK133: 513 | AL133: 151 | AM133: 1309 | AN133: 1673 | AO133: 7316 | AP133: 1035 | AQ133: 284 | AR133: 738 | AS133: 730 | AT133: 123 | AU133: 1597 | AV133: 3237 | AW133: 1155 | AX133: 2619 | AY133: 1013 | AZ133: 0 | BA133: 2371 | BB133: 1328 | BC133: 200 | BD133: 17929 | BE133: 343 | BF133: 39
A134: 2010-01-01 | B134: Mississippi | C134: 2931228 | D134: 2510729 | E134: 340266 | F134: 72321 | G134: 8306 | H134: 1192 | I134: 187 | J134: 4941 | K134: 3000 | L134: 1167 | M134: 71 | N134: 0 | O134: 0 | P134: 4814 | Q134: 4014 | R134: 276 | S134: 121 | T134: 3030 | U134: 1403 | V134: 114 | W134: 330 | X134: 407 | Y134: 7390 | Z134: 0 | AA134: 649 | AB134: 107 | AC134: 2495 | AD134: 863 | AE134: 0 | AF134: 959 | AG134: 314 | AH134: 0 | AI134: 408 | AJ134: 0 | AK134: 403 | AL134: 633 | AM134: 1026 | AN134: 2227 | AO134: 0 | AP134: 1312 | AQ134: 663 | AR134: 0 | AS134: 750 | AT134: 145 | AU134: 1860 | AV134: 56 | AW134: 8158 | AX134: 5755 | AY134: 232 | AZ134: 0 | BA134: 572 | BB134: 508 | BC134: 94 | BD134: 879 | BE134: 490 | BF134: 814
A135: 2010-01-01 | B135: Missouri | C135: 5920858 | D135: 4968921 | E135: 786726 | F135: 145226 | G135: 819 | H135: 1051 | I135: 2988 | J135: 4381 | K135: 9840 | L135: 1903 | M135: 243 | N135: 314 | O135: 478 | P135: 8317 | Q135: 2492 | R135: 380 | S135: 830 | T135: 21277 | U135: 3351 | V135: 4708 | W135: 23427 | X135: 2552 | Y135: 2238 | Z135: 171 | AA135: 1359 | AB135: 1395 | AC135: 2610 | AD135: 1701 | AE135: 1183 | AF135: 0 | AG135: 220 | AH135: 2636 | AI135: 1060 | AJ135: 108 | AK135: 1320 | AL135: 150 | AM135: 2630 | AN135: 1825 | AO135: 848 | AP135: 2163 | AQ135: 4647 | AR135: 314 | AS135: 1639 | AT135: 0 | AU135: 954 | AV135: 512 | AW135: 3311 | AX135: 12884 | AY135: 1319 | AZ135: 498 | BA135: 3206 | BB135: 1107 | BC135: 177 | BD135: 1331 | BE135: 359 | BF135: 867
A136: 2010-01-01 | B136: Montana | C136: 978507 | D136: 821709 | E136: 117752 | F136: 35630 | G136: 212 | H136: 650 | I136: 1909 | J136: 672 | K136: 5756 | L136: 2185 | M136: 128 | N136: 71 | O136: 0 | P136: 1373 | Q136: 46 | R136: 0 | S136: 1458 | T136: 1094 | U136: 251 | V136: 169 | W136: 60 | X136: 321 | Y136: 85 | Z136: 76 | AA136: 51 | AB136: 59 | AC136: 648 | AD136: 1323 | AE136: 242 | AF136: 564 | AG136: 0 | AH136: 340 | AI136: 548 | AJ136: 0 | AK136: 0 | AL136: 660 | AM136: 246 | AN136: 1072 | AO136: 1677 | AP136: 89 | AQ136: 182 | AR136: 1620 | AS136: 419 | AT136: 0 | AU136: 110 | AV136: 295 | AW136: 111 | AX136: 2101 | AY136: 964 | AZ136: 0 | BA136: 497 | BB136: 3250 | BC136: 0 | BD136: 357 | BE136: 1689 | BF136: 11
A137: 2010-01-01 | B137: Nebraska | C137: 1802697 | D137: 1497138 | E137: 247005 | F137: 51290 | G137: 232 | H137: 35 | I137: 2322 | J137: 674 | K137: 4430 | L137: 4182 | M137: 361 | N137: 177 | O137: 0 | P137: 1775 | Q137: 1202 | R137: 257 | S137: 127 | T137: 1820 | U137: 639 | V137: 5536 | W137: 2484 | X137: 153 | Y137: 89 | Z137: 0 | AA137: 77 | AB137: 100 | AC137: 726 | AD137: 2254 | AE137: 823 | AF137: 2723 | AG137: 112 | AH137: 0 | AI137: 232 | AJ137: 0 | AK137: 143 | AL137: 831 | AM137: 111 | AN137: 442 | AO137: 777 | AP137: 1232 | AQ137: 702 | AR137: 506 | AS137: 345 | AT137: 0 | AU137: 65 | AV137: 2936 | AW137: 77 | AX137: 4445 | AY137: 537 | AZ137: 0 | BA137: 772 | BB137: 1230 | BC137: 73 | BD137: 1046 | BE137: 1478 | BF137: 0
A138: 2010-01-01 | B138: Nevada | C138: 2667364 | D138: 2030410 | E138: 517261 | F138: 102677 | G138: 150 | H138: 511 | I138: 7818 | J138: 530 | K138: 35472 | L138: 2935 | M138: 648 | N138: 0 | O138: 0 | P138: 3579 | Q138: 1187 | R138: 4363 | S138: 1686 | T138: 1711 | U138: 739 | V138: 543 | W138: 453 | X138: 569 | Y138: 733 | Z138: 0 | AA138: 485 | AB138: 1275 | AC138: 2202 | AD138: 805 | AE138: 946 | AF138: 1747 | AG138: 770 | AH138: 1129 | AI138: 0 | AJ138: 59 | AK138: 1528 | AL138: 1220 | AM138: 1204 | AN138: 957 | AO138: 37 | AP138: 1554 | AQ138: 886 | AR138: 2629 | AS138: 1567 | AT138: 167 | AU138: 312 | AV138: 1203 | AW138: 706 | AX138: 5224 | AY138: 4500 | AZ138: 197 | BA138: 1832 | BB138: 3290 | BC138: 56 | BD138: 419 | BE138: 144 | BF138: 502
A139: 2010-01-01 | B139: New Hampshire | C139: 1303865 | D139: 1118359 | E139: 141213 | F139: 39367 | G139: 152 | H139: 0 | I139: 544 | J139: 0 | K139: 1692 | L139: 240 | M139: 3134 | N139: 0 | O139: 298 | P139: 1659 | Q139: 0 | R139: 51 | S139: 66 | T139: 850 | U139: 23 | V139: 109 | W139: 57 | X139: 0 | Y139: 19 | Z139: 3242 | AA139: 49 | AB139: 13752 | AC139: 230 | AD139: 240 | AE139: 25 | AF139: 295 | AG139: 486 | AH139: 0 | AI139: 95 | AJ139: 0 | AK139: 540 | AL139: 276 | AM139: 2462 | AN139: 471 | AO139: 0 | AP139: 28 | AQ139: 0 | AR139: 508 | AS139: 674 | AT139: 988 | AU139: 51 | AV139: 0 | AW139: 372 | AX139: 1570 | AY139: 279 | AZ139: 2566 | BA139: 745 | BB139: 261 | BC139: 0 | BD139: 268 | BE139: 0 | BF139: 56
A140: 2010-01-01 | B140: New Jersey | C140: 8709933 | D140: 7841470 | E140: 684482 | F140: 127369 | G140: 616 | H140: 383 | I140: 1625 | J140: 258 | K140: 8777 | L140: 807 | M140: 2503 | N140: 1543 | O140: 431 | P140: 9841 | Q140: 4588 | R140: 385 | S140: 91 | T140: 2656 | U140: 402 | V140: 332 | W140: 442 | X140: 91 | Y140: 249 | Z140: 95 | AA140: 4231 | AB140: 2626 | AC140: 1070 | AD140: 322 | AE140: 450 | AF140: 727 | AG140: 122 | AH140: 261 | AI140: 874 | AJ140: 705 | AK140: 0 | AL140: 421 | AM140: 41374 | AN140: 3052 | AO140: 0 | AP140: 1584 | AQ140: 32 | AR140: 613 | AS140: 22225 | AT140: 332 | AU140: 1134 | AV140: 0 | AW140: 852 | AX140: 3434 | AY140: 178 | AZ140: 57 | BA140: 2670 | BB140: 964 | BC140: 358 | BD140: 586 | BE140: 0 | BF140: 2732
A141: 2010-01-01 | B141: New Mexico | C141: 2039549 | D141: 1735950 | E141: 220663 | F141: 73605 | G141: 751 | H141: 969 | I141: 6117 | J141: 77 | K141: 6547 | L141: 2852 | M141: 25 | N141: 391 | O141: 56 | P141: 3259 | Q141: 1977 | R141: 122 | S141: 755 | T141: 526 | U141: 465 | V141: 0 | W141: 751 | X141: 739 | Y141: 65 | Z141: 94 | AA141: 1968 | AB141: 2076 | AC141: 1460 | AD141: 179 | AE141: 719 | AF141: 138 | AG141: 1003 | AH141: 530 | AI141: 4192 | AJ141: 79 | AK141: 160 | AL141: 0 | AM141: 784 | AN141: 1793 | AO141: 79 | AP141: 1712 | AQ141: 1182 | AR141: 1659 | AS141: 809 | AT141: 46 | AU141: 152 | AV141: 204 | AW141: 1269 | AX141: 18511 | AY141: 1601 | AZ141: 309 | BA141: 290 | BB141: 3004 | BC141: 0 | BD141: 407 | BE141: 752 | BF141: 632
A142: 2010-01-01 | B142: New York | C142: 19171916 | D142: 16976205 | E142: 1779540 | F142: 269427 | G142: 1310 | H142: 5070 | I142: 2649 | J142: 362 | K142: 25177 | L142: 3135 | M142: 15338 | N142: 2603 | O142: 1983 | P142: 30553 | Q142: 7676 | R142: 259 | S142: 198 | T142: 6533 | U142: 2497 | V142: 477 | W142: 1189 | X142: 804 | Y142: 1321 | Z142: 2270 | AA142: 5912 | AB142: 16855 | AC142: 4779 | AD142: 1649 | AE142: 872 | AF142: 1870 | AG142: 237 | AH142: 886 | AI142: 2077 | AJ142: 2636 | AK142: 35333 | AL142: 829 | AM142: 0 | AN142: 13322 | AO142: 0 | AP142: 6510 | AQ142: 2298 | AR142: 2284 | AS142: 20514 | AT142: 1913 | AU142: 7161 | AV142: 521 | AW142: 1730 | AX142: 9692 | AY142: 910 | AZ142: 2900 | BA142: 8881 | BB142: 2503 | BC142: 444 | BD142: 2354 | BE142: 151 | BF142: 6740
A143: 2010-01-01 | B143: North Carolina | C143: 9443000 | D143: 7982017 | E143: 1141001 | F143: 263256 | G143: 3044 | H143: 1618 | I143: 2847 | J143: 550 | K143: 16699 | L143: 1842 | M143: 3752 | N143: 479 | O143: 1691 | P143: 28983 | Q143: 15943 | R143: 1567 | S143: 724 | T143: 5657 | U143: 4132 | V143: 1077 | W143: 2192 | X143: 4419 | Y143: 2180 | Z143: 2259 | AA143: 9881 | AB143: 4052 | AC143: 5789 | AD143: 1839 | AE143: 1187 | AF143: 1932 | AG143: 230 | AH143: 516 | AI143: 698 | AJ143: 2130 | AK143: 7195 | AL143: 1186 | AM143: 19406 | AN143: 0 | AO143: 243 | AP143: 8661 | AQ143: 1453 | AR143: 1796 | AS143: 11155 | AT143: 97 | AU143: 23196 | AV143: 362 | AW143: 8685 | AX143: 14329 | AY143: 790 | AZ143: 350 | BA143: 25662 | BB143: 2874 | BC143: 3025 | BD143: 2012 | BE143: 870 | BF143: 1950
A144: 2010-01-01 | B144: North Dakota | C144: 665654 | D144: 556222 | E144: 75720 | F144: 30100 | G144: 109 | H144: 1066 | I144: 662 | J144: 168 | K144: 1411 | L144: 873 | M144: 30 | N144: 0 | O144: 175 | P144: 492 | Q144: 799 | R144: 53 | S144: 69 | T144: 39 | U144: 45 | V144: 289 | W144: 114 | X144: 97 | Y144: 374 | Z144: 0 | AA144: 121 | AB144: 52 | AC144: 298 | AD144: 12350 | AE144: 0 | AF144: 197 | AG144: 1236 | AH144: 328 | AI144: 382 | AJ144: 0 | AK144: 144 | AL144: 380 | AM144: 188 | AN144: 637 | AO144: 0 | AP144: 134 | AQ144: 108 | AR144: 313 | AS144: 392 | AT144: 0 | AU144: 0 | AV144: 1038 | AW144: 273 | AX144: 2513 | AY144: 462 | AZ144: 0 | BA144: 25 | BB144: 696 | BC144: 0 | BD144: 749 | BE144: 219 | BF144: 0
A145: 2010-01-01 | B145: Ohio | C145: 11405101 | D145: 9745227 | E145: 1453401 | F145: 172633 | G145: 1289 | H145: 1556 | I145: 4715 | J145: 434 | K145: 8997 | L145: 2859 | M145: 1307 | N145: 15 | O145: 972 | P145: 16495 | Q145: 9502 | R145: 436 | S145: 564 | T145: 7092 | U145: 9438 | V145: 1270 | W145: 1016 | X145: 9159 | Y145: 743 | Z145: 291 | AA145: 3828 | AB145: 3686 | AC145: 15130 | AD145: 2298 | AE145: 89 | AF145: 1171 | AG145: 460 | AH145: 1531 | AI145: 2240 | AJ145: 175 | AK145: 2465 | AL145: 515 | AM145: 5988 | AN145: 5985 | AO145: 26 | AP145: 0 | AQ145: 1228 | AR145: 342 | AS145: 12012 | AT145: 444 | AU145: 2479 | AV145: 207 | AW145: 4987 | AX145: 7465 | AY145: 485 | AZ145: 182 | BA145: 6769 | BB145: 2567 | BC145: 7814 | BD145: 1771 | BE145: 144 | BF145: 2140
A146: 2010-01-01 | B146: Oklahoma | C146: 3716264 | D146: 3065497 | E146: 528824 | F146: 106511 | G146: 1612 | H146: 1397 | I146: 2759 | J146: 5873 | K146: 9429 | L146: 3184 | M146: 68 | N146: 109 | O146: 0 | P146: 5438 | Q146: 3159 | R146: 773 | S146: 611 | T146: 2679 | U146: 957 | V146: 1108 | W146: 5024 | X146: 877 | Y146: 2208 | Z146: 298 | AA146: 382 | AB146: 465 | AC146: 1047 | AD146: 599 | AE146: 1733 | AF146: 4102 | AG146: 448 | AH146: 829 | AI146: 1079 | AJ146: 69 | AK146: 890 | AL146: 2723 | AM146: 1118 | AN146: 1991 | AO146: 139 | AP146: 1385 | AQ146: 0 | AR146: 398 | AS146: 1316 | AT146: 119 | AU146: 596 | AV146: 83 | AW146: 1872 | AX146: 28238 | AY146: 428 | AZ146: 93 | BA146: 2286 | BB146: 2035 | BC146: 221 | BD146: 551 | BE146: 1713 | BF146: 209
A147: 2010-01-01 | B147: Oregon | C147: 3794008 | D147: 3110896 | E147: 545841 | F147: 116700 | G147: 400 | H147: 2027 | I147: 5264 | J147: 246 | K147: 34190 | L147: 2050 | M147: 270 | N147: 0 | O147: 217 | P147: 2273 | Q147: 688 | R147: 2323 | S147: 4129 | T147: 1565 | U147: 317 | V147: 161 | W147: 678 | X147: 0 | Y147: 0 | Z147: 0 | AA147: 595 | AB147: 1471 | AC147: 1159 | AD147: 668 | AE147: 735 | AF147: 1786 | AG147: 3386 | AH147: 777 | AI147: 2805 | AJ147: 317 | AK147: 544 | AL147: 981 | AM147: 2538 | AN147: 1040 | AO147: 592 | AP147: 1541 | AQ147: 821 | AR147: 0 | AS147: 1689 | AT147: 0 | AU147: 989 | AV147: 741 | AW147: 787 | AX147: 3826 | AY147: 2879 | AZ147: 456 | BA147: 1124 | BB147: 22793 | BC147: 358 | BD147: 1981 | BE147: 523 | BF147: 821
A148: 2010-01-01 | B148: Pennsylvania | C148: 12577555 | D148: 11053022 | E148: 1239199 | F148: 235580 | G148: 369 | H148: 2185 | I148: 3668 | J148: 807 | K148: 12077 | L148: 3657 | M148: 4007 | N148: 4608 | O148: 1621 | P148: 18212 | Q148: 4644 | R148: 332 | S148: 380 | T148: 4490 | U148: 2018 | V148: 227 | W148: 1426 | X148: 1675 | Y148: 625 | Z148: 1621 | AA148: 18281 | AB148: 4455 | AC148: 4961 | AD148: 1491 | AE148: 563 | AF148: 1725 | AG148: 339 | AH148: 551 | AI148: 1810 | AJ148: 729 | AK148: 42456 | AL148: 1250 | AM148: 30481 | AN148: 7611 | AO148: 521 | AP148: 14545 | AQ148: 1254 | AR148: 918 | AS148: 0 | AT148: 377 | AU148: 1315 | AV148: 966 | AW148: 1611 | AX148: 7778 | AY148: 1048 | AZ148: 215 | BA148: 10558 | BB148: 2495 | BC148: 4258 | BD148: 1300 | BE148: 1069 | BF148: 6275
A149: 2010-01-01 | B149: Rhode Island | C149: 1042240 | D149: 900283 | E149: 99603 | F149: 32059 | G149: 136 | H149: 0 | I149: 324 | J149: 0 | K149: 1697 | L149: 59 | M149: 4090 | N149: 0 | O149: 146 | P149: 1336 | Q149: 382 | R149: 274 | S149: 0 | T149: 1210 | U149: 206 | V149: 48 | W149: 0 | X149: 0 | Y149: 0 | Z149: 447 | AA149: 977 | AB149: 8639 | AC149: 77 | AD149: 47 | AE149: 0 | AF149: 47 | AG149: 0 | AH149: 0 | AI149: 297 | AJ149: 333 | AK149: 1868 | AL149: 0 | AM149: 4583 | AN149: 1376 | AO149: 62 | AP149: 0 | AQ149: 199 | AR149: 0 | AS149: 560 | AT149: 0 | AU149: 61 | AV149: 48 | AW149: 71 | AX149: 678 | AY149: 0 | AZ149: 72 | BA149: 1399 | BB149: 160 | BC149: 150 | BD149: 0 | BE149: 0 | BF149: 276
A150: 2010-01-01 | B150: South Carolina | C150: 4577399 | D150: 3870879 | E150: 537961 | F150: 152441 | G150: 1741 | H150: 1670 | I150: 1457 | J150: 365 | K150: 4691 | L150: 1867 | M150: 3998 | N150: 249 | O150: 38 | P150: 16060 | Q150: 17486 | R150: 813 | S150: 233 | T150: 4253 | U150: 2174 | V150: 703 | W150: 514 | X150: 2211 | Y150: 2059 | Z150: 603 | AA150: 5184 | AB150: 3765 | AC150: 3709 | AD150: 818 | AE150: 1175 | AF150: 1371 | AG150: 0 | AH150: 0 | AI150: 1173 | AJ150: 486 | AK150: 4908 | AL150: 1390 | AM150: 7912 | AN150: 20749 | AO150: 118 | AP150: 3883 | AQ150: 1458 | AR150: 1020 | AS150: 4689 | AT150: 154 | AU150: 0 | AV150: 95 | AW150: 3816 | AX150: 4965 | AY150: 455 | AZ150: 478 | BA150: 9786 | BB150: 3070 | BC150: 1190 | BD150: 1057 | BE150: 382 | BF150: 269
A151: 2010-01-01 | B151: South Dakota | C151: 805616 | D151: 680993 | E151: 96805 | F151: 25777 | G151: 325 | H151: 25 | I151: 745 | J151: 61 | K151: 1338 | L151: 807 | M151: 0 | N151: 0 | O151: 0 | P151: 251 | Q151: 24 | R151: 75 | S151: 457 | T151: 80 | U151: 439 | V151: 3520 | W151: 571 | X151: 82 | Y151: 129 | Z151: 0 | AA151: 0 | AB151: 407 | AC151: 144 | AD151: 4615 | AE151: 201 | AF151: 252 | AG151: 560 | AH151: 2260 | AI151: 38 | AJ151: 0 | AK151: 0 | AL151: 38 | AM151: 758 | AN151: 262 | AO151: 2020 | AP151: 160 | AQ151: 296 | AR151: 122 | AS151: 209 | AT151: 0 | AU151: 0 | AV151: 0 | AW151: 0 | AX151: 1334 | AY151: 0 | AZ151: 0 | BA151: 224 | BB151: 1564 | BC151: 0 | BD151: 736 | BE151: 648 | BF151: 0
A152: 2010-01-01 | B152: Tennessee | C152: 6282706 | D152: 5299496 | E152: 801355 | F152: 159778 | G152: 8897 | H152: 343 | I152: 2291 | J152: 4736 | K152: 8019 | L152: 1858 | M152: 765 | N152: 248 | O152: 394 | P152: 14168 | Q152: 11065 | R152: 243 | S152: 333 | T152: 3162 | U152: 4764 | V152: 1052 | W152: 2506 | X152: 11188 | Y152: 2602 | Z152: 84 | AA152: 1450 | AB152: 1733 | AC152: 5529 | AD152: 1504 | AE152: 9029 | AF152: 4342 | AG152: 290 | AH152: 187 | AI152: 2433 | AJ152: 197 | AK152: 2230 | AL152: 621 | AM152: 4800 | AN152: 7102 | AO152: 0 | AP152: 4462 | AQ152: 669 | AR152: 430 | AS152: 2562 | AT152: 805 | AU152: 4765 | AV152: 63 | AW152: 0 | AX152: 8701 | AY152: 2062 | AZ152: 0 | BA152: 8650 | BB152: 1412 | BC152: 2201 | BD152: 2831 | BE152: 0 | BF152: 0
A153: 2010-01-01 | B153: Texas | C153: 24899075 | D153: 20500156 | E153: 3740344 | F153: 486558 | G153: 8636 | H153: 11613 | I153: 16521 | J153: 15251 | K153: 68959 | L153: 16361 | M153: 924 | N153: 704 | O153: 460 | P153: 26668 | Q153: 16671 | R153: 3718 | S153: 2033 | T153: 20169 | U153: 6985 | V153: 3946 | W153: 11598 | X153: 5153 | Y153: 31149 | Z153: 1318 | AA153: 4724 | AB153: 7139 | AC153: 13775 | AD153: 6088 | AE153: 7773 | AF153: 12061 | AG153: 1027 | AH153: 4893 | AI153: 8324 | AJ153: 1067 | AK153: 7058 | AL153: 11752 | AM153: 16624 | AN153: 12183 | AO153: 2452 | AP153: 8317 | AQ153: 22969 | AR153: 4373 | AS153: 7161 | AT153: 975 | AU153: 5249 | AV153: 1936 | AW153: 13044 | AX153: 0 | AY153: 4123 | AZ153: 52 | BA153: 13713 | BB153: 8847 | BC153: 2221 | BD153: 5927 | BE153: 1874 | BF153: 4180
A154: 2010-01-01 | B154: Utah | C154: 2724064 | D154: 2240636 | E154: 388410 | F154: 77780 | G154: 93 | H154: 1798 | I154: 8147 | J154: 316 | K154: 12187 | L154: 3987 | M154: 119 | N154: 0 | O154: 138 | P154: 2097 | Q154: 966 | R154: 932 | S154: 7692 | T154: 1831 | U154: 517 | V154: 483 | W154: 299 | X154: 235 | Y154: 46 | Z154: 148 | AA154: 426 | AB154: 246 | AC154: 261 | AD154: 914 | AE154: 127 | AF154: 1255 | AG154: 1929 | AH154: 118 | AI154: 4549 | AJ154: 0 | AK154: 247 | AL154: 518 | AM154: 1462 | AN154: 1167 | AO154: 0 | AP154: 1527 | AQ154: 886 | AR154: 2525 | AS154: 557 | AT154: 0 | AU154: 838 | AV154: 875 | AW154: 459 | AX154: 5305 | AY154: 0 | AZ154: 297 | BA154: 3005 | BB154: 3792 | BC154: 0 | BD154: 338 | BE154: 2126 | BF154: 383
A155: 2010-01-01 | B155: Vermont | C155: 619363 | D155: 534975 | E155: 59032 | F155: 22529 | G155: 0 | H155: 184 | I155: 65 | J155: 0 | K155: 1001 | L155: 326 | M155: 1287 | N155: 87 | O155: 9 | P155: 2063 | Q155: 496 | R155: 49 | S155: 0 | T155: 370 | U155: 0 | V155: 91 | W155: 0 | X155: 176 | Y155: 0 | Z155: 824 | AA155: 300 | AB155: 3599 | AC155: 201 | AD155: 85 | AE155: 0 | AF155: 51 | AG155: 236 | AH155: 0 | AI155: 58 | AJ155: 2760 | AK155: 751 | AL155: 0 | AM155: 4056 | AN155: 539 | AO155: 30 | AP155: 50 | AQ155: 0 | AR155: 100 | AS155: 524 | AT155: 227 | AU155: 134 | AV155: 153 | AW155: 125 | AX155: 565 | AY155: 0 | AZ155: 0 | BA155: 400 | BB155: 128 | BC155: 0 | BD155: 377 | BE155: 52 | BF155: 0
A156: 2010-01-01 | B156: Virginia | C156: 7930773 | D156: 6752310 | E156: 870491 | F156: 259507 | G156: 2671 | H156: 3296 | I156: 3807 | J156: 1233 | K156: 17088 | L156: 3229 | M156: 2468 | N156: 1265 | O156: 10593 | P156: 18165 | Q156: 11927 | R156: 2347 | S156: 1159 | T156: 7576 | U156: 2892 | V156: 1135 | W156: 2103 | X156: 2051 | Y156: 2148 | Z156: 1494 | AA156: 24822 | AB156: 4104 | AC156: 5733 | AD156: 462 | AE156: 1858 | AF156: 4262 | AG156: 866 | AH156: 523 | AI156: 748 | AJ156: 372 | AK156: 6825 | AL156: 1098 | AM156: 17525 | AN156: 23829 | AO156: 201 | AP156: 7708 | AQ156: 781 | AR156: 2137 | AS156: 11796 | AT156: 1543 | AU156: 8339 | AV156: 98 | AW156: 5842 | AX156: 12938 | AY156: 1551 | AZ156: 676 | BA156: 0 | BB156: 4373 | BC156: 6779 | BD156: 2648 | BE156: 423 | BF156: 1306
A157: 2010-01-01 | B157: Washington | C157: 6661321 | D157: 5464985 | E157: 946923 | F157: 191784 | G157: 1322 | H157: 5644 | I157: 5971 | J157: 658 | K157: 39468 | L157: 4883 | M157: 642 | N157: 202 | O157: 243 | P157: 5378 | Q157: 3107 | R157: 4246 | S157: 12661 | T157: 3931 | U157: 1912 | V157: 1685 | W157: 1694 | X157: 886 | Y157: 1011 | Z157: 717 | AA157: 629 | AB157: 1448 | AC157: 2871 | AD157: 1323 | AE157: 737 | AF157: 3727 | AG157: 5094 | AH157: 323 | AI157: 5310 | AJ157: 282 | AK157: 721 | AL157: 1012 | AM157: 4140 | AN157: 2143 | AO157: 515 | AP157: 2727 | AQ157: 1986 | AR157: 26235 | AS157: 2893 | AT157: 220 | AU157: 3047 | AV157: 866 | AW157: 789 | AX157: 11338 | AY157: 4020 | AZ157: 981 | BA157: 7266 | BB157: 0 | BC157: 62 | BD157: 2180 | BE157: 638 | BF157: 0
A158: 2010-01-01 | B158: West Virginia | C158: 1833535 | D158: 1625125 | E158: 166168 | F158: 39609 | G158: 41 | H158: 1326 | I158: 0 | J158: 0 | K158: 760 | L158: 608 | M158: 84 | N158: 556 | O158: 480 | P158: 1842 | Q158: 485 | R158: 0 | S158: 88 | T158: 356 | U158: 366 | V158: 0 | W158: 161 | X158: 851 | Y158: 60 | Z158: 0 | AA158: 4249 | AB158: 191 | AC158: 657 | AD158: 0 | AE158: 44 | AF158: 160 | AG158: 39 | AH158: 0 | AI158: 25 | AJ158: 107 | AK158: 906 | AL158: 0 | AM158: 611 | AN158: 2552 | AO158: 268 | AP158: 7925 | AQ158: 229 | AR158: 0 | AS158: 4908 | AT158: 238 | AU158: 647 | AV158: 0 | AW158: 1160 | AX158: 968 | AY158: 112 | AZ158: 208 | BA158: 4999 | BB158: 192 | BC158: 0 | BD158: 150 | BE158: 0 | BF158: 182
A159: 2010-01-01 | B159: Wisconsin | C159: 5623196 | D159: 4824045 | E159: 691592 | F159: 93065 | G159: 552 | H159: 798 | I159: 1854 | J159: 518 | K159: 4506 | L159: 1890 | M159: 359 | N159: 351 | O159: 98 | P159: 4492 | Q159: 1656 | R159: 550 | S159: 902 | T159: 20299 | U159: 2563 | V159: 2300 | W159: 752 | X159: 287 | Y159: 331 | Z159: 448 | AA159: 1088 | AB159: 992 | AC159: 6317 | AD159: 16741 | AE159: 810 | AF159: 1716 | AG159: 154 | AH159: 853 | AI159: 1049 | AJ159: 69 | AK159: 632 | AL159: 123 | AM159: 1291 | AN159: 1817 | AO159: 497 | AP159: 1674 | AQ159: 89 | AR159: 1444 | AS159: 2211 | AT159: 0 | AU159: 1142 | AV159: 235 | AW159: 856 | AX159: 3039 | AY159: 476 | AZ159: 75 | BA159: 771 | BB159: 1013 | BC159: 256 | BD159: 0 | BE159: 129 | BF159: 521
A160: 2010-01-01 | B160: Wyoming | C160: 556954 | D160: 444614 | E160: 82255 | F160: 28046 | G160: 172 | H160: 0 | I160: 1511 | J160: 0 | K160: 2784 | L160: 4390 | M160: 0 | N160: 0 | O160: 0 | P160: 396 | Q160: 745 | R160: 25 | S160: 942 | T160: 415 | U160: 132 | V160: 462 | W160: 532 | X160: 519 | Y160: 107 | Z160: 0 | AA160: 51 | AB160: 252 | AC160: 570 | AD160: 218 | AE160: 0 | AF160: 421 | AG160: 2528 | AH160: 1711 | AI160: 416 | AJ160: 0 | AK160: 0 | AL160: 707 | AM160: 146 | AN160: 34 | AO160: 233 | AP160: 56 | AQ160: 62 | AR160: 14 | AS160: 95 | AT160: 0 | AU160: 220 | AV160: 258 | AW160: 495 | AX160: 1990 | AY160: 3226 | AZ160: 75 | BA160: 580 | BB160: 556 | BC160: 0 | BD160: 0 | BE160: 0 | BF160: 0
A161: 2010-01-01 | B161: Puerto Rico | C161: 3676493 | D161: 3392179 | E161: 247593 | F161: 31732 | G161: 629 | H161: 156 | I161: 288 | J161: 0 | K161: 1177 | L161: 388 | M161: 899 | N161: 0 | O161: 0 | P161: 11262 | Q161: 207 | R161: 0 | S161: 0 | T161: 1642 | U161: 109 | V161: 0 | W161: 112 | X161: 254 | Y161: 109 | Z161: 0 | AA161: 59 | AB161: 2004 | AC161: 89 | AD161: 50 | AE161: 170 | AF161: 221 | AG161: 0 | AH161: 0 | AI161: 0 | AJ161: 0 | AK161: 1244 | AL161: 364 | AM161: 4768 | AN161: 146 | AO161: 0 | AP161: 69 | AQ161: 0 | AR161: 0 | AS161: 1516 | AT161: 684 | AU161: 109 | AV161: 0 | AW161: 30 | AX161: 977 | AY161: 882 | AZ161: 0 | BA161: 392 | BB161: 0 | BC161: 141 | BD161: 585 | BE161: 0 | BF161: 0

Sheet Calc
A1: StartYear | B1: 2010 | D1: ListStates | F1: ListReports | H1: ListState1Pivots | I1: MigrationPivots | K1: ListState1Charts | L1: State1BarCharts | M1: State1MigrationCharts | O1: ListPivotFields | Q1: FilterSettings
A2: EndYear | B2: 2012 | D2: United States | F2: Population | H2: pvtState1Population | I2: pvtStateMigration | K2: chrtState1Population | L2: chrtState1PopulationBar | M2: chrtState1Migration | O2: State of Residence | Q2: Pivot Table | R2: State | S2: Start Date | T2: End Date
A3: StartDate | B3: =DATE(StartYear,1,1) -> 2010-01-01 | D3: Alabama | F3: State Migration | H3: pvtState1SameResidence | I3: pvtStateMigration | K3: chrtState1SameResidence | L3: chrtState1SameResidenceBar | M3: chrtState1Migration | Q3: pvtState1Population | R3: United States | S3: 2010-01-01 | T3: 2012-01-01
A4: EndDate | B4: =DATE(EndYear,1,1) -> 2012-01-01 | D4: Alaska | H4: pvtState1ChangedResidence | I4: pvtStateMigration | K4: chrtState1ChangedResidence | L4: chrtState1ChangedResidenceBar | M4: chrtState1Migration | Q4: pvtState1SameResidence | R4: Arizona | S4: 2010-01-01 | T4: 2012-01-01
A5: MinDate | B5: =MIN(CensusData[Year]) -> 2010-01-01 | D5: Arizona | Q5: pvtState1ChangedResidence | R5: Arizona | S5: 2010-01-01 | T5: 2011-01-01
A6: MaxDate | B6: =MAX(CensusData[Year]) -> 2012-01-01 | D6: Arkansas | Q6: pvtState2Population | R6: Oregon | S6: 2010-01-01 | T6: 2012-01-01
A7: ComboDate | B7: =StartYear&" - "&EndYear -> 2010 - 2012 | D7: California | Q7: pvtState2SameResidence | R7: Pennsylvania | S7: 2010-01-01 | T7: 2012-01-01
A8: Report | B8: 1 | D8: Colorado | Q8: pvtState2ChangedResidence | R8: Pennsylvania | S8: 2010-01-01 | T8: 2012-01-01
A9: ReportName | B9: =INDEX(ListReports[ListReports],Report,1) -> Population | D9: Connecticut | Q9: pvtStateMigration | S9: 2010-01-01 | T9: 2012-01-01
A10: PivotFieldName | B10: =INDEX(ListPivotFields[ListPivotFields],Report,1) -> State of Residence | D10: Delaware
A11: State | B11: 1 | D11: District of Columbia | H11: ListState2Pivots | I11: MigrationPivots | K11: ListState2Charts | L11: State2BarCharts | M11: State2MigrationCharts
A12: StateName | B12: =INDEX(ListStates[ListStates],State,1) -> United States | D12: Florida | H12: pvtState2Population | I12: pvtStateMigration | K12: chrtState2Population | L12: chrtState2PopulationBar | M12: chrtState2Migration | Q12: State1Stats
A13: State2 | B13: 39 | D13: Georgia | H13: pvtState2SameResidence | I13: pvtStateMigration | K13: chrtState2SameResidence | L13: chrtState2SameResidenceBar | M13: chrtState2Migration | Q13: State | R13: Avg Population | S13: Population Growth | T13: Same Residence | U13: Same Residence Growth | V13: Changed Residence | W13: Changed Residence Growth | X13: Same Residence Percentage | Y13: Changed Residence Percentage
A14: StateName2 | B14: =INDEX(ListStates[],State2,1) -> Oregon | D14: Hawaii | H14: pvtState2ChangedResidence | I14: pvtStateMigration | K14: chrtState2ChangedResidence | L14: chrtState2ChangedResidenceBar | M14: chrtState2Migration | Q14: =StateName -> United States | R14: =AVERAGEIFS(CensusData[Population],CensusData[State of Residence],[State],CensusData[Year],">="&StartDate,CensusData[Year],"<="&EndDate) -> 307913893.7 | S14: =SUMIFS(CensusData[Population],CensusData[State of Residence],[State],CensusData[Year],EndDate)-SUMIFS(CensusData[Population],CensusData[State of Residence],[State],CensusData[Year],StartDate) -> 4584148 | T14: =AVERAGEIFS(CensusData[Same Residence Last Yr],CensusData[State of Residence],[State],CensusData[Year],">="&StartDate,CensusData[Year],"<="&EndDate) -> 261084289.7 | U14: =SUMIFS(CensusData[Same Residence Last Yr],CensusData[State of Residence],[State],CensusData[Year],EndDate)-SUMIFS(CensusData[Same Residence Last Yr],CensusData[State of Residence],[State],CensusData[Year],StartDate) -> 5060248 | V14: =AVERAGEIFS(CensusData[Changed Residence Last Yr],CensusData[State of Residence],[State],CensusData[Year],">="&StartDate,CensusData[Year],"<="&EndDate) -> 38092727.67 | W14: =SUMIFS(CensusData[Changed Residence Last Yr],CensusData[State of Residence],[State],CensusData[Year],EndDate)-SUMIFS(CensusData[Changed Residence Last Yr],CensusData[State of Residence],[State],CensusData[Year],StartDate) -> -886288 | X14: =[Same Residence]/[Avg Population] -> 0.8479133129 | Y14: =[Changed Residence]/[Avg Population] -> 0.123712273
A15: ChartOffset | B15: =IF(Report=2,1,IF(EndYear-StartYear=0,1,0)) -> 0 | D15: Idaho
A16: State1Pivot | B16: 1 | D16: Illinois | Q16: State2Stats
A17: State1PivotName | B17: =INDEX(ListState1Pivots[],State1Pivot,Report) -> pvtState1Population | D17: Indiana | Q17: State | R17: Avg Population | S17: Population Growth | T17: Same Residence | U17: Same Residence Growth | V17: Changed Residence | W17: Changed Residence Growth | X17: Same Residence Percentage | Y17: Changed Residence Percentage
A18: State1ChartName | B18: =INDEX(ListState1Charts[],State1Pivot,Report+ChartOffset) -> chrtState1Population | D18: Iowa | Q18: =StateName2 -> Oregon | R18: =AVERAGEIFS(CensusData[Population],CensusData[State of Residence],[State],CensusData[Year],">="&StartDate,CensusData[Year],"<="&EndDate) -> 3826729 | S18: =SUMIFS(CensusData[Population],CensusData[State of Residence],[State],CensusData[Year],EndDate)-SUMIFS(CensusData[Population],CensusData[State of Residence],[State],CensusData[Year],StartDate) -> 63457 | T18: =AVERAGEIFS(CensusData[Same Residence Last Yr],CensusData[State of Residence],[State],CensusData[Year],">="&StartDate,CensusData[Year],"<="&EndDate) -> 3132489 | U18: =SUMIFS(CensusData[Same Residence Last Yr],CensusData[State of Residence],[State],CensusData[Year],EndDate)-SUMIFS(CensusData[Same Residence Last Yr],CensusData[State of Residence],[State],CensusData[Year],StartDate) -> 47554 | V18: =AVERAGEIFS(CensusData[Changed Residence Last Yr],CensusData[State of Residence],[State],CensusData[Year],">="&StartDate,CensusData[Year],"<="&EndDate) -> 551948.6667 | W18: =SUMIFS(CensusData[Changed Residence Last Yr],CensusData[State of Residence],[State],CensusData[Year],EndDate)-SUMIFS(CensusData[Changed Residence Last Yr],CensusData[State of Residence],[State],CensusData[Year],StartDate) -> 14832 | X18: =[Same Residence]/[Avg Population] -> 0.8185813524 | Y18: =[Changed Residence]/[Avg Population] -> 0.144235107
A19: State1ChartLabel | B19: =CHOOSE(State1Pivot,"Average Population","No Change in Residence","Changed Residence") -> Average Population | D19: Kansas
A20: State2Pivot | B20: 1 | D20: Kentucky
A21: State2PivotName | B21: =INDEX(ListState2Pivots[],State2Pivot,Report) -> pvtState2Population | D21: Louisiana | Q21: State1Migration
A22: State2ChartName | B22: =INDEX(ListState2Charts[],State2Pivot,Report+ChartOffset) -> chrtState2Population | D22: Maine | Q22: State | R22: Alabama | S22: Alaska | T22: Arizona | U22: Arkansas | V22: California | W22: Colorado | X22: Connecticut | Y22: Delaware | Z22: District of Columbia | AA22: Florida | AB22: Georgia | AC22: Hawaii | AD22: Idaho | AE22: Illinois | AF22: Indiana | AG22: Iowa | AH22: Kansas | AI22: Kentucky | AJ22: Louisiana | AK22: Maine | AL22: Maryland | AM22: Massachusetts | AN22: Michigan | AO22: Minnesota | AP22: Mississippi | AQ22: Missouri | AR22: Montana | AS22: Nebraska | AT22: Nevada | AU22: New Hampshire | AV22: New Jersey | AW22: New Mexico | AX22: New York | AY22: North Carolina | AZ22: North Dakota | BA22: Ohio | BB22: Oklahoma | BC22: Oregon | BD22: Pennsylvania | BE22: Rhode Island | BF22: South Carolina | BG22: South Dakota | BH22: Tennessee | BI22: Texas | BJ22: Utah | BK22: Vermont | BL22: Virginia | BM22: Washington | BN22: West Virginia | BO22: Wisconsin | BP22: Wyoming | BQ22: Puerto Rico
A23: State2ChartLabel | B23: =CHOOSE(State2Pivot,"Average Population","No Change in Residence","Changed Residence") -> Average Population | D23: Maryland | Q23: =StateName -> United States | R23: =GETPIVOTDATA(R22&"",Pivots!$BE$3,"State of Residence",StateName) -> 105079 | S23: =GETPIVOTDATA(S22&"",Pivots!$BE$3,"State of Residence",StateName) -> 89203.33333 | T23: =GETPIVOTDATA(T22&"",Pivots!$BE$3,"State of Residence",StateName) -> 198475.3333 | U23: =GETPIVOTDATA(U22&"",Pivots!$BE$3,"State of Residence",StateName) -> 68819 | V23: =GETPIVOTDATA(V22&"",Pivots!$BE$3,"State of Residence",StateName) -> 567772.3333 | W23: =GETPIVOTDATA(W22&"",Pivots!$BE$3,"State of Residence",StateName) -> 154257.6667 | X23: =GETPIVOTDATA(X22&"",Pivots!$BE$3,"State of Residence",StateName) -> 89226 | Y23: =GETPIVOTDATA(Y22&"",Pivots!$BE$3,"State of Residence",StateName) -> 27278.33333 | Z23: =GETPIVOTDATA(Z22&"",Pivots!$BE$3,"State of Residence",StateName) -> 55099 | AA23: =GETPIVOTDATA(AA22&"",Pivots!$BE$3,"State of Residence",StateName) -> 431126.6667 | AB23: =GETPIVOTDATA(AB22&"",Pivots!$BE$3,"State of Residence",StateName) -> 248715.3333 | AC23: =GETPIVOTDATA(AC22&"",Pivots!$BE$3,"State of Residence",StateName) -> 57555.66667 | AD23: =GETPIVOTDATA(AD22&"",Pivots!$BE$3,"State of Residence",StateName) -> 55381.33333 | AE23: =GETPIVOTDATA(AE22&"",Pivots!$BE$3,"State of Residence",StateName) -> 274846.6667 | AF23: =GETPIVOTDATA(AF22&"",Pivots!$BE$3,"State of Residence",StateName) -> 139331.6667 | AG23: =GETPIVOTDATA(AG22&"",Pivots!$BE$3,"State of Residence",StateName) -> 71587.66667 | AH23: =GETPIVOTDATA(AH22&"",Pivots!$BE$3,"State of Residence",StateName) -> 92665 | AI23: =GETPIVOTDATA(AI22&"",Pivots!$BE$3,"State of Residence",StateName) -> 98419.66667 | AJ23: =GETPIVOTDATA(AJ22&"",Pivots!$BE$3,"State of Residence",StateName) -> 90226.66667 | AK23: =GETPIVOTDATA(AK22&"",Pivots!$BE$3,"State of Residence",StateName) -> 34837.33333 | AL23: =GETPIVOTDATA(AL22&"",Pivots!$BE$3,"State of Residence",StateName) -> 160857 | AM23: =GETPIVOTDATA(AM22&"",Pivots!$BE$3,"State of Residence",StateName) -> 149392.3333 | AN23: =GETPIVOTDATA(AN22&"",Pivots!$BE$3,"State of Residence",StateName) -> 180148.3333 | AO23: =GETPIVOTDATA(AO22&"",Pivots!$BE$3,"State of Residence",StateName) -> 107988 | AP23: =GETPIVOTDATA(AP22&"",Pivots!$BE$3,"State of Residence",StateName) -> 67969 | AQ23: =GETPIVOTDATA(AQ22&"",Pivots!$BE$3,"State of Residence",StateName) -> 143071 | AR23: =GETPIVOTDATA(AR22&"",Pivots!$BE$3,"State of Residence",StateName) -> 33635.33333 | AS23: =GETPIVOTDATA(AS22&"",Pivots!$BE$3,"State of Residence",StateName) -> 48385.33333 | AT23: =GETPIVOTDATA(AT22&"",Pivots!$BE$3,"State of Residence",StateName) -> 108078 | AU23: =GETPIVOTDATA(AU22&"",Pivots!$BE$3,"State of Residence",StateName) -> 40124 | AV23: =GETPIVOTDATA(AV22&"",Pivots!$BE$3,"State of Residence",StateName) -> 209847.6667 | AW23: =GETPIVOTDATA(AW22&"",Pivots!$BE$3,"State of Residence",StateName) -> 58596.66667 | AX23: =GETPIVOTDATA(AX22&"",Pivots!$BE$3,"State of Residence",StateName) -> 382267.6667 | AY23: =GETPIVOTDATA(AY22&"",Pivots!$BE$3,"State of Residence",StateName) -> 223611.6667 | AZ23: =GETPIVOTDATA(AZ22&"",Pivots!$BE$3,"State of Residence",StateName) -> 24990.66667 | BA23: =GETPIVOTDATA(BA22&"",Pivots!$BE$3,"State of Residence",StateName) -> 197754.6667 | BB23: =GETPIVOTDATA(BB22&"",Pivots!$BE$3,"State of Residence",StateName) -> 91399 | BC23: =GETPIVOTDATA(BC22&"",Pivots!$BE$3,"State of Residence",StateName) -> 106054 | BD23: =GETPIVOTDATA(BD22&"",Pivots!$BE$3,"State of Residence",StateName) -> 220697.6667 | BE23: =GETPIVOTDATA(BE22&"",Pivots!$BE$3,"State of Residence",StateName) -> 28837 | BF23: =GETPIVOTDATA(BF22&"",Pivots!$BE$3,"State of Residence",StateName) -> 122137.6667 | BG23: =GETPIVOTDATA(BG22&"",Pivots!$BE$3,"State of Residence",StateName) -> 26610.66667 | BH23: =GETPIVOTDATA(BH22&"",Pivots!$BE$3,"State of Residence",StateName) -> 153740.3333 | BI23: =GETPIVOTDATA(BI22&"",Pivots!$BE$3,"State of Residence",StateName) -> 406222.3333 | BJ23: =GETPIVOTDATA(BJ22&"",Pivots!$BE$3,"State of Residence",StateName) -> 76972.33333 | BK23: =GETPIVOTDATA(BK22&"",Pivots!$BE$3,"State of Residence",StateName) -> 18869.33333 | BL23: =GETPIVOTDATA(BL22&"",Pivots!$BE$3,"State of Residence",StateName) -> 233256.3333 | BM23: =GETPIVOTDATA(BM22&"",Pivots!$BE$3,"State of Residence",StateName) -> 179089.3333 | BN23: =GETPIVOTDATA(BN22&"",Pivots!$BE$3,"State of Residence",StateName) -> 47576.66667 | BO23: =GETPIVOTDATA(BO22&"",Pivots!$BE$3,"State of Residence",StateName) -> 104778 | BP23: =GETPIVOTDATA(BP22&"",Pivots!$BE$3,"State of Residence",StateName) -> 30801.66667 | BQ23: =GETPIVOTDATA(BQ22&"",Pivots!$BE$3,"State of Residence",StateName) -> 70201
D24: Massachusetts
D25: Michigan | Q25: State2Migration
D26: Minnesota | Q26: State | R26: Alabama | S26: Alaska | T26: Arizona | U26: Arkansas | V26: California | W26: Colorado | X26: Connecticut | Y26: Delaware | Z26: District of Columbia | AA26: Florida | AB26: Georgia | AC26: Hawaii | AD26: Idaho | AE26: Illinois | AF26: Indiana | AG26: Iowa | AH26: Kansas | AI26: Kentucky | AJ26: Louisiana | AK26: Maine | AL26: Maryland | AM26: Massachusetts | AN26: Michigan | AO26: Minnesota | AP26: Mississippi | AQ26: Missouri | AR26: Montana | AS26: Nebraska | AT26: Nevada | AU26: New Hampshire | AV26: New Jersey | AW26: New Mexico | AX26: New York | AY26: North Carolina | AZ26: North Dakota | BA26: Ohio | BB26: Oklahoma | BC26: Oregon | BD26: Pennsylvania | BE26: Rhode Island | BF26: South Carolina | BG26: South Dakota | BH26: Tennessee | BI26: Texas | BJ26: Utah | BK26: Vermont | BL26: Virginia | BM26: Washington | BN26: West Virginia | BO26: Wisconsin | BP26: Wyoming | BQ26: Puerto Rico
D27: Mississippi | Q27: =StateName2 -> Oregon | R27: =GETPIVOTDATA(R26&"",Pivots!$BE$3,"State of Residence",StateName2) -> 510.3333333 | S27: =GETPIVOTDATA(S26&"",Pivots!$BE$3,"State of Residence",StateName2) -> 2158.333333 | T27: =GETPIVOTDATA(T26&"",Pivots!$BE$3,"State of Residence",StateName2) -> 7043 | U27: =GETPIVOTDATA(U26&"",Pivots!$BE$3,"State of Residence",StateName2) -> 466.3333333 | V27: =GETPIVOTDATA(V26&"",Pivots!$BE$3,"State of Residence",StateName2) -> 33422 | W27: =GETPIVOTDATA(W26&"",Pivots!$BE$3,"State of Residence",StateName2) -> 2877.333333 | X27: =GETPIVOTDATA(X26&"",Pivots!$BE$3,"State of Residence",StateName2) -> 533.3333333 | Y27: =GETPIVOTDATA(Y26&"",Pivots!$BE$3,"State of Residence",StateName2) -> 83.66666667 | Z27: =GETPIVOTDATA(Z26&"",Pivots!$BE$3,"State of Residence",StateName2) -> 420.6666667 | AA27: =GETPIVOTDATA(AA26&"",Pivots!$BE$3,"State of Residence",StateName2) -> 2439 | AB27: =GETPIVOTDATA(AB26&"",Pivots!$BE$3,"State of Residence",StateName2) -> 1222 | AC27: =GETPIVOTDATA(AC26&"",Pivots!$BE$3,"State of Residence",StateName2) -> 2438.333333 | AD27: =GETPIVOTDATA(AD26&"",Pivots!$BE$3,"State of Residence",StateName2) -> 5152.666667 | AE27: =GETPIVOTDATA(AE26&"",Pivots!$BE$3,"State of Residence",StateName2) -> 1530.333333 | AF27: =GETPIVOTDATA(AF26&"",Pivots!$BE$3,"State of Residence",StateName2) -> 1022.666667 | AG27: =GETPIVOTDATA(AG26&"",Pivots!$BE$3,"State of Residence",StateName2) -> 551.3333333 | AH27: =GETPIVOTDATA(AH26&"",Pivots!$BE$3,"State of Residence",StateName2) -> 832.3333333 | AI27: =GETPIVOTDATA(AI26&"",Pivots!$BE$3,"State of Residence",StateName2) -> 91 | AJ27: =GETPIVOTDATA(AJ26&"",Pivots!$BE$3,"State of Residence",StateName2) -> 75.66666667 | AK27: =GETPIVOTDATA(AK26&"",Pivots!$BE$3,"State of Residence",StateName2) -> 238.3333333 | AL27: =GETPIVOTDATA(AL26&"",Pivots!$BE$3,"State of Residence",StateName2) -> 501.6666667 | AM27: =GETPIVOTDATA(AM26&"",Pivots!$BE$3,"State of Residence",StateName2) -> 1218 | AN27: =GETPIVOTDATA(AN26&"",Pivots!$BE$3,"State of Residence",StateName2) -> 1127 | AO27: =GETPIVOTDATA(AO26&"",Pivots!$BE$3,"State of Residence",StateName2) -> 1291 | AP27: =GETPIVOTDATA(AP26&"",Pivots!$BE$3,"State of Residence",StateName2) -> 309.3333333 | AQ27: =GETPIVOTDATA(AQ26&"",Pivots!$BE$3,"State of Residence",StateName2) -> 1120.333333 | AR27: =GETPIVOTDATA(AR26&"",Pivots!$BE$3,"State of Residence",StateName2) -> 2219 | AS27: =GETPIVOTDATA(AS26&"",Pivots!$BE$3,"State of Residence",StateName2) -> 557 | AT27: =GETPIVOTDATA(AT26&"",Pivots!$BE$3,"State of Residence",StateName2) -> 5320.666667 | AU27: =GETPIVOTDATA(AU26&"",Pivots!$BE$3,"State of Residence",StateName2) -> 261 | AV27: =GETPIVOTDATA(AV26&"",Pivots!$BE$3,"State of Residence",StateName2) -> 750.3333333 | AW27: =GETPIVOTDATA(AW26&"",Pivots!$BE$3,"State of Residence",StateName2) -> 812.6666667 | AX27: =GETPIVOTDATA(AX26&"",Pivots!$BE$3,"State of Residence",StateName2) -> 2324.333333 | AY27: =GETPIVOTDATA(AY26&"",Pivots!$BE$3,"State of Residence",StateName2) -> 1207 | AZ27: =GETPIVOTDATA(AZ26&"",Pivots!$BE$3,"State of Residence",StateName2) -> 315.6666667 | BA27: =GETPIVOTDATA(BA26&"",Pivots!$BE$3,"State of Residence",StateName2) -> 1300.333333 | BB27: =GETPIVOTDATA(BB26&"",Pivots!$BE$3,"State of Residence",StateName2) -> 1193.333333 | BC27: =GETPIVOTDATA(BC26&"",Pivots!$BE$3,"State of Residence",StateName2) -> 0 | BD27: =GETPIVOTDATA(BD26&"",Pivots!$BE$3,"State of Residence",StateName2) -> 1333.333333 | BE27: =GETPIVOTDATA(BE26&"",Pivots!$BE$3,"State of Residence",StateName2) -> 59 | BF27: =GETPIVOTDATA(BF26&"",Pivots!$BE$3,"State of Residence",StateName2) -> 606.6666667 | BG27: =GETPIVOTDATA(BG26&"",Pivots!$BE$3,"State of Residence",StateName2) -> 425.6666667 | BH27: =GETPIVOTDATA(BH26&"",Pivots!$BE$3,"State of Residence",StateName2) -> 754 | BI27: =GETPIVOTDATA(BI26&"",Pivots!$BE$3,"State of Residence",StateName2) -> 3890.333333 | BJ27: =GETPIVOTDATA(BJ26&"",Pivots!$BE$3,"State of Residence",StateName2) -> 3705 | BK27: =GETPIVOTDATA(BK26&"",Pivots!$BE$3,"State of Residence",StateName2) -> 333 | BL27: =GETPIVOTDATA(BL26&"",Pivots!$BE$3,"State of Residence",StateName2) -> 993 | BM27: =GETPIVOTDATA(BM26&"",Pivots!$BE$3,"State of Residence",StateName2) -> 21959.66667 | BN27: =GETPIVOTDATA(BN26&"",Pivots!$BE$3,"State of Residence",StateName2) -> 339 | BO27: =GETPIVOTDATA(BO26&"",Pivots!$BE$3,"State of Residence",StateName2) -> 1107 | BP27: =GETPIVOTDATA(BP26&"",Pivots!$BE$3,"State of Residence",StateName2) -> 734 | BQ27: =GETPIVOTDATA(BQ26&"",Pivots!$BE$3,"State of Residence",StateName2) -> 325.6666667
D28: Missouri
D29: Montana
D30: Nebraska
D31: Nevada
D32: New Hampshire
D33: New Jersey
D34: New Mexico
D35: New York
D36: North Carolina
D37: North Dakota
D38: Ohio
D39: Oklahoma
D40: Oregon
D41: Pennsylvania
D42: Rhode Island
D43: South Carolina
D44: South Dakota
D45: Tennessee
D46: Texas
D47: Utah
D48: Vermont
D49: Virginia
D50: Washington
D51: West Virginia
D52: Wisconsin
D53: Wyoming
D54: Puerto Rico

Sheet Pivots
A2: pvtState1Population | BE2: pvtStateMigration
A3: Sum of Population | BF3: 2010-01-01 | DF3: 2011-01-01 | FF3: 2012-01-01 | HF3: Total Alabama | HG3: Total Alaska | HH3: Total Arizona | HI3: Total Arkansas | HJ3: Total California | HK3: Total Colorado | HL3: Total Connecticut | HM3: Total Delaware | HN3: Total District of Columbia | HO3: Total Florida | HP3: Total Georgia | HQ3: Total Hawaii | HR3: Total Idaho | HS3: Total Illinois | HT3: Total Indiana | HU3: Total Iowa | HV3: Total Kansas | HW3: Total Kentucky | HX3: Total Louisiana | HY3: Total Maine | HZ3: Total Maryland | IA3: Total Massachusetts | IB3: Total Michigan | IC3: Total Minnesota | ID3: Total Mississippi | IE3: Total Missouri | IF3: Total Montana | IG3: Total Nebraska | IH3: Total Nevada | II3: Total New Hampshire | IJ3: Total New Jersey | IK3: Total New Mexico | IL3: Total New York | IM3: Total North Carolina | IN3: Total North Dakota | IO3: Total Ohio | IP3: Total Oklahoma | IQ3: Total Oregon | IR3: Total Pennsylvania | IS3: Total Rhode Island | IT3: Total South Carolina | IU3: Total South Dakota | IV3: Total Tennessee | IW3: Total Texas | IX3: Total Utah | IY3: Total Vermont | IZ3: Total Virginia | JA3: Total Washington | JB3: Total West Virginia | JC3: Total Wisconsin | JD3: Total Wyoming | JE3: Total Puerto Rico
B4: United States | BF4: Alabama | BG4: Alaska | BH4: Arizona | BI4: Arkansas | BJ4: California | BK4: Colorado | BL4: Connecticut | BM4: Delaware | BN4: District of Columbia | BO4: Florida | BP4: Georgia | BQ4: Hawaii | BR4: Idaho | BS4: Illinois | BT4: Indiana | BU4: Iowa | BV4: Kansas | BW4: Kentucky | BX4: Louisiana | BY4: Maine | BZ4: Maryland | CA4: Massachusetts | CB4: Michigan | CC4: Minnesota | CD4: Mississippi | CE4: Missouri | CF4: Montana | CG4: Nebraska | CH4: Nevada | CI4: New Hampshire | CJ4: New Jersey | CK4: New Mexico | CL4: New York | CM4: North Carolina | CN4: North Dakota | CO4: Ohio | CP4: Oklahoma | CQ4: Oregon | CR4: Pennsylvania | CS4: Rhode Island | CT4: South Carolina | CU4: South Dakota | CV4: Tennessee | CW4: Texas | CX4: Utah | CY4: Vermont | CZ4: Virginia | DA4: Washington | DB4: West Virginia | DC4: Wisconsin | DD4: Wyoming | DE4: Puerto Rico | DF4: Alabama | DG4: Alaska | DH4: Arizona | DI4: Arkansas | DJ4: California | DK4: Colorado | DL4: Connecticut | DM4: Delaware | DN4: District of Columbia | DO4: Florida | DP4: Georgia | DQ4: Hawaii | DR4: Idaho | DS4: Illinois | DT4: Indiana | DU4: Iowa | DV4: Kansas | DW4: Kentucky | DX4: Louisiana | DY4: Maine | DZ4: Maryland | EA4: Massachusetts | EB4: Michigan | EC4: Minnesota | ED4: Mississippi | EE4: Missouri | EF4: Montana | EG4: Nebraska | EH4: Nevada | EI4: New Hampshire | EJ4: New Jersey | EK4: New Mexico | EL4: New York | EM4: North Carolina | EN4: North Dakota | EO4: Ohio | EP4: Oklahoma | EQ4: Oregon | ER4: Pennsylvania | ES4: Rhode Island | ET4: South Carolina | EU4: South Dakota | EV4: Tennessee | EW4: Texas | EX4: Utah | EY4: Vermont | EZ4: Virginia | FA4: Washington | FB4: West Virginia | FC4: Wisconsin | FD4: Wyoming | FE4: Puerto Rico | FF4: Alabama | FG4: Alaska | FH4: Arizona | FI4: Arkansas | FJ4: California | FK4: Colorado | FL4: Connecticut | FM4: Delaware | FN4: District of Columbia | FO4: Florida | FP4: Georgia | FQ4: Hawaii | FR4: Idaho | FS4: Illinois | FT4: Indiana | FU4: Iowa | FV4: Kansas | FW4: Kentucky | FX4: Louisiana | FY4: Maine | FZ4: Maryland | GA4: Massachusetts | GB4: Michigan | GC4: Minnesota | GD4: Mississippi | GE4: Missouri | GF4: Montana | GG4: Nebraska | GH4: Nevada | GI4: New Hampshire | GJ4: New Jersey | GK4: New Mexico | GL4: New York | GM4: North Carolina | GN4: North Dakota | GO4: Ohio | GP4: Oklahoma | GQ4: Oregon | GR4: Pennsylvania | GS4: Rhode Island | GT4: South Carolina | GU4: South Dakota | GV4: Tennessee | GW4: Texas | GX4: Utah | GY4: Vermont | GZ4: Virginia | HA4: Washington | HB4: West Virginia | HC4: Wisconsin | HD4: Wyoming | HE4: Puerto Rico
A5: 2010-01-01 | B5: 305628607 | BE5: Alabama | BF5: 0 | BG5: 3013 | BH5: 676 | BI5: 1481 | BJ5: 3827 | BK5: 1278 | BL5: 454 | BM5: 811 | BN5: 211 | BO5: 15062 | BP5: 21644 | BQ5: 267 | BR5: 304 | BS5: 2503 | BT5: 3945 | BU5: 669 | BV5: 649 | BW5: 1967 | BX5: 1901 | BY5: 97 | BZ5: 716 | CA5: 435 | CB5: 2334 | CC5: 386 | CD5: 7233 | CE5: 1373 | CF5: 229 | CG5: 169 | CH5: 265 | CI5: 0 | CJ5: 356 | CK5: 650 | CL5: 3686 | CM5: 2371 | CN5: 169 | CO5: 2222 | CP5: 880 | CQ5: 485 | CR5: 1477 | CS5: 0 | CT5: 2368 | CU5: 31 | CV5: 7409 | CW5: 6500 | CX5: 1336 | CY5: 0 | CZ5: 2490 | DA5: 1171 | DB5: 41 | DC5: 1155 | DD5: 27 | DE5: 228 | DF5: 0 | DG5: 1771 | DH5: 1677 | DI5: 1642 | DJ5: 3389 | DK5: 348 | DL5: 2921 | DM5: 232 | DN5: 399 | DO5: 20063 | DP5: 19346 | DQ5: 1259 | DR5: 137 | DS5: 6991 | DT5: 1434 | DU5: 30 | DV5: 842 | DW5: 2686 | DX5: 2413 | DY5: 626 | DZ5: 1606 | EA5: 112 | EB5: 2797 | EC5: 327 | ED5: 3945 | EE5: 1086 | EF5: 317 | EG5: 770 | EH5: 257 | EI5: 64 | EJ5: 1996 | EK5: 119 | EL5: 1108 | EM5: 2697 | EN5: 284 | EO5: 2596 | EP5: 973 | EQ5: 169 | ER5: 1075 | ES5: 0 | ET5: 2036 | EU5: 90 | EV5: 8710 | EW5: 7973 | EX5: 300 | EY5: 66 | EZ5: 4935 | FA5: 2621 | FB5: 65 | FC5: 417 | FD5: 9 | FE5: 569 | FF5: 0 | FG5: 1004 | FH5: 962 | FI5: 660 | FJ5: 3077 | FK5: 1386 | FL5: 284 | FM5: 42 | FN5: 162 | FO5: 11244 | FP5: 19920 | FQ5: 627 | FR5: 493 | FS5: 2722 | FT5: 1347 | FU5: 345 | FV5: 865 | FW5: 2495 | FX5: 3104 | FY5: 67 | FZ5: 1513 | GA5: 334 | GB5: 2298 | GC5: 752 | GD5: 4952 | GE5: 1555 | GF5: 101 | GG5: 151 | GH5: 1009 | GI5: 161 | GJ5: 1702 | GK5: 459 | GL5: 2709 | GM5: 5133 | GN5: 228 | GO5: 1411 | GP5: 194 | GQ5: 200 | GR5: 1837 | GS5: 0 | GT5: 2811 | GU5: 518 | GV5: 10539 | GW5: 7468 | GX5: 579 | GY5: 0 | GZ5: 3170 | HA5: 1034 | HB5: 128 | HC5: 760 | HD5: 88 | HE5: 619 | HF5: 0 | HG5: 1929.333333 | HH5: 1105 | HI5: 1261 | HJ5: 3431 | HK5: 1004 | HL5: 1219.666667 | HM5: 361.6666667 | HN5: 257.3333333 | HO5: 15456.33333 | HP5: 20303.33333 | HQ5: 717.6666667 | HR5: 311.3333333 | HS5: 4072 | HT5: 2242 | HU5: 348 | HV5: 785.3333333 | HW5: 2382.666667 | HX5: 2472.666667 | HY5: 263.3333333 | HZ5: 1278.333333 | IA5: 293.6666667 | IB5: 2476.333333 | IC5: 488.3333333 | ID5: 5376.666667 | IE5: 1338 | IF5: 215.6666667 | IG5: 363.3333333 | IH5: 510.3333333 | II5: 75 | IJ5: 1351.333333 | IK5: 409.3333333 | IL5: 2501 | IM5: 3400.333333 | IN5: 227 | IO5: 2076.333333 | IP5: 682.3333333 | IQ5: 284.6666667 | IR5: 1463 | IS5: 0 | IT5: 2405 | IU5: 213 | IV5: 8886 | IW5: 7313.666667 | IX5: 738.3333333 | IY5: 22 | IZ5: 3531.666667 | JA5: 1608.666667 | JB5: 78 | JC5: 777.3333333 | JD5: 41.33333333 | JE5: 472
A6: 2011-01-01 | B6: 307900319 | BE6: Alaska | BF6: 477 | BG6: 0 | BH6: 1354 | BI6: 47 | BJ6: 3906 | BK6: 1930 | BL6: 0 | BM6: 0 | BN6: 14 | BO6: 2315 | BP6: 1251 | BQ6: 1705 | BR6: 895 | BS6: 388 | BT6: 9 | BU6: 262 | BV6: 106 | BW6: 1440 | BX6: 100 | BY6: 574 | BZ6: 704 | CA6: 107 | CB6: 923 | CC6: 530 | CD6: 263 | CE6: 0 | CF6: 616 | CG6: 215 | CH6: 240 | CI6: 316 | CJ6: 413 | CK6: 421 | CL6: 255 | CM6: 698 | CN6: 69 | CO6: 156 | CP6: 1455 | CQ6: 1793 | CR6: 126 | CS6: 0 | CT6: 121 | CU6: 531 | CV6: 477 | CW6: 4123 | CX6: 1274 | CY6: 353 | CZ6: 714 | DA6: 2421 | DB6: 0 | DC6: 158 | DD6: 81 | DE6: 19 | DF6: 93 | DG6: 0 | DH6: 2467 | DI6: 190 | DJ6: 3098 | DK6: 1583 | DL6: 138 | DM6: 11 | DN6: 140 | DO6: 1188 | DP6: 556 | DQ6: 1366 | DR6: 475 | DS6: 985 | DT6: 181 | DU6: 319 | DV6: 750 | DW6: 237 | DX6: 1077 | DY6: 0 | DZ6: 216 | EA6: 141 | EB6: 771 | EC6: 593 | ED6: 554 | EE6: 921 | EF6: 248 | EG6: 5 | EH6: 532 | EI6: 520 | EJ6: 128 | EK6: 226 | EL6: 940 | EM6: 470 | EN6: 0 | EO6: 319 | EP6: 616 | EQ6: 2161 | ER6: 378 | ES6: 0 | ET6: 186 | EU6: 301 | EV6: 388 | EW6: 2492 | EX6: 662 | EY6: 68 | EZ6: 1488 | FA6: 4548 | FB6: 89 | FC6: 23 | FD6: 246 | FE6: 1044 | FF6: 1097 | FG6: 0 | FH6: 1520 | FI6: 196 | FJ6: 3494 | FK6: 556 | FL6: 0 | FM6: 0 | FN6: 356 | FO6: 1991 | FP6: 928 | FQ6: 1376 | FR6: 538 | FS6: 58 | FT6: 260 | FU6: 13 | FV6: 221 | FW6: 161 | FX6: 120 | FY6: 66 | FZ6: 508 | GA6: 297 | GB6: 563 | GC6: 192 | GD6: 56 | GE6: 819 | GF6: 371 | GG6: 1195 | GH6: 803 | GI6: 118 | GJ6: 116 | GK6: 263 | GL6: 736 | GM6: 920 | GN6: 264 | GO6: 1316 | GP6: 335 | GQ6: 3174 | GR6: 255 | GS6: 0 | GT6: 384 | GU6: 99 | GV6: 451 | GW6: 1488 | GX6: 330 | GY6: 79 | GZ6: 1265 | HA6: 3725 | HB6: 0 | HC6: 206 | HD6: 136 | HE6: 25 | HF6: 555.6666667 | HG6: 0 | HH6: 1780.333333 | HI6: 144.3333333 | HJ6: 3499.333333 | HK6: 1356.333333 | HL6: 46 | HM6: 3.666666667 | HN6: 170 | HO6: 1831.333333 | HP6: 911.6666667 | HQ6: 1482.333333 | HR6: 636 | HS6: 477 | HT6: 150 | HU6: 198 | HV6: 359 | HW6: 612.6666667 | HX6: 432.3333333 | HY6: 213.3333333 | HZ6: 476 | IA6: 181.6666667 | IB6: 752.3333333 | IC6: 438.3333333 | ID6: 291 | IE6: 580 | IF6: 411.6666667 | IG6: 471.6666667 | IH6: 525 | II6: 318 | IJ6: 219 | IK6: 303.3333333 | IL6: 643.6666667 | IM6: 696 | IN6: 111 | IO6: 597 | IP6: 802 | IQ6: 2376 | IR6: 253 | IS6: 0 | IT6: 230.3333333 | IU6: 310.3333333 | IV6: 438.6666667 | IW6: 2701 | IX6: 755.3333333 | IY6: 166.6666667 | IZ6: 1155.666667 | JA6: 3564.666667 | JB6: 29.66666667 | JC6: 129 | JD6: 154.3333333 | JE6: 362.6666667
A7: 2012-01-01 | B7: 310212755 | BE7: Arizona | BF7: 416 | BG7: 3109 | BH7: 0 | BI7: 689 | BJ7: 47164 | BK7: 7687 | BL7: 479 | BM7: 738 | BN7: 0 | BO7: 7712 | BP7: 4261 | BQ7: 1966 | BR7: 2147 | BS7: 12250 | BT7: 2690 | BU7: 3008 | BV7: 1935 | BW7: 1705 | BX7: 2014 | BY7: 241 | BZ7: 1284 | CA7: 1449 | CB7: 6354 | CC7: 5421 | CD7: 272 | CE7: 4567 | CF7: 1343 | CG7: 1750 | CH7: 10342 | CI7: 64 | CJ7: 1782 | CK7: 4419 | CL7: 6618 | CM7: 4463 | CN7: 826 | CO7: 5225 | CP7: 2910 | CQ7: 5430 | CR7: 5535 | CS7: 403 | CT7: 2310 | CU7: 1351 | CV7: 3061 | CW7: 14705 | CX7: 7164 | CY7: 664 | CZ7: 3413 | DA7: 12645 | DB7: 595 | DC7: 5556 | DD7: 593 | DE7: 599 | DF7: 833 | DG7: 5001 | DH7: 0 | DI7: 1066 | DJ7: 49635 | DK7: 10189 | DL7: 1875 | DM7: 0 | DN7: 389 | DO7: 3732 | DP7: 2206 | DQ7: 2199 | DR7: 2190 | DS7: 10035 | DT7: 5855 | DU7: 4526 | DV7: 1708 | DW7: 2134 | DX7: 844 | DY7: 0 | DZ7: 1918 | EA7: 743 | EB7: 9396 | EC7: 3297 | ED7: 1226 | EE7: 3872 | EF7: 2431 | EG7: 1393 | EH7: 8756 | EI7: 228 | EJ7: 3379 | EK7: 4610 | EL7: 3880 | EM7: 2548 | EN7: 1159 | EO7: 4682 | EP7: 3219 | EQ7: 4613 | ER7: 3436 | ES7: 72 | ET7: 1774 | EU7: 1657 | EV7: 1680 | EW7: 12688 | EX7: 10577 | EY7: 0 | EZ7: 2233 | FA7: 13940 | FB7: 70 | FC7: 6473 | FD7: 2510 | FE7: 871 | FF7: 1331 | FG7: 3717 | FH7: 0 | FI7: 1214 | FJ7: 44889 | FK7: 13790 | FL7: 417 | FM7: 246 | FN7: 36 | FO7: 5553 | FP7: 2263 | FQ7: 2491 | FR7: 2934 | FS7: 10744 | FT7: 2930 | FU7: 2702 | FV7: 2498 | FW7: 1328 | FX7: 724 | FY7: 616 | FZ7: 3007 | GA7: 1961 | GB7: 9598 | GC7: 8570 | GD7: 293 | GE7: 2595 | GF7: 1118 | GG7: 2293 | GH7: 6712 | GI7: 510 | GJ7: 2564 | GK7: 6946 | GL7: 7402 | GM7: 2721 | GN7: 877 | GO7: 7906 | GP7: 1626 | GQ7: 8587 | GR7: 4280 | GS7: 614 | GT7: 1070 | GU7: 1472 | GV7: 5075 | GW7: 14788 | GX7: 5916 | GY7: 207 | GZ7: 2763 | HA7: 13247 | HB7: 765 | HC7: 3765 | HD7: 2786 | HE7: 1791 | HF7: 860 | HG7: 3942.333333 | HH7: 0 | HI7: 989.6666667 | HJ7: 47229.33333 | HK7: 10555.33333 | HL7: 923.6666667 | HM7: 328 | HN7: 141.6666667 | HO7: 5665.666667 | HP7: 2910 | HQ7: 2218.666667 | HR7: 2423.666667 | HS7: 11009.66667 | HT7: 3825 | HU7: 3412 | HV7: 2047 | HW7: 1722.333333 | HX7: 1194 | HY7: 285.6666667 | HZ7: 2069.666667 | IA7: 1384.333333 | IB7: 8449.333333 | IC7: 5762.666667 | ID7: 597 | IE7: 3678 | IF7: 1630.666667 | IG7: 1812 | IH7: 8603.333333 | II7: 267.3333333 | IJ7: 2575 | IK7: 5325 | IL7: 5966.666667 | IM7: 3244 | IN7: 954 | IO7: 5937.666667 | IP7: 2585 | IQ7: 6210 | IR7: 4417 | IS7: 363 | IT7: 1718 | IU7: 1493.333333 | IV7: 3272 | IW7: 14060.33333 | IX7: 7885.666667 | IY7: 290.3333333 | IZ7: 2803 | JA7: 13277.33333 | JB7: 476.6666667 | JC7: 5264.666667 | JD7: 1963 | JE7: 1087
BE8: Arkansas | BF8: 1405 | BG8: 934 | BH8: 777 | BI8: 0 | BJ8: 4457 | BK8: 2535 | BL8: 451 | BM8: 0 | BN8: 154 | BO8: 3578 | BP8: 3921 | BQ8: 129 | BR8: 618 | BS8: 3221 | BT8: 722 | BU8: 85 | BV8: 3611 | BW8: 2540 | BX8: 4012 | BY8: 0 | BZ8: 306 | CA8: 190 | CB8: 1506 | CC8: 222 | CD8: 2764 | CE8: 7320 | CF8: 85 | CG8: 394 | CH8: 67 | CI8: 0 | CJ8: 77 | CK8: 0 | CL8: 289 | CM8: 1561 | CN8: 0 | CO8: 1137 | CP8: 8607 | CQ8: 239 | CR8: 731 | CS8: 0 | CT8: 1496 | CU8: 243 | CV8: 2653 | CW8: 13707 | CX8: 361 | CY8: 0 | CZ8: 494 | DA8: 264 | DB8: 0 | DC8: 821 | DD8: 443 | DE8: 87 | DF8: 691 | DG8: 560 | DH8: 439 | DI8: 0 | DJ8: 4077 | DK8: 746 | DL8: 519 | DM8: 79 | DN8: 0 | DO8: 3067 | DP8: 1446 | DQ8: 13 | DR8: 179 | DS8: 3684 | DT8: 1362 | DU8: 851 | DV8: 2008 | DW8: 213 | DX8: 2120 | DY8: 30 | DZ8: 133 | EA8: 781 | EB8: 1881 | EC8: 232 | ED8: 1731 | EE8: 7314 | EF8: 713 | EG8: 332 | EH8: 641 | EI8: 52 | EJ8: 341 | EK8: 775 | EL8: 674 | EM8: 1664 | EN8: 214 | EO8: 174 | EP8: 3761 | EQ8: 632 | ER8: 567 | ES8: 0 | ET8: 235 | EU8: 0 | EV8: 6462 | EW8: 14767 | EX8: 0 | EY8: 0 | EZ8: 1245 | FA8: 1477 | FB8: 24 | FC8: 687 | FD8: 252 | FE8: 529 | FF8: 374 | FG8: 855 | FH8: 1677 | FI8: 0 | FJ8: 3525 | FK8: 603 | FL8: 185 | FM8: 0 | FN8: 205 | FO8: 2682 | FP8: 1525 | FQ8: 0 | FR8: 0 | FS8: 3576 | FT8: 1172 | FU8: 409 | FV8: 1033 | FW8: 1310 | FX8: 3953 | FY8: 17 | FZ8: 169 | GA8: 254 | GB8: 1283 | GC8: 295 | GD8: 3689 | GE8: 9105 | GF8: 258 | GG8: 166 | GH8: 121 | GI8: 0 | GJ8: 157 | GK8: 547 | GL8: 2262 | GM8: 3057 | GN8: 0 | GO8: 1135 | GP8: 9938 | GQ8: 193 | GR8: 516 | GS8: 59 | GT8: 52 | GU8: 673 | GV8: 4195 | GW8: 11767 | GX8: 269 | GY8: 0 | GZ8: 1159 | HA8: 251 | HB8: 84 | HC8: 695 | HD8: 1498 | HE8: 0 | HF8: 823.3333333 | HG8: 783 | HH8: 964.3333333 | HI8: 0 | HJ8: 4019.666667 | HK8: 1294.666667 | HL8: 385 | HM8: 26.33333333 | HN8: 119.6666667 | HO8: 3109 | HP8: 2297.333333 | HQ8: 47.33333333 | HR8: 265.6666667 | HS8: 3493.666667 | HT8: 1085.333333 | HU8: 448.3333333 | HV8: 2217.333333 | HW8: 1354.333333 | HX8: 3361.666667 | HY8: 15.66666667 | HZ8: 202.6666667 | IA8: 408.3333333 | IB8: 1556.666667 | IC8: 249.6666667 | ID8: 2728 | IE8: 7913 | IF8: 352 | IG8: 297.3333333 | IH8: 276.3333333 | II8: 17.33333333 | IJ8: 191.6666667 | IK8: 440.6666667 | IL8: 1075 | IM8: 2094 | IN8: 71.33333333 | IO8: 815.3333333 | IP8: 7435.333333 | IQ8: 354.6666667 | IR8: 604.6666667 | IS8: 19.66666667 | IT8: 594.3333333 | IU8: 305.3333333 | IV8: 4436.666667 | IW8: 13413.66667 | IX8: 210 | IY8: 0 | IZ8: 966 | JA8: 664 | JB8: 36 | JC8: 734.3333333 | JD8: 731 | JE8: 205.3333333
BE9: California | BF9: 3364 | BG9: 9579 | BH9: 33854 | BI9: 4172 | BJ9: 0 | BK9: 15662 | BL9: 4631 | BM9: 643 | BN9: 3683 | BO9: 20362 | BP9: 8820 | BQ9: 9528 | BR9: 5719 | BS9: 16482 | BT9: 6550 | BU9: 3163 | BV9: 3857 | BW9: 3394 | BX9: 2989 | BY9: 1796 | BZ9: 10626 | CA9: 11969 | CB9: 10435 | CC9: 5095 | CD9: 2757 | CE9: 6921 | CF9: 3009 | CG9: 3062 | CH9: 27724 | CI9: 1614 | CJ9: 10108 | CK9: 4632 | CL9: 20981 | CM9: 9593 | CN9: 392 | CO9: 8170 | CP9: 5708 | CQ9: 20913 | CR9: 9948 | CS9: 526 | CT9: 5016 | CU9: 1604 | CV9: 4349 | CW9: 36582 | CX9: 10653 | CY9: 525 | CZ9: 14232 | DA9: 30544 | DB9: 1446 | DC9: 6031 | DD9: 1336 | DE9: 1223 | DF9: 2087 | DG9: 7358 | DH9: 35650 | DI9: 2648 | DJ9: 0 | DK9: 21245 | DL9: 3073 | DM9: 1302 | DN9: 3240 | DO9: 22094 | DP9: 13303 | DQ9: 9864 | DR9: 4796 | DS9: 20834 | DT9: 4673 | DU9: 3324 | DV9: 2810 | DW9: 1201 | DX9: 3600 | DY9: 1658 | DZ9: 7793 | EA9: 10244 | EB9: 12069 | EC9: 5687 | ED9: 2092 | EE9: 7677 | EF9: 2599 | EG9: 1955 | EH9: 36159 | EI9: 1222 | EJ9: 8053 | EK9: 5904 | EL9: 25629 | EM9: 8708 | EN9: 1392 | EO9: 10474 | EP9: 5113 | EQ9: 18165 | ER9: 8550 | ES9: 1103 | ET9: 5758 | EU9: 1004 | EV9: 8761 | EW9: 37087 | EX9: 8944 | EY9: 745 | EZ9: 15753 | FA9: 36481 | FB9: 832 | FC9: 5668 | FD9: 2047 | FE9: 1344 | FF9: 2509 | FG9: 6995 | FH9: 38916 | FI9: 3472 | FJ9: 0 | FK9: 15150 | FL9: 6764 | FM9: 474 | FN9: 3199 | FO9: 21004 | FP9: 10790 | FQ9: 11906 | FR9: 5331 | FS9: 21251 | FT9: 5891 | FU9: 2284 | FV9: 2790 | FW9: 3763 | FX9: 5180 | FY9: 1256 | FZ9: 7902 | GA9: 14356 | GB9: 8921 | GC9: 8539 | GD9: 2556 | GE9: 6729 | GF9: 3060 | GG9: 3302 | GH9: 27968 | GI9: 1327 | GJ9: 12057 | GK9: 5921 | GL9: 31261 | GM9: 11195 | GN9: 1827 | GO9: 10653 | GP9: 6671 | GQ9: 22724 | GR9: 10466 | GS9: 1648 | GT9: 4110 | GU9: 826 | GV9: 5802 | GW9: 43005 | GX9: 12172 | GY9: 544 | GZ9: 15625 | HA9: 34569 | HB9: 1413 | HC9: 5681 | HD9: 1886 | HE9: 2323 | HF9: 2653.333333 | HG9: 7977.333333 | HH9: 36140 | HI9: 3430.666667 | HJ9: 0 | HK9: 17352.33333 | HL9: 4822.666667 | HM9: 806.3333333 | HN9: 3374 | HO9: 21153.33333 | HP9: 10971 | HQ9: 10432.66667 | HR9: 5282 | HS9: 19522.33333 | HT9: 5704.666667 | HU9: 2923.666667 | HV9: 3152.333333 | HW9: 2786 | HX9: 3923 | HY9: 1570 | HZ9: 8773.666667 | IA9: 12189.66667 | IB9: 10475 | IC9: 6440.333333 | ID9: 2468.333333 | IE9: 7109 | IF9: 2889.333333 | IG9: 2773 | IH9: 30617 | II9: 1387.666667 | IJ9: 10072.66667 | IK9: 5485.666667 | IL9: 25957 | IM9: 9832 | IN9: 1203.666667 | IO9: 9765.666667 | IP9: 5830.666667 | IQ9: 20600.66667 | IR9: 9654.666667 | IS9: 1092.333333 | IT9: 4961.333333 | IU9: 1144.666667 | IV9: 6304 | IW9: 38891.33333 | IX9: 10589.66667 | IY9: 604.6666667 | IZ9: 15203.33333 | JA9: 33864.66667 | JB9: 1230.333333 | JC9: 5793.333333 | JD9: 1756.333333 | JE9: 1630
BE10: Colorado | BF10: 954 | BG10: 2225 | BH10: 12287 | BI10: 1034 | BJ10: 26089 | BK10: 0 | BL10: 459 | BM10: 486 | BN10: 479 | BO10: 8849 | BP10: 6445 | BQ10: 2355 | BR10: 839 | BS10: 6950 | BT10: 3296 | BU10: 2140 | BV10: 4308 | BW10: 1961 | BX10: 968 | BY10: 532 | BZ10: 1532 | CA10: 2242 | CB10: 4587 | CC10: 2878 | CD10: 1277 | CE10: 1978 | CF10: 2042 | CG10: 4065 | CH10: 4131 | CI10: 791 | CJ10: 1259 | CK10: 3921 | CL10: 4594 | CM10: 2940 | CN10: 802 | CO10: 2838 | CP10: 3464 | CQ10: 4330 | CR10: 3928 | CS10: 192 | CT10: 1231 | CU10: 1847 | CV10: 1628 | CW10: 22253 | CX10: 4748 | CY10: 350 | CZ10: 2739 | DA10: 7583 | DB10: 623 | DC10: 2499 | DD10: 4418 | DE10: 874 | DF10: 2340 | DG10: 3191 | DH10: 12338 | DI10: 1615 | DJ10: 23234 | DK10: 0 | DL10: 1567 | DM10: 501 | DN10: 298 | DO10: 8075 | DP10: 3250 | DQ10: 1852 | DR10: 1578 | DS10: 6027 | DT10: 2116 | DU10: 3510 | DV10: 3718 | DW10: 1361 | DX10: 908 | DY10: 1358 | DZ10: 3303 | EA10: 2157 | EB10: 3225 | EC10: 3055 | ED10: 879 | EE10: 4552 | EF10: 4079 | EG10: 4582 | EH10: 4061 | EI10: 489 | EJ10: 2863 | EK10: 8797 | EL10: 3998 | EM10: 4756 | EN10: 2249 | EO10: 5527 | EP10: 3824 | EQ10: 5543 | ER10: 3348 | ES10: 435 | ET10: 718 | EU10: 1340 | EV10: 3193 | EW10: 22390 | EX10: 3856 | EY10: 914 | EZ10: 6281 | FA10: 5524 | FB10: 412 | FC10: 3995 | FD10: 2942 | FE10: 476 | FF10: 3108 | FG10: 3457 | FH10: 10589 | FI10: 1043 | FJ10: 22152 | FK10: 0 | FL10: 1317 | FM10: 70 | FN10: 488 | FO10: 8615 | FP10: 5834 | FQ10: 2536 | FR10: 2660 | FS10: 6374 | FT10: 4336 | FU10: 2776 | FV10: 5283 | FW10: 2500 | FX10: 5048 | FY10: 20 | FZ10: 2844 | GA10: 5939 | GB10: 3343 | GC10: 2992 | GD10: 835 | GE10: 3771 | GF10: 2021 | GG10: 4472 | GH10: 3789 | GI10: 679 | GJ10: 2464 | GK10: 6520 | GL10: 7250 | GM10: 4378 | GN10: 1918 | GO10: 4533 | GP10: 4582 | GQ10: 2419 | GR10: 3950 | GS10: 137 | GT10: 2383 | GU10: 756 | GV10: 2535 | GW10: 17355 | GX10: 6398 | GY10: 503 | GZ10: 3796 | HA10: 4853 | HB10: 837 | HC10: 3000 | HD10: 5602 | HE10: 1144 | HF10: 2134 | HG10: 2957.666667 | HH10: 11738 | HI10: 1230.666667 | HJ10: 23825 | HK10: 0 | HL10: 1114.333333 | HM10: 352.3333333 | HN10: 421.6666667 | HO10: 8513 | HP10: 5176.333333 | HQ10: 2247.666667 | HR10: 1692.333333 | HS10: 6450.333333 | HT10: 3249.333333 | HU10: 2808.666667 | HV10: 4436.333333 | HW10: 1940.666667 | HX10: 2308 | HY10: 636.6666667 | HZ10: 2559.666667 | IA10: 3446 | IB10: 3718.333333 | IC10: 2975 | ID10: 997 | IE10: 3433.666667 | IF10: 2714 | IG10: 4373 | IH10: 3993.666667 | II10: 653 | IJ10: 2195.333333 | IK10: 6412.666667 | IL10: 5280.666667 | IM10: 4024.666667 | IN10: 1656.333333 | IO10: 4299.333333 | IP10: 3956.666667 | IQ10: 4097.333333 | IR10: 3742 | IS10: 254.6666667 | IT10: 1444 | IU10: 1314.333333 | IV10: 2452 | IW10: 20666 | IX10: 5000.666667 | IY10: 589 | IZ10: 4272 | JA10: 5986.666667 | JB10: 624 | JC10: 3164.666667 | JD10: 4320.666667 | JE10: 831.3333333
BE11: Connecticut | BF11: 896 | BG11: 0 | BH11: 664 | BI11: 334 | BJ11: 4479 | BK11: 547 | BL11: 0 | BM11: 149 | BN11: 331 | BO11: 9207 | BP11: 748 | BQ11: 182 | BR11: 147 | BS11: 3391 | BT11: 1074 | BU11: 108 | BV11: 0 | BW11: 400 | BX11: 0 | BY11: 528 | BZ11: 1531 | CA11: 8510 | CB11: 770 | CC11: 934 | CD11: 67 | CE11: 42 | CF11: 0 | CG11: 0 | CH11: 507 | CI11: 1049 | CJ11: 3475 | CK11: 112 | CL11: 20727 | CM11: 1345 | CN11: 0 | CO11: 1296 | CP11: 145 | CQ11: 640 | CR11: 1955 | CS11: 1728 | CT11: 1140 | CU11: 0 | CV11: 430 | CW11: 1887 | CX11: 0 | CY11: 458 | CZ11: 1735 | DA11: 2084 | DB11: 442 | DC11: 1092 | DD11: 47 | DE11: 2027 | DF11: 101 | DG11: 180 | DH11: 1387 | DI11: 84 | DJ11: 3699 | DK11: 1502 | DL11: 0 | DM11: 62 | DN11: 607 | DO11: 4771 | DP11: 2000 | DQ11: 587 | DR11: 133 | DS11: 1843 | DT11: 168 | DU11: 67 | DV11: 16 | DW11: 0 | DX11: 315 | DY11: 259 | DZ11: 1267 | EA11: 8691 | EB11: 692 | EC11: 76 | ED11: 69 | EE11: 365 | EF11: 206 | EG11: 62 | EH11: 160 | EI11: 1221 | EJ11: 3809 | EK11: 265 | EL11: 20015 | EM11: 1029 | EN11: 0 | EO11: 1383 | EP11: 217 | EQ11: 117 | ER11: 3668 | ES11: 1488 | ET11: 997 | EU11: 0 | EV11: 123 | EW11: 1214 | EX11: 398 | EY11: 608 | EZ11: 2555 | FA11: 2255 | FB11: 46 | FC11: 660 | FD11: 65 | FE11: 2105 | FF11: 46 | FG11: 439 | FH11: 3167 | FI11: 200 | FJ11: 3161 | FK11: 367 | FL11: 0 | FM11: 22 | FN11: 288 | FO11: 6578 | FP11: 1702 | FQ11: 408 | FR11: 97 | FS11: 912 | FT11: 53 | FU11: 0 | FV11: 0 | FW11: 124 | FX11: 909 | FY11: 1224 | FZ11: 1752 | GA11: 8743 | GB11: 753 | GC11: 605 | GD11: 276 | GE11: 358 | GF11: 50 | GG11: 45 | GH11: 172 | GI11: 1009 | GJ11: 5665 | GK11: 444 | GL11: 23310 | GM11: 3379 | GN11: 0 | GO11: 287 | GP11: 415 | GQ11: 35 | GR11: 2214 | GS11: 1558 | GT11: 940 | GU11: 0 | GV11: 260 | GW11: 3279 | GX11: 45 | GY11: 709 | GZ11: 1729 | HA11: 1593 | HB11: 174 | HC11: 711 | HD11: 104 | HE11: 3228 | HF11: 347.6666667 | HG11: 206.3333333 | HH11: 1739.333333 | HI11: 206 | HJ11: 3779.666667 | HK11: 805.3333333 | HL11: 0 | HM11: 77.66666667 | HN11: 408.6666667 | HO11: 6852 | HP11: 1483.333333 | HQ11: 392.3333333 | HR11: 125.6666667 | HS11: 2048.666667 | HT11: 431.6666667 | HU11: 58.33333333 | HV11: 5.333333333 | HW11: 174.6666667 | HX11: 408 | HY11: 670.3333333 | HZ11: 1516.666667 | IA11: 8648 | IB11: 738.3333333 | IC11: 538.3333333 | ID11: 137.3333333 | IE11: 255 | IF11: 85.33333333 | IG11: 35.66666667 | IH11: 279.6666667 | II11: 1093 | IJ11: 4316.333333 | IK11: 273.6666667 | IL11: 21350.66667 | IM11: 1917.666667 | IN11: 0 | IO11: 988.6666667 | IP11: 259 | IQ11: 264 | IR11: 2612.333333 | IS11: 1591.333333 | IT11: 1025.666667 | IU11: 0 | IV11: 271 | IW11: 2126.666667 | IX11: 147.6666667 | IY11: 591.6666667 | IZ11: 2006.333333 | JA11: 1977.333333 | JB11: 220.6666667 | JC11: 821 | JD11: 72 | JE11: 2453.333333
BE12: Delaware | BF12: 128 | BG12: 68 | BH12: 60 | BI12: 0 | BJ12: 353 | BK12: 178 | BL12: 714 | BM12: 0 | BN12: 432 | BO12: 2362 | BP12: 585 | BQ12: 0 | BR12: 0 | BS12: 612 | BT12: 0 | BU12: 0 | BV12: 28 | BW12: 163 | BX12: 0 | BY12: 294 | BZ12: 4969 | CA12: 689 | CB12: 61 | CC12: 55 | CD12: 0 | CE12: 539 | CF12: 73 | CG12: 0 | CH12: 106 | CI12: 139 | CJ12: 3678 | CK12: 59 | CL12: 4251 | CM12: 424 | CN12: 0 | CO12: 325 | CP12: 0 | CQ12: 0 | CR12: 7318 | CS12: 149 | CT12: 195 | CU12: 0 | CV12: 146 | CW12: 178 | CX12: 0 | CY12: 0 | CZ12: 1051 | DA12: 377 | DB12: 0 | DC12: 0 | DD12: 0 | DE12: 954 | DF12: 81 | DG12: 329 | DH12: 541 | DI12: 0 | DJ12: 699 | DK12: 169 | DL12: 66 | DM12: 0 | DN12: 154 | DO12: 810 | DP12: 639 | DQ12: 201 | DR12: 441 | DS12: 34 | DT12: 210 | DU12: 0 | DV12: 7 | DW12: 305 | DX12: 0 | DY12: 0 | DZ12: 4238 | EA12: 806 | EB12: 43 | EC12: 201 | ED12: 0 | EE12: 713 | EF12: 0 | EG12: 12 | EH12: 0 | EI12: 0 | EJ12: 6297 | EK12: 0 | EL12: 3141 | EM12: 388 | EN12: 0 | EO12: 664 | EP12: 27 | EQ12: 0 | ER12: 8571 | ES12: 131 | ET12: 153 | EU12: 0 | EV12: 221 | EW12: 883 | EX12: 475 | EY12: 0 | EZ12: 1064 | FA12: 482 | FB12: 198 | FC12: 55 | FD12: 463 | FE12: 1008 | FF12: 119 | FG12: 692 | FH12: 188 | FI12: 0 | FJ12: 2221 | FK12: 0 | FL12: 1489 | FM12: 0 | FN12: 11 | FO12: 715 | FP12: 179 | FQ12: 0 | FR12: 32 | FS12: 567 | FT12: 62 | FU12: 30 | FV12: 113 | FW12: 0 | FX12: 178 | FY12: 0 | FZ12: 5649 | GA12: 157 | GB12: 227 | GC12: 351 | GD12: 58 | GE12: 80 | GF12: 0 | GG12: 91 | GH12: 572 | GI12: 99 | GJ12: 5846 | GK12: 85 | GL12: 3566 | GM12: 1349 | GN12: 0 | GO12: 191 | GP12: 0 | GQ12: 0 | GR12: 6828 | GS12: 135 | GT12: 298 | GU12: 0 | GV12: 344 | GW12: 133 | GX12: 166 | GY12: 0 | GZ12: 1746 | HA12: 29 | HB12: 161 | HC12: 0 | HD12: 0 | HE12: 56 | HF12: 109.3333333 | HG12: 363 | HH12: 263 | HI12: 0 | HJ12: 1091 | HK12: 115.6666667 | HL12: 756.3333333 | HM12: 0 | HN12: 199 | HO12: 1295.666667 | HP12: 467.6666667 | HQ12: 67 | HR12: 157.6666667 | HS12: 404.3333333 | HT12: 90.66666667 | HU12: 10 | HV12: 49.33333333 | HW12: 156 | HX12: 59.33333333 | HY12: 98 | HZ12: 4952 | IA12: 550.6666667 | IB12: 110.3333333 | IC12: 202.3333333 | ID12: 19.33333333 | IE12: 444 | IF12: 24.33333333 | IG12: 34.33333333 | IH12: 226 | II12: 79.33333333 | IJ12: 5273.666667 | IK12: 48 | IL12: 3652.666667 | IM12: 720.3333333 | IN12: 0 | IO12: 393.3333333 | IP12: 9 | IQ12: 0 | IR12: 7572.333333 | IS12: 138.3333333 | IT12: 215.3333333 | IU12: 0 | IV12: 237 | IW12: 398 | IX12: 213.6666667 | IY12: 0 | IZ12: 1287 | JA12: 296 | JB12: 119.6666667 | JC12: 18.33333333 | JD12: 154.3333333 | JE12: 672.6666667
BE13: District of Columbia | BF13: 360 | BG13: 591 | BH13: 662 | BI13: 155 | BJ13: 4205 | BK13: 656 | BL13: 926 | BM13: 0 | BN13: 0 | BO13: 1100 | BP13: 1597 | BQ13: 0 | BR13: 0 | BS13: 615 | BT13: 711 | BU13: 392 | BV13: 83 | BW13: 94 | BX13: 0 | BY13: 76 | BZ13: 13503 | CA13: 1376 | CB13: 126 | CC13: 87 | CD13: 0 | CE13: 272 | CF13: 0 | CG13: 62 | CH13: 0 | CI13: 137 | CJ13: 1924 | CK13: 61 | CL13: 3852 | CM13: 1897 | CN13: 98 | CO13: 598 | CP13: 0 | CQ13: 601 | CR13: 2378 | CS13: 249 | CT13: 380 | CU13: 0 | CV13: 591 | CW13: 1180 | CX13: 0 | CY13: 199 | CZ13: 7915 | DA13: 284 | DB13: 860 | DC13: 391 | DD13: 0 | DE13: 0 | DF13: 13 | DG13: 135 | DH13: 43 | DI13: 81 | DJ13: 3797 | DK13: 452 | DL13: 981 | DM13: 128 | DN13: 0 | DO13: 1254 | DP13: 937 | DQ13: 372 | DR13: 68 | DS13: 1397 | DT13: 128 | DU13: 241 | DV13: 6 | DW13: 297 | DX13: 0 | DY13: 0 | DZ13: 14129 | EA13: 2048 | EB13: 1108 | EC13: 409 | ED13: 83 | EE13: 112 | EF13: 38 | EG13: 79 | EH13: 238 | EI13: 145 | EJ13: 1035 | EK13: 0 | EL13: 2313 | EM13: 1716 | EN13: 285 | EO13: 306 | EP13: 0 | EQ13: 51 | ER13: 1589 | ES13: 50 | ET13: 357 | EU13: 104 | EV13: 421 | EW13: 1083 | EX13: 75 | EY13: 445 | EZ13: 7975 | FA13: 476 | FB13: 120 | FC13: 946 | FD13: 0 | FE13: 0 | FF13: 79 | FG13: 1247 | FH13: 902 | FI13: 35 | FJ13: 4999 | FK13: 677 | FL13: 618 | FM13: 78 | FN13: 0 | FO13: 1705 | FP13: 1079 | FQ13: 38 | FR13: 46 | FS13: 795 | FT13: 469 | FU13: 133 | FV13: 164 | FW13: 112 | FX13: 283 | FY13: 194 | FZ13: 14120 | GA13: 1524 | GB13: 944 | GC13: 393 | GD13: 44 | GE13: 337 | GF13: 0 | GG13: 172 | GH13: 42 | GI13: 197 | GJ13: 1451 | GK13: 116 | GL13: 3085 | GM13: 985 | GN13: 0 | GO13: 651 | GP13: 0 | GQ13: 157 | GR13: 1494 | GS13: 635 | GT13: 150 | GU13: 0 | GV13: 577 | GW13: 1473 | GX13: 116 | GY13: 267 | GZ13: 9537 | HA13: 481 | HB13: 293 | HC13: 721 | HD13: 215 | HE13: 0 | HF13: 150.6666667 | HG13: 657.6666667 | HH13: 535.6666667 | HI13: 90.33333333 | HJ13: 4333.666667 | HK13: 595 | HL13: 841.6666667 | HM13: 68.66666667 | HN13: 0 | HO13: 1353 | HP13: 1204.333333 | HQ13: 136.6666667 | HR13: 38 | HS13: 935.6666667 | HT13: 436 | HU13: 255.3333333 | HV13: 84.33333333 | HW13: 167.6666667 | HX13: 94.33333333 | HY13: 90 | HZ13: 13917.33333 | IA13: 1649.333333 | IB13: 726 | IC13: 296.3333333 | ID13: 42.33333333 | IE13: 240.3333333 | IF13: 12.66666667 | IG13: 104.3333333 | IH13: 93.33333333 | II13: 159.6666667 | IJ13: 1470 | IK13: 59 | IL13: 3083.333333 | IM13: 1532.666667 | IN13: 127.6666667 | IO13: 518.3333333 | IP13: 0 | IQ13: 269.6666667 | IR13: 1820.333333 | IS13: 311.3333333 | IT13: 295.6666667 | IU13: 34.66666667 | IV13: 529.6666667 | IW13: 1245.333333 | IX13: 63.66666667 | IY13: 303.6666667 | IZ13: 8475.666667 | JA13: 413.6666667 | JB13: 424.3333333 | JC13: 686 | JD13: 71.66666667 | JE13: 0
A14: pvtState1SameResidence | BE14: Florida | BF14: 15830 | BG14: 5887 | BH14: 3907 | BI14: 3611 | BJ14: 22130 | BK14: 6428 | BL14: 11183 | BM14: 3099 | BN14: 1110 | BO14: 0 | BP14: 35615 | BQ14: 2021 | BR14: 884 | BS14: 17432 | BT14: 9030 | BU14: 2921 | BV14: 4136 | BW14: 6321 | BX14: 7232 | BY14: 5497 | BZ14: 13241 | CA14: 13900 | CB14: 21359 | CC14: 5439 | CD14: 7929 | CE14: 7984 | CF14: 338 | CG14: 1544 | CH14: 7050 | CI14: 3645 | CJ14: 22344 | CK14: 900 | CL14: 55011 | CM14: 19108 | CN14: 794 | CO14: 21047 | CP14: 3466 | CQ14: 1655 | CR14: 19935 | CS14: 1982 | CT14: 10759 | CU14: 430 | CV14: 12882 | CW14: 24039 | CX14: 2833 | CY14: 1442 | CZ14: 20080 | DA14: 3573 | DB14: 5634 | DC14: 8081 | DD14: 191 | DE14: 12968 | DF14: 12635 | DG14: 7405 | DH14: 8451 | DI14: 3025 | DJ14: 22420 | DK14: 9383 | DL14: 11704 | DM14: 1264 | DN14: 891 | DO14: 0 | DP14: 38658 | DQ14: 3639 | DR14: 312 | DS14: 19152 | DT14: 11472 | DU14: 1846 | DV14: 2661 | DW14: 5441 | DX14: 6094 | DY14: 4689 | DZ14: 15410 | EA14: 13701 | EB14: 19640 | EC14: 4663 | ED14: 5175 | EE14: 7114 | EF14: 559 | EG14: 3857 | EH14: 3527 | EI14: 4324 | EJ14: 25206 | EK14: 1376 | EL14: 59288 | EM14: 23983 | EN14: 514 | EO14: 18191 | EP14: 2600 | EQ14: 3315 | ER14: 20821 | ES14: 5002 | ET14: 11953 | EU14: 716 | EV14: 10451 | EW14: 25532 | EX14: 2343 | EY14: 2019 | EZ14: 16614 | FA14: 6339 | FB14: 4964 | FC14: 7412 | FD14: 846 | FE14: 21611 | FF14: 18599 | FG14: 10704 | FH14: 6473 | FI14: 3321 | FJ14: 20386 | FK14: 8766 | FL14: 8975 | FM14: 1099 | FN14: 780 | FO14: 0 | FP14: 42754 | FQ14: 3177 | FR14: 1268 | FS14: 22565 | FT14: 13803 | FU14: 3864 | FV14: 5661 | FW14: 6912 | FX14: 5550 | FY14: 7348 | FZ14: 10442 | GA14: 15159 | GB14: 23400 | GC14: 5460 | GD14: 5490 | GE14: 10666 | GF14: 1758 | GG14: 945 | GH14: 1241 | GI14: 2362 | GJ14: 27606 | GK14: 2853 | GL14: 53009 | GM14: 23133 | GN14: 239 | GO14: 22927 | GP14: 3142 | GQ14: 2919 | GR14: 25659 | GS14: 3050 | GT14: 11366 | GU14: 1070 | GV14: 16275 | GW14: 28564 | GX14: 2499 | GY14: 2747 | GZ14: 25697 | HA14: 4943 | HB14: 3533 | HC14: 6216 | HD14: 773 | HE14: 21638 | HF14: 15688 | HG14: 7998.666667 | HH14: 6277 | HI14: 3319 | HJ14: 21645.33333 | HK14: 8192.333333 | HL14: 10620.66667 | HM14: 1820.666667 | HN14: 927 | HO14: 0 | HP14: 39009 | HQ14: 2945.666667 | HR14: 821.3333333 | HS14: 19716.33333 | HT14: 11435 | HU14: 2877 | HV14: 4152.666667 | HW14: 6224.666667 | HX14: 6292 | HY14: 5844.666667 | HZ14: 13031 | IA14: 14253.33333 | IB14: 21466.33333 | IC14: 5187.333333 | ID14: 6198 | IE14: 8588 | IF14: 885 | IG14: 2115.333333 | IH14: 3939.333333 | II14: 3443.666667 | IJ14: 25052 | IK14: 1709.666667 | IL14: 55769.33333 | IM14: 22074.66667 | IN14: 515.6666667 | IO14: 20721.66667 | IP14: 3069.333333 | IQ14: 2629.666667 | IR14: 22138.33333 | IS14: 3344.666667 | IT14: 11359.33333 | IU14: 738.6666667 | IV14: 13202.66667 | IW14: 26045 | IX14: 2558.333333 | IY14: 2069.333333 | IZ14: 20797 | JA14: 4951.666667 | JB14: 4710.333333 | JC14: 7236.333333 | JD14: 603.3333333 | JE14: 18739
A15: Sum of Same Residence Last Yr | BE15: Georgia | BF15: 13840 | BG15: 3645 | BH15: 2554 | BI15: 599 | BJ15: 8909 | BK15: 3224 | BL15: 2619 | BM15: 837 | BN15: 1708 | BO15: 49901 | BP15: 0 | BQ15: 1040 | BR15: 414 | BS15: 9736 | BT15: 2649 | BU15: 1096 | BV15: 1355 | BW15: 6525 | BX15: 3645 | BY15: 0 | BZ15: 5382 | CA15: 3910 | CB15: 6857 | CC15: 1169 | CD15: 2380 | CE15: 3072 | CF15: 52 | CG15: 148 | CH15: 1155 | CI15: 162 | CJ15: 4151 | CK15: 826 | CL15: 12472 | CM15: 15361 | CN15: 0 | CO15: 9323 | CP15: 2070 | CQ15: 843 | CR15: 6294 | CS15: 43 | CT15: 15562 | CU15: 557 | CV15: 14445 | CW15: 11424 | CX15: 380 | CY15: 361 | CZ15: 8393 | DA15: 4495 | DB15: 358 | DC15: 3416 | DD15: 102 | DE15: 1010 | DF15: 18799 | DG15: 1079 | DH15: 4292 | DI15: 2112 | DJ15: 14949 | DK15: 2325 | DL15: 709 | DM15: 619 | DN15: 364 | DO15: 42666 | DP15: 0 | DQ15: 1006 | DR15: 126 | DS15: 6080 | DT15: 2442 | DU15: 950 | DV15: 4513 | DW15: 3686 | DX15: 6541 | DY15: 408 | DZ15: 3708 | EA15: 4436 | EB15: 6992 | EC15: 1808 | ED15: 5380 | EE15: 2514 | EF15: 246 | EG15: 4144 | EH15: 774 | EI15: 132 | EJ15: 8371 | EK15: 791 | EL15: 14454 | EM15: 19138 | EN15: 201 | EO15: 6863 | EP15: 1632 | EQ15: 727 | ER15: 5791 | ES15: 337 | ET15: 16914 | EU15: 536 | EV15: 16898 | EW15: 15760 | EX15: 793 | EY15: 361 | EZ15: 9438 | FA15: 3701 | FB15: 1340 | FC15: 2727 | FD15: 504 | FE15: 1635 | FF15: 13864 | FG15: 2654 | FH15: 6657 | FI15: 1041 | FJ15: 14174 | FK15: 4710 | FL15: 1829 | FM15: 226 | FN15: 1352 | FO15: 42870 | FP15: 0 | FQ15: 1409 | FR15: 936 | FS15: 7143 | FT15: 5972 | FU15: 1687 | FV15: 1497 | FW15: 6172 | FX15: 4100 | FY15: 222 | FZ15: 3619 | GA15: 4153 | GB15: 9949 | GC15: 2237 | GD15: 3280 | GE15: 3377 | GF15: 251 | GG15: 1283 | GH15: 3783 | GI15: 15 | GJ15: 4920 | GK15: 915 | GL15: 13957 | GM15: 16009 | GN15: 207 | GO15: 7501 | GP15: 3299 | GQ15: 453 | GR15: 9076 | GS15: 440 | GT15: 18611 | GU15: 257 | GV15: 17606 | GW15: 16198 | GX15: 20 | GY15: 84 | GZ15: 10702 | HA15: 1965 | HB15: 1237 | HC15: 3441 | HD15: 106 | HE15: 1730 | HF15: 15501 | HG15: 2459.333333 | HH15: 4501 | HI15: 1250.666667 | HJ15: 12677.33333 | HK15: 3419.666667 | HL15: 1719 | HM15: 560.6666667 | HN15: 1141.333333 | HO15: 45145.66667 | HP15: 0 | HQ15: 1151.666667 | HR15: 492 | HS15: 7653 | HT15: 3687.666667 | HU15: 1244.333333 | HV15: 2455 | HW15: 5461 | HX15: 4762 | HY15: 210 | HZ15: 4236.333333 | IA15: 4166.333333 | IB15: 7932.666667 | IC15: 1738 | ID15: 3680 | IE15: 2987.666667 | IF15: 183 | IG15: 1858.333333 | IH15: 1904 | II15: 103 | IJ15: 5814 | IK15: 844 | IL15: 13627.66667 | IM15: 16836 | IN15: 136 | IO15: 7895.666667 | IP15: 2333.666667 | IQ15: 674.3333333 | IR15: 7053.666667 | IS15: 273.3333333 | IT15: 17029 | IU15: 450 | IV15: 16316.33333 | IW15: 14460.66667 | IX15: 397.6666667 | IY15: 268.6666667 | IZ15: 9511 | JA15: 3387 | JB15: 978.3333333 | JC15: 3194.666667 | JD15: 237.3333333 | JE15: 1458.333333
B16: Arizona | BE16: Hawaii | BF16: 749 | BG16: 743 | BH16: 1398 | BI16: 0 | BJ16: 12677 | BK16: 1073 | BL16: 307 | BM16: 0 | BN16: 0 | BO16: 4599 | BP16: 2013 | BQ16: 0 | BR16: 42 | BS16: 715 | BT16: 192 | BU16: 68 | BV16: 387 | BW16: 95 | BX16: 88 | BY16: 89 | BZ16: 990 | CA16: 1283 | CB16: 627 | CC16: 476 | CD16: 234 | CE16: 170 | CF16: 150 | CG16: 0 | CH16: 1925 | CI16: 496 | CJ16: 443 | CK16: 11 | CL16: 1339 | CM16: 1510 | CN16: 69 | CO16: 625 | CP16: 57 | CQ16: 1834 | CR16: 553 | CS16: 644 | CT16: 322 | CU16: 267 | CV16: 142 | CW16: 6694 | CX16: 467 | CY16: 0 | CZ16: 2644 | DA16: 2705 | DB16: 483 | DC16: 1168 | DD16: 18 | DE16: 0 | DF16: 1268 | DG16: 844 | DH16: 2900 | DI16: 242 | DJ16: 10173 | DK16: 950 | DL16: 731 | DM16: 784 | DN16: 222 | DO16: 3160 | DP16: 2519 | DQ16: 0 | DR16: 112 | DS16: 1884 | DT16: 402 | DU16: 478 | DV16: 125 | DW16: 18 | DX16: 179 | DY16: 106 | DZ16: 341 | EA16: 92 | EB16: 1303 | EC16: 933 | ED16: 371 | EE16: 308 | EF16: 85 | EG16: 91 | EH16: 1548 | EI16: 107 | EJ16: 564 | EK16: 354 | EL16: 4246 | EM16: 2307 | EN16: 32 | EO16: 970 | EP16: 685 | EQ16: 2030 | ER16: 870 | ES16: 58 | ET16: 1681 | EU16: 0 | EV16: 636 | EW16: 3007 | EX16: 1040 | EY16: 0 | EZ16: 2523 | FA16: 3790 | FB16: 312 | FC16: 147 | FD16: 14 | FE16: 238 | FF16: 608 | FG16: 1417 | FH16: 1865 | FI16: 24 | FJ16: 9756 | FK16: 1216 | FL16: 191 | FM16: 278 | FN16: 230 | FO16: 2780 | FP16: 1448 | FQ16: 0 | FR16: 404 | FS16: 318 | FT16: 292 | FU16: 84 | FV16: 1135 | FW16: 485 | FX16: 207 | FY16: 91 | FZ16: 2491 | GA16: 1266 | GB16: 321 | GC16: 192 | GD16: 44 | GE16: 944 | GF16: 131 | GG16: 75 | GH16: 760 | GI16: 85 | GJ16: 410 | GK16: 284 | GL16: 2382 | GM16: 2241 | GN16: 0 | GO16: 884 | GP16: 1095 | GQ16: 1763 | GR16: 1087 | GS16: 106 | GT16: 644 | GU16: 459 | GV16: 1314 | GW16: 3300 | GX16: 2183 | GY16: 0 | GZ16: 1393 | HA16: 5920 | HB16: 197 | HC16: 295 | HD16: 50 | HE16: 336 | HF16: 875 | HG16: 1001.333333 | HH16: 2054.333333 | HI16: 88.66666667 | HJ16: 10868.66667 | HK16: 1079.666667 | HL16: 409.6666667 | HM16: 354 | HN16: 150.6666667 | HO16: 3513 | HP16: 1993.333333 | HQ16: 0 | HR16: 186 | HS16: 972.3333333 | HT16: 295.3333333 | HU16: 210 | HV16: 549 | HW16: 199.3333333 | HX16: 158 | HY16: 95.33333333 | HZ16: 1274 | IA16: 880.3333333 | IB16: 750.3333333 | IC16: 533.6666667 | ID16: 216.3333333 | IE16: 474 | IF16: 122 | IG16: 55.33333333 | IH16: 1411 | II16: 229.3333333 | IJ16: 472.3333333 | IK16: 216.3333333 | IL16: 2655.666667 | IM16: 2019.333333 | IN16: 33.66666667 | IO16: 826.3333333 | IP16: 612.3333333 | IQ16: 1875.666667 | IR16: 836.6666667 | IS16: 269.3333333 | IT16: 882.3333333 | IU16: 242 | IV16: 697.3333333 | IW16: 4333.666667 | IX16: 1230 | IY16: 0 | IZ16: 2186.666667 | JA16: 4138.333333 | JB16: 330.6666667 | JC16: 536.6666667 | JD16: 27.33333333 | JE16: 191.3333333
A17: 2010-01-01 | B17: 5069002 | BE17: Idaho | BF17: 376 | BG17: 3264 | BH17: 3086 | BI17: 45 | BJ17: 8932 | BK17: 1372 | BL17: 0 | BM17: 0 | BN17: 144 | BO17: 612 | BP17: 313 | BQ17: 123 | BR17: 0 | BS17: 169 | BT17: 132 | BU17: 773 | BV17: 422 | BW17: 315 | BX17: 59 | BY17: 202 | BZ17: 44 | CA17: 115 | CB17: 427 | CC17: 465 | CD17: 37 | CE17: 425 | CF17: 1509 | CG17: 0 | CH17: 2110 | CI17: 109 | CJ17: 97 | CK17: 694 | CL17: 155 | CM17: 134 | CN17: 96 | CO17: 325 | CP17: 711 | CQ17: 3202 | CR17: 172 | CS17: 0 | CT17: 0 | CU17: 296 | CV17: 1153 | CW17: 1746 | CX17: 8014 | CY17: 0 | CZ17: 611 | DA17: 10876 | DB17: 133 | DC17: 233 | DD17: 1410 | DE17: 233 | DF17: 263 | DG17: 4510 | DH17: 3543 | DI17: 224 | DJ17: 9021 | DK17: 1813 | DL17: 0 | DM17: 0 | DN17: 0 | DO17: 1733 | DP17: 275 | DQ17: 254 | DR17: 0 | DS17: 390 | DT17: 296 | DU17: 318 | DV17: 479 | DW17: 120 | DX17: 51 | DY17: 0 | DZ17: 0 | EA17: 396 | EB17: 615 | EC17: 566 | ED17: 62 | EE17: 384 | EF17: 1602 | EG17: 439 | EH17: 3581 | EI17: 129 | EJ17: 84 | EK17: 141 | EL17: 419 | EM17: 263 | EN17: 1201 | EO17: 260 | EP17: 288 | EQ17: 7170 | ER17: 343 | ES17: 0 | ET17: 55 | EU17: 842 | EV17: 296 | EW17: 1303 | EX17: 6059 | EY17: 0 | EZ17: 905 | FA17: 8991 | FB17: 0 | FC17: 165 | FD17: 487 | FE17: 249 | FF17: 575 | FG17: 1198 | FH17: 2424 | FI17: 291 | FJ17: 10280 | FK17: 1186 | FL17: 44 | FM17: 120 | FN17: 116 | FO17: 2014 | FP17: 583 | FQ17: 206 | FR17: 0 | FS17: 532 | FT17: 283 | FU17: 90 | FV17: 63 | FW17: 83 | FX17: 54 | FY17: 0 | FZ17: 107 | GA17: 338 | GB17: 683 | GC17: 637 | GD17: 87 | GE17: 214 | GF17: 3800 | GG17: 35 | GH17: 2535 | GI17: 0 | GJ17: 214 | GK17: 675 | GL17: 938 | GM17: 817 | GN17: 0 | GO17: 1018 | GP17: 93 | GQ17: 4963 | GR17: 169 | GS17: 0 | GT17: 205 | GU17: 118 | GV17: 1957 | GW17: 1352 | GX17: 6617 | GY17: 0 | GZ17: 269 | HA17: 10398 | HB17: 0 | HC17: 225 | HD17: 677 | HE17: 136 | HF17: 404.6666667 | HG17: 2990.666667 | HH17: 3017.666667 | HI17: 186.6666667 | HJ17: 9411 | HK17: 1457 | HL17: 14.66666667 | HM17: 40 | HN17: 86.66666667 | HO17: 1453 | HP17: 390.3333333 | HQ17: 194.3333333 | HR17: 0 | HS17: 363.6666667 | HT17: 237 | HU17: 393.6666667 | HV17: 321.3333333 | HW17: 172.6666667 | HX17: 54.66666667 | HY17: 67.33333333 | HZ17: 50.33333333 | IA17: 283 | IB17: 575 | IC17: 556 | ID17: 62 | IE17: 341 | IF17: 2303.666667 | IG17: 158 | IH17: 2742 | II17: 79.33333333 | IJ17: 131.6666667 | IK17: 503.3333333 | IL17: 504 | IM17: 404.6666667 | IN17: 432.3333333 | IO17: 534.3333333 | IP17: 364 | IQ17: 5111.666667 | IR17: 228 | IS17: 0 | IT17: 86.66666667 | IU17: 418.6666667 | IV17: 1135.333333 | IW17: 1467 | IX17: 6896.666667 | IY17: 0 | IZ17: 595 | JA17: 10088.33333 | JB17: 44.33333333 | JC17: 207.6666667 | JD17: 858 | JE17: 206
A18: 2011-01-01 | B18: 5107496 | BE18: Illinois | BF18: 1397 | BG18: 1764 | BH18: 5921 | BI18: 1194 | BJ18: 16205 | BK18: 3850 | BL18: 2264 | BM18: 56 | BN18: 1047 | BO18: 8051 | BP18: 6781 | BQ18: 1224 | BR18: 313 | BS18: 0 | BT18: 21918 | BU18: 9141 | BV18: 1970 | BW18: 2921 | BX18: 1419 | BY18: 55 | BZ18: 1985 | CA18: 2811 | CB18: 11865 | CC18: 4300 | CD18: 1093 | CE18: 16703 | CF18: 928 | CG18: 546 | CH18: 2541 | CI18: 206 | CJ18: 2331 | CK18: 996 | CL18: 8479 | CM18: 5504 | CN18: 1112 | CO18: 5103 | CP18: 1459 | CQ18: 1224 | CR18: 5190 | CS18: 838 | CT18: 1565 | CU18: 292 | CV18: 3999 | CW18: 12245 | CX18: 658 | CY18: 260 | CZ18: 3831 | DA18: 1642 | DB18: 812 | DC18: 15364 | DD18: 586 | DE18: 2055 | DF18: 2823 | DG18: 4119 | DH18: 7657 | DI18: 3185 | DJ18: 13930 | DK18: 3271 | DL18: 1819 | DM18: 277 | DN18: 1440 | DO18: 17548 | DP18: 6042 | DQ18: 1269 | DR18: 393 | DS18: 0 | DT18: 23491 | DU18: 8420 | DV18: 2533 | DW18: 5569 | DX18: 1315 | DY18: 693 | DZ18: 2565 | EA18: 3507 | EB18: 10274 | EC18: 4496 | ED18: 1521 | EE18: 13889 | EF18: 304 | EG18: 827 | EH18: 2454 | EI18: 590 | EJ18: 3009 | EK18: 1573 | EL18: 6412 | EM18: 4057 | EN18: 105 | EO18: 8384 | EP18: 1002 | EQ18: 792 | ER18: 3012 | ES18: 278 | ET18: 1582 | EU18: 1318 | EV18: 3223 | EW18: 11011 | EX18: 951 | EY18: 49 | EZ18: 5233 | FA18: 3075 | FB18: 352 | FC18: 14507 | FD18: 58 | FE18: 2387 | FF18: 883 | FG18: 2250 | FH18: 7139 | FI18: 1587 | FJ18: 14940 | FK18: 3036 | FL18: 955 | FM18: 234 | FN18: 1066 | FO18: 12687 | FP18: 8745 | FQ18: 869 | FR18: 1384 | FS18: 0 | FT18: 16907 | FU18: 8529 | FV18: 2009 | FW18: 2923 | FX18: 1229 | FY18: 526 | FZ18: 1865 | GA18: 3296 | GB18: 12583 | GC18: 6537 | GD18: 2744 | GE18: 13264 | GF18: 228 | GG18: 1302 | GH18: 1478 | GI18: 283 | GJ18: 2366 | GK18: 1359 | GL18: 7561 | GM18: 3761 | GN18: 196 | GO18: 6872 | GP18: 1491 | GQ18: 954 | GR18: 4588 | GS18: 462 | GT18: 1583 | GU18: 394 | GV18: 4648 | GW18: 16780 | GX18: 1154 | GY18: 156 | GZ18: 4311 | HA18: 2704 | HB18: 1221 | HC18: 14414 | HD18: 302 | HE18: 2049 | HF18: 1701 | HG18: 2711 | HH18: 6905.666667 | HI18: 1988.666667 | HJ18: 15025 | HK18: 3385.666667 | HL18: 1679.333333 | HM18: 189 | HN18: 1184.333333 | HO18: 12762 | HP18: 7189.333333 | HQ18: 1120.666667 | HR18: 696.6666667 | HS18: 0 | HT18: 20772 | HU18: 8696.666667 | HV18: 2170.666667 | HW18: 3804.333333 | HX18: 1321 | HY18: 424.6666667 | HZ18: 2138.333333 | IA18: 3204.666667 | IB18: 11574 | IC18: 5111 | ID18: 1786 | IE18: 14618.66667 | IF18: 486.6666667 | IG18: 891.6666667 | IH18: 2157.666667 | II18: 359.6666667 | IJ18: 2568.666667 | IK18: 1309.333333 | IL18: 7484 | IM18: 4440.666667 | IN18: 471 | IO18: 6786.333333 | IP18: 1317.333333 | IQ18: 990 | IR18: 4263.333333 | IS18: 526 | IT18: 1576.666667 | IU18: 668 | IV18: 3956.666667 | IW18: 13345.33333 | IX18: 921 | IY18: 155 | IZ18: 4458.333333 | JA18: 2473.666667 | JB18: 795 | JC18: 14761.66667 | JD18: 315.3333333 | JE18: 2163.666667
A19: 2012-01-01 | B19: 5242674 | BE19: Indiana | BF19: 1502 | BG19: 177 | BH19: 2210 | BI19: 1548 | BJ19: 8959 | BK19: 1362 | BL19: 544 | BM19: 0 | BN19: 181 | BO19: 5496 | BP19: 1623 | BQ19: 267 | BR19: 772 | BS19: 27950 | BT19: 0 | BU19: 1885 | BV19: 1582 | BW19: 10643 | BX19: 749 | BY19: 30 | BZ19: 1641 | CA19: 103 | CB19: 9361 | CC19: 916 | CD19: 270 | CE19: 3893 | CF19: 164 | CG19: 705 | CH19: 227 | CI19: 114 | CJ19: 1876 | CK19: 188 | CL19: 2564 | CM19: 2828 | CN19: 0 | CO19: 13272 | CP19: 681 | CQ19: 423 | CR19: 2668 | CS19: 174 | CT19: 584 | CU19: 216 | CV19: 3093 | CW19: 6335 | CX19: 444 | CY19: 45 | CZ19: 3673 | DA19: 571 | DB19: 669 | DC19: 1762 | DD19: 413 | DE19: 572 | DF19: 1562 | DG19: 371 | DH19: 3975 | DI19: 2016 | DJ19: 7649 | DK19: 1930 | DL19: 1227 | DM19: 79 | DN19: 0 | DO19: 8595 | DP19: 2543 | DQ19: 1057 | DR19: 1368 | DS19: 23071 | DT19: 0 | DU19: 916 | DV19: 1321 | DW19: 10177 | DX19: 2241 | DY19: 275 | DZ19: 480 | EA19: 952 | EB19: 7896 | EC19: 1168 | ED19: 469 | EE19: 1824 | EF19: 34 | EG19: 622 | EH19: 511 | EI19: 90 | EJ19: 651 | EK19: 504 | EL19: 2518 | EM19: 3038 | EN19: 70 | EO19: 11109 | EP19: 844 | EQ19: 505 | ER19: 3998 | ES19: 49 | ET19: 3306 | EU19: 235 | EV19: 3879 | EW19: 6326 | EX19: 123 | EY19: 530 | EZ19: 1486 | FA19: 1028 | FB19: 216 | FC19: 2923 | FD19: 117 | FE19: 132 | FF19: 1625 | FG19: 479 | FH19: 2763 | FI19: 564 | FJ19: 6033 | FK19: 1225 | FL19: 823 | FM19: 639 | FN19: 1045 | FO19: 11472 | FP19: 2258 | FQ19: 856 | FR19: 186 | FS19: 28436 | FT19: 0 | FU19: 1678 | FV19: 1624 | FW19: 11177 | FX19: 736 | FY19: 0 | FZ19: 1050 | GA19: 837 | GB19: 11017 | GC19: 1543 | GD19: 1948 | GE19: 4526 | GF19: 134 | GG19: 591 | GH19: 1011 | GI19: 0 | GJ19: 1537 | GK19: 219 | GL19: 2316 | GM19: 2665 | GN19: 113 | GO19: 11235 | GP19: 1198 | GQ19: 387 | GR19: 2419 | GS19: 0 | GT19: 1414 | GU19: 111 | GV19: 3547 | GW19: 4490 | GX19: 105 | GY19: 0 | GZ19: 1932 | HA19: 258 | HB19: 507 | HC19: 1727 | HD19: 1681 | HE19: 136 | HF19: 1563 | HG19: 342.3333333 | HH19: 2982.666667 | HI19: 1376 | HJ19: 7547 | HK19: 1505.666667 | HL19: 864.6666667 | HM19: 239.3333333 | HN19: 408.6666667 | HO19: 8521 | HP19: 2141.333333 | HQ19: 726.6666667 | HR19: 775.3333333 | HS19: 26485.66667 | HT19: 0 | HU19: 1493 | HV19: 1509 | HW19: 10665.66667 | HX19: 1242 | HY19: 101.6666667 | HZ19: 1057 | IA19: 630.6666667 | IB19: 9424.666667 | IC19: 1209 | ID19: 895.6666667 | IE19: 3414.333333 | IF19: 110.6666667 | IG19: 639.3333333 | IH19: 583 | II19: 68 | IJ19: 1354.666667 | IK19: 303.6666667 | IL19: 2466 | IM19: 2843.666667 | IN19: 61 | IO19: 11872 | IP19: 907.6666667 | IQ19: 438.3333333 | IR19: 3028.333333 | IS19: 74.33333333 | IT19: 1768 | IU19: 187.3333333 | IV19: 3506.333333 | IW19: 5717 | IX19: 224 | IY19: 191.6666667 | IZ19: 2363.666667 | JA19: 619 | JB19: 464 | JC19: 2137.333333 | JD19: 737 | JE19: 280
BE20: Iowa | BF20: 330 | BG20: 519 | BH20: 1483 | BI20: 247 | BJ20: 2847 | BK20: 2554 | BL20: 114 | BM20: 0 | BN20: 53 | BO20: 1364 | BP20: 973 | BQ20: 866 | BR20: 315 | BS20: 17016 | BT20: 1710 | BU20: 0 | BV20: 1520 | BW20: 334 | BX20: 315 | BY20: 0 | BZ20: 134 | CA20: 189 | CB20: 1439 | CC20: 7564 | CD20: 117 | CE20: 6031 | CF20: 836 | CG20: 4783 | CH20: 623 | CI20: 381 | CJ20: 472 | CK20: 492 | CL20: 273 | CM20: 1123 | CN20: 601 | CO20: 632 | CP20: 679 | CQ20: 1071 | CR20: 378 | CS20: 0 | CT20: 591 | CU20: 1992 | CV20: 1617 | CW20: 4131 | CX20: 146 | CY20: 45 | CZ20: 303 | DA20: 538 | DB20: 0 | DC20: 2705 | DD20: 111 | DE20: 149 | DF20: 207 | DG20: 967 | DH20: 1411 | DI20: 433 | DJ20: 3297 | DK20: 2891 | DL20: 424 | DM20: 0 | DN20: 0 | DO20: 707 | DP20: 1938 | DQ20: 299 | DR20: 161 | DS20: 13725 | DT20: 349 | DU20: 0 | DV20: 1776 | DW20: 387 | DX20: 228 | DY20: 26 | DZ20: 487 | EA20: 466 | EB20: 1687 | EC20: 5634 | ED20: 408 | EE20: 3649 | EF20: 370 | EG20: 6490 | EH20: 2009 | EI20: 0 | EJ20: 185 | EK20: 421 | EL20: 2361 | EM20: 1760 | EN20: 604 | EO20: 993 | EP20: 532 | EQ20: 811 | ER20: 388 | ES20: 65 | ET20: 172 | EU20: 2842 | EV20: 623 | EW20: 2334 | EX20: 1482 | EY20: 38 | EZ20: 720 | FA20: 856 | FB20: 115 | FC20: 2537 | FD20: 140 | FE20: 57 | FF20: 503 | FG20: 951 | FH20: 1590 | FI20: 451 | FJ20: 3268 | FK20: 3252 | FL20: 112 | FM20: 0 | FN20: 151 | FO20: 4335 | FP20: 596 | FQ20: 521 | FR20: 290 | FS20: 11969 | FT20: 1716 | FU20: 0 | FV20: 918 | FW20: 819 | FX20: 763 | FY20: 78 | FZ20: 419 | GA20: 585 | GB20: 946 | GC20: 7505 | GD20: 751 | GE20: 4168 | GF20: 452 | GG20: 7698 | GH20: 681 | GI20: 56 | GJ20: 1018 | GK20: 114 | GL20: 1230 | GM20: 734 | GN20: 833 | GO20: 1127 | GP20: 1465 | GQ20: 348 | GR20: 451 | GS20: 0 | GT20: 943 | GU20: 1158 | GV20: 1148 | GW20: 3553 | GX20: 886 | GY20: 0 | GZ20: 268 | HA20: 919 | HB20: 22 | HC20: 3607 | HD20: 392 | HE20: 786 | HF20: 346.6666667 | HG20: 812.3333333 | HH20: 1494.666667 | HI20: 377 | HJ20: 3137.333333 | HK20: 2899 | HL20: 216.6666667 | HM20: 0 | HN20: 68 | HO20: 2135.333333 | HP20: 1169 | HQ20: 562 | HR20: 255.3333333 | HS20: 14236.66667 | HT20: 1258.333333 | HU20: 0 | HV20: 1404.666667 | HW20: 513.3333333 | HX20: 435.3333333 | HY20: 34.66666667 | HZ20: 346.6666667 | IA20: 413.3333333 | IB20: 1357.333333 | IC20: 6901 | ID20: 425.3333333 | IE20: 4616 | IF20: 552.6666667 | IG20: 6323.666667 | IH20: 1104.333333 | II20: 145.6666667 | IJ20: 558.3333333 | IK20: 342.3333333 | IL20: 1288 | IM20: 1205.666667 | IN20: 679.3333333 | IO20: 917.3333333 | IP20: 892 | IQ20: 743.3333333 | IR20: 405.6666667 | IS20: 21.66666667 | IT20: 568.6666667 | IU20: 1997.333333 | IV20: 1129.333333 | IW20: 3339.333333 | IX20: 838 | IY20: 27.66666667 | IZ20: 430.3333333 | JA20: 771 | JB20: 45.66666667 | JC20: 2949.666667 | JD20: 214.3333333 | JE20: 330.6666667
BE21: Kansas | BF21: 44 | BG21: 1050 | BH21: 2238 | BI21: 1596 | BJ21: 6125 | BK21: 6022 | BL21: 85 | BM21: 238 | BN21: 0 | BO21: 2863 | BP21: 1916 | BQ21: 128 | BR21: 398 | BS21: 2943 | BT21: 1544 | BU21: 1875 | BV21: 0 | BW21: 1048 | BX21: 890 | BY21: 0 | BZ21: 1369 | CA21: 100 | CB21: 806 | CC21: 1562 | CD21: 167 | CE21: 23384 | CF21: 289 | CG21: 2678 | CH21: 1318 | CI21: 76 | CJ21: 1743 | CK21: 873 | CL21: 2390 | CM21: 1083 | CN21: 225 | CO21: 1509 | CP21: 7568 | CQ21: 514 | CR21: 563 | CS21: 39 | CT21: 137 | CU21: 352 | CV21: 1152 | CW21: 9217 | CX21: 238 | CY21: 75 | CZ21: 1648 | DA21: 1175 | DB21: 0 | DC21: 1233 | DD21: 573 | DE21: 68 | DF21: 434 | DG21: 108 | DH21: 2028 | DI21: 998 | DJ21: 4743 | DK21: 5030 | DL21: 412 | DM21: 74 | DN21: 128 | DO21: 1581 | DP21: 1146 | DQ21: 287 | DR21: 264 | DS21: 2760 | DT21: 863 | DU21: 1715 | DV21: 0 | DW21: 1167 | DX21: 519 | DY21: 481 | DZ21: 3180 | EA21: 28 | EB21: 1947 | EC21: 679 | ED21: 1517 | EE21: 22033 | EF21: 270 | EG21: 1648 | EH21: 657 | EI21: 27 | EJ21: 1189 | EK21: 769 | EL21: 780 | EM21: 1223 | EN21: 379 | EO21: 1616 | EP21: 5022 | EQ21: 285 | ER21: 1494 | ES21: 180 | ET21: 1102 | EU21: 104 | EV21: 1066 | EW21: 6575 | EX21: 196 | EY21: 0 | EZ21: 1986 | FA21: 772 | FB21: 0 | FC21: 893 | FD21: 1285 | FE21: 775 | FF21: 853 | FG21: 333 | FH21: 3094 | FI21: 2158 | FJ21: 5411 | FK21: 3746 | FL21: 210 | FM21: 0 | FN21: 456 | FO21: 3118 | FP21: 1896 | FQ21: 149 | FR21: 456 | FS21: 1702 | FT21: 1679 | FU21: 1527 | FV21: 0 | FW21: 617 | FX21: 438 | FY21: 211 | FZ21: 282 | GA21: 187 | GB21: 1125 | GC21: 682 | GD21: 452 | GE21: 21022 | GF21: 300 | GG21: 4126 | GH21: 851 | GI21: 0 | GJ21: 267 | GK21: 1029 | GL21: 571 | GM21: 813 | GN21: 261 | GO21: 1310 | GP21: 8408 | GQ21: 848 | GR21: 918 | GS21: 18 | GT21: 556 | GU21: 154 | GV21: 1542 | GW21: 8468 | GX21: 97 | GY21: 70 | GZ21: 1705 | HA21: 3265 | HB21: 139 | HC21: 486 | HD21: 278 | HE21: 82 | HF21: 443.6666667 | HG21: 497 | HH21: 2453.333333 | HI21: 1584 | HJ21: 5426.333333 | HK21: 4932.666667 | HL21: 235.6666667 | HM21: 104 | HN21: 194.6666667 | HO21: 2520.666667 | HP21: 1652.666667 | HQ21: 188 | HR21: 372.6666667 | HS21: 2468.333333 | HT21: 1362 | HU21: 1705.666667 | HV21: 0 | HW21: 944 | HX21: 615.6666667 | HY21: 230.6666667 | HZ21: 1610.333333 | IA21: 105 | IB21: 1292.666667 | IC21: 974.3333333 | ID21: 712 | IE21: 22146.33333 | IF21: 286.3333333 | IG21: 2817.333333 | IH21: 942 | II21: 34.33333333 | IJ21: 1066.333333 | IK21: 890.3333333 | IL21: 1247 | IM21: 1039.666667 | IN21: 288.3333333 | IO21: 1478.333333 | IP21: 6999.333333 | IQ21: 549 | IR21: 991.6666667 | IS21: 79 | IT21: 598.3333333 | IU21: 203.3333333 | IV21: 1253.333333 | IW21: 8086.666667 | IX21: 177 | IY21: 48.33333333 | IZ21: 1779.666667 | JA21: 1737.333333 | JB21: 46.33333333 | JC21: 870.6666667 | JD21: 712 | JE21: 308.3333333
BE22: Kentucky | BF22: 2161 | BG22: 3017 | BH22: 2598 | BI22: 558 | BJ22: 3779 | BK22: 329 | BL22: 698 | BM22: 38 | BN22: 147 | BO22: 10119 | BP22: 6397 | BQ22: 520 | BR22: 71 | BS22: 4659 | BT22: 11906 | BU22: 656 | BV22: 1109 | BW22: 0 | BX22: 437 | BY22: 0 | BZ22: 1395 | CA22: 1036 | CB22: 4672 | CC22: 930 | CD22: 1442 | CE22: 3153 | CF22: 0 | CG22: 858 | CH22: 76 | CI22: 0 | CJ22: 1147 | CK22: 122 | CL22: 2057 | CM22: 3758 | CN22: 0 | CO22: 15598 | CP22: 1153 | CQ22: 181 | CR22: 2618 | CS22: 289 | CT22: 1286 | CU22: 163 | CV22: 11153 | CW22: 5758 | CX22: 905 | CY22: 525 | CZ22: 3671 | DA22: 716 | DB22: 2297 | DC22: 1993 | DD22: 292 | DE22: 179 | DF22: 925 | DG22: 0 | DH22: 1818 | DI22: 1058 | DJ22: 2130 | DK22: 221 | DL22: 176 | DM22: 0 | DN22: 201 | DO22: 7400 | DP22: 2725 | DQ22: 63 | DR22: 36 | DS22: 4273 | DT22: 11071 | DU22: 536 | DV22: 253 | DW22: 0 | DX22: 1399 | DY22: 71 | DZ22: 2076 | EA22: 1019 | EB22: 3178 | EC22: 475 | ED22: 1248 | EE22: 2793 | EF22: 216 | EG22: 471 | EH22: 1358 | EI22: 52 | EJ22: 1289 | EK22: 553 | EL22: 2174 | EM22: 3916 | EN22: 117 | EO22: 19617 | EP22: 1256 | EQ22: 459 | ER22: 1490 | ES22: 640 | ET22: 1387 | EU22: 0 | EV22: 16852 | EW22: 4661 | EX22: 140 | EY22: 151 | EZ22: 5154 | FA22: 1121 | FB22: 1174 | FC22: 581 | FD22: 57 | FE22: 192 | FF22: 4137 | FG22: 304 | FH22: 1103 | FI22: 518 | FJ22: 3415 | FK22: 712 | FL22: 246 | FM22: 706 | FN22: 254 | FO22: 9232 | FP22: 4173 | FQ22: 647 | FR22: 50 | FS22: 4445 | FT22: 12203 | FU22: 238 | FV22: 602 | FW22: 0 | FX22: 666 | FY22: 46 | FZ22: 1120 | GA22: 419 | GB22: 7302 | GC22: 605 | GD22: 646 | GE22: 2381 | GF22: 0 | GG22: 723 | GH22: 301 | GI22: 84 | GJ22: 496 | GK22: 554 | GL22: 5239 | GM22: 3643 | GN22: 122 | GO22: 17041 | GP22: 577 | GQ22: 298 | GR22: 2226 | GS22: 0 | GT22: 1347 | GU22: 0 | GV22: 10064 | GW22: 3345 | GX22: 464 | GY22: 45 | GZ22: 3319 | HA22: 1988 | HB22: 3346 | HC22: 1395 | HD22: 0 | HE22: 170 | HF22: 2407.666667 | HG22: 1107 | HH22: 1839.666667 | HI22: 711.3333333 | HJ22: 3108 | HK22: 420.6666667 | HL22: 373.3333333 | HM22: 248 | HN22: 200.6666667 | HO22: 8917 | HP22: 4431.666667 | HQ22: 410 | HR22: 52.33333333 | HS22: 4459 | HT22: 11726.66667 | HU22: 476.6666667 | HV22: 654.6666667 | HW22: 0 | HX22: 834 | HY22: 39 | HZ22: 1530.333333 | IA22: 824.6666667 | IB22: 5050.666667 | IC22: 670 | ID22: 1112 | IE22: 2775.666667 | IF22: 72 | IG22: 684 | IH22: 578.3333333 | II22: 45.33333333 | IJ22: 977.3333333 | IK22: 409.6666667 | IL22: 3156.666667 | IM22: 3772.333333 | IN22: 79.66666667 | IO22: 17418.66667 | IP22: 995.3333333 | IQ22: 312.6666667 | IR22: 2111.333333 | IS22: 309.6666667 | IT22: 1340 | IU22: 54.33333333 | IV22: 12689.66667 | IW22: 4588 | IX22: 503 | IY22: 240.3333333 | IZ22: 4048 | JA22: 1275 | JB22: 2272.333333 | JC22: 1323 | JD22: 116.3333333 | JE22: 180.3333333
BE23: Louisiana | BF23: 5740 | BG23: 1504 | BH23: 1960 | BI23: 2382 | BJ23: 5751 | BK23: 1215 | BL23: 89 | BM23: 0 | BN23: 264 | BO23: 9394 | BP23: 5766 | BQ23: 342 | BR23: 202 | BS23: 2131 | BT23: 948 | BU23: 625 | BV23: 706 | BW23: 1656 | BX23: 0 | BY23: 162 | BZ23: 963 | CA23: 995 | CB23: 1301 | CC23: 569 | CD23: 7032 | CE23: 2852 | CF23: 40 | CG23: 119 | CH23: 1552 | CI23: 462 | CJ23: 171 | CK23: 294 | CL23: 2161 | CM23: 1443 | CN23: 438 | CO23: 1100 | CP23: 1074 | CQ23: 281 | CR23: 1350 | CS23: 0 | CT23: 1130 | CU23: 0 | CV23: 1853 | CW23: 26134 | CX23: 473 | CY23: 0 | CZ23: 1278 | DA23: 1509 | DB23: 210 | DC23: 237 | DD23: 31 | DE23: 402 | DF23: 3065 | DG23: 288 | DH23: 2010 | DI23: 2774 | DJ23: 3957 | DK23: 1202 | DL23: 358 | DM23: 0 | DN23: 195 | DO23: 5193 | DP23: 4425 | DQ23: 688 | DR23: 230 | DS23: 1189 | DT23: 1549 | DU23: 468 | DV23: 312 | DW23: 1520 | DX23: 0 | DY23: 120 | DZ23: 1221 | EA23: 439 | EB23: 1163 | EC23: 698 | ED23: 10255 | EE23: 1375 | EF23: 278 | EG23: 176 | EH23: 994 | EI23: 15 | EJ23: 453 | EK23: 1028 | EL23: 1360 | EM23: 2134 | EN23: 277 | EO23: 2641 | EP23: 4235 | EQ23: 1531 | ER23: 455 | ES23: 268 | ET23: 1573 | EU23: 37 | EV23: 2495 | EW23: 30292 | EX23: 179 | EY23: 87 | EZ23: 2055 | FA23: 1075 | FB23: 110 | FC23: 339 | FD23: 357 | FE23: 393 | FF23: 2329 | FG23: 403 | FH23: 2021 | FI23: 3645 | FJ23: 5139 | FK23: 1433 | FL23: 164 | FM23: 0 | FN23: 596 | FO23: 6534 | FP23: 4478 | FQ23: 378 | FR23: 265 | FS23: 1229 | FT23: 1359 | FU23: 544 | FV23: 420 | FW23: 1649 | FX23: 0 | FY23: 251 | FZ23: 642 | GA23: 549 | GB23: 1080 | GC23: 330 | GD23: 6791 | GE23: 1591 | GF23: 428 | GG23: 745 | GH23: 931 | GI23: 11 | GJ23: 975 | GK23: 150 | GL23: 2786 | GM23: 2284 | GN23: 64 | GO23: 1115 | GP23: 2159 | GQ23: 195 | GR23: 1239 | GS23: 737 | GT23: 1914 | GU23: 0 | GV23: 2348 | GW23: 24488 | GX23: 277 | GY23: 45 | GZ23: 1857 | HA23: 1581 | HB23: 238 | HC23: 682 | HD23: 146 | HE23: 655 | HF23: 3711.333333 | HG23: 731.6666667 | HH23: 1997 | HI23: 2933.666667 | HJ23: 4949 | HK23: 1283.333333 | HL23: 203.6666667 | HM23: 0 | HN23: 351.6666667 | HO23: 7040.333333 | HP23: 4889.666667 | HQ23: 469.3333333 | HR23: 232.3333333 | HS23: 1516.333333 | HT23: 1285.333333 | HU23: 545.6666667 | HV23: 479.3333333 | HW23: 1608.333333 | HX23: 0 | HY23: 177.6666667 | HZ23: 942 | IA23: 661 | IB23: 1181.333333 | IC23: 532.3333333 | ID23: 8026 | IE23: 1939.333333 | IF23: 248.6666667 | IG23: 346.6666667 | IH23: 1159 | II23: 162.6666667 | IJ23: 533 | IK23: 490.6666667 | IL23: 2102.333333 | IM23: 1953.666667 | IN23: 259.6666667 | IO23: 1618.666667 | IP23: 2489.333333 | IQ23: 669 | IR23: 1014.666667 | IS23: 335 | IT23: 1539 | IU23: 12.33333333 | IV23: 2232 | IW23: 26971.33333 | IX23: 309.6666667 | IY23: 44 | IZ23: 1730 | JA23: 1388.333333 | JB23: 186 | JC23: 419.3333333 | JD23: 178 | JE23: 483.3333333
BE24: Maine | BF24: 402 | BG24: 424 | BH24: 254 | BI24: 67 | BJ24: 1066 | BK24: 478 | BL24: 1361 | BM24: 174 | BN24: 55 | BO24: 3025 | BP24: 844 | BQ24: 62 | BR24: 0 | BS24: 311 | BT24: 259 | BU24: 337 | BV24: 56 | BW24: 484 | BX24: 115 | BY24: 0 | BZ24: 243 | CA24: 3521 | CB24: 122 | CC24: 91 | CD24: 0 | CE24: 201 | CF24: 275 | CG24: 204 | CH24: 345 | CI24: 4058 | CJ24: 902 | CK24: 234 | CL24: 2339 | CM24: 1001 | CN24: 55 | CO24: 315 | CP24: 124 | CQ24: 0 | CR24: 375 | CS24: 379 | CT24: 148 | CU24: 0 | CV24: 249 | CW24: 458 | CX24: 390 | CY24: 420 | CZ24: 654 | DA24: 381 | DB24: 0 | DC24: 0 | DD24: 500 | DE24: 204 | DF24: 634 | DG24: 37 | DH24: 325 | DI24: 38 | DJ24: 829 | DK24: 290 | DL24: 2481 | DM24: 238 | DN24: 239 | DO24: 4304 | DP24: 507 | DQ24: 177 | DR24: 0 | DS24: 675 | DT24: 164 | DU24: 275 | DV24: 523 | DW24: 158 | DX24: 138 | DY24: 0 | DZ24: 52 | EA24: 4439 | EB24: 702 | EC24: 296 | ED24: 0 | EE24: 325 | EF24: 10 | EG24: 0 | EH24: 150 | EI24: 4302 | EJ24: 694 | EK24: 144 | EL24: 2589 | EM24: 1439 | EN24: 19 | EO24: 483 | EP24: 25 | EQ24: 471 | ER24: 915 | ES24: 234 | ET24: 587 | EU24: 42 | EV24: 394 | EW24: 1637 | EX24: 182 | EY24: 612 | EZ24: 570 | FA24: 88 | FB24: 43 | FC24: 321 | FD24: 21 | FE24: 65 | FF24: 129 | FG24: 38 | FH24: 230 | FI24: 0 | FJ24: 1610 | FK24: 314 | FL24: 1468 | FM24: 234 | FN24: 32 | FO24: 2926 | FP24: 511 | FQ24: 0 | FR24: 143 | FS24: 195 | FT24: 0 | FU24: 7 | FV24: 277 | FW24: 482 | FX24: 15 | FY24: 0 | FZ24: 325 | GA24: 3887 | GB24: 116 | GC24: 430 | GD24: 79 | GE24: 69 | GF24: 0 | GG24: 82 | GH24: 35 | GI24: 3655 | GJ24: 405 | GK24: 272 | GL24: 2519 | GM24: 1112 | GN24: 0 | GO24: 628 | GP24: 79 | GQ24: 215 | GR24: 976 | GS24: 1024 | GT24: 173 | GU24: 0 | GV24: 985 | GW24: 496 | GX24: 200 | GY24: 349 | GZ24: 573 | HA24: 118 | HB24: 51 | HC24: 0 | HD24: 59 | HE24: 38 | HF24: 388.3333333 | HG24: 166.3333333 | HH24: 269.6666667 | HI24: 35 | HJ24: 1168.333333 | HK24: 360.6666667 | HL24: 1770 | HM24: 215.3333333 | HN24: 108.6666667 | HO24: 3418.333333 | HP24: 620.6666667 | HQ24: 79.66666667 | HR24: 47.66666667 | HS24: 393.6666667 | HT24: 141 | HU24: 206.3333333 | HV24: 285.3333333 | HW24: 374.6666667 | HX24: 89.33333333 | HY24: 0 | HZ24: 206.6666667 | IA24: 3949 | IB24: 313.3333333 | IC24: 272.3333333 | ID24: 26.33333333 | IE24: 198.3333333 | IF24: 95 | IG24: 95.33333333 | IH24: 176.6666667 | II24: 4005 | IJ24: 667 | IK24: 216.6666667 | IL24: 2482.333333 | IM24: 1184 | IN24: 24.66666667 | IO24: 475.3333333 | IP24: 76 | IQ24: 228.6666667 | IR24: 755.3333333 | IS24: 545.6666667 | IT24: 302.6666667 | IU24: 14 | IV24: 542.6666667 | IW24: 863.6666667 | IX24: 257.3333333 | IY24: 460.3333333 | IZ24: 599 | JA24: 195.6666667 | JB24: 31.33333333 | JC24: 107 | JD24: 193.3333333 | JE24: 102.3333333
BE25: Maryland | BF25: 1641 | BG25: 2672 | BH25: 1124 | BI25: 273 | BJ25: 8206 | BK25: 2501 | BL25: 1603 | BM25: 8340 | BN25: 23202 | BO25: 6564 | BP25: 3454 | BQ25: 422 | BR25: 357 | BS25: 3300 | BT25: 431 | BU25: 160 | BV25: 781 | BW25: 396 | BX25: 1376 | BY25: 53 | BZ25: 0 | CA25: 1983 | CB25: 3572 | CC25: 820 | CD25: 403 | CE25: 1147 | CF25: 86 | CG25: 54 | CH25: 979 | CI25: 1369 | CJ25: 9058 | CK25: 238 | CL25: 10736 | CM25: 5787 | CN25: 0 | CO25: 3277 | CP25: 607 | CQ25: 723 | CR25: 13467 | CS25: 782 | CT25: 1710 | CU25: 49 | CV25: 2669 | CW25: 5883 | CX25: 655 | CY25: 350 | CZ25: 24765 | DA25: 1542 | DB25: 4363 | DC25: 324 | DD25: 230 | DE25: 612 | DF25: 228 | DG25: 671 | DH25: 945 | DI25: 423 | DJ25: 8595 | DK25: 1796 | DL25: 1608 | DM25: 6652 | DN25: 18492 | DO25: 7825 | DP25: 7113 | DQ25: 1170 | DR25: 389 | DS25: 2392 | DT25: 1318 | DU25: 110 | DV25: 689 | DW25: 848 | DX25: 860 | DY25: 1526 | DZ25: 0 | EA25: 3470 | EB25: 2077 | EC25: 810 | ED25: 1109 | EE25: 1469 | EF25: 73 | EG25: 0 | EH25: 1105 | EI25: 232 | EJ25: 9627 | EK25: 797 | EL25: 9222 | EM25: 6686 | EN25: 0 | EO25: 3396 | EP25: 845 | EQ25: 276 | ER25: 14158 | ES25: 197 | ET25: 2882 | EU25: 0 | EV25: 1942 | EW25: 3619 | EX25: 223 | EY25: 40 | EZ25: 22089 | FA25: 1525 | FB25: 2027 | FC25: 353 | FD25: 80 | FE25: 779 | FF25: 1261 | FG25: 1947 | FH25: 760 | FI25: 136 | FJ25: 8614 | FK25: 1071 | FL25: 881 | FM25: 4100 | FN25: 21213 | FO25: 9610 | FP25: 4610 | FQ25: 610 | FR25: 429 | FS25: 3621 | FT25: 1210 | FU25: 569 | FV25: 1726 | FW25: 715 | FX25: 606 | FY25: 332 | FZ25: 0 | GA25: 3977 | GB25: 2167 | GC25: 1422 | GD25: 581 | GE25: 256 | GF25: 0 | GG25: 132 | GH25: 330 | GI25: 1124 | GJ25: 6260 | GK25: 638 | GL25: 11736 | GM25: 7507 | GN25: 116 | GO25: 2522 | GP25: 463 | GQ25: 378 | GR25: 15485 | GS25: 82 | GT25: 2297 | GU25: 0 | GV25: 1800 | GW25: 5612 | GX25: 1061 | GY25: 589 | GZ25: 20579 | HA25: 1431 | HB25: 1957 | HC25: 460 | HD25: 0 | HE25: 294 | HF25: 1043.333333 | HG25: 1763.333333 | HH25: 943 | HI25: 277.3333333 | HJ25: 8471.666667 | HK25: 1789.333333 | HL25: 1364 | HM25: 6364 | HN25: 20969 | HO25: 7999.666667 | HP25: 5059 | HQ25: 734 | HR25: 391.6666667 | HS25: 3104.333333 | HT25: 986.3333333 | HU25: 279.6666667 | HV25: 1065.333333 | HW25: 653 | HX25: 947.3333333 | HY25: 637 | HZ25: 0 | IA25: 3143.333333 | IB25: 2605.333333 | IC25: 1017.333333 | ID25: 697.6666667 | IE25: 957.3333333 | IF25: 53 | IG25: 62 | IH25: 804.6666667 | II25: 908.3333333 | IJ25: 8315 | IK25: 557.6666667 | IL25: 10564.66667 | IM25: 6660 | IN25: 38.66666667 | IO25: 3065 | IP25: 638.3333333 | IQ25: 459 | IR25: 14370 | IS25: 353.6666667 | IT25: 2296.333333 | IU25: 16.33333333 | IV25: 2137 | IW25: 5038 | IX25: 646.3333333 | IY25: 326.3333333 | IZ25: 22477.66667 | JA25: 1499.333333 | JB25: 2782.333333 | JC25: 379 | JD25: 103.3333333 | JE25: 561.6666667
A26: pvtState1ChangedResidence | BE26: Massachusetts | BF26: 583 | BG26: 1891 | BH26: 1572 | BI26: 206 | BJ26: 14971 | BK26: 1051 | BL26: 13270 | BM26: 131 | BN26: 1539 | BO26: 11118 | BP26: 1409 | BQ26: 682 | BR26: 79 | BS26: 2842 | BT26: 1891 | BU26: 307 | BV26: 0 | BW26: 340 | BX26: 0 | BY26: 4666 | BZ26: 3660 | CA26: 0 | CB26: 1624 | CC26: 2185 | CD26: 453 | CE26: 1957 | CF26: 388 | CG26: 46 | CH26: 792 | CI26: 9911 | CJ26: 4709 | CK26: 161 | CL26: 20002 | CM26: 2798 | CN26: 0 | CO26: 2163 | CP26: 158 | CQ26: 228 | CR26: 5316 | CS26: 6965 | CT26: 1659 | CU26: 0 | CV26: 918 | CW26: 7073 | CX26: 207 | CY26: 1526 | CZ26: 4542 | DA26: 1627 | DB26: 0 | DC26: 546 | DD26: 0 | DE26: 3085 | DF26: 1201 | DG26: 225 | DH26: 1017 | DI26: 167 | DJ26: 11556 | DK26: 1388 | DL26: 9445 | DM26: 399 | DN26: 676 | DO26: 11396 | DP26: 3264 | DQ26: 733 | DR26: 412 | DS26: 2991 | DT26: 640 | DU26: 138 | DV26: 969 | DW26: 180 | DX26: 977 | DY26: 4006 | DZ26: 2762 | EA26: 0 | EB26: 2629 | EC26: 862 | ED26: 356 | EE26: 1261 | EF26: 596 | EG26: 637 | EH26: 163 | EI26: 12010 | EJ26: 8332 | EK26: 199 | EL26: 19431 | EM26: 3964 | EN26: 61 | EO26: 1757 | EP26: 90 | EQ26: 178 | ER26: 6538 | ES26: 10182 | ET26: 1621 | EU26: 44 | EV26: 371 | EW26: 5203 | EX26: 548 | EY26: 2246 | EZ26: 2984 | FA26: 1673 | FB26: 911 | FC26: 441 | FD26: 0 | FE26: 4413 | FF26: 636 | FG26: 890 | FH26: 1972 | FI26: 394 | FJ26: 12770 | FK26: 980 | FL26: 10525 | FM26: 506 | FN26: 379 | FO26: 12890 | FP26: 2789 | FQ26: 1108 | FR26: 188 | FS26: 2886 | FT26: 677 | FU26: 151 | FV26: 565 | FW26: 52 | FX26: 1556 | FY26: 3907 | FZ26: 2381 | GA26: 0 | GB26: 1337 | GC26: 966 | GD26: 155 | GE26: 453 | GF26: 49 | GG26: 182 | GH26: 787 | GI26: 13331 | GJ26: 8046 | GK26: 521 | GL26: 19467 | GM26: 2514 | GN26: 81 | GO26: 1829 | GP26: 297 | GQ26: 1528 | GR26: 8236 | GS26: 6863 | GT26: 2477 | GU26: 194 | GV26: 823 | GW26: 3694 | GX26: 1027 | GY26: 2534 | GZ26: 4098 | HA26: 1653 | HB26: 385 | HC26: 584 | HD26: 264 | HE26: 4056 | HF26: 806.6666667 | HG26: 1002 | HH26: 1520.333333 | HI26: 255.6666667 | HJ26: 13099 | HK26: 1139.666667 | HL26: 11080 | HM26: 345.3333333 | HN26: 864.6666667 | HO26: 11801.33333 | HP26: 2487.333333 | HQ26: 841 | HR26: 226.3333333 | HS26: 2906.333333 | HT26: 1069.333333 | HU26: 198.6666667 | HV26: 511.3333333 | HW26: 190.6666667 | HX26: 844.3333333 | HY26: 4193 | HZ26: 2934.333333 | IA26: 0 | IB26: 1863.333333 | IC26: 1337.666667 | ID26: 321.3333333 | IE26: 1223.666667 | IF26: 344.3333333 | IG26: 288.3333333 | IH26: 580.6666667 | II26: 11750.66667 | IJ26: 7029 | IK26: 293.6666667 | IL26: 19633.33333 | IM26: 3092 | IN26: 47.33333333 | IO26: 1916.333333 | IP26: 181.6666667 | IQ26: 644.6666667 | IR26: 6696.666667 | IS26: 8003.333333 | IT26: 1919 | IU26: 79.33333333 | IV26: 704 | IW26: 5323.333333 | IX26: 594 | IY26: 2102 | IZ26: 3874.666667 | JA26: 1651 | JB26: 432 | JC26: 523.6666667 | JD26: 88 | JE26: 3851.333333
A27: Sum of Changed Residence Last Yr | BE27: Michigan | BF27: 2403 | BG27: 1040 | BH27: 3197 | BI27: 636 | BJ27: 6726 | BK27: 2031 | BL27: 277 | BM27: 167 | BN27: 471 | BO27: 11646 | BP27: 3913 | BQ27: 313 | BR27: 66 | BS27: 10651 | BT27: 7816 | BU27: 758 | BV27: 640 | BW27: 2353 | BX27: 1342 | BY27: 645 | BZ27: 620 | CA27: 1206 | CB27: 0 | CC27: 1275 | CD27: 656 | CE27: 2921 | CF27: 312 | CG27: 213 | CH27: 1874 | CI27: 437 | CJ27: 1676 | CK27: 669 | CL27: 3135 | CM27: 2444 | CN27: 53 | CO27: 9783 | CP27: 2276 | CQ27: 537 | CR27: 3134 | CS27: 653 | CT27: 1446 | CU27: 706 | CV27: 4453 | CW27: 7184 | CX27: 545 | CY27: 45 | CZ27: 2073 | DA27: 1427 | DB27: 446 | DC27: 6291 | DD27: 568 | DE27: 1432 | DF27: 3527 | DG27: 3456 | DH27: 3840 | DI27: 2054 | DJ27: 7793 | DK27: 3425 | DL27: 1656 | DM27: 0 | DN27: 256 | DO27: 17712 | DP27: 4254 | DQ27: 630 | DR27: 882 | DS27: 9897 | DT27: 7668 | DU27: 1709 | DV27: 1148 | DW27: 2578 | DX27: 955 | DY27: 599 | DZ27: 1035 | EA27: 2861 | EB27: 0 | EC27: 2671 | ED27: 715 | EE27: 2509 | EF27: 84 | EG27: 439 | EH27: 1215 | EI27: 73 | EJ27: 1849 | EK27: 508 | EL27: 6087 | EM27: 3405 | EN27: 159 | EO27: 11224 | EP27: 917 | EQ27: 647 | ER27: 2864 | ES27: 385 | ET27: 2185 | EU27: 571 | EV27: 3106 | EW27: 9935 | EX27: 642 | EY27: 0 | EZ27: 2327 | FA27: 1430 | FB27: 417 | FC27: 4018 | FD27: 841 | FE27: 908 | FF27: 2341 | FG27: 1152 | FH27: 7168 | FI27: 906 | FJ27: 8085 | FK27: 2363 | FL27: 798 | FM27: 114 | FN27: 274 | FO27: 13146 | FP27: 4270 | FQ27: 291 | FR27: 242 | FS27: 10047 | FT27: 10976 | FU27: 993 | FV27: 805 | FW27: 3409 | FX27: 1284 | FY27: 261 | FZ27: 2201 | GA27: 1720 | GB27: 0 | GC27: 1127 | GD27: 922 | GE27: 2206 | GF27: 218 | GG27: 113 | GH27: 1354 | GI27: 446 | GJ27: 1617 | GK27: 1318 | GL27: 5731 | GM27: 3912 | GN27: 265 | GO27: 11318 | GP27: 705 | GQ27: 811 | GR27: 2739 | GS27: 68 | GT27: 1822 | GU27: 66 | GV27: 3259 | GW27: 8638 | GX27: 819 | GY27: 60 | GZ27: 3057 | HA27: 2146 | HB27: 353 | HC27: 4768 | HD27: 1277 | HE27: 782 | HF27: 2757 | HG27: 1882.666667 | HH27: 4735 | HI27: 1198.666667 | HJ27: 7534.666667 | HK27: 2606.333333 | HL27: 910.3333333 | HM27: 93.66666667 | HN27: 333.6666667 | HO27: 14168 | HP27: 4145.666667 | HQ27: 411.3333333 | HR27: 396.6666667 | HS27: 10198.33333 | HT27: 8820 | HU27: 1153.333333 | HV27: 864.3333333 | HW27: 2780 | HX27: 1193.666667 | HY27: 501.6666667 | HZ27: 1285.333333 | IA27: 1929 | IB27: 0 | IC27: 1691 | ID27: 764.3333333 | IE27: 2545.333333 | IF27: 204.6666667 | IG27: 255 | IH27: 1481 | II27: 318.6666667 | IJ27: 1714 | IK27: 831.6666667 | IL27: 4984.333333 | IM27: 3253.666667 | IN27: 159 | IO27: 10775 | IP27: 1299.333333 | IQ27: 665 | IR27: 2912.333333 | IS27: 368.6666667 | IT27: 1817.666667 | IU27: 447.6666667 | IV27: 3606 | IW27: 8585.666667 | IX27: 668.6666667 | IY27: 35 | IZ27: 2485.666667 | JA27: 1667.666667 | JB27: 405.3333333 | JC27: 5025.666667 | JD27: 895.3333333 | JE27: 1040.666667
B28: Arizona | BE28: Minnesota | BF28: 266 | BG28: 1169 | BH28: 4165 | BI28: 279 | BJ28: 6233 | BK28: 2521 | BL28: 211 | BM28: 176 | BN28: 306 | BO28: 2575 | BP28: 1776 | BQ28: 227 | BR28: 231 | BS28: 6641 | BT28: 1120 | BU28: 4948 | BV28: 1067 | BW28: 402 | BX28: 519 | BY28: 172 | BZ28: 1259 | CA28: 1092 | CB28: 2631 | CC28: 0 | CD28: 196 | CE28: 1549 | CF28: 1020 | CG28: 734 | CH28: 540 | CI28: 183 | CJ28: 513 | CK28: 151 | CL28: 1309 | CM28: 1673 | CN28: 7316 | CO28: 1035 | CP28: 284 | CQ28: 738 | CR28: 730 | CS28: 123 | CT28: 1597 | CU28: 3237 | CV28: 1155 | CW28: 2619 | CX28: 1013 | CY28: 0 | CZ28: 2371 | DA28: 1328 | DB28: 200 | DC28: 17929 | DD28: 343 | DE28: 39 | DF28: 123 | DG28: 893 | DH28: 2314 | DI28: 951 | DJ28: 6638 | DK28: 2662 | DL28: 74 | DM28: 86 | DN28: 367 | DO28: 2820 | DP28: 840 | DQ28: 901 | DR28: 402 | DS28: 8209 | DT28: 786 | DU28: 6175 | DV28: 606 | DW28: 755 | DX28: 573 | DY28: 321 | DZ28: 424 | EA28: 970 | EB28: 5164 | EC28: 0 | ED28: 549 | EE28: 1345 | EF28: 1457 | EG28: 1936 | EH28: 2682 | EI28: 21 | EJ28: 631 | EK28: 540 | EL28: 2416 | EM28: 845 | EN28: 7574 | EO28: 1961 | EP28: 546 | EQ28: 1800 | ER28: 870 | ES28: 0 | ET28: 447 | EU28: 5305 | EV28: 874 | EW28: 3062 | EX28: 919 | EY28: 177 | EZ28: 1034 | FA28: 1413 | FB28: 92 | FC28: 19255 | FD28: 224 | FE28: 54 | FF28: 1299 | FG28: 523 | FH28: 3065 | FI28: 375 | FJ28: 8086 | FK28: 3565 | FL28: 696 | FM28: 0 | FN28: 310 | FO28: 2372 | FP28: 2235 | FQ28: 1277 | FR28: 575 | FS28: 5896 | FT28: 2026 | FU28: 7220 | FV28: 924 | FW28: 57 | FX28: 791 | FY28: 187 | FZ28: 1841 | GA28: 814 | GB28: 2212 | GC28: 0 | GD28: 202 | GE28: 1709 | GF28: 1257 | GG28: 992 | GH28: 932 | GI28: 0 | GJ28: 1038 | GK28: 322 | GL28: 1849 | GM28: 1745 | GN28: 6672 | GO28: 2635 | GP28: 1212 | GQ28: 781 | GR28: 1106 | GS28: 299 | GT28: 1705 | GU28: 3442 | GV28: 1738 | GW28: 4001 | GX28: 429 | GY28: 77 | GZ28: 1037 | HA28: 1685 | HB28: 0 | HC28: 17618 | HD28: 213 | HE28: 134 | HF28: 562.6666667 | HG28: 861.6666667 | HH28: 3181.333333 | HI28: 535 | HJ28: 6985.666667 | HK28: 2916 | HL28: 327 | HM28: 87.33333333 | HN28: 327.6666667 | HO28: 2589 | HP28: 1617 | HQ28: 801.6666667 | HR28: 402.6666667 | HS28: 6915.333333 | HT28: 1310.666667 | HU28: 6114.333333 | HV28: 865.6666667 | HW28: 404.6666667 | HX28: 627.6666667 | HY28: 226.6666667 | HZ28: 1174.666667 | IA28: 958.6666667 | IB28: 3335.666667 | IC28: 0 | ID28: 315.6666667 | IE28: 1534.333333 | IF28: 1244.666667 | IG28: 1220.666667 | IH28: 1384.666667 | II28: 68 | IJ28: 727.3333333 | IK28: 337.6666667 | IL28: 1858 | IM28: 1421 | IN28: 7187.333333 | IO28: 1877 | IP28: 680.6666667 | IQ28: 1106.333333 | IR28: 902 | IS28: 140.6666667 | IT28: 1249.666667 | IU28: 3994.666667 | IV28: 1255.666667 | IW28: 3227.333333 | IX28: 787 | IY28: 84.66666667 | IZ28: 1480.666667 | JA28: 1475.333333 | JB28: 97.33333333 | JC28: 18267.33333 | JD28: 260 | JE28: 75.66666667
A29: 2010-01-01 | B29: 1001991 | BE29: Mississippi | BF29: 8306 | BG29: 1192 | BH29: 187 | BI29: 4941 | BJ29: 3000 | BK29: 1167 | BL29: 71 | BM29: 0 | BN29: 0 | BO29: 4814 | BP29: 4014 | BQ29: 276 | BR29: 121 | BS29: 3030 | BT29: 1403 | BU29: 114 | BV29: 330 | BW29: 407 | BX29: 7390 | BY29: 0 | BZ29: 649 | CA29: 107 | CB29: 2495 | CC29: 863 | CD29: 0 | CE29: 959 | CF29: 314 | CG29: 0 | CH29: 408 | CI29: 0 | CJ29: 403 | CK29: 633 | CL29: 1026 | CM29: 2227 | CN29: 0 | CO29: 1312 | CP29: 663 | CQ29: 0 | CR29: 750 | CS29: 145 | CT29: 1860 | CU29: 56 | CV29: 8158 | CW29: 5755 | CX29: 232 | CY29: 0 | CZ29: 572 | DA29: 508 | DB29: 94 | DC29: 879 | DD29: 490 | DE29: 814 | DF29: 8922 | DG29: 117 | DH29: 556 | DI29: 2315 | DJ29: 4723 | DK29: 484 | DL29: 54 | DM29: 0 | DN29: 415 | DO29: 6152 | DP29: 3136 | DQ29: 369 | DR29: 55 | DS29: 2068 | DT29: 611 | DU29: 650 | DV29: 66 | DW29: 1626 | DX29: 7139 | DY29: 0 | DZ29: 265 | EA29: 1445 | EB29: 1610 | EC29: 614 | ED29: 0 | EE29: 1581 | EF29: 0 | EG29: 118 | EH29: 84 | EI29: 65 | EJ29: 269 | EK29: 1075 | EL29: 364 | EM29: 483 | EN29: 0 | EO29: 991 | EP29: 566 | EQ29: 74 | ER29: 2568 | ES29: 41 | ET29: 398 | EU29: 6 | EV29: 7683 | EW29: 5243 | EX29: 332 | EY29: 0 | EZ29: 1453 | FA29: 286 | FB29: 303 | FC29: 1136 | FD29: 0 | FE29: 318 | FF29: 5141 | FG29: 0 | FH29: 710 | FI29: 2680 | FJ29: 4371 | FK29: 799 | FL29: 106 | FM29: 0 | FN29: 97 | FO29: 4676 | FP29: 2669 | FQ29: 184 | FR29: 586 | FS29: 2703 | FT29: 1200 | FU29: 160 | FV29: 400 | FW29: 446 | FX29: 8588 | FY29: 163 | FZ29: 379 | GA29: 67 | GB29: 1768 | GC29: 568 | GD29: 0 | GE29: 2634 | GF29: 166 | GG29: 138 | GH29: 526 | GI29: 60 | GJ29: 2127 | GK29: 86 | GL29: 1492 | GM29: 1709 | GN29: 98 | GO29: 896 | GP29: 562 | GQ29: 465 | GR29: 613 | GS29: 185 | GT29: 596 | GU29: 79 | GV29: 11643 | GW29: 7230 | GX29: 454 | GY29: 0 | GZ29: 1929 | HA29: 433 | HB29: 0 | HC29: 611 | HD29: 307 | HE29: 81 | HF29: 7456.333333 | HG29: 436.3333333 | HH29: 484.3333333 | HI29: 3312 | HJ29: 4031.333333 | HK29: 816.6666667 | HL29: 77 | HM29: 0 | HN29: 170.6666667 | HO29: 5214 | HP29: 3273 | HQ29: 276.3333333 | HR29: 254 | HS29: 2600.333333 | HT29: 1071.333333 | HU29: 308 | HV29: 265.3333333 | HW29: 826.3333333 | HX29: 7705.666667 | HY29: 54.33333333 | HZ29: 431 | IA29: 539.6666667 | IB29: 1957.666667 | IC29: 681.6666667 | ID29: 0 | IE29: 1724.666667 | IF29: 160 | IG29: 85.33333333 | IH29: 339.3333333 | II29: 41.66666667 | IJ29: 933 | IK29: 598 | IL29: 960.6666667 | IM29: 1473 | IN29: 32.66666667 | IO29: 1066.333333 | IP29: 597 | IQ29: 179.6666667 | IR29: 1310.333333 | IS29: 123.6666667 | IT29: 951.3333333 | IU29: 47 | IV29: 9161.333333 | IW29: 6076 | IX29: 339.3333333 | IY29: 0 | IZ29: 1318 | JA29: 409 | JB29: 132.3333333 | JC29: 875.3333333 | JD29: 265.6666667 | JE29: 404.3333333
A30: 2011-01-01 | B30: 1028366 | BE30: Missouri | BF30: 819 | BG30: 1051 | BH30: 2988 | BI30: 4381 | BJ30: 9840 | BK30: 1903 | BL30: 243 | BM30: 314 | BN30: 478 | BO30: 8317 | BP30: 2492 | BQ30: 380 | BR30: 830 | BS30: 21277 | BT30: 3351 | BU30: 4708 | BV30: 23427 | BW30: 2552 | BX30: 2238 | BY30: 171 | BZ30: 1359 | CA30: 1395 | CB30: 2610 | CC30: 1701 | CD30: 1183 | CE30: 0 | CF30: 220 | CG30: 2636 | CH30: 1060 | CI30: 108 | CJ30: 1320 | CK30: 150 | CL30: 2630 | CM30: 1825 | CN30: 848 | CO30: 2163 | CP30: 4647 | CQ30: 314 | CR30: 1639 | CS30: 0 | CT30: 954 | CU30: 512 | CV30: 3311 | CW30: 12884 | CX30: 1319 | CY30: 498 | CZ30: 3206 | DA30: 1107 | DB30: 177 | DC30: 1331 | DD30: 359 | DE30: 867 | DF30: 1395 | DG30: 2043 | DH30: 2356 | DI30: 6168 | DJ30: 8386 | DK30: 3144 | DL30: 1516 | DM30: 0 | DN30: 215 | DO30: 4513 | DP30: 2964 | DQ30: 871 | DR30: 560 | DS30: 20161 | DT30: 4404 | DU30: 4811 | DV30: 20884 | DW30: 1993 | DX30: 1728 | DY30: 291 | DZ30: 716 | EA30: 463 | EB30: 2830 | EC30: 2026 | ED30: 1641 | EE30: 0 | EF30: 845 | EG30: 4860 | EH30: 1544 | EI30: 769 | EJ30: 1114 | EK30: 1016 | EL30: 2904 | EM30: 3669 | EN30: 977 | EO30: 3240 | EP30: 6073 | EQ30: 777 | ER30: 1810 | ES30: 359 | ET30: 267 | EU30: 361 | EV30: 2676 | EW30: 10293 | EX30: 1697 | EY30: 88 | EZ30: 2684 | FA30: 2518 | FB30: 196 | FC30: 1503 | FD30: 1120 | FE30: 709 | FF30: 1333 | FG30: 2186 | FH30: 2297 | FI30: 9434 | FJ30: 10717 | FK30: 3798 | FL30: 410 | FM30: 234 | FN30: 144 | FO30: 8374 | FP30: 3451 | FQ30: 2114 | FR30: 596 | FS30: 22001 | FT30: 4184 | FU30: 5956 | FV30: 20218 | FW30: 2291 | FX30: 1178 | FY30: 996 | FZ30: 1246 | GA30: 810 | GB30: 2964 | GC30: 2798 | GD30: 1110 | GE30: 0 | GF30: 511 | GG30: 1999 | GH30: 836 | GI30: 35 | GJ30: 960 | GK30: 451 | GL30: 2834 | GM30: 3988 | GN30: 636 | GO30: 3557 | GP30: 5298 | GQ30: 1186 | GR30: 1535 | GS30: 361 | GT30: 2856 | GU30: 527 | GV30: 3122 | GW30: 9278 | GX30: 3287 | GY30: 318 | GZ30: 2609 | HA30: 2312 | HB30: 148 | HC30: 2636 | HD30: 810 | HE30: 826 | HF30: 1182.333333 | HG30: 1760 | HH30: 2547 | HI30: 6661 | HJ30: 9647.666667 | HK30: 2948.333333 | HL30: 723 | HM30: 182.6666667 | HN30: 279 | HO30: 7068 | HP30: 2969 | HQ30: 1121.666667 | HR30: 662 | HS30: 21146.33333 | HT30: 3979.666667 | HU30: 5158.333333 | HV30: 21509.66667 | HW30: 2278.666667 | HX30: 1714.666667 | HY30: 486 | HZ30: 1107 | IA30: 889.3333333 | IB30: 2801.333333 | IC30: 2175 | ID30: 1311.333333 | IE30: 0 | IF30: 525.3333333 | IG30: 3165 | IH30: 1146.666667 | II30: 304 | IJ30: 1131.333333 | IK30: 539 | IL30: 2789.333333 | IM30: 3160.666667 | IN30: 820.3333333 | IO30: 2986.666667 | IP30: 5339.333333 | IQ30: 759 | IR30: 1661.333333 | IS30: 240 | IT30: 1359 | IU30: 466.6666667 | IV30: 3036.333333 | IW30: 10818.33333 | IX30: 2101 | IY30: 301.3333333 | IZ30: 2833 | JA30: 1979 | JB30: 173.6666667 | JC30: 1823.333333 | JD30: 763 | JE30: 800.6666667
BE31: Montana | BF31: 212 | BG31: 650 | BH31: 1909 | BI31: 672 | BJ31: 5756 | BK31: 2185 | BL31: 128 | BM31: 71 | BN31: 0 | BO31: 1373 | BP31: 46 | BQ31: 0 | BR31: 1458 | BS31: 1094 | BT31: 251 | BU31: 169 | BV31: 60 | BW31: 321 | BX31: 85 | BY31: 76 | BZ31: 51 | CA31: 59 | CB31: 648 | CC31: 1323 | CD31: 242 | CE31: 564 | CF31: 0 | CG31: 340 | CH31: 548 | CI31: 0 | CJ31: 0 | CK31: 660 | CL31: 246 | CM31: 1072 | CN31: 1677 | CO31: 89 | CP31: 182 | CQ31: 1620 | CR31: 419 | CS31: 0 | CT31: 110 | CU31: 295 | CV31: 111 | CW31: 2101 | CX31: 964 | CY31: 0 | CZ31: 497 | DA31: 3250 | DB31: 0 | DC31: 357 | DD31: 1689 | DE31: 11 | DF31: 449 | DG31: 1118 | DH31: 1971 | DI31: 49 | DJ31: 3033 | DK31: 2856 | DL31: 58 | DM31: 365 | DN31: 0 | DO31: 291 | DP31: 231 | DQ31: 32 | DR31: 1543 | DS31: 765 | DT31: 646 | DU31: 417 | DV31: 845 | DW31: 0 | DX31: 0 | DY31: 71 | DZ31: 57 | EA31: 10 | EB31: 353 | EC31: 969 | ED31: 0 | EE31: 158 | EF31: 0 | EG31: 384 | EH31: 688 | EI31: 0 | EJ31: 889 | EK31: 264 | EL31: 422 | EM31: 1173 | EN31: 360 | EO31: 321 | EP31: 96 | EQ31: 1959 | ER31: 840 | ES31: 0 | ET31: 77 | EU31: 227 | EV31: 266 | EW31: 1329 | EX31: 1232 | EY31: 53 | EZ31: 278 | FA31: 3835 | FB31: 14 | FC31: 146 | FD31: 2413 | FE31: 353 | FF31: 31 | FG31: 726 | FH31: 1548 | FI31: 63 | FJ31: 5428 | FK31: 2135 | FL31: 0 | FM31: 0 | FN31: 0 | FO31: 1875 | FP31: 292 | FQ31: 556 | FR31: 3385 | FS31: 542 | FT31: 163 | FU31: 415 | FV31: 224 | FW31: 367 | FX31: 0 | FY31: 225 | FZ31: 33 | GA31: 97 | GB31: 822 | GC31: 481 | GD31: 32 | GE31: 447 | GF31: 0 | GG31: 108 | GH31: 968 | GI31: 115 | GJ31: 156 | GK31: 259 | GL31: 482 | GM31: 1082 | GN31: 977 | GO31: 402 | GP31: 1018 | GQ31: 2950 | GR31: 457 | GS31: 0 | GT31: 230 | GU31: 191 | GV31: 45 | GW31: 1393 | GX31: 260 | GY31: 87 | GZ31: 156 | HA31: 4783 | HB31: 0 | HC31: 750 | HD31: 934 | HE31: 0 | HF31: 230.6666667 | HG31: 831.3333333 | HH31: 1809.333333 | HI31: 261.3333333 | HJ31: 4739 | HK31: 2392 | HL31: 62 | HM31: 145.3333333 | HN31: 0 | HO31: 1179.666667 | HP31: 189.6666667 | HQ31: 196 | HR31: 2128.666667 | HS31: 800.3333333 | HT31: 353.3333333 | HU31: 333.6666667 | HV31: 376.3333333 | HW31: 229.3333333 | HX31: 28.33333333 | HY31: 124 | HZ31: 47 | IA31: 55.33333333 | IB31: 607.6666667 | IC31: 924.3333333 | ID31: 91.33333333 | IE31: 389.6666667 | IF31: 0 | IG31: 277.3333333 | IH31: 734.6666667 | II31: 38.33333333 | IJ31: 348.3333333 | IK31: 394.3333333 | IL31: 383.3333333 | IM31: 1109 | IN31: 1004.666667 | IO31: 270.6666667 | IP31: 432 | IQ31: 2176.333333 | IR31: 572 | IS31: 0 | IT31: 139 | IU31: 237.6666667 | IV31: 140.6666667 | IW31: 1607.666667 | IX31: 818.6666667 | IY31: 46.66666667 | IZ31: 310.3333333 | JA31: 3956 | JB31: 4.666666667 | JC31: 417.6666667 | JD31: 1678.666667 | JE31: 121.3333333
BE32: Nebraska | BF32: 232 | BG32: 35 | BH32: 2322 | BI32: 674 | BJ32: 4430 | BK32: 4182 | BL32: 361 | BM32: 177 | BN32: 0 | BO32: 1775 | BP32: 1202 | BQ32: 257 | BR32: 127 | BS32: 1820 | BT32: 639 | BU32: 5536 | BV32: 2484 | BW32: 153 | BX32: 89 | BY32: 0 | BZ32: 77 | CA32: 100 | CB32: 726 | CC32: 2254 | CD32: 823 | CE32: 2723 | CF32: 112 | CG32: 0 | CH32: 232 | CI32: 0 | CJ32: 143 | CK32: 831 | CL32: 111 | CM32: 442 | CN32: 777 | CO32: 1232 | CP32: 702 | CQ32: 506 | CR32: 345 | CS32: 0 | CT32: 65 | CU32: 2936 | CV32: 77 | CW32: 4445 | CX32: 537 | CY32: 0 | CZ32: 772 | DA32: 1230 | DB32: 73 | DC32: 1046 | DD32: 1478 | DE32: 0 | DF32: 169 | DG32: 721 | DH32: 1646 | DI32: 161 | DJ32: 5124 | DK32: 3245 | DL32: 381 | DM32: 0 | DN32: 29 | DO32: 1105 | DP32: 434 | DQ32: 275 | DR32: 506 | DS32: 1415 | DT32: 615 | DU32: 9575 | DV32: 3040 | DW32: 352 | DX32: 222 | DY32: 122 | DZ32: 318 | EA32: 0 | EB32: 683 | EC32: 1455 | ED32: 424 | EE32: 1848 | EF32: 64 | EG32: 0 | EH32: 240 | EI32: 0 | EJ32: 119 | EK32: 242 | EL32: 544 | EM32: 829 | EN32: 292 | EO32: 268 | EP32: 1255 | EQ32: 1556 | ER32: 252 | ES32: 0 | ET32: 243 | EU32: 2999 | EV32: 226 | EW32: 5343 | EX32: 734 | EY32: 0 | EZ32: 615 | FA32: 835 | FB32: 24 | FC32: 560 | FD32: 965 | FE32: 0 | FF32: 245 | FG32: 626 | FH32: 2406 | FI32: 363 | FJ32: 3438 | FK32: 2023 | FL32: 0 | FM32: 0 | FN32: 0 | FO32: 1368 | FP32: 786 | FQ32: 165 | FR32: 315 | FS32: 1193 | FT32: 290 | FU32: 6815 | FV32: 3103 | FW32: 131 | FX32: 411 | FY32: 68 | FZ32: 129 | GA32: 195 | GB32: 258 | GC32: 1489 | GD32: 176 | GE32: 2223 | GF32: 108 | GG32: 0 | GH32: 233 | GI32: 0 | GJ32: 524 | GK32: 158 | GL32: 318 | GM32: 874 | GN32: 497 | GO32: 563 | GP32: 587 | GQ32: 106 | GR32: 702 | GS32: 0 | GT32: 456 | GU32: 2507 | GV32: 232 | GW32: 3130 | GX32: 229 | GY32: 79 | GZ32: 1076 | HA32: 1327 | HB32: 111 | HC32: 316 | HD32: 917 | HE32: 0 | HF32: 215.3333333 | HG32: 460.6666667 | HH32: 2124.666667 | HI32: 399.3333333 | HJ32: 4330.666667 | HK32: 3150 | HL32: 247.3333333 | HM32: 59 | HN32: 9.666666667 | HO32: 1416 | HP32: 807.3333333 | HQ32: 232.3333333 | HR32: 316 | HS32: 1476 | HT32: 514.6666667 | HU32: 7308.666667 | HV32: 2875.666667 | HW32: 212 | HX32: 240.6666667 | HY32: 63.33333333 | HZ32: 174.6666667 | IA32: 98.33333333 | IB32: 555.6666667 | IC32: 1732.666667 | ID32: 474.3333333 | IE32: 2264.666667 | IF32: 94.66666667 | IG32: 0 | IH32: 235 | II32: 0 | IJ32: 262 | IK32: 410.3333333 | IL32: 324.3333333 | IM32: 715 | IN32: 522 | IO32: 687.6666667 | IP32: 848 | IQ32: 722.6666667 | IR32: 433 | IS32: 0 | IT32: 254.6666667 | IU32: 2814 | IV32: 178.3333333 | IW32: 4306 | IX32: 500 | IY32: 26.33333333 | IZ32: 821 | JA32: 1130.666667 | JB32: 69.33333333 | JC32: 640.6666667 | JD32: 1120 | JE32: 0
BE33: Nevada | BF33: 150 | BG33: 511 | BH33: 7818 | BI33: 530 | BJ33: 35472 | BK33: 2935 | BL33: 648 | BM33: 0 | BN33: 0 | BO33: 3579 | BP33: 1187 | BQ33: 4363 | BR33: 1686 | BS33: 1711 | BT33: 739 | BU33: 543 | BV33: 453 | BW33: 569 | BX33: 733 | BY33: 0 | BZ33: 485 | CA33: 1275 | CB33: 2202 | CC33: 805 | CD33: 946 | CE33: 1747 | CF33: 770 | CG33: 1129 | CH33: 0 | CI33: 59 | CJ33: 1528 | CK33: 1220 | CL33: 1204 | CM33: 957 | CN33: 37 | CO33: 1554 | CP33: 886 | CQ33: 2629 | CR33: 1567 | CS33: 167 | CT33: 312 | CU33: 1203 | CV33: 706 | CW33: 5224 | CX33: 4500 | CY33: 197 | CZ33: 1832 | DA33: 3290 | DB33: 56 | DC33: 419 | DD33: 144 | DE33: 502 | DF33: 280 | DG33: 597 | DH33: 10142 | DI33: 310 | DJ33: 40114 | DK33: 2714 | DL33: 189 | DM33: 184 | DN33: 983 | DO33: 2923 | DP33: 1731 | DQ33: 4093 | DR33: 3929 | DS33: 1668 | DT33: 855 | DU33: 114 | DV33: 602 | DW33: 628 | DX33: 78 | DY33: 49 | DZ33: 931 | EA33: 256 | EB33: 1663 | EC33: 1055 | ED33: 203 | EE33: 335 | EF33: 1137 | EG33: 32 | EH33: 0 | EI33: 0 | EJ33: 2118 | EK33: 2136 | EL33: 1516 | EM33: 1333 | EN33: 0 | EO33: 1354 | EP33: 258 | EQ33: 1691 | ER33: 570 | ES33: 86 | ET33: 165 | EU33: 588 | EV33: 96 | EW33: 7249 | EX33: 3365 | EY33: 0 | EZ33: 1740 | FA33: 4680 | FB33: 0 | FC33: 2672 | FD33: 933 | FE33: 153 | FF33: 761 | FG33: 2161 | FH33: 8748 | FI33: 353 | FJ33: 49978 | FK33: 6402 | FL33: 143 | FM33: 373 | FN33: 468 | FO33: 3381 | FP33: 745 | FQ33: 2053 | FR33: 1503 | FS33: 2822 | FT33: 362 | FU33: 714 | FV33: 1202 | FW33: 952 | FX33: 421 | FY33: 209 | FZ33: 934 | GA33: 318 | GB33: 1235 | GC33: 1157 | GD33: 783 | GE33: 694 | GF33: 1086 | GG33: 714 | GH33: 0 | GI33: 175 | GJ33: 912 | GK33: 1138 | GL33: 3521 | GM33: 767 | GN33: 702 | GO33: 1407 | GP33: 1520 | GQ33: 3101 | GR33: 1601 | GS33: 336 | GT33: 480 | GU33: 0 | GV33: 1699 | GW33: 5484 | GX33: 4605 | GY33: 121 | GZ33: 1135 | HA33: 2997 | HB33: 100 | HC33: 1046 | HD33: 766 | HE33: 237 | HF33: 397 | HG33: 1089.666667 | HH33: 8902.666667 | HI33: 397.6666667 | HJ33: 41854.66667 | HK33: 4017 | HL33: 326.6666667 | HM33: 185.6666667 | HN33: 483.6666667 | HO33: 3294.333333 | HP33: 1221 | HQ33: 3503 | HR33: 2372.666667 | HS33: 2067 | HT33: 652 | HU33: 457 | HV33: 752.3333333 | HW33: 716.3333333 | HX33: 410.6666667 | HY33: 86 | HZ33: 783.3333333 | IA33: 616.3333333 | IB33: 1700 | IC33: 1005.666667 | ID33: 644 | IE33: 925.3333333 | IF33: 997.6666667 | IG33: 625 | IH33: 0 | II33: 78 | IJ33: 1519.333333 | IK33: 1498 | IL33: 2080.333333 | IM33: 1019 | IN33: 246.3333333 | IO33: 1438.333333 | IP33: 888 | IQ33: 2473.666667 | IR33: 1246 | IS33: 196.3333333 | IT33: 319 | IU33: 597 | IV33: 833.6666667 | IW33: 5985.666667 | IX33: 4156.666667 | IY33: 106 | IZ33: 1569 | JA33: 3655.666667 | JB33: 52 | JC33: 1379 | JD33: 614.3333333 | JE33: 297.3333333
BE34: New Hampshire | BF34: 152 | BG34: 0 | BH34: 544 | BI34: 0 | BJ34: 1692 | BK34: 240 | BL34: 3134 | BM34: 0 | BN34: 298 | BO34: 1659 | BP34: 0 | BQ34: 51 | BR34: 66 | BS34: 850 | BT34: 23 | BU34: 109 | BV34: 57 | BW34: 0 | BX34: 19 | BY34: 3242 | BZ34: 49 | CA34: 13752 | CB34: 230 | CC34: 240 | CD34: 25 | CE34: 295 | CF34: 486 | CG34: 0 | CH34: 95 | CI34: 0 | CJ34: 540 | CK34: 276 | CL34: 2462 | CM34: 471 | CN34: 0 | CO34: 28 | CP34: 0 | CQ34: 508 | CR34: 674 | CS34: 988 | CT34: 51 | CU34: 0 | CV34: 372 | CW34: 1570 | CX34: 279 | CY34: 2566 | CZ34: 745 | DA34: 261 | DB34: 0 | DC34: 268 | DD34: 0 | DE34: 56 | DF34: 193 | DG34: 0 | DH34: 246 | DI34: 22 | DJ34: 547 | DK34: 403 | DL34: 1617 | DM34: 20 | DN34: 68 | DO34: 1970 | DP34: 535 | DQ34: 0 | DR34: 0 | DS34: 478 | DT34: 470 | DU34: 47 | DV34: 0 | DW34: 0 | DX34: 0 | DY34: 3080 | DZ34: 222 | EA34: 15526 | EB34: 155 | EC34: 104 | ED34: 160 | EE34: 153 | EF34: 230 | EG34: 33 | EH34: 186 | EI34: 0 | EJ34: 294 | EK34: 186 | EL34: 1471 | EM34: 1297 | EN34: 47 | EO34: 248 | EP34: 0 | EQ34: 198 | ER34: 1015 | ES34: 608 | ET34: 588 | EU34: 86 | EV34: 126 | EW34: 605 | EX34: 158 | EY34: 2138 | EZ34: 880 | FA34: 428 | FB34: 0 | FC34: 0 | FD34: 162 | FE34: 0 | FF34: 0 | FG34: 437 | FH34: 440 | FI34: 0 | FJ34: 1514 | FK34: 572 | FL34: 1345 | FM34: 0 | FN34: 101 | FO34: 2746 | FP34: 470 | FQ34: 43 | FR34: 20 | FS34: 673 | FT34: 297 | FU34: 53 | FV34: 102 | FW34: 284 | FX34: 7 | FY34: 6118 | FZ34: 33 | GA34: 18990 | GB34: 426 | GC34: 0 | GD34: 0 | GE34: 289 | GF34: 0 | GG34: 110 | GH34: 0 | GI34: 0 | GJ34: 591 | GK34: 223 | GL34: 2905 | GM34: 1609 | GN34: 0 | GO34: 324 | GP34: 186 | GQ34: 208 | GR34: 890 | GS34: 1248 | GT34: 323 | GU34: 0 | GV34: 77 | GW34: 2150 | GX34: 557 | GY34: 2960 | GZ34: 660 | HA34: 113 | HB34: 80 | HC34: 239 | HD34: 71 | HE34: 75 | HF34: 115 | HG34: 145.6666667 | HH34: 410 | HI34: 7.333333333 | HJ34: 1251 | HK34: 405 | HL34: 2032 | HM34: 6.666666667 | HN34: 155.6666667 | HO34: 2125 | HP34: 335 | HQ34: 31.33333333 | HR34: 28.66666667 | HS34: 667 | HT34: 263.3333333 | HU34: 69.66666667 | HV34: 53 | HW34: 94.66666667 | HX34: 8.666666667 | HY34: 4146.666667 | HZ34: 101.3333333 | IA34: 16089.33333 | IB34: 270.3333333 | IC34: 114.6666667 | ID34: 61.66666667 | IE34: 245.6666667 | IF34: 238.6666667 | IG34: 47.66666667 | IH34: 93.66666667 | II34: 0 | IJ34: 475 | IK34: 228.3333333 | IL34: 2279.333333 | IM34: 1125.666667 | IN34: 15.66666667 | IO34: 200 | IP34: 62 | IQ34: 304.6666667 | IR34: 859.6666667 | IS34: 948 | IT34: 320.6666667 | IU34: 28.66666667 | IV34: 191.6666667 | IW34: 1441.666667 | IX34: 331.3333333 | IY34: 2554.666667 | IZ34: 761.6666667 | JA34: 267.3333333 | JB34: 26.66666667 | JC34: 169 | JD34: 77.66666667 | JE34: 43.66666667
BE35: New Jersey | BF35: 616 | BG35: 383 | BH35: 1625 | BI35: 258 | BJ35: 8777 | BK35: 807 | BL35: 2503 | BM35: 1543 | BN35: 431 | BO35: 9841 | BP35: 4588 | BQ35: 385 | BR35: 91 | BS35: 2656 | BT35: 402 | BU35: 332 | BV35: 442 | BW35: 91 | BX35: 249 | BY35: 95 | BZ35: 4231 | CA35: 2626 | CB35: 1070 | CC35: 322 | CD35: 450 | CE35: 727 | CF35: 122 | CG35: 261 | CH35: 874 | CI35: 705 | CJ35: 0 | CK35: 421 | CL35: 41374 | CM35: 3052 | CN35: 0 | CO35: 1584 | CP35: 32 | CQ35: 613 | CR35: 22225 | CS35: 332 | CT35: 1134 | CU35: 0 | CV35: 852 | CW35: 3434 | CX35: 178 | CY35: 57 | CZ35: 2670 | DA35: 964 | DB35: 358 | DC35: 586 | DD35: 0 | DE35: 2732 | DF35: 189 | DG35: 1198 | DH35: 3784 | DI35: 57 | DJ35: 5986 | DK35: 2203 | DL35: 1924 | DM35: 2100 | DN35: 781 | DO35: 12907 | DP35: 4268 | DQ35: 264 | DR35: 256 | DS35: 3690 | DT35: 718 | DU35: 332 | DV35: 317 | DW35: 102 | DX35: 871 | DY35: 624 | DZ35: 5335 | EA35: 4675 | EB35: 1889 | EC35: 1261 | ED35: 510 | EE35: 583 | EF35: 49 | EG35: 312 | EH35: 899 | EI35: 499 | EJ35: 0 | EK35: 355 | EL35: 40815 | EM35: 2482 | EN35: 61 | EO35: 1121 | EP35: 773 | EQ35: 360 | ER35: 19733 | ES35: 463 | ET35: 1586 | EU35: 0 | EV35: 1412 | EW35: 3801 | EX35: 256 | EY35: 0 | EZ35: 4458 | FA35: 2454 | FB35: 1252 | FC35: 214 | FD35: 15 | FE35: 4312 | FF35: 779 | FG35: 359 | FH35: 1328 | FI35: 57 | FJ35: 4330 | FK35: 380 | FL35: 3466 | FM35: 1921 | FN35: 840 | FO35: 10649 | FP35: 3002 | FQ35: 22 | FR35: 113 | FS35: 2052 | FT35: 1039 | FU35: 357 | FV35: 426 | FW35: 631 | FX35: 339 | FY35: 430 | FZ35: 3474 | GA35: 4907 | GB35: 324 | GC35: 570 | GD35: 106 | GE35: 384 | GF35: 67 | GG35: 35 | GH35: 908 | GI35: 126 | GJ35: 0 | GK35: 45 | GL35: 40495 | GM35: 3236 | GN35: 55 | GO35: 1452 | GP35: 1540 | GQ35: 760 | GR35: 23597 | GS35: 429 | GT35: 2372 | GU35: 581 | GV35: 1400 | GW35: 2509 | GX35: 425 | GY35: 35 | GZ35: 5024 | HA35: 1847 | HB35: 297 | HC35: 680 | HD35: 23 | HE35: 2574 | HF35: 528 | HG35: 646.6666667 | HH35: 2245.666667 | HI35: 124 | HJ35: 6364.333333 | HK35: 1130 | HL35: 2631 | HM35: 1854.666667 | HN35: 684 | HO35: 11132.33333 | HP35: 3952.666667 | HQ35: 223.6666667 | HR35: 153.3333333 | HS35: 2799.333333 | HT35: 719.6666667 | HU35: 340.3333333 | HV35: 395 | HW35: 274.6666667 | HX35: 486.3333333 | HY35: 383 | HZ35: 4346.666667 | IA35: 4069.333333 | IB35: 1094.333333 | IC35: 717.6666667 | ID35: 355.3333333 | IE35: 564.6666667 | IF35: 79.33333333 | IG35: 202.6666667 | IH35: 893.6666667 | II35: 443.3333333 | IJ35: 0 | IK35: 273.6666667 | IL35: 40894.66667 | IM35: 2923.333333 | IN35: 38.66666667 | IO35: 1385.666667 | IP35: 781.6666667 | IQ35: 577.6666667 | IR35: 21851.66667 | IS35: 408 | IT35: 1697.333333 | IU35: 193.6666667 | IV35: 1221.333333 | IW35: 3248 | IX35: 286.3333333 | IY35: 30.66666667 | IZ35: 4050.666667 | JA35: 1755 | JB35: 635.6666667 | JC35: 493.3333333 | JD35: 12.66666667 | JE35: 3206
BE36: New Mexico | BF36: 751 | BG36: 969 | BH36: 6117 | BI36: 77 | BJ36: 6547 | BK36: 2852 | BL36: 25 | BM36: 391 | BN36: 56 | BO36: 3259 | BP36: 1977 | BQ36: 122 | BR36: 755 | BS36: 526 | BT36: 465 | BU36: 0 | BV36: 751 | BW36: 739 | BX36: 65 | BY36: 94 | BZ36: 1968 | CA36: 2076 | CB36: 1460 | CC36: 179 | CD36: 719 | CE36: 138 | CF36: 1003 | CG36: 530 | CH36: 4192 | CI36: 79 | CJ36: 160 | CK36: 0 | CL36: 784 | CM36: 1793 | CN36: 79 | CO36: 1712 | CP36: 1182 | CQ36: 1659 | CR36: 809 | CS36: 46 | CT36: 152 | CU36: 204 | CV36: 1269 | CW36: 18511 | CX36: 1601 | CY36: 309 | CZ36: 290 | DA36: 3004 | DB36: 0 | DC36: 407 | DD36: 752 | DE36: 632 | DF36: 410 | DG36: 416 | DH36: 7444 | DI36: 682 | DJ36: 7066 | DK36: 5525 | DL36: 0 | DM36: 0 | DN36: 212 | DO36: 2806 | DP36: 676 | DQ36: 81 | DR36: 355 | DS36: 466 | DT36: 2030 | DU36: 0 | DV36: 1333 | DW36: 87 | DX36: 184 | DY36: 510 | DZ36: 2277 | EA36: 252 | EB36: 908 | EC36: 438 | ED36: 556 | EE36: 1183 | EF36: 544 | EG36: 353 | EH36: 2099 | EI36: 114 | EJ36: 245 | EK36: 0 | EL36: 1445 | EM36: 522 | EN36: 264 | EO36: 1742 | EP36: 234 | EQ36: 916 | ER36: 492 | ES36: 0 | ET36: 145 | EU36: 240 | EV36: 899 | EW36: 13633 | EX36: 303 | EY36: 71 | EZ36: 425 | FA36: 924 | FB36: 0 | FC36: 340 | FD36: 283 | FE36: 99 | FF36: 787 | FG36: 320 | FH36: 6391 | FI36: 410 | FJ36: 4536 | FK36: 4780 | FL36: 280 | FM36: 100 | FN36: 25 | FO36: 4707 | FP36: 192 | FQ36: 168 | FR36: 355 | FS36: 790 | FT36: 660 | FU36: 384 | FV36: 672 | FW36: 159 | FX36: 790 | FY36: 57 | FZ36: 505 | GA36: 303 | GB36: 602 | GC36: 284 | GD36: 451 | GE36: 1216 | GF36: 139 | GG36: 194 | GH36: 604 | GI36: 268 | GJ36: 252 | GK36: 0 | GL36: 1111 | GM36: 335 | GN36: 41 | GO36: 1178 | GP36: 1076 | GQ36: 932 | GR36: 822 | GS36: 0 | GT36: 325 | GU36: 509 | GV36: 338 | GW36: 11955 | GX36: 1382 | GY36: 81 | GZ36: 1560 | HA36: 1251 | HB36: 0 | HC36: 321 | HD36: 95 | HE36: 429 | HF36: 649.3333333 | HG36: 568.3333333 | HH36: 6650.666667 | HI36: 389.6666667 | HJ36: 6049.666667 | HK36: 4385.666667 | HL36: 101.6666667 | HM36: 163.6666667 | HN36: 97.66666667 | HO36: 3590.666667 | HP36: 948.3333333 | HQ36: 123.6666667 | HR36: 488.3333333 | HS36: 594 | HT36: 1051.666667 | HU36: 128 | HV36: 918.6666667 | HW36: 328.3333333 | HX36: 346.3333333 | HY36: 220.3333333 | HZ36: 1583.333333 | IA36: 877 | IB36: 990 | IC36: 300.3333333 | ID36: 575.3333333 | IE36: 845.6666667 | IF36: 562 | IG36: 359 | IH36: 2298.333333 | II36: 153.6666667 | IJ36: 219 | IK36: 0 | IL36: 1113.333333 | IM36: 883.3333333 | IN36: 128 | IO36: 1544 | IP36: 830.6666667 | IQ36: 1169 | IR36: 707.6666667 | IS36: 15.33333333 | IT36: 207.3333333 | IU36: 317.6666667 | IV36: 835.3333333 | IW36: 14699.66667 | IX36: 1095.333333 | IY36: 153.6666667 | IZ36: 758.3333333 | JA36: 1726.333333 | JB36: 0 | JC36: 356 | JD36: 376.6666667 | JE36: 386.6666667
BE37: New York | BF37: 1310 | BG37: 5070 | BH37: 2649 | BI37: 362 | BJ37: 25177 | BK37: 3135 | BL37: 15338 | BM37: 2603 | BN37: 1983 | BO37: 30553 | BP37: 7676 | BQ37: 259 | BR37: 198 | BS37: 6533 | BT37: 2497 | BU37: 477 | BV37: 1189 | BW37: 804 | BX37: 1321 | BY37: 2270 | BZ37: 5912 | CA37: 16855 | CB37: 4779 | CC37: 1649 | CD37: 872 | CE37: 1870 | CF37: 237 | CG37: 886 | CH37: 2077 | CI37: 2636 | CJ37: 35333 | CK37: 829 | CL37: 0 | CM37: 13322 | CN37: 0 | CO37: 6510 | CP37: 2298 | CQ37: 2284 | CR37: 20514 | CS37: 1913 | CT37: 7161 | CU37: 521 | CV37: 1730 | CW37: 9692 | CX37: 910 | CY37: 2900 | CZ37: 8881 | DA37: 2503 | DB37: 444 | DC37: 2354 | DD37: 151 | DE37: 6740 | DF37: 1812 | DG37: 6124 | DH37: 2821 | DI37: 1041 | DJ37: 25761 | DK37: 3724 | DL37: 15123 | DM37: 1124 | DN37: 3702 | DO37: 29344 | DP37: 10584 | DQ37: 1002 | DR37: 434 | DS37: 6914 | DT37: 2198 | DU37: 928 | DV37: 838 | DW37: 2414 | DX37: 1495 | DY37: 2915 | DZ37: 5037 | EA37: 14646 | EB37: 3936 | EC37: 1824 | ED37: 401 | EE37: 1417 | EF37: 391 | EG37: 579 | EH37: 1785 | EI37: 2972 | EJ37: 41450 | EK37: 461 | EL37: 0 | EM37: 9336 | EN37: 374 | EO37: 5191 | EP37: 1425 | EQ37: 2189 | ER37: 26596 | ES37: 1393 | ET37: 6947 | EU37: 112 | EV37: 2660 | EW37: 9151 | EX37: 773 | EY37: 3882 | EZ37: 10800 | FA37: 2986 | FB37: 631 | FC37: 1878 | FD37: 688 | FE37: 10582 | FF37: 1364 | FG37: 4002 | FH37: 4146 | FI37: 247 | FJ37: 24623 | FK37: 3596 | FL37: 14595 | FM37: 477 | FN37: 3936 | FO37: 27392 | FP37: 7592 | FQ37: 1598 | FR37: 607 | FS37: 8017 | FT37: 3040 | FU37: 955 | FV37: 1437 | FW37: 1753 | FX37: 1083 | FY37: 1345 | FZ37: 7321 | GA37: 15073 | GB37: 5191 | GC37: 1059 | GD37: 773 | GE37: 3310 | GF37: 421 | GG37: 78 | GH37: 600 | GI37: 2760 | GJ37: 42574 | GK37: 646 | GL37: 0 | GM37: 10544 | GN37: 77 | GO37: 4625 | GP37: 1327 | GQ37: 1055 | GR37: 22895 | GS37: 3222 | GT37: 5952 | GU37: 0 | GV37: 1279 | GW37: 11231 | GX37: 622 | GY37: 2764 | GZ37: 7939 | HA37: 2614 | HB37: 921 | HC37: 979 | HD37: 396 | HE37: 7321 | HF37: 1495.333333 | HG37: 5065.333333 | HH37: 3205.333333 | HI37: 550 | HJ37: 25187 | HK37: 3485 | HL37: 15018.66667 | HM37: 1401.333333 | HN37: 3207 | HO37: 29096.33333 | HP37: 8617.333333 | HQ37: 953 | HR37: 413 | HS37: 7154.666667 | HT37: 2578.333333 | HU37: 786.6666667 | HV37: 1154.666667 | HW37: 1657 | HX37: 1299.666667 | HY37: 2176.666667 | HZ37: 6090 | IA37: 15524.66667 | IB37: 4635.333333 | IC37: 1510.666667 | ID37: 682 | IE37: 2199 | IF37: 349.6666667 | IG37: 514.3333333 | IH37: 1487.333333 | II37: 2789.333333 | IJ37: 39785.66667 | IK37: 645.3333333 | IL37: 0 | IM37: 11067.33333 | IN37: 150.3333333 | IO37: 5442 | IP37: 1683.333333 | IQ37: 1842.666667 | IR37: 23335 | IS37: 2176 | IT37: 6686.666667 | IU37: 211 | IV37: 1889.666667 | IW37: 10024.66667 | IX37: 768.3333333 | IY37: 3182 | IZ37: 9206.666667 | JA37: 2701 | JB37: 665.3333333 | JC37: 1737 | JD37: 411.6666667 | JE37: 8214.333333
A38: pvtState2Population | BE38: North Carolina | BF38: 3044 | BG38: 1618 | BH38: 2847 | BI38: 550 | BJ38: 16699 | BK38: 1842 | BL38: 3752 | BM38: 479 | BN38: 1691 | BO38: 28983 | BP38: 15943 | BQ38: 1567 | BR38: 724 | BS38: 5657 | BT38: 4132 | BU38: 1077 | BV38: 2192 | BW38: 4419 | BX38: 2180 | BY38: 2259 | BZ38: 9881 | CA38: 4052 | CB38: 5789 | CC38: 1839 | CD38: 1187 | CE38: 1932 | CF38: 230 | CG38: 516 | CH38: 698 | CI38: 2130 | CJ38: 7195 | CK38: 1186 | CL38: 19406 | CM38: 0 | CN38: 243 | CO38: 8661 | CP38: 1453 | CQ38: 1796 | CR38: 11155 | CS38: 97 | CT38: 23196 | CU38: 362 | CV38: 8685 | CW38: 14329 | CX38: 790 | CY38: 350 | CZ38: 25662 | DA38: 2874 | DB38: 3025 | DC38: 2012 | DD38: 870 | DE38: 1950 | DF38: 5420 | DG38: 3991 | DH38: 4286 | DI38: 327 | DJ38: 15373 | DK38: 3919 | DL38: 1975 | DM38: 954 | DN38: 1135 | DO38: 28044 | DP38: 16192 | DQ38: 1806 | DR38: 675 | DS38: 5971 | DT38: 3228 | DU38: 654 | DV38: 4995 | DW38: 1637 | DX38: 2936 | DY38: 824 | DZ38: 10485 | EA38: 9053 | EB38: 7530 | EC38: 1294 | ED38: 1273 | EE38: 2638 | EF38: 563 | EG38: 1056 | EH38: 1048 | EI38: 2078 | EJ38: 10374 | EK38: 1737 | EL38: 18321 | EM38: 0 | EN38: 189 | EO38: 10187 | EP38: 1390 | EQ38: 1175 | ER38: 9450 | ES38: 444 | ET38: 20427 | EU38: 565 | EV38: 6057 | EW38: 6621 | EX38: 961 | EY38: 212 | EZ38: 27302 | FA38: 3295 | FB38: 2780 | FC38: 2291 | FD38: 153 | FE38: 844 | FF38: 4329 | FG38: 1458 | FH38: 3493 | FI38: 861 | FJ38: 13883 | FK38: 4790 | FL38: 4914 | FM38: 2180 | FN38: 1801 | FO38: 26365 | FP38: 16823 | FQ38: 1566 | FR38: 334 | FS38: 6378 | FT38: 4532 | FU38: 775 | FV38: 1595 | FW38: 1531 | FX38: 919 | FY38: 1259 | FZ38: 9005 | GA38: 3710 | GB38: 6161 | GC38: 1523 | GD38: 2377 | GE38: 2623 | GF38: 244 | GG38: 628 | GH38: 1627 | GI38: 754 | GJ38: 11468 | GK38: 1138 | GL38: 19891 | GM38: 0 | GN38: 206 | GO38: 9337 | GP38: 1263 | GQ38: 1333 | GR38: 12179 | GS38: 290 | GT38: 25532 | GU38: 351 | GV38: 9230 | GW38: 12638 | GX38: 1189 | GY38: 445 | GZ38: 26759 | HA38: 5915 | HB38: 2677 | HC38: 2266 | HD38: 604 | HE38: 2025 | HF38: 4264.333333 | HG38: 2355.666667 | HH38: 3542 | HI38: 579.3333333 | HJ38: 15318.33333 | HK38: 3517 | HL38: 3547 | HM38: 1204.333333 | HN38: 1542.333333 | HO38: 27797.33333 | HP38: 16319.33333 | HQ38: 1646.333333 | HR38: 577.6666667 | HS38: 6002 | HT38: 3964 | HU38: 835.3333333 | HV38: 2927.333333 | HW38: 2529 | HX38: 2011.666667 | HY38: 1447.333333 | HZ38: 9790.333333 | IA38: 5605 | IB38: 6493.333333 | IC38: 1552 | ID38: 1612.333333 | IE38: 2397.666667 | IF38: 345.6666667 | IG38: 733.3333333 | IH38: 1124.333333 | II38: 1654 | IJ38: 9679 | IK38: 1353.666667 | IL38: 19206 | IM38: 0 | IN38: 212.6666667 | IO38: 9395 | IP38: 1368.666667 | IQ38: 1434.666667 | IR38: 10928 | IS38: 277 | IT38: 23051.66667 | IU38: 426 | IV38: 7990.666667 | IW38: 11196 | IX38: 980 | IY38: 335.6666667 | IZ38: 26574.33333 | JA38: 4028 | JB38: 2827.333333 | JC38: 2189.666667 | JD38: 542.3333333 | JE38: 1606.333333
A39: Sum of Population | BE39: North Dakota | BF39: 109 | BG39: 1066 | BH39: 662 | BI39: 168 | BJ39: 1411 | BK39: 873 | BL39: 30 | BM39: 0 | BN39: 175 | BO39: 492 | BP39: 799 | BQ39: 53 | BR39: 69 | BS39: 39 | BT39: 45 | BU39: 289 | BV39: 114 | BW39: 97 | BX39: 374 | BY39: 0 | BZ39: 121 | CA39: 52 | CB39: 298 | CC39: 12350 | CD39: 0 | CE39: 197 | CF39: 1236 | CG39: 328 | CH39: 382 | CI39: 0 | CJ39: 144 | CK39: 380 | CL39: 188 | CM39: 637 | CN39: 0 | CO39: 134 | CP39: 108 | CQ39: 313 | CR39: 392 | CS39: 0 | CT39: 0 | CU39: 1038 | CV39: 273 | CW39: 2513 | CX39: 462 | CY39: 0 | CZ39: 25 | DA39: 696 | DB39: 0 | DC39: 749 | DD39: 219 | DE39: 0 | DF39: 97 | DG39: 393 | DH39: 1313 | DI39: 249 | DJ39: 1356 | DK39: 1229 | DL39: 0 | DM39: 84 | DN39: 0 | DO39: 459 | DP39: 364 | DQ39: 138 | DR39: 1209 | DS39: 571 | DT39: 130 | DU39: 208 | DV39: 75 | DW39: 0 | DX39: 422 | DY39: 50 | DZ39: 10 | EA39: 369 | EB39: 328 | EC39: 12244 | ED39: 80 | EE39: 330 | EF39: 1227 | EG39: 218 | EH39: 845 | EI39: 0 | EJ39: 183 | EK39: 99 | EL39: 264 | EM39: 900 | EN39: 0 | EO39: 286 | EP39: 59 | EQ39: 264 | ER39: 652 | ES39: 0 | ET39: 1 | EU39: 1293 | EV39: 113 | EW39: 1862 | EX39: 429 | EY39: 0 | EZ39: 166 | FA39: 404 | FB39: 0 | FC39: 1398 | FD39: 139 | FE39: 76 | FF39: 83 | FG39: 70 | FH39: 1571 | FI39: 0 | FJ39: 999 | FK39: 546 | FL39: 65 | FM39: 0 | FN39: 70 | FO39: 950 | FP39: 98 | FQ39: 160 | FR39: 540 | FS39: 799 | FT39: 55 | FU39: 458 | FV39: 161 | FW39: 22 | FX39: 18 | FY39: 98 | FZ39: 232 | GA39: 187 | GB39: 757 | GC39: 15257 | GD39: 72 | GE39: 1490 | GF39: 1776 | GG39: 950 | GH39: 854 | GI39: 0 | GJ39: 140 | GK39: 161 | GL39: 331 | GM39: 231 | GN39: 0 | GO39: 6 | GP39: 280 | GQ39: 724 | GR39: 114 | GS39: 244 | GT39: 14 | GU39: 1754 | GV39: 746 | GW39: 1414 | GX39: 43 | GY39: 758 | GZ39: 403 | HA39: 1604 | HB39: 0 | HC39: 543 | HD39: 365 | HE39: 0 | HF39: 96.33333333 | HG39: 509.6666667 | HH39: 1182 | HI39: 139 | HJ39: 1255.333333 | HK39: 882.6666667 | HL39: 31.66666667 | HM39: 28 | HN39: 81.66666667 | HO39: 633.6666667 | HP39: 420.3333333 | HQ39: 117 | HR39: 606 | HS39: 469.6666667 | HT39: 76.66666667 | HU39: 318.3333333 | HV39: 116.6666667 | HW39: 39.66666667 | HX39: 271.3333333 | HY39: 49.33333333 | HZ39: 121 | IA39: 202.6666667 | IB39: 461 | IC39: 13283.66667 | ID39: 50.66666667 | IE39: 672.3333333 | IF39: 1413 | IG39: 498.6666667 | IH39: 693.6666667 | II39: 0 | IJ39: 155.6666667 | IK39: 213.3333333 | IL39: 261 | IM39: 589.3333333 | IN39: 0 | IO39: 142 | IP39: 149 | IQ39: 433.6666667 | IR39: 386 | IS39: 81.33333333 | IT39: 5 | IU39: 1361.666667 | IV39: 377.3333333 | IW39: 1929.666667 | IX39: 311.3333333 | IY39: 252.6666667 | IZ39: 198 | JA39: 901.3333333 | JB39: 0 | JC39: 896.6666667 | JD39: 241 | JE39: 25.33333333
B40: Oregon | BE40: Ohio | BF40: 1289 | BG40: 1556 | BH40: 4715 | BI40: 434 | BJ40: 8997 | BK40: 2859 | BL40: 1307 | BM40: 15 | BN40: 972 | BO40: 16495 | BP40: 9502 | BQ40: 436 | BR40: 564 | BS40: 7092 | BT40: 9438 | BU40: 1270 | BV40: 1016 | BW40: 9159 | BX40: 743 | BY40: 291 | BZ40: 3828 | CA40: 3686 | CB40: 15130 | CC40: 2298 | CD40: 89 | CE40: 1171 | CF40: 460 | CG40: 1531 | CH40: 2240 | CI40: 175 | CJ40: 2465 | CK40: 515 | CL40: 5988 | CM40: 5985 | CN40: 26 | CO40: 0 | CP40: 1228 | CQ40: 342 | CR40: 12012 | CS40: 444 | CT40: 2479 | CU40: 207 | CV40: 4987 | CW40: 7465 | CX40: 485 | CY40: 182 | CZ40: 6769 | DA40: 2567 | DB40: 7814 | DC40: 1771 | DD40: 144 | DE40: 2140 | DF40: 1567 | DG40: 1637 | DH40: 6763 | DI40: 1952 | DJ40: 9032 | DK40: 2690 | DL40: 1189 | DM40: 263 | DN40: 587 | DO40: 16492 | DP40: 4290 | DQ40: 1044 | DR40: 312 | DS40: 7027 | DT40: 11588 | DU40: 1146 | DV40: 657 | DW40: 12744 | DX40: 1872 | DY40: 0 | DZ40: 4982 | EA40: 2101 | EB40: 14330 | EC40: 1788 | ED40: 691 | EE40: 2003 | EF40: 101 | EG40: 1176 | EH40: 1851 | EI40: 1992 | EJ40: 3936 | EK40: 255 | EL40: 8784 | EM40: 4572 | EN40: 204 | EO40: 0 | EP40: 2333 | EQ40: 1326 | ER40: 14292 | ES40: 369 | ET40: 3826 | EU40: 34 | EV40: 6468 | EW40: 11987 | EX40: 691 | EY40: 68 | EZ40: 5425 | FA40: 1979 | FB40: 7548 | FC40: 2534 | FD40: 1280 | FE40: 1607 | FF40: 3705 | FG40: 2207 | FH40: 4929 | FI40: 884 | FJ40: 8995 | FK40: 3180 | FL40: 1355 | FM40: 1079 | FN40: 985 | FO40: 16366 | FP40: 8052 | FQ40: 1198 | FR40: 412 | FS40: 9510 | FT40: 13534 | FU40: 1039 | FV40: 1166 | FW40: 13227 | FX40: 2214 | FY40: 1189 | FZ40: 5026 | GA40: 2189 | GB40: 16336 | GC40: 1122 | GD40: 1017 | GE40: 3026 | GF40: 276 | GG40: 1052 | GH40: 907 | GI40: 189 | GJ40: 4703 | GK40: 1361 | GL40: 8732 | GM40: 5498 | GN40: 453 | GO40: 0 | GP40: 858 | GQ40: 432 | GR40: 14147 | GS40: 435 | GT40: 2445 | GU40: 47 | GV40: 3542 | GW40: 11760 | GX40: 197 | GY40: 364 | GZ40: 3193 | HA40: 2862 | HB40: 7820 | HC40: 974 | HD40: 202 | HE40: 1403 | HF40: 2187 | HG40: 1800 | HH40: 5469 | HI40: 1090 | HJ40: 9008 | HK40: 2909.666667 | HL40: 1283.666667 | HM40: 452.3333333 | HN40: 848 | HO40: 16451 | HP40: 7281.333333 | HQ40: 892.6666667 | HR40: 429.3333333 | HS40: 7876.333333 | HT40: 11520 | HU40: 1151.666667 | HV40: 946.3333333 | HW40: 11710 | HX40: 1609.666667 | HY40: 493.3333333 | HZ40: 4612 | IA40: 2658.666667 | IB40: 15265.33333 | IC40: 1736 | ID40: 599 | IE40: 2066.666667 | IF40: 279 | IG40: 1253 | IH40: 1666 | II40: 785.3333333 | IJ40: 3701.333333 | IK40: 710.3333333 | IL40: 7834.666667 | IM40: 5351.666667 | IN40: 227.6666667 | IO40: 0 | IP40: 1473 | IQ40: 700 | IR40: 13483.66667 | IS40: 416 | IT40: 2916.666667 | IU40: 96 | IV40: 4999 | IW40: 10404 | IX40: 457.6666667 | IY40: 204.6666667 | IZ40: 5129 | JA40: 2469.333333 | JB40: 7727.333333 | JC40: 1759.666667 | JD40: 542 | JE40: 1716.666667
A41: 2010-01-01 | B41: 3794008 | BE41: Oklahoma | BF41: 1612 | BG41: 1397 | BH41: 2759 | BI41: 5873 | BJ41: 9429 | BK41: 3184 | BL41: 68 | BM41: 109 | BN41: 0 | BO41: 5438 | BP41: 3159 | BQ41: 773 | BR41: 611 | BS41: 2679 | BT41: 957 | BU41: 1108 | BV41: 5024 | BW41: 877 | BX41: 2208 | BY41: 298 | BZ41: 382 | CA41: 465 | CB41: 1047 | CC41: 599 | CD41: 1733 | CE41: 4102 | CF41: 448 | CG41: 829 | CH41: 1079 | CI41: 69 | CJ41: 890 | CK41: 2723 | CL41: 1118 | CM41: 1991 | CN41: 139 | CO41: 1385 | CP41: 0 | CQ41: 398 | CR41: 1316 | CS41: 119 | CT41: 596 | CU41: 83 | CV41: 1872 | CW41: 28238 | CX41: 428 | CY41: 93 | CZ41: 2286 | DA41: 2035 | DB41: 221 | DC41: 551 | DD41: 1713 | DE41: 209 | DF41: 591 | DG41: 1137 | DH41: 3770 | DI41: 6894 | DJ41: 8233 | DK41: 3273 | DL41: 97 | DM41: 66 | DN41: 191 | DO41: 6056 | DP41: 3514 | DQ41: 140 | DR41: 21 | DS41: 2179 | DT41: 2113 | DU41: 580 | DV41: 4626 | DW41: 1398 | DX41: 1934 | DY41: 271 | DZ41: 432 | EA41: 160 | EB41: 1038 | EC41: 497 | ED41: 199 | EE41: 5781 | EF41: 803 | EG41: 1979 | EH41: 705 | EI41: 0 | EJ41: 391 | EK41: 403 | EL41: 1858 | EM41: 1322 | EN41: 928 | EO41: 1608 | EP41: 0 | EQ41: 917 | ER41: 1116 | ES41: 152 | ET41: 2015 | EU41: 600 | EV41: 1700 | EW41: 31595 | EX41: 587 | EY41: 0 | EZ41: 1013 | FA41: 1246 | FB41: 44 | FC41: 942 | FD41: 1763 | FE41: 105 | FF41: 1030 | FG41: 1279 | FH41: 2974 | FI41: 5777 | FJ41: 8950 | FK41: 4717 | FL41: 0 | FM41: 380 | FN41: 151 | FO41: 5011 | FP41: 2581 | FQ41: 189 | FR41: 905 | FS41: 1100 | FT41: 1490 | FU41: 1088 | FV41: 7065 | FW41: 1354 | FX41: 2562 | FY41: 167 | FZ41: 750 | GA41: 1233 | GB41: 1347 | GC41: 906 | GD41: 1850 | GE41: 5210 | GF41: 798 | GG41: 300 | GH41: 1101 | GI41: 549 | GJ41: 1523 | GK41: 1244 | GL41: 1981 | GM41: 1961 | GN41: 308 | GO41: 1148 | GP41: 0 | GQ41: 1261 | GR41: 494 | GS41: 0 | GT41: 569 | GU41: 108 | GV41: 2471 | GW41: 25508 | GX41: 2588 | GY41: 197 | GZ41: 1749 | HA41: 1574 | HB41: 368 | HC41: 1061 | HD41: 45 | HE41: 0 | HF41: 1077.666667 | HG41: 1271 | HH41: 3167.666667 | HI41: 6181.333333 | HJ41: 8870.666667 | HK41: 3724.666667 | HL41: 55 | HM41: 185 | HN41: 114 | HO41: 5501.666667 | HP41: 3084.666667 | HQ41: 367.3333333 | HR41: 512.3333333 | HS41: 1986 | HT41: 1520 | HU41: 925.3333333 | HV41: 5571.666667 | HW41: 1209.666667 | HX41: 2234.666667 | HY41: 245.3333333 | HZ41: 521.3333333 | IA41: 619.3333333 | IB41: 1144 | IC41: 667.3333333 | ID41: 1260.666667 | IE41: 5031 | IF41: 683 | IG41: 1036 | IH41: 961.6666667 | II41: 206 | IJ41: 934.6666667 | IK41: 1456.666667 | IL41: 1652.333333 | IM41: 1758 | IN41: 458.3333333 | IO41: 1380.333333 | IP41: 0 | IQ41: 858.6666667 | IR41: 975.3333333 | IS41: 90.33333333 | IT41: 1060 | IU41: 263.6666667 | IV41: 2014.333333 | IW41: 28447 | IX41: 1201 | IY41: 96.66666667 | IZ41: 1682.666667 | JA41: 1618.333333 | JB41: 211 | JC41: 851.3333333 | JD41: 1173.666667 | JE41: 104.6666667
A42: 2011-01-01 | B42: 3828714 | BE42: Oregon | BF42: 400 | BG42: 2027 | BH42: 5264 | BI42: 246 | BJ42: 34190 | BK42: 2050 | BL42: 270 | BM42: 0 | BN42: 217 | BO42: 2273 | BP42: 688 | BQ42: 2323 | BR42: 4129 | BS42: 1565 | BT42: 317 | BU42: 161 | BV42: 678 | BW42: 0 | BX42: 0 | BY42: 0 | BZ42: 595 | CA42: 1471 | CB42: 1159 | CC42: 668 | CD42: 735 | CE42: 1786 | CF42: 3386 | CG42: 777 | CH42: 2805 | CI42: 317 | CJ42: 544 | CK42: 981 | CL42: 2538 | CM42: 1040 | CN42: 592 | CO42: 1541 | CP42: 821 | CQ42: 0 | CR42: 1689 | CS42: 0 | CT42: 989 | CU42: 741 | CV42: 787 | CW42: 3826 | CX42: 2879 | CY42: 456 | CZ42: 1124 | DA42: 22793 | DB42: 358 | DC42: 1981 | DD42: 523 | DE42: 821 | DF42: 758 | DG42: 1935 | DH42: 7911 | DI42: 988 | DJ42: 34214 | DK42: 2110 | DL42: 949 | DM42: 251 | DN42: 349 | DO42: 3384 | DP42: 1946 | DQ42: 2491 | DR42: 6236 | DS42: 1350 | DT42: 1371 | DU42: 659 | DV42: 1263 | DW42: 71 | DX42: 0 | DY42: 269 | DZ42: 453 | EA42: 1423 | EB42: 1652 | EC42: 1413 | ED42: 7 | EE42: 1172 | EF42: 1079 | EG42: 324 | EH42: 7222 | EI42: 427 | EJ42: 1322 | EK42: 537 | EL42: 2056 | EM42: 1099 | EN42: 313 | EO42: 949 | EP42: 2034 | EQ42: 0 | ER42: 1407 | ES42: 0 | ET42: 370 | EU42: 417 | EV42: 673 | EW42: 4498 | EX42: 3443 | EY42: 176 | EZ42: 1179 | FA42: 21862 | FB42: 66 | FC42: 914 | FD42: 914 | FE42: 4 | FF42: 373 | FG42: 2513 | FH42: 7954 | FI42: 165 | FJ42: 31862 | FK42: 4472 | FL42: 381 | FM42: 0 | FN42: 696 | FO42: 1660 | FP42: 1032 | FQ42: 2501 | FR42: 5093 | FS42: 1676 | FT42: 1380 | FU42: 834 | FV42: 556 | FW42: 202 | FX42: 227 | FY42: 446 | FZ42: 457 | GA42: 760 | GB42: 570 | GC42: 1792 | GD42: 186 | GE42: 403 | GF42: 2192 | GG42: 570 | GH42: 5935 | GI42: 39 | GJ42: 385 | GK42: 920 | GL42: 2379 | GM42: 1482 | GN42: 42 | GO42: 1411 | GP42: 725 | GQ42: 0 | GR42: 904 | GS42: 177 | GT42: 461 | GU42: 119 | GV42: 802 | GW42: 3347 | GX42: 4793 | GY42: 367 | GZ42: 676 | HA42: 21224 | HB42: 593 | HC42: 426 | HD42: 765 | HE42: 152 | HF42: 510.3333333 | HG42: 2158.333333 | HH42: 7043 | HI42: 466.3333333 | HJ42: 33422 | HK42: 2877.333333 | HL42: 533.3333333 | HM42: 83.66666667 | HN42: 420.6666667 | HO42: 2439 | HP42: 1222 | HQ42: 2438.333333 | HR42: 5152.666667 | HS42: 1530.333333 | HT42: 1022.666667 | HU42: 551.3333333 | HV42: 832.3333333 | HW42: 91 | HX42: 75.66666667 | HY42: 238.3333333 | HZ42: 501.6666667 | IA42: 1218 | IB42: 1127 | IC42: 1291 | ID42: 309.3333333 | IE42: 1120.333333 | IF42: 2219 | IG42: 557 | IH42: 5320.666667 | II42: 261 | IJ42: 750.3333333 | IK42: 812.6666667 | IL42: 2324.333333 | IM42: 1207 | IN42: 315.6666667 | IO42: 1300.333333 | IP42: 1193.333333 | IQ42: 0 | IR42: 1333.333333 | IS42: 59 | IT42: 606.6666667 | IU42: 425.6666667 | IV42: 754 | IW42: 3890.333333 | IX42: 3705 | IY42: 333 | IZ42: 993 | JA42: 21959.66667 | JB42: 339 | JC42: 1107 | JD42: 734 | JE42: 325.6666667
A43: 2012-01-01 | B43: 3857465 | BE43: Pennsylvania | BF43: 369 | BG43: 2185 | BH43: 3668 | BI43: 807 | BJ43: 12077 | BK43: 3657 | BL43: 4007 | BM43: 4608 | BN43: 1621 | BO43: 18212 | BP43: 4644 | BQ43: 332 | BR43: 380 | BS43: 4490 | BT43: 2018 | BU43: 227 | BV43: 1426 | BW43: 1675 | BX43: 625 | BY43: 1621 | BZ43: 18281 | CA43: 4455 | CB43: 4961 | CC43: 1491 | CD43: 563 | CE43: 1725 | CF43: 339 | CG43: 551 | CH43: 1810 | CI43: 729 | CJ43: 42456 | CK43: 1250 | CL43: 30481 | CM43: 7611 | CN43: 521 | CO43: 14545 | CP43: 1254 | CQ43: 918 | CR43: 0 | CS43: 377 | CT43: 1315 | CU43: 966 | CV43: 1611 | CW43: 7778 | CX43: 1048 | CY43: 215 | CZ43: 10558 | DA43: 2495 | DB43: 4258 | DC43: 1300 | DD43: 1069 | DE43: 6275 | DF43: 1332 | DG43: 759 | DH43: 2278 | DI43: 582 | DJ43: 10672 | DK43: 2491 | DL43: 4150 | DM43: 5177 | DN43: 1401 | DO43: 19299 | DP43: 4627 | DQ43: 495 | DR43: 236 | DS43: 3902 | DT43: 4086 | DU43: 1176 | DV43: 2323 | DW43: 4013 | DX43: 615 | DY43: 608 | DZ43: 17751 | EA43: 6284 | EB43: 4406 | EC43: 853 | ED43: 1238 | EE43: 1761 | EF43: 338 | EG43: 582 | EH43: 1057 | EI43: 1326 | EJ43: 36133 | EK43: 325 | EL43: 29436 | EM43: 11254 | EN43: 195 | EO43: 13075 | EP43: 283 | EQ43: 1594 | ER43: 0 | ES43: 799 | ET43: 3438 | EU43: 142 | EV43: 3742 | EW43: 7006 | EX43: 1246 | EY43: 446 | EZ43: 8419 | FA43: 3688 | FB43: 4631 | FC43: 2426 | FD43: 195 | FE43: 2723 | FF43: 1926 | FG43: 1658 | FH43: 3529 | FI43: 573 | FJ43: 7772 | FK43: 2574 | FL43: 3311 | FM43: 4814 | FN43: 2921 | FO43: 14631 | FP43: 4337 | FQ43: 245 | FR43: 359 | FS43: 3749 | FT43: 1599 | FU43: 125 | FV43: 967 | FW43: 1233 | FX43: 694 | FY43: 988 | FZ43: 17529 | GA43: 5900 | GB43: 2642 | GC43: 1169 | GD43: 55 | GE43: 1171 | GF43: 135 | GG43: 214 | GH43: 1600 | GI43: 1138 | GJ43: 33791 | GK43: 1001 | GL43: 32898 | GM43: 6380 | GN43: 166 | GO43: 14319 | GP43: 378 | GQ43: 234 | GR43: 0 | GS43: 771 | GT43: 3023 | GU43: 159 | GV43: 1273 | GW43: 6768 | GX43: 1276 | GY43: 1012 | GZ43: 11960 | HA43: 1787 | HB43: 6762 | HC43: 1550 | HD43: 434 | HE43: 7847 | HF43: 1209 | HG43: 1534 | HH43: 3158.333333 | HI43: 654 | HJ43: 10173.66667 | HK43: 2907.333333 | HL43: 3822.666667 | HM43: 4866.333333 | HN43: 1981 | HO43: 17380.66667 | HP43: 4536 | HQ43: 357.3333333 | HR43: 325 | HS43: 4047 | HT43: 2567.666667 | HU43: 509.3333333 | HV43: 1572 | HW43: 2307 | HX43: 644.6666667 | HY43: 1072.333333 | HZ43: 17853.66667 | IA43: 5546.333333 | IB43: 4003 | IC43: 1171 | ID43: 618.6666667 | IE43: 1552.333333 | IF43: 270.6666667 | IG43: 449 | IH43: 1489 | II43: 1064.333333 | IJ43: 37460 | IK43: 858.6666667 | IL43: 30938.33333 | IM43: 8415 | IN43: 294 | IO43: 13979.66667 | IP43: 638.3333333 | IQ43: 915.3333333 | IR43: 0 | IS43: 649 | IT43: 2592 | IU43: 422.3333333 | IV43: 2208.666667 | IW43: 7184 | IX43: 1190 | IY43: 557.6666667 | IZ43: 10312.33333 | JA43: 2656.666667 | JB43: 5217 | JC43: 1758.666667 | JD43: 566 | JE43: 5615
BE44: Puerto Rico | BF44: 629 | BG44: 156 | BH44: 288 | BI44: 0 | BJ44: 1177 | BK44: 388 | BL44: 899 | BM44: 0 | BN44: 0 | BO44: 11262 | BP44: 207 | BQ44: 0 | BR44: 0 | BS44: 1642 | BT44: 109 | BU44: 0 | BV44: 112 | BW44: 254 | BX44: 109 | BY44: 0 | BZ44: 59 | CA44: 2004 | CB44: 89 | CC44: 50 | CD44: 170 | CE44: 221 | CF44: 0 | CG44: 0 | CH44: 0 | CI44: 0 | CJ44: 1244 | CK44: 364 | CL44: 4768 | CM44: 146 | CN44: 0 | CO44: 69 | CP44: 0 | CQ44: 0 | CR44: 1516 | CS44: 684 | CT44: 109 | CU44: 0 | CV44: 30 | CW44: 977 | CX44: 882 | CY44: 0 | CZ44: 392 | DA44: 0 | DB44: 141 | DC44: 585 | DD44: 0 | DE44: 0 | DF44: 35 | DG44: 378 | DH44: 229 | DI44: 0 | DJ44: 207 | DK44: 0 | DL44: 1849 | DM44: 13 | DN44: 212 | DO44: 6614 | DP44: 247 | DQ44: 0 | DR44: 13 | DS44: 624 | DT44: 784 | DU44: 0 | DV44: 38 | DW44: 0 | DX44: 0 | DY44: 0 | DZ44: 70 | EA44: 1412 | EB44: 88 | EC44: 0 | ED44: 27 | EE44: 101 | EF44: 0 | EG44: 0 | EH44: 0 | EI44: 0 | EJ44: 2150 | EK44: 51 | EL44: 2615 | EM44: 200 | EN44: 0 | EO44: 0 | EP44: 79 | EQ44: 0 | ER44: 1978 | ES44: 490 | ET44: 3 | EU44: 113 | EV44: 224 | EW44: 444 | EX44: 0 | EY44: 0 | EZ44: 1077 | FA44: 41 | FB44: 14 | FC44: 229 | FD44: 0 | FE44: 0 | FF44: 8 | FG44: 57 | FH44: 54 | FI44: 93 | FJ44: 519 | FK44: 0 | FL44: 370 | FM44: 0 | FN44: 0 | FO44: 4192 | FP44: 232 | FQ44: 110 | FR44: 0 | FS44: 1021 | FT44: 121 | FU44: 0 | FV44: 143 | FW44: 37 | FX44: 59 | FY44: 0 | FZ44: 108 | GA44: 2258 | GB44: 435 | GC44: 0 | GD44: 0 | GE44: 0 | GF44: 0 | GG44: 0 | GH44: 0 | GI44: 0 | GJ44: 1922 | GK44: 28 | GL44: 2314 | GM44: 638 | GN44: 0 | GO44: 328 | GP44: 0 | GQ44: 0 | GR44: 2313 | GS44: 624 | GT44: 4 | GU44: 0 | GV44: 15 | GW44: 360 | GX44: 0 | GY44: 0 | GZ44: 684 | HA44: 0 | HB44: 8 | HC44: 989 | HD44: 0 | HE44: 0 | HF44: 224 | HG44: 197 | HH44: 190.3333333 | HI44: 31 | HJ44: 634.3333333 | HK44: 129.3333333 | HL44: 1039.333333 | HM44: 4.333333333 | HN44: 70.66666667 | HO44: 7356 | HP44: 228.6666667 | HQ44: 36.66666667 | HR44: 4.333333333 | HS44: 1095.666667 | HT44: 338 | HU44: 0 | HV44: 97.66666667 | HW44: 97 | HX44: 56 | HY44: 0 | HZ44: 79 | IA44: 1891.333333 | IB44: 204 | IC44: 16.66666667 | ID44: 65.66666667 | IE44: 107.3333333 | IF44: 0 | IG44: 0 | IH44: 0 | II44: 0 | IJ44: 1772 | IK44: 147.6666667 | IL44: 3232.333333 | IM44: 328 | IN44: 0 | IO44: 132.3333333 | IP44: 26.33333333 | IQ44: 0 | IR44: 1935.666667 | IS44: 599.3333333 | IT44: 38.66666667 | IU44: 37.66666667 | IV44: 89.66666667 | IW44: 593.6666667 | IX44: 294 | IY44: 0 | IZ44: 717.6666667 | JA44: 13.66666667 | JB44: 54.33333333 | JC44: 601 | JD44: 0 | JE44: 0
BE45: Rhode Island | BF45: 136 | BG45: 0 | BH45: 324 | BI45: 0 | BJ45: 1697 | BK45: 59 | BL45: 4090 | BM45: 0 | BN45: 146 | BO45: 1336 | BP45: 382 | BQ45: 274 | BR45: 0 | BS45: 1210 | BT45: 206 | BU45: 48 | BV45: 0 | BW45: 0 | BX45: 0 | BY45: 447 | BZ45: 977 | CA45: 8639 | CB45: 77 | CC45: 47 | CD45: 0 | CE45: 47 | CF45: 0 | CG45: 0 | CH45: 297 | CI45: 333 | CJ45: 1868 | CK45: 0 | CL45: 4583 | CM45: 1376 | CN45: 62 | CO45: 0 | CP45: 199 | CQ45: 0 | CR45: 560 | CS45: 0 | CT45: 61 | CU45: 48 | CV45: 71 | CW45: 678 | CX45: 0 | CY45: 72 | CZ45: 1399 | DA45: 160 | DB45: 150 | DC45: 0 | DD45: 0 | DE45: 276 | DF45: 0 | DG45: 0 | DH45: 214 | DI45: 0 | DJ45: 1949 | DK45: 301 | DL45: 2613 | DM45: 0 | DN45: 0 | DO45: 2230 | DP45: 476 | DQ45: 0 | DR45: 107 | DS45: 373 | DT45: 41 | DU45: 82 | DV45: 374 | DW45: 211 | DX45: 121 | DY45: 228 | DZ45: 472 | EA45: 7715 | EB45: 178 | EC45: 27 | ED45: 0 | EE45: 109 | EF45: 0 | EG45: 0 | EH45: 0 | EI45: 941 | EJ45: 1224 | EK45: 93 | EL45: 2776 | EM45: 259 | EN45: 0 | EO45: 60 | EP45: 0 | EQ45: 57 | ER45: 1125 | ES45: 0 | ET45: 223 | EU45: 0 | EV45: 210 | EW45: 207 | EX45: 181 | EY45: 621 | EZ45: 485 | FA45: 262 | FB45: 199 | FC45: 2 | FD45: 23 | FE45: 293 | FF45: 20 | FG45: 0 | FH45: 93 | FI45: 0 | FJ45: 2146 | FK45: 332 | FL45: 4170 | FM45: 0 | FN45: 313 | FO45: 2752 | FP45: 168 | FQ45: 120 | FR45: 0 | FS45: 385 | FT45: 0 | FU45: 0 | FV45: 27 | FW45: 286 | FX45: 24 | FY45: 279 | FZ45: 482 | GA45: 11253 | GB45: 230 | GC45: 131 | GD45: 0 | GE45: 210 | GF45: 0 | GG45: 188 | GH45: 25 | GI45: 611 | GJ45: 1219 | GK45: 36 | GL45: 3603 | GM45: 478 | GN45: 0 | GO45: 63 | GP45: 0 | GQ45: 139 | GR45: 735 | GS45: 0 | GT45: 481 | GU45: 0 | GV45: 120 | GW45: 823 | GX45: 0 | GY45: 53 | GZ45: 1008 | HA45: 287 | HB45: 0 | HC45: 135 | HD45: 21 | HE45: 116 | HF45: 52 | HG45: 0 | HH45: 210.3333333 | HI45: 0 | HJ45: 1930.666667 | HK45: 230.6666667 | HL45: 3624.333333 | HM45: 0 | HN45: 153 | HO45: 2106 | HP45: 342 | HQ45: 131.3333333 | HR45: 35.66666667 | HS45: 656 | HT45: 82.33333333 | HU45: 43.33333333 | HV45: 133.6666667 | HW45: 165.6666667 | HX45: 48.33333333 | HY45: 318 | HZ45: 643.6666667 | IA45: 9202.333333 | IB45: 161.6666667 | IC45: 68.33333333 | ID45: 0 | IE45: 122 | IF45: 0 | IG45: 62.66666667 | IH45: 107.3333333 | II45: 628.3333333 | IJ45: 1437 | IK45: 43 | IL45: 3654 | IM45: 704.3333333 | IN45: 20.66666667 | IO45: 41 | IP45: 66.33333333 | IQ45: 65.33333333 | IR45: 806.6666667 | IS45: 0 | IT45: 255 | IU45: 16 | IV45: 133.6666667 | IW45: 569.3333333 | IX45: 60.33333333 | IY45: 248.6666667 | IZ45: 964 | JA45: 236.3333333 | JB45: 116.3333333 | JC45: 45.66666667 | JD45: 14.66666667 | JE45: 228.3333333
BE46: South Carolina | BF46: 1741 | BG46: 1670 | BH46: 1457 | BI46: 365 | BJ46: 4691 | BK46: 1867 | BL46: 3998 | BM46: 249 | BN46: 38 | BO46: 16060 | BP46: 17486 | BQ46: 813 | BR46: 233 | BS46: 4253 | BT46: 2174 | BU46: 703 | BV46: 514 | BW46: 2211 | BX46: 2059 | BY46: 603 | BZ46: 5184 | CA46: 3765 | CB46: 3709 | CC46: 818 | CD46: 1175 | CE46: 1371 | CF46: 0 | CG46: 0 | CH46: 1173 | CI46: 486 | CJ46: 4908 | CK46: 1390 | CL46: 7912 | CM46: 20749 | CN46: 118 | CO46: 3883 | CP46: 1458 | CQ46: 1020 | CR46: 4689 | CS46: 154 | CT46: 0 | CU46: 95 | CV46: 3816 | CW46: 4965 | CX46: 455 | CY46: 478 | CZ46: 9786 | DA46: 3070 | DB46: 1190 | DC46: 1057 | DD46: 382 | DE46: 269 | DF46: 2999 | DG46: 2421 | DH46: 1971 | DI46: 1333 | DJ46: 6592 | DK46: 1000 | DL46: 1752 | DM46: 841 | DN46: 589 | DO46: 15476 | DP46: 16355 | DQ46: 712 | DR46: 55 | DS46: 2371 | DT46: 3249 | DU46: 1379 | DV46: 1885 | DW46: 2454 | DX46: 878 | DY46: 652 | DZ46: 3807 | EA46: 730 | EB46: 4483 | EC46: 471 | ED46: 2163 | EE46: 1522 | EF46: 915 | EG46: 204 | EH46: 1017 | EI46: 372 | EJ46: 4241 | EK46: 598 | EL46: 11317 | EM46: 23102 | EN46: 271 | EO46: 6327 | EP46: 1008 | EQ46: 833 | ER46: 3523 | ES46: 453 | ET46: 0 | EU46: 62 | EV46: 3324 | EW46: 8623 | EX46: 181 | EY46: 91 | EZ46: 7879 | FA46: 2510 | FB46: 1680 | FC46: 341 | FD46: 632 | FE46: 2166 | FF46: 1665 | FG46: 1244 | FH46: 2222 | FI46: 839 | FJ46: 5979 | FK46: 1915 | FL46: 1590 | FM46: 697 | FN46: 435 | FO46: 11552 | FP46: 18570 | FQ46: 638 | FR46: 198 | FS46: 2125 | FT46: 3802 | FU46: 643 | FV46: 1064 | FW46: 1924 | FX46: 2709 | FY46: 2077 | FZ46: 3565 | GA46: 2313 | GB46: 2966 | GC46: 757 | GD46: 1407 | GE46: 1884 | GF46: 93 | GG46: 158 | GH46: 1025 | GI46: 917 | GJ46: 6517 | GK46: 1052 | GL46: 10746 | GM46: 24764 | GN46: 656 | GO46: 4388 | GP46: 555 | GQ46: 255 | GR46: 6497 | GS46: 538 | GT46: 0 | GU46: 816 | GV46: 3550 | GW46: 5351 | GX46: 566 | GY46: 298 | GZ46: 9377 | HA46: 1629 | HB46: 1345 | HC46: 832 | HD46: 0 | HE46: 1070 | HF46: 2135 | HG46: 1778.333333 | HH46: 1883.333333 | HI46: 845.6666667 | HJ46: 5754 | HK46: 1594 | HL46: 2446.666667 | HM46: 595.6666667 | HN46: 354 | HO46: 14362.66667 | HP46: 17470.33333 | HQ46: 721 | HR46: 162 | HS46: 2916.333333 | HT46: 3075 | HU46: 908.3333333 | HV46: 1154.333333 | HW46: 2196.333333 | HX46: 1882 | HY46: 1110.666667 | HZ46: 4185.333333 | IA46: 2269.333333 | IB46: 3719.333333 | IC46: 682 | ID46: 1581.666667 | IE46: 1592.333333 | IF46: 336 | IG46: 120.6666667 | IH46: 1071.666667 | II46: 591.6666667 | IJ46: 5222 | IK46: 1013.333333 | IL46: 9991.666667 | IM46: 22871.66667 | IN46: 348.3333333 | IO46: 4866 | IP46: 1007 | IQ46: 702.6666667 | IR46: 4903 | IS46: 381.6666667 | IT46: 0 | IU46: 324.3333333 | IV46: 3563.333333 | IW46: 6313 | IX46: 400.6666667 | IY46: 289 | IZ46: 9014 | JA46: 2403 | JB46: 1405 | JC46: 743.3333333 | JD46: 338 | JE46: 1168.333333
BE47: South Dakota | BF47: 325 | BG47: 25 | BH47: 745 | BI47: 61 | BJ47: 1338 | BK47: 807 | BL47: 0 | BM47: 0 | BN47: 0 | BO47: 251 | BP47: 24 | BQ47: 75 | BR47: 457 | BS47: 80 | BT47: 439 | BU47: 3520 | BV47: 571 | BW47: 82 | BX47: 129 | BY47: 0 | BZ47: 0 | CA47: 407 | CB47: 144 | CC47: 4615 | CD47: 201 | CE47: 252 | CF47: 560 | CG47: 2260 | CH47: 38 | CI47: 0 | CJ47: 0 | CK47: 38 | CL47: 758 | CM47: 262 | CN47: 2020 | CO47: 160 | CP47: 296 | CQ47: 122 | CR47: 209 | CS47: 0 | CT47: 0 | CU47: 0 | CV47: 0 | CW47: 1334 | CX47: 0 | CY47: 0 | CZ47: 224 | DA47: 1564 | DB47: 0 | DC47: 736 | DD47: 648 | DE47: 0 | DF47: 0 | DG47: 554 | DH47: 1422 | DI47: 659 | DJ47: 1286 | DK47: 1021 | DL47: 0 | DM47: 0 | DN47: 0 | DO47: 101 | DP47: 69 | DQ47: 0 | DR47: 186 | DS47: 267 | DT47: 285 | DU47: 4772 | DV47: 144 | DW47: 211 | DX47: 0 | DY47: 0 | DZ47: 254 | EA47: 113 | EB47: 239 | EC47: 5342 | ED47: 129 | EE47: 354 | EF47: 232 | EG47: 1695 | EH47: 110 | EI47: 0 | EJ47: 441 | EK47: 513 | EL47: 6 | EM47: 166 | EN47: 2060 | EO47: 84 | EP47: 40 | EQ47: 15 | ER47: 57 | ES47: 7 | ET47: 529 | EU47: 0 | EV47: 0 | EW47: 1156 | EX47: 560 | EY47: 0 | EZ47: 79 | FA47: 557 | FB47: 0 | FC47: 481 | FD47: 1310 | FE47: 0 | FF47: 0 | FG47: 855 | FH47: 435 | FI47: 227 | FJ47: 1494 | FK47: 1744 | FL47: 2 | FM47: 0 | FN47: 0 | FO47: 970 | FP47: 122 | FQ47: 8 | FR47: 78 | FS47: 74 | FT47: 210 | FU47: 2441 | FV47: 403 | FW47: 0 | FX47: 0 | FY47: 0 | FZ47: 60 | GA47: 61 | GB47: 892 | GC47: 3568 | GD47: 34 | GE47: 474 | GF47: 248 | GG47: 2175 | GH47: 135 | GI47: 0 | GJ47: 0 | GK47: 175 | GL47: 371 | GM47: 240 | GN47: 1725 | GO47: 64 | GP47: 21 | GQ47: 667 | GR47: 515 | GS47: 0 | GT47: 158 | GU47: 0 | GV47: 507 | GW47: 1715 | GX47: 388 | GY47: 5 | GZ47: 340 | HA47: 1026 | HB47: 131 | HC47: 314 | HD47: 979 | HE47: 134 | HF47: 108.3333333 | HG47: 478 | HH47: 867.3333333 | HI47: 315.6666667 | HJ47: 1372.666667 | HK47: 1190.666667 | HL47: 0.6666666667 | HM47: 0 | HN47: 0 | HO47: 440.6666667 | HP47: 71.66666667 | HQ47: 27.66666667 | HR47: 240.3333333 | HS47: 140.3333333 | HT47: 311.3333333 | HU47: 3577.666667 | HV47: 372.6666667 | HW47: 97.66666667 | HX47: 43 | HY47: 0 | HZ47: 104.6666667 | IA47: 193.6666667 | IB47: 425 | IC47: 4508.333333 | ID47: 121.3333333 | IE47: 360 | IF47: 346.6666667 | IG47: 2043.333333 | IH47: 94.33333333 | II47: 0 | IJ47: 147 | IK47: 242 | IL47: 378.3333333 | IM47: 222.6666667 | IN47: 1935 | IO47: 102.6666667 | IP47: 119 | IQ47: 268 | IR47: 260.3333333 | IS47: 2.333333333 | IT47: 229 | IU47: 0 | IV47: 169 | IW47: 1401.666667 | IX47: 316 | IY47: 1.666666667 | IZ47: 214.3333333 | JA47: 1049 | JB47: 43.66666667 | JC47: 510.3333333 | JD47: 979 | JE47: 44.66666667
BE48: Tennessee | BF48: 8897 | BG48: 343 | BH48: 2291 | BI48: 4736 | BJ48: 8019 | BK48: 1858 | BL48: 765 | BM48: 248 | BN48: 394 | BO48: 14168 | BP48: 11065 | BQ48: 243 | BR48: 333 | BS48: 3162 | BT48: 4764 | BU48: 1052 | BV48: 2506 | BW48: 11188 | BX48: 2602 | BY48: 84 | BZ48: 1450 | CA48: 1733 | CB48: 5529 | CC48: 1504 | CD48: 9029 | CE48: 4342 | CF48: 290 | CG48: 187 | CH48: 2433 | CI48: 197 | CJ48: 2230 | CK48: 621 | CL48: 4800 | CM48: 7102 | CN48: 0 | CO48: 4462 | CP48: 669 | CQ48: 430 | CR48: 2562 | CS48: 805 | CT48: 4765 | CU48: 63 | CV48: 0 | CW48: 8701 | CX48: 2062 | CY48: 0 | CZ48: 8650 | DA48: 1412 | DB48: 2201 | DC48: 2831 | DD48: 0 | DE48: 0 | DF48: 9326 | DG48: 531 | DH48: 1346 | DI48: 7393 | DJ48: 7130 | DK48: 1372 | DL48: 150 | DM48: 155 | DN48: 307 | DO48: 15491 | DP48: 17507 | DQ48: 179 | DR48: 0 | DS48: 8593 | DT48: 5645 | DU48: 387 | DV48: 1805 | DW48: 13884 | DX48: 1901 | DY48: 9 | DZ48: 1135 | EA48: 1690 | EB48: 5983 | EC48: 445 | ED48: 9172 | EE48: 3795 | EF48: 43 | EG48: 631 | EH48: 883 | EI48: 132 | EJ48: 1396 | EK48: 381 | EL48: 4921 | EM48: 9353 | EN48: 50 | EO48: 5944 | EP48: 3166 | EQ48: 726 | ER48: 3360 | ES48: 14 | ET48: 5531 | EU48: 181 | EV48: 0 | EW48: 7009 | EX48: 200 | EY48: 38 | EZ48: 6098 | FA48: 2852 | FB48: 1385 | FC48: 1213 | FD48: 131 | FE48: 1083 | FF48: 12116 | FG48: 1281 | FH48: 2250 | FI48: 3306 | FJ48: 8396 | FK48: 2473 | FL48: 936 | FM48: 176 | FN48: 180 | FO48: 15641 | FP48: 16012 | FQ48: 1058 | FR48: 787 | FS48: 7094 | FT48: 5591 | FU48: 617 | FV48: 2630 | FW48: 13202 | FX48: 2452 | FY48: 1040 | FZ48: 1743 | GA48: 1525 | GB48: 4507 | GC48: 1178 | GD48: 10568 | GE48: 2694 | GF48: 308 | GG48: 432 | GH48: 735 | GI48: 271 | GJ48: 783 | GK48: 751 | GL48: 6279 | GM48: 5904 | GN48: 7 | GO48: 6200 | GP48: 2495 | GQ48: 1080 | GR48: 3329 | GS48: 26 | GT48: 4300 | GU48: 0 | GV48: 0 | GW48: 8716 | GX48: 784 | GY48: 133 | GZ48: 8008 | HA48: 1876 | HB48: 3248 | HC48: 1622 | HD48: 358 | HE48: 717 | HF48: 10113 | HG48: 718.3333333 | HH48: 1962.333333 | HI48: 5145 | HJ48: 7848.333333 | HK48: 1901 | HL48: 617 | HM48: 193 | HN48: 293.6666667 | HO48: 15100 | HP48: 14861.33333 | HQ48: 493.3333333 | HR48: 373.3333333 | HS48: 6283 | HT48: 5333.333333 | HU48: 685.3333333 | HV48: 2313.666667 | HW48: 12758 | HX48: 2318.333333 | HY48: 377.6666667 | HZ48: 1442.666667 | IA48: 1649.333333 | IB48: 5339.666667 | IC48: 1042.333333 | ID48: 9589.666667 | IE48: 3610.333333 | IF48: 213.6666667 | IG48: 416.6666667 | IH48: 1350.333333 | II48: 200 | IJ48: 1469.666667 | IK48: 584.3333333 | IL48: 5333.333333 | IM48: 7453 | IN48: 19 | IO48: 5535.333333 | IP48: 2110 | IQ48: 745.3333333 | IR48: 3083.666667 | IS48: 281.6666667 | IT48: 4865.333333 | IU48: 81.33333333 | IV48: 0 | IW48: 8142 | IX48: 1015.333333 | IY48: 57 | IZ48: 7585.333333 | JA48: 2046.666667 | JB48: 2278 | JC48: 1888.666667 | JD48: 163 | JE48: 600
BE49: Texas | BF49: 8636 | BG49: 11613 | BH49: 16521 | BI49: 15251 | BJ49: 68959 | BK49: 16361 | BL49: 924 | BM49: 704 | BN49: 460 | BO49: 26668 | BP49: 16671 | BQ49: 3718 | BR49: 2033 | BS49: 20169 | BT49: 6985 | BU49: 3946 | BV49: 11598 | BW49: 5153 | BX49: 31149 | BY49: 1318 | BZ49: 4724 | CA49: 7139 | CB49: 13775 | CC49: 6088 | CD49: 7773 | CE49: 12061 | CF49: 1027 | CG49: 4893 | CH49: 8324 | CI49: 1067 | CJ49: 7058 | CK49: 11752 | CL49: 16624 | CM49: 12183 | CN49: 2452 | CO49: 8317 | CP49: 22969 | CQ49: 4373 | CR49: 7161 | CS49: 975 | CT49: 5249 | CU49: 1936 | CV49: 13044 | CW49: 0 | CX49: 4123 | CY49: 52 | CZ49: 13713 | DA49: 8847 | DB49: 2221 | DC49: 5927 | DD49: 1874 | DE49: 4180 | DF49: 8747 | DG49: 6670 | DH49: 20073 | DI49: 16461 | DJ49: 58992 | DK49: 19126 | DL49: 2927 | DM49: 884 | DN49: 2276 | DO49: 35777 | DP49: 17401 | DQ49: 6106 | DR49: 4379 | DS49: 15064 | DT49: 10265 | DU49: 3236 | DV49: 12766 | DW49: 6616 | DX49: 25513 | DY49: 1357 | DZ49: 9443 | EA49: 5035 | EB49: 15654 | EC49: 7691 | ED49: 6048 | EE49: 13473 | EF49: 537 | EG49: 3837 | EH49: 7793 | EI49: 459 | EJ49: 7578 | EK49: 15225 | EL49: 26155 | EM49: 14956 | EN49: 809 | EO49: 12315 | EP49: 19302 | EQ49: 3743 | ER49: 9107 | ES49: 1297 | ET49: 4075 | EU49: 1486 | EV49: 10788 | EW49: 0 | EX49: 5234 | EY49: 349 | EZ49: 13231 | FA49: 15325 | FB49: 663 | FC49: 5982 | FD49: 2500 | FE49: 5225 | FF49: 9993 | FG49: 6759 | FH49: 18908 | FI49: 13781 | FJ49: 62702 | FK49: 16616 | FL49: 2769 | FM49: 181 | FN49: 1189 | FO49: 31259 | FP49: 20362 | FQ49: 5040 | FR49: 2387 | FS49: 19672 | FT49: 8264 | FU49: 4934 | FV49: 12699 | FW49: 6040 | FX49: 29348 | FY49: 1293 | FZ49: 4969 | GA49: 4813 | GB49: 9501 | GC49: 2803 | GD49: 6402 | GE49: 12319 | GF49: 1813 | GG49: 4794 | GH49: 8266 | GI49: 761 | GJ49: 6797 | GK49: 16762 | GL49: 20274 | GM49: 22660 | GN49: 989 | GO49: 8728 | GP49: 26284 | GQ49: 3827 | GR49: 10449 | GS49: 1763 | GT49: 4470 | GU49: 1264 | GV49: 10368 | GW49: 0 | GX49: 4610 | GY49: 113 | GZ49: 17734 | HA49: 11630 | HB49: 1729 | HC49: 4192 | HD49: 2472 | HE49: 4435 | HF49: 9125.333333 | HG49: 8347.333333 | HH49: 18500.66667 | HI49: 15164.33333 | HJ49: 63551 | HK49: 17367.66667 | HL49: 2206.666667 | HM49: 589.6666667 | HN49: 1308.333333 | HO49: 31234.66667 | HP49: 18144.66667 | HQ49: 4954.666667 | HR49: 2933 | HS49: 18301.66667 | HT49: 8504.666667 | HU49: 4038.666667 | HV49: 12354.33333 | HW49: 5936.333333 | HX49: 28670 | HY49: 1322.666667 | HZ49: 6378.666667 | IA49: 5662.333333 | IB49: 12976.66667 | IC49: 5527.333333 | ID49: 6741 | IE49: 12617.66667 | IF49: 1125.666667 | IG49: 4508 | IH49: 8127.666667 | II49: 762.3333333 | IJ49: 7144.333333 | IK49: 14579.66667 | IL49: 21017.66667 | IM49: 16599.66667 | IN49: 1416.666667 | IO49: 9786.666667 | IP49: 22851.66667 | IQ49: 3981 | IR49: 8905.666667 | IS49: 1345 | IT49: 4598 | IU49: 1562 | IV49: 11400 | IW49: 0 | IX49: 4655.666667 | IY49: 171.3333333 | IZ49: 14892.66667 | JA49: 11934 | JB49: 1537.666667 | JC49: 5367 | JD49: 2282 | JE49: 4613.333333
A50: pvtState2SameResidence | BE50: United States | BF50: 99221 | BG50: 94692 | BH50: 176768 | BI50: 64264 | BJ50: 573988 | BK50: 140620 | BL50: 89360 | BM50: 30055 | BN50: 56052 | BO50: 427853 | BP50: 244992 | BQ50: 49218 | BR50: 53122 | BS50: 277579 | BT50: 130170 | BU50: 66922 | BV50: 90681 | BW50: 92999 | BX50: 88131 | BY50: 32209 | BZ50: 159866 | CA50: 144152 | CB50: 178207 | CC50: 104765 | CD50: 68363 | CE50: 148055 | CF50: 35870 | CG50: 43531 | CH50: 109409 | CI50: 38399 | CJ50: 193972 | CK50: 50438 | CL50: 363139 | CM50: 207025 | CN50: 24450 | CO50: 188013 | CP50: 90616 | CQ50: 100185 | CR50: 209810 | CS50: 24948 | CT50: 117569 | CU50: 27915 | CV50: 143135 | CW50: 411641 | CX50: 75541 | CY50: 18380 | CZ50: 232002 | DA50: 166162 | DB50: 49349 | DC50: 111240 | DD50: 28186 | DE50: 59885 | DF50: 106806 | DG50: 88850 | DH50: 211816 | DI50: 77226 | DJ50: 562343 | DK50: 160623 | DL50: 91295 | DM50: 26631 | DN50: 49732 | DO50: 437202 | DP50: 248892 | DQ50: 61940 | DR50: 57831 | DS50: 269008 | DT50: 143228 | DU50: 74516 | DV50: 94180 | DW50: 99256 | DX50: 86593 | DY50: 33729 | DZ50: 165041 | EA50: 145869 | EB50: 186505 | EC50: 103253 | ED50: 68597 | EE50: 138404 | EF50: 31204 | EG50: 52809 | EH50: 115943 | EI50: 43277 | EJ50: 216369 | EK50: 61431 | EL50: 377800 | EM50: 225147 | EN50: 26563 | EO50: 206049 | EP50: 81009 | EQ50: 109795 | ER50: 215127 | ES50: 31065 | ET50: 121426 | EU50: 29383 | EV50: 154243 | EW50: 404839 | EX50: 73211 | EY50: 18172 | EZ50: 229227 | FA50: 190644 | FB50: 45956 | FC50: 105370 | FD50: 31991 | FE50: 76218 | FF50: 109210 | FG50: 84068 | FH50: 206842 | FI50: 64967 | FJ50: 566986 | FK50: 161530 | FL50: 87023 | FM50: 25149 | FN50: 59513 | FO50: 428325 | FP50: 252262 | FQ50: 61509 | FR50: 55191 | FS50: 277953 | FT50: 144597 | FU50: 73325 | FV50: 93134 | FW50: 103004 | FX50: 95956 | FY50: 38574 | FZ50: 157664 | GA50: 158156 | GB50: 175733 | GC50: 115946 | GD50: 66947 | GE50: 142754 | GF50: 33832 | GG50: 48816 | GH50: 98882 | GI50: 38696 | GJ50: 219202 | GK50: 63921 | GL50: 405864 | GM50: 238663 | GN50: 23959 | GO50: 199202 | GP50: 102572 | GQ50: 108182 | GR50: 237156 | GS50: 30498 | GT50: 127418 | GU50: 22534 | GV50: 163843 | GW50: 402187 | GX50: 82165 | GY50: 20056 | GZ50: 238540 | HA50: 180462 | HB50: 47425 | HC50: 97724 | HD50: 32228 | HE50: 74500 | HF50: 105079 | HG50: 89203.33333 | HH50: 198475.3333 | HI50: 68819 | HJ50: 567772.3333 | HK50: 154257.6667 | HL50: 89226 | HM50: 27278.33333 | HN50: 55099 | HO50: 431126.6667 | HP50: 248715.3333 | HQ50: 57555.66667 | HR50: 55381.33333 | HS50: 274846.6667 | HT50: 139331.6667 | HU50: 71587.66667 | HV50: 92665 | HW50: 98419.66667 | HX50: 90226.66667 | HY50: 34837.33333 | HZ50: 160857 | IA50: 149392.3333 | IB50: 180148.3333 | IC50: 107988 | ID50: 67969 | IE50: 143071 | IF50: 33635.33333 | IG50: 48385.33333 | IH50: 108078 | II50: 40124 | IJ50: 209847.6667 | IK50: 58596.66667 | IL50: 382267.6667 | IM50: 223611.6667 | IN50: 24990.66667 | IO50: 197754.6667 | IP50: 91399 | IQ50: 106054 | IR50: 220697.6667 | IS50: 28837 | IT50: 122137.6667 | IU50: 26610.66667 | IV50: 153740.3333 | IW50: 406222.3333 | IX50: 76972.33333 | IY50: 18869.33333 | IZ50: 233256.3333 | JA50: 179089.3333 | JB50: 47576.66667 | JC50: 104778 | JD50: 30801.66667 | JE50: 70201
A51: Sum of Same Residence Last Yr | BE51: Utah | BF51: 93 | BG51: 1798 | BH51: 8147 | BI51: 316 | BJ51: 12187 | BK51: 3987 | BL51: 119 | BM51: 0 | BN51: 138 | BO51: 2097 | BP51: 966 | BQ51: 932 | BR51: 7692 | BS51: 1831 | BT51: 517 | BU51: 483 | BV51: 299 | BW51: 235 | BX51: 46 | BY51: 148 | BZ51: 426 | CA51: 246 | CB51: 261 | CC51: 914 | CD51: 127 | CE51: 1255 | CF51: 1929 | CG51: 118 | CH51: 4549 | CI51: 0 | CJ51: 247 | CK51: 518 | CL51: 1462 | CM51: 1167 | CN51: 0 | CO51: 1527 | CP51: 886 | CQ51: 2525 | CR51: 557 | CS51: 0 | CT51: 838 | CU51: 875 | CV51: 459 | CW51: 5305 | CX51: 0 | CY51: 297 | CZ51: 3005 | DA51: 3792 | DB51: 0 | DC51: 338 | DD51: 2126 | DE51: 383 | DF51: 486 | DG51: 2151 | DH51: 6585 | DI51: 422 | DJ51: 18237 | DK51: 3986 | DL51: 562 | DM51: 0 | DN51: 132 | DO51: 1643 | DP51: 1052 | DQ51: 1701 | DR51: 7538 | DS51: 1447 | DT51: 545 | DU51: 290 | DV51: 1146 | DW51: 611 | DX51: 494 | DY51: 0 | DZ51: 342 | EA51: 959 | EB51: 1099 | EC51: 939 | ED51: 143 | EE51: 511 | EF51: 1241 | EG51: 195 | EH51: 4315 | EI51: 34 | EJ51: 506 | EK51: 1707 | EL51: 1937 | EM51: 1653 | EN51: 2 | EO51: 2584 | EP51: 150 | EQ51: 2037 | ER51: 1496 | ES51: 0 | ET51: 309 | EU51: 128 | EV51: 549 | EW51: 4507 | EX51: 0 | EY51: 122 | EZ51: 2413 | FA51: 4825 | FB51: 270 | FC51: 158 | FD51: 1058 | FE51: 0 | FF51: 126 | FG51: 2819 | FH51: 7966 | FI51: 361 | FJ51: 15286 | FK51: 5350 | FL51: 142 | FM51: 0 | FN51: 0 | FO51: 2428 | FP51: 1142 | FQ51: 1436 | FR51: 5129 | FS51: 1588 | FT51: 475 | FU51: 2791 | FV51: 398 | FW51: 217 | FX51: 345 | FY51: 380 | FZ51: 613 | GA51: 1503 | GB51: 1670 | GC51: 385 | GD51: 284 | GE51: 1553 | GF51: 1057 | GG51: 489 | GH51: 5391 | GI51: 507 | GJ51: 437 | GK51: 686 | GL51: 2129 | GM51: 842 | GN51: 175 | GO51: 1875 | GP51: 1338 | GQ51: 4089 | GR51: 944 | GS51: 351 | GT51: 60 | GU51: 47 | GV51: 863 | GW51: 3605 | GX51: 0 | GY51: 39 | GZ51: 1369 | HA51: 3529 | HB51: 0 | HC51: 1445 | HD51: 2216 | HE51: 239 | HF51: 235 | HG51: 2256 | HH51: 7566 | HI51: 366.3333333 | HJ51: 15236.66667 | HK51: 4441 | HL51: 274.3333333 | HM51: 0 | HN51: 90 | HO51: 2056 | HP51: 1053.333333 | HQ51: 1356.333333 | HR51: 6786.333333 | HS51: 1622 | HT51: 512.3333333 | HU51: 1188 | HV51: 614.3333333 | HW51: 354.3333333 | HX51: 295 | HY51: 176 | HZ51: 460.3333333 | IA51: 902.6666667 | IB51: 1010 | IC51: 746 | ID51: 184.6666667 | IE51: 1106.333333 | IF51: 1409 | IG51: 267.3333333 | IH51: 4751.666667 | II51: 180.3333333 | IJ51: 396.6666667 | IK51: 970.3333333 | IL51: 1842.666667 | IM51: 1220.666667 | IN51: 59 | IO51: 1995.333333 | IP51: 791.3333333 | IQ51: 2883.666667 | IR51: 999 | IS51: 117 | IT51: 402.3333333 | IU51: 350 | IV51: 623.6666667 | IW51: 4472.333333 | IX51: 0 | IY51: 152.6666667 | IZ51: 2262.333333 | JA51: 4048.666667 | JB51: 90 | JC51: 647 | JD51: 1800 | JE51: 207.3333333
B52: Pennsylvania | BE52: Vermont | BF52: 0 | BG52: 184 | BH52: 65 | BI52: 0 | BJ52: 1001 | BK52: 326 | BL52: 1287 | BM52: 87 | BN52: 9 | BO52: 2063 | BP52: 496 | BQ52: 49 | BR52: 0 | BS52: 370 | BT52: 0 | BU52: 91 | BV52: 0 | BW52: 176 | BX52: 0 | BY52: 824 | BZ52: 300 | CA52: 3599 | CB52: 201 | CC52: 85 | CD52: 0 | CE52: 51 | CF52: 236 | CG52: 0 | CH52: 58 | CI52: 2760 | CJ52: 751 | CK52: 0 | CL52: 4056 | CM52: 539 | CN52: 30 | CO52: 50 | CP52: 0 | CQ52: 100 | CR52: 524 | CS52: 227 | CT52: 134 | CU52: 153 | CV52: 125 | CW52: 565 | CX52: 0 | CY52: 0 | CZ52: 400 | DA52: 128 | DB52: 0 | DC52: 377 | DD52: 52 | DE52: 0 | DF52: 0 | DG52: 580 | DH52: 310 | DI52: 0 | DJ52: 819 | DK52: 529 | DL52: 2105 | DM52: 107 | DN52: 27 | DO52: 366 | DP52: 101 | DQ52: 143 | DR52: 0 | DS52: 386 | DT52: 258 | DU52: 0 | DV52: 7 | DW52: 627 | DX52: 41 | DY52: 322 | DZ52: 361 | EA52: 2378 | EB52: 335 | EC52: 206 | ED52: 0 | EE52: 69 | EF52: 0 | EG52: 0 | EH52: 15 | EI52: 2244 | EJ52: 962 | EK52: 56 | EL52: 3723 | EM52: 250 | EN52: 0 | EO52: 383 | EP52: 0 | EQ52: 124 | ER52: 389 | ES52: 401 | ET52: 21 | EU52: 0 | EV52: 327 | EW52: 185 | EX52: 182 | EY52: 0 | EZ52: 740 | FA52: 156 | FB52: 53 | FC52: 137 | FD52: 38 | FE52: 19 | FF52: 16 | FG52: 93 | FH52: 127 | FI52: 0 | FJ52: 1112 | FK52: 382 | FL52: 1626 | FM52: 0 | FN52: 116 | FO52: 966 | FP52: 56 | FQ52: 6 | FR52: 0 | FS52: 230 | FT52: 68 | FU52: 30 | FV52: 0 | FW52: 1243 | FX52: 73 | FY52: 883 | FZ52: 862 | GA52: 3318 | GB52: 284 | GC52: 315 | GD52: 0 | GE52: 23 | GF52: 147 | GG52: 0 | GH52: 17 | GI52: 2893 | GJ52: 833 | GK52: 74 | GL52: 4780 | GM52: 328 | GN52: 0 | GO52: 214 | GP52: 11 | GQ52: 26 | GR52: 935 | GS52: 341 | GT52: 124 | GU52: 39 | GV52: 193 | GW52: 493 | GX52: 81 | GY52: 0 | GZ52: 728 | HA52: 98 | HB52: 0 | HC52: 151 | HD52: 96 | HE52: 0 | HF52: 5.333333333 | HG52: 285.6666667 | HH52: 167.3333333 | HI52: 0 | HJ52: 977.3333333 | HK52: 412.3333333 | HL52: 1672.666667 | HM52: 64.66666667 | HN52: 50.66666667 | HO52: 1131.666667 | HP52: 217.6666667 | HQ52: 66 | HR52: 0 | HS52: 328.6666667 | HT52: 108.6666667 | HU52: 40.33333333 | HV52: 2.333333333 | HW52: 682 | HX52: 38 | HY52: 676.3333333 | HZ52: 507.6666667 | IA52: 3098.333333 | IB52: 273.3333333 | IC52: 202 | ID52: 0 | IE52: 47.66666667 | IF52: 127.6666667 | IG52: 0 | IH52: 30 | II52: 2632.333333 | IJ52: 848.6666667 | IK52: 43.33333333 | IL52: 4186.333333 | IM52: 372.3333333 | IN52: 10 | IO52: 215.6666667 | IP52: 3.666666667 | IQ52: 83.33333333 | IR52: 616 | IS52: 323 | IT52: 93 | IU52: 64 | IV52: 215 | IW52: 414.3333333 | IX52: 87.66666667 | IY52: 0 | IZ52: 622.6666667 | JA52: 127.3333333 | JB52: 17.66666667 | JC52: 221.6666667 | JD52: 62 | JE52: 6.333333333
A53: 2010-01-01 | B53: 11053022 | BE53: Virginia | BF53: 2671 | BG53: 3296 | BH53: 3807 | BI53: 1233 | BJ53: 17088 | BK53: 3229 | BL53: 2468 | BM53: 1265 | BN53: 10593 | BO53: 18165 | BP53: 11927 | BQ53: 2347 | BR53: 1159 | BS53: 7576 | BT53: 2892 | BU53: 1135 | BV53: 2103 | BW53: 2051 | BX53: 2148 | BY53: 1494 | BZ53: 24822 | CA53: 4104 | CB53: 5733 | CC53: 462 | CD53: 1858 | CE53: 4262 | CF53: 866 | CG53: 523 | CH53: 748 | CI53: 372 | CJ53: 6825 | CK53: 1098 | CL53: 17525 | CM53: 23829 | CN53: 201 | CO53: 7708 | CP53: 781 | CQ53: 2137 | CR53: 11796 | CS53: 1543 | CT53: 8339 | CU53: 98 | CV53: 5842 | CW53: 12938 | CX53: 1551 | CY53: 676 | CZ53: 0 | DA53: 4373 | DB53: 6779 | DC53: 2648 | DD53: 423 | DE53: 1306 | DF53: 4930 | DG53: 3202 | DH53: 4679 | DI53: 645 | DJ53: 19371 | DK53: 4908 | DL53: 5376 | DM53: 961 | DN53: 6854 | DO53: 17773 | DP53: 8715 | DQ53: 2917 | DR53: 434 | DS53: 4000 | DT53: 2703 | DU53: 1503 | DV53: 892 | DW53: 3630 | DX53: 2496 | DY53: 2855 | DZ53: 22051 | EA53: 5386 | EB53: 7323 | EC53: 834 | ED53: 1682 | EE53: 2277 | EF53: 617 | EG53: 256 | EH53: 1717 | EI53: 1344 | EJ53: 7327 | EK53: 1014 | EL53: 12455 | EM53: 22753 | EN53: 462 | EO53: 9570 | EP53: 853 | EQ53: 3499 | ER53: 12009 | ES53: 1897 | ET53: 6612 | EU53: 908 | EV53: 7482 | EW53: 11655 | EX53: 1426 | EY53: 173 | EZ53: 0 | FA53: 4615 | FB53: 9041 | FC53: 858 | FD53: 190 | FE53: 1222 | FF53: 2515 | FG53: 1906 | FH53: 2420 | FI53: 445 | FJ53: 14780 | FK53: 5352 | FL53: 2725 | FM53: 2279 | FN53: 10964 | FO53: 19574 | FP53: 9535 | FQ53: 3823 | FR53: 652 | FS53: 7089 | FT53: 2663 | FU53: 221 | FV53: 1144 | FW53: 3908 | FX53: 1638 | FY53: 1144 | FZ53: 23925 | GA53: 3767 | GB53: 2982 | GC53: 2294 | GD53: 1344 | GE53: 1914 | GF53: 658 | GG53: 357 | GH53: 973 | GI53: 535 | GJ53: 9073 | GK53: 947 | GL53: 15893 | GM53: 25575 | GN53: 852 | GO53: 5622 | GP53: 2810 | GQ53: 1541 | GR53: 14190 | GS53: 1605 | GT53: 7936 | GU53: 35 | GV53: 6189 | GW53: 12944 | GX53: 2092 | GY53: 423 | GZ53: 0 | HA53: 4160 | HB53: 3839 | HC53: 1258 | HD53: 143 | HE53: 516 | HF53: 3372 | HG53: 2801.333333 | HH53: 3635.333333 | HI53: 774.3333333 | HJ53: 17079.66667 | HK53: 4496.333333 | HL53: 3523 | HM53: 1501.666667 | HN53: 9470.333333 | HO53: 18504 | HP53: 10059 | HQ53: 3029 | HR53: 748.3333333 | HS53: 6221.666667 | HT53: 2752.666667 | HU53: 953 | HV53: 1379.666667 | HW53: 3196.333333 | HX53: 2094 | HY53: 1831 | HZ53: 23599.33333 | IA53: 4419 | IB53: 5346 | IC53: 1196.666667 | ID53: 1628 | IE53: 2817.666667 | IF53: 713.6666667 | IG53: 378.6666667 | IH53: 1146 | II53: 750.3333333 | IJ53: 7741.666667 | IK53: 1019.666667 | IL53: 15291 | IM53: 24052.33333 | IN53: 505 | IO53: 7633.333333 | IP53: 1481.333333 | IQ53: 2392.333333 | IR53: 12665 | IS53: 1681.666667 | IT53: 7629 | IU53: 347 | IV53: 6504.333333 | IW53: 12512.33333 | IX53: 1689.666667 | IY53: 424 | IZ53: 0 | JA53: 4382.666667 | JB53: 6553 | JC53: 1588 | JD53: 252 | JE53: 1014.666667
A54: 2011-01-01 | B54: 11099077 | BE54: Washington | BF54: 1322 | BG54: 5644 | BH54: 5971 | BI54: 658 | BJ54: 39468 | BK54: 4883 | BL54: 642 | BM54: 202 | BN54: 243 | BO54: 5378 | BP54: 3107 | BQ54: 4246 | BR54: 12661 | BS54: 3931 | BT54: 1912 | BU54: 1685 | BV54: 1694 | BW54: 886 | BX54: 1011 | BY54: 717 | BZ54: 629 | CA54: 1448 | CB54: 2871 | CC54: 1323 | CD54: 737 | CE54: 3727 | CF54: 5094 | CG54: 323 | CH54: 5310 | CI54: 282 | CJ54: 721 | CK54: 1012 | CL54: 4140 | CM54: 2143 | CN54: 515 | CO54: 2727 | CP54: 1986 | CQ54: 26235 | CR54: 2893 | CS54: 220 | CT54: 3047 | CU54: 866 | CV54: 789 | CW54: 11338 | CX54: 4020 | CY54: 981 | CZ54: 7266 | DA54: 0 | DB54: 62 | DC54: 2180 | DD54: 638 | DE54: 0 | DF54: 1821 | DG54: 5266 | DH54: 12397 | DI54: 756 | DJ54: 38421 | DK54: 3938 | DL54: 1026 | DM54: 0 | DN54: 358 | DO54: 6094 | DP54: 8705 | DQ54: 5940 | DR54: 10895 | DS54: 2062 | DT54: 2303 | DU54: 1000 | DV54: 2820 | DW54: 1271 | DX54: 1016 | DY54: 1313 | DZ54: 1899 | EA54: 1580 | EB54: 3720 | EC54: 1543 | ED54: 1110 | EE54: 3307 | EF54: 2125 | EG54: 673 | EH54: 4925 | EI54: 824 | EJ54: 2006 | EK54: 1569 | EL54: 4512 | EM54: 3870 | EN54: 189 | EO54: 2686 | EP54: 765 | EQ54: 29168 | ER54: 2296 | ES54: 463 | ET54: 1519 | EU54: 227 | EV54: 2342 | EW54: 15491 | EX54: 4789 | EY54: 119 | EZ54: 4233 | FA54: 0 | FB54: 157 | FC54: 1491 | FD54: 1507 | FE54: 1083 | FF54: 1507 | FG54: 4328 | FH54: 8362 | FI54: 1413 | FJ54: 45597 | FK54: 5195 | FL54: 2901 | FM54: 100 | FN54: 773 | FO54: 9370 | FP54: 6363 | FQ54: 5239 | FR54: 10604 | FS54: 4298 | FT54: 1089 | FU54: 1159 | FV54: 2544 | FW54: 1368 | FX54: 1646 | FY54: 532 | FZ54: 1191 | GA54: 2911 | GB54: 3470 | GC54: 2703 | GD54: 615 | GE54: 2802 | GF54: 2919 | GG54: 682 | GH54: 5671 | GI54: 309 | GJ54: 2300 | GK54: 872 | GL54: 5562 | GM54: 4088 | GN54: 217 | GO54: 3192 | GP54: 1223 | GQ54: 25525 | GR54: 3397 | GS54: 97 | GT54: 2727 | GU54: 94 | GV54: 3206 | GW54: 14196 | GX54: 5298 | GY54: 223 | GZ54: 3839 | HA54: 0 | HB54: 215 | HC54: 1168 | HD54: 394 | HE54: 1025 | HF54: 1550 | HG54: 5079.333333 | HH54: 8910 | HI54: 942.3333333 | HJ54: 41162 | HK54: 4672 | HL54: 1523 | HM54: 100.6666667 | HN54: 458 | HO54: 6947.333333 | HP54: 6058.333333 | HQ54: 5141.666667 | HR54: 11386.66667 | HS54: 3430.333333 | HT54: 1768 | HU54: 1281.333333 | HV54: 2352.666667 | HW54: 1175 | HX54: 1224.333333 | HY54: 854 | HZ54: 1239.666667 | IA54: 1979.666667 | IB54: 3353.666667 | IC54: 1856.333333 | ID54: 820.6666667 | IE54: 3278.666667 | IF54: 3379.333333 | IG54: 559.3333333 | IH54: 5302 | II54: 471.6666667 | IJ54: 1675.666667 | IK54: 1151 | IL54: 4738 | IM54: 3367 | IN54: 307 | IO54: 2868.333333 | IP54: 1324.666667 | IQ54: 26976 | IR54: 2862 | IS54: 260 | IT54: 2431 | IU54: 395.6666667 | IV54: 2112.333333 | IW54: 13675 | IX54: 4702.333333 | IY54: 441 | IZ54: 5112.666667 | JA54: 0 | JB54: 144.6666667 | JC54: 1613 | JD54: 846.3333333 | JE54: 702.6666667
A55: 2012-01-01 | B55: 11107110 | BE55: West Virginia | BF55: 41 | BG55: 1326 | BH55: 0 | BI55: 0 | BJ55: 760 | BK55: 608 | BL55: 84 | BM55: 556 | BN55: 480 | BO55: 1842 | BP55: 485 | BQ55: 0 | BR55: 88 | BS55: 356 | BT55: 366 | BU55: 0 | BV55: 161 | BW55: 851 | BX55: 60 | BY55: 0 | BZ55: 4249 | CA55: 191 | CB55: 657 | CC55: 0 | CD55: 44 | CE55: 160 | CF55: 39 | CG55: 0 | CH55: 25 | CI55: 107 | CJ55: 906 | CK55: 0 | CL55: 611 | CM55: 2552 | CN55: 268 | CO55: 7925 | CP55: 229 | CQ55: 0 | CR55: 4908 | CS55: 238 | CT55: 647 | CU55: 0 | CV55: 1160 | CW55: 968 | CX55: 112 | CY55: 208 | CZ55: 4999 | DA55: 192 | DB55: 0 | DC55: 150 | DD55: 0 | DE55: 182 | DF55: 221 | DG55: 598 | DH55: 50 | DI55: 225 | DJ55: 1442 | DK55: 124 | DL55: 594 | DM55: 89 | DN55: 300 | DO55: 2949 | DP55: 1296 | DQ55: 147 | DR55: 120 | DS55: 1331 | DT55: 210 | DU55: 0 | DV55: 0 | DW55: 515 | DX55: 326 | DY55: 45 | DZ55: 7515 | EA55: 236 | EB55: 459 | EC55: 0 | ED55: 0 | EE55: 309 | EF55: 60 | EG55: 78 | EH55: 293 | EI55: 160 | EJ55: 1431 | EK55: 0 | EL55: 2017 | EM55: 3865 | EN55: 0 | EO55: 8545 | EP55: 97 | EQ55: 132 | ER55: 4205 | ES55: 284 | ET55: 1857 | EU55: 0 | EV55: 546 | EW55: 1574 | EX55: 114 | EY55: 23 | EZ55: 5561 | FA55: 83 | FB55: 0 | FC55: 42 | FD55: 0 | FE55: 680 | FF55: 477 | FG55: 306 | FH55: 79 | FI55: 0 | FJ55: 1231 | FK55: 104 | FL55: 143 | FM55: 674 | FN55: 294 | FO55: 1919 | FP55: 1108 | FQ55: 166 | FR55: 181 | FS55: 220 | FT55: 328 | FU55: 68 | FV55: 39 | FW55: 2249 | FX55: 90 | FY55: 35 | FZ55: 5352 | GA55: 164 | GB55: 778 | GC55: 20 | GD55: 0 | GE55: 59 | GF55: 0 | GG55: 0 | GH55: 229 | GI55: 129 | GJ55: 1213 | GK55: 81 | GL55: 1721 | GM55: 4683 | GN55: 175 | GO55: 6757 | GP55: 520 | GQ55: 118 | GR55: 5208 | GS55: 0 | GT55: 1098 | GU55: 36 | GV55: 1061 | GW55: 622 | GX55: 0 | GY55: 54 | GZ55: 6317 | HA55: 297 | HB55: 0 | HC55: 470 | HD55: 252 | HE55: 79 | HF55: 246.3333333 | HG55: 743.3333333 | HH55: 43 | HI55: 75 | HJ55: 1144.333333 | HK55: 278.6666667 | HL55: 273.6666667 | HM55: 439.6666667 | HN55: 358 | HO55: 2236.666667 | HP55: 963 | HQ55: 104.3333333 | HR55: 129.6666667 | HS55: 635.6666667 | HT55: 301.3333333 | HU55: 22.66666667 | HV55: 66.66666667 | HW55: 1205 | HX55: 158.6666667 | HY55: 26.66666667 | HZ55: 5705.333333 | IA55: 197 | IB55: 631.3333333 | IC55: 6.666666667 | ID55: 14.66666667 | IE55: 176 | IF55: 33 | IG55: 26 | IH55: 182.3333333 | II55: 132 | IJ55: 1183.333333 | IK55: 27 | IL55: 1449.666667 | IM55: 3700 | IN55: 147.6666667 | IO55: 7742.333333 | IP55: 282 | IQ55: 83.33333333 | IR55: 4773.666667 | IS55: 174 | IT55: 1200.666667 | IU55: 12 | IV55: 922.3333333 | IW55: 1054.666667 | IX55: 75.33333333 | IY55: 95 | IZ55: 5625.666667 | JA55: 190.6666667 | JB55: 0 | JC55: 220.6666667 | JD55: 84 | JE55: 313.6666667
BE56: Wisconsin | BF56: 552 | BG56: 798 | BH56: 1854 | BI56: 518 | BJ56: 4506 | BK56: 1890 | BL56: 359 | BM56: 351 | BN56: 98 | BO56: 4492 | BP56: 1656 | BQ56: 550 | BR56: 902 | BS56: 20299 | BT56: 2563 | BU56: 2300 | BV56: 752 | BW56: 287 | BX56: 331 | BY56: 448 | BZ56: 1088 | CA56: 992 | CB56: 6317 | CC56: 16741 | CD56: 810 | CE56: 1716 | CF56: 154 | CG56: 853 | CH56: 1049 | CI56: 69 | CJ56: 632 | CK56: 123 | CL56: 1291 | CM56: 1817 | CN56: 497 | CO56: 1674 | CP56: 89 | CQ56: 1444 | CR56: 2211 | CS56: 0 | CT56: 1142 | CU56: 235 | CV56: 856 | CW56: 3039 | CX56: 476 | CY56: 75 | CZ56: 771 | DA56: 1013 | DB56: 256 | DC56: 0 | DD56: 129 | DE56: 521 | DF56: 708 | DG56: 432 | DH56: 4045 | DI56: 335 | DJ56: 6637 | DK56: 2592 | DL56: 993 | DM56: 219 | DN56: 123 | DO56: 4338 | DP56: 1745 | DQ56: 1108 | DR56: 566 | DS56: 25521 | DT56: 4017 | DU56: 3306 | DV56: 418 | DW56: 1040 | DX56: 850 | DY56: 12 | DZ56: 147 | EA56: 733 | EB56: 5623 | EC56: 17927 | ED56: 983 | EE56: 2090 | EF56: 143 | EG56: 483 | EH56: 663 | EI56: 480 | EJ56: 378 | EK56: 714 | EL56: 2213 | EM56: 2120 | EN56: 1383 | EO56: 1358 | EP56: 118 | EQ56: 1057 | ER56: 1294 | ES56: 368 | ET56: 377 | EU56: 590 | EV56: 744 | EW56: 1984 | EX56: 890 | EY56: 342 | EZ56: 2573 | FA56: 1555 | FB56: 1090 | FC56: 0 | FD56: 14 | FE56: 728 | FF56: 323 | FG56: 236 | FH56: 3257 | FI56: 253 | FJ56: 5347 | FK56: 1600 | FL56: 657 | FM56: 296 | FN56: 15 | FO56: 4937 | FP56: 970 | FQ56: 333 | FR56: 360 | FS56: 22285 | FT56: 2480 | FU56: 4161 | FV56: 1160 | FW56: 635 | FX56: 598 | FY56: 233 | FZ56: 1306 | GA56: 489 | GB56: 3917 | GC56: 18965 | GD56: 238 | GE56: 1263 | GF56: 784 | GG56: 324 | GH56: 1163 | GI56: 3 | GJ56: 606 | GK56: 526 | GL56: 2033 | GM56: 2939 | GN56: 284 | GO56: 2610 | GP56: 289 | GQ56: 945 | GR56: 1563 | GS56: 144 | GT56: 1053 | GU56: 329 | GV56: 1051 | GW56: 2765 | GX56: 900 | GY56: 62 | GZ56: 1267 | HA56: 1208 | HB56: 0 | HC56: 0 | HD56: 30 | HE56: 975 | HF56: 527.6666667 | HG56: 488.6666667 | HH56: 3052 | HI56: 368.6666667 | HJ56: 5496.666667 | HK56: 2027.333333 | HL56: 669.6666667 | HM56: 288.6666667 | HN56: 78.66666667 | HO56: 4589 | HP56: 1457 | HQ56: 663.6666667 | HR56: 609.3333333 | HS56: 22701.66667 | HT56: 3020 | HU56: 3255.666667 | HV56: 776.6666667 | HW56: 654 | HX56: 593 | HY56: 231 | HZ56: 847 | IA56: 738 | IB56: 5285.666667 | IC56: 17877.66667 | ID56: 677 | IE56: 1689.666667 | IF56: 360.3333333 | IG56: 553.3333333 | IH56: 958.3333333 | II56: 184 | IJ56: 538.6666667 | IK56: 454.3333333 | IL56: 1845.666667 | IM56: 2292 | IN56: 721.3333333 | IO56: 1880.666667 | IP56: 165.3333333 | IQ56: 1148.666667 | IR56: 1689.333333 | IS56: 170.6666667 | IT56: 857.3333333 | IU56: 384.6666667 | IV56: 883.6666667 | IW56: 2596 | IX56: 755.3333333 | IY56: 159.6666667 | IZ56: 1537 | JA56: 1258.666667 | JB56: 448.6666667 | JC56: 0 | JD56: 57.66666667 | JE56: 741.3333333
BE57: Wyoming | BF57: 172 | BG57: 0 | BH57: 1511 | BI57: 0 | BJ57: 2784 | BK57: 4390 | BL57: 0 | BM57: 0 | BN57: 0 | BO57: 396 | BP57: 745 | BQ57: 25 | BR57: 942 | BS57: 415 | BT57: 132 | BU57: 462 | BV57: 532 | BW57: 519 | BX57: 107 | BY57: 0 | BZ57: 51 | CA57: 252 | CB57: 570 | CC57: 218 | CD57: 0 | CE57: 421 | CF57: 2528 | CG57: 1711 | CH57: 416 | CI57: 0 | CJ57: 0 | CK57: 707 | CL57: 146 | CM57: 34 | CN57: 233 | CO57: 56 | CP57: 62 | CQ57: 14 | CR57: 95 | CS57: 0 | CT57: 220 | CU57: 258 | CV57: 495 | CW57: 1990 | CX57: 3226 | CY57: 75 | CZ57: 580 | DA57: 556 | DB57: 0 | DC57: 0 | DD57: 0 | DE57: 0 | DF57: 51 | DG57: 761 | DH57: 369 | DI57: 174 | DJ57: 2539 | DK57: 6905 | DL57: 11 | DM57: 0 | DN57: 0 | DO57: 1525 | DP57: 46 | DQ57: 0 | DR57: 2140 | DS57: 450 | DT57: 6 | DU57: 342 | DV57: 286 | DW57: 83 | DX57: 114 | DY57: 0 | DZ57: 0 | EA57: 152 | EB57: 849 | EC57: 357 | ED57: 70 | EE57: 241 | EF57: 1105 | EG57: 1784 | EH57: 427 | EI57: 0 | EJ57: 7 | EK57: 76 | EL57: 113 | EM57: 395 | EN57: 237 | EO57: 22 | EP57: 462 | EQ57: 960 | ER57: 284 | ES57: 13 | ET57: 219 | EU57: 1043 | EV57: 69 | EW57: 1398 | EX57: 2140 | EY57: 4 | EZ57: 451 | FA57: 1803 | FB57: 0 | FC57: 168 | FD57: 0 | FE57: 0 | FF57: 260 | FG57: 590 | FH57: 2014 | FI57: 244 | FJ57: 2035 | FK57: 5599 | FL57: 0 | FM57: 0 | FN57: 0 | FO57: 733 | FP57: 166 | FQ57: 0 | FR57: 745 | FS57: 905 | FT57: 179 | FU57: 259 | FV57: 539 | FW57: 4 | FX57: 88 | FY57: 0 | FZ57: 294 | GA57: 548 | GB57: 965 | GC57: 290 | GD57: 136 | GE57: 244 | GF57: 1901 | GG57: 1216 | GH57: 355 | GI57: 0 | GJ57: 121 | GK57: 604 | GL57: 231 | GM57: 459 | GN57: 338 | GO57: 819 | GP57: 964 | GQ57: 893 | GR57: 230 | GS57: 0 | GT57: 122 | GU57: 1175 | GV57: 4 | GW57: 1427 | GX57: 1710 | GY57: 0 | GZ57: 138 | HA57: 1323 | HB57: 0 | HC57: 282 | HD57: 0 | HE57: 16 | HF57: 161 | HG57: 450.3333333 | HH57: 1298 | HI57: 139.3333333 | HJ57: 2452.666667 | HK57: 5631.333333 | HL57: 3.666666667 | HM57: 0 | HN57: 0 | HO57: 884.6666667 | HP57: 319 | HQ57: 8.333333333 | HR57: 1275.666667 | HS57: 590 | HT57: 105.6666667 | HU57: 354.3333333 | HV57: 452.3333333 | HW57: 202 | HX57: 103 | HY57: 0 | HZ57: 115 | IA57: 317.3333333 | IB57: 794.6666667 | IC57: 288.3333333 | ID57: 68.66666667 | IE57: 302 | IF57: 1844.666667 | IG57: 1570.333333 | IH57: 399.3333333 | II57: 0 | IJ57: 42.66666667 | IK57: 462.3333333 | IL57: 163.3333333 | IM57: 296 | IN57: 269.3333333 | IO57: 299 | IP57: 496 | IQ57: 622.3333333 | IR57: 203 | IS57: 4.333333333 | IT57: 187 | IU57: 825.3333333 | IV57: 189.3333333 | IW57: 1605 | IX57: 2358.666667 | IY57: 26.33333333 | IZ57: 389.6666667 | JA57: 1227.333333 | JB57: 0 | JC57: 150 | JD57: 0 | JE57: 5.333333333
A62: pvtState2ChangedResidence
A63: Sum of Changed Residence Last Yr
B64: Pennsylvania
A65: 2010-01-01 | B65: 1239199
A66: 2011-01-01 | B66: 1224564
A67: 2012-01-01 | B67: 1252378
